Workbook

Sheet Instructions
A1: Surface Transportation Board - Railroad Cost Program - Instructions
B2: Version 2017.1
A3: Overview
A4: This is a Microsoft Excel version of the Surface Transportation Board's URCS Phase III Railroad Cost Program. This replaces the Visual Basic version of the program that needed to be installed on a user's computer. This Excel version of the program can be run one of two ways. First, the RailroadCostProgram worksheet of the workbook can be used to calculate the variable cost of a shipment by directly inputting the URCS input parameters. Second, the BatchCostProgram worksheet of the workbook can be used to calculate the variable costs of series of shipments by running a macro. The BatchCostProgram is designed to support evidence filed before the STB. Note: For 2024 forward, CP represents CPKC in the Surface Transportation Board – Railroad Cost Program
A6: Worksheet Name | B6: Description
A7: RailroadCostProgram | B7: This worksheet is used to input the mandatory parameters used by the URCS Phase III program, which are highlighted in yellow. A description of each field pops up when each field is selected. Some fields have drop-down lists that the user can select from. The variable costs of the shipment are automatically calculated. This worksheet can be used to calculate the variable cost of a single segment by only entering values in the "ORR" column. If only costing one segment, enter the distance traveled by any other railroads in the TRR Distance field so that Loss & Damage can be allocated appropriately. For multi-carrier shipments, the originating railroad should go in the "ORR" column, the terminating railroad should to in the "TRR" column, and any intermediate railroads should go in the "JRR" columns (i.e., junction railroads). This worksheet can be printed out as the URCS Standard Output Report.
A8: Detailed Parameters | B8: This worksheet can be used to override certain values in the RailroadCostProgram worksheet. The user should input any override values into the cells highlighted in yellow. The detailed parameters allow for "What If" scenarios to be evaluated.
A9: BatchCostProgram | B9: This worksheet is used to define the inputs needed for calculating the costs of many segments at one time. The user should input values into the columns highlighted in yellow (columns A-N). To cost the records, press the "Run Batch Program" button. The results are stored in the BatchOutput worksheet. Since the BatchCostProgram is designed to support evidence filed before the STB, only a limited number of detailed parameter options are available. Those are the circuity and the TOFC Plan. Any records whose inputs were invalid will have #N/A in one or more of columns P through AC. Use the AutoFilter feature to find those records.
A10: BatchOutput | B10: This worksheet contains the results of running the BatchCostProgram. Any records that were unable to be costed will have #N/A in column PN, which is the total variable cost (L700). Use the AutoFilter feature to find those records.
A11: URCSInputs | B11: This worksheet contains various URCS input values. It acts as a reference for various codes expected by the Phase III program.
A12: RailroadUnitCostXML | B12: This worksheet contains the unit costs for various years that were previously stored in the Railroad Unit Cost files, which were in an XML format.
A13: Railroads | B13: This worksheet contains the various URCS Class I railroad codes. It also contains a list of all railroads listed in previous waybill samples and the regions to which they are assigned.
A14: STCCs | B14: This worksheet contains the translation of 5-digit STCC codes into their URCS commodity group.
A15: ECodeTable | B15: This worksheet contains the translations of the URCS Phase II reference ID (e.g., E1L101C1=Gross Ton Mile (GTM) OPR Expense).

Sheet RailroadCostProgram
A1: Surface Transportation Board - Railroad Cost Program | D1: 2024 | E1: Unit Cost Year
A3: ="Using "&TEXT(CostYear,"0000")&" Unit Costs" -> Using 2024 Unit Costs | D3: 1 | E3: 2 | F3: 3 | G3: 4 | H3: 5 | I3: =Version -> Version 2017.1
A4: LINE | B4: DESCRIPTION | C4: SOURCE | D4: ORR | E4: JRR1 | F4: JRR2 | G4: JRR3 | H4: TRR | I4: Total | J4: Information
A5: RR | B5: Railroad | C5: [User] | D5: WEST
A6: DIS | B6: Distance | C6: [User] | D6: 1000 | I6: =SUM($D6:$H6) -> 1000
A7: SG | B7: Segment Type | C7: [User] | D7: OT | E7: =IF(ISBLANK(RR),"","RD") ->  | F7: =IF(ISBLANK(RR),"","RD") ->  | G7: =IF(ISBLANK(RR),"","RD") -> 
A8: FC | B8: Freight Car Type | C8: [User] | D8: Covered Hopper Cars | J8: Car Type Index= | K8: =VLOOKUP($D$8,URCSInputs!$L$3:$M$19,2,FALSE) -> 6
A9: NC | B9: =IF(SZ<>"Intermodal","Number of Cars","Number of TCUs") -> Number of Cars | C9: [User] | D9: 1
A10: OWN | B10: Car Ownership | C10: [User] | D10: Railroad
A11: WT | B11: =IF(SZ<>"Intermodal","Weight per Car (tons)","Weight per TCU (tons)") -> Weight per Car (tons) | C11: [User] | D11: 80
A12: COM | B12: Commodity | C12: [User] | D12: 0113 Grains | J12: Commodity Index= | K12: =VLOOKUP(COM,URCSInputs!$Q$3:$R$84,2,FALSE) -> 2
A13: SZ | B13: Shipment Size | C13: [User] | D13: Single
A14: REV | B14: Revenue | C14: [User]
C15: =IF(AND($D$7="OT",$H$6>0),"CAUTION: The ORR Segment Type should not be 'OT' if a TRR Distance is specified.",IF(AND(OR($D$7="OD",$D$7="RD",$D$7="RT",$D$7="IR"),$H$6=0),"CAUTION: The Loss & Damage expense will not be allocated properly unless the distance traveled by all other railroads is specified as the TRR distance.",IF(AND(FC="Flat Cars TOFC/COFC",SZ<>"Intermodal"),"CAUTION: TOFC Flatcars usually move in Intermodal service.",IF(AND(SZ="Intermodal",NOT(OR(FC="Flat Cars TOFC/COFC",FC="Flat Cars-General Service",FC="Flat Cars-Other"))),"CAUTION: Intermodal usually moves in TOFC Flatcars, General Service Flatcars, or Other Flatcars.","")))) -> 
C16: VARIABLE COST SUMMARY | H16: =IF(REV=0,"","RVC RATIO:") ->  | I16: =IF(REV=0,"",REV/$I$21) -> 
C17: Category | D17: =IF(ISBLANK(RR),"",RR) -> WEST | E17: =IF(ISBLANK(RR),"",RR) ->  | F17: =IF(ISBLANK(RR),"",RR) ->  | G17: =IF(ISBLANK(RR),"",RR) ->  | H17: =IF(ISBLANK(RR),"",RR) ->  | I17: =I$4 -> Total
C18: Variable Costs | D18: =IF(ISBLANK(RR),"",SUM(D$370:D$464)) -> 2596.93068 | E18: =IF(ISBLANK(RR),"",SUM(E$370:E$464)) ->  | F18: =IF(ISBLANK(RR),"",SUM(F$370:F$464)) ->  | G18: =IF(ISBLANK(RR),"",SUM(G$370:G$464)) ->  | H18: =IF(ISBLANK(RR),"",SUM(H$370:H$464)) ->  | I18: =SUM(D18:H18) -> 2596.93068
C19: Loss & Damage | D19: =IF(ISBLANK(RR),"",Line537) -> 3.668415759 | E19: =IF(ISBLANK(RR),"",Line537) ->  | F19: =IF(ISBLANK(RR),"",Line537) ->  | G19: =IF(ISBLANK(RR),"",Line537) ->  | H19: =IF(ISBLANK(RR),"",Line537) ->  | I19: =SUM(D19:H19) -> 3.668415759
C20: Ex Parte Adjustment (i.e., Make Whole) | D20: =IF(ISBLANK(RR),"",Line587) -> 375.4312873 | E20: =IF(ISBLANK(RR),"",Line587) ->  | F20: =IF(ISBLANK(RR),"",Line587) ->  | G20: =IF(ISBLANK(RR),"",Line587) ->  | H20: =IF(ISBLANK(RR),"",Line587) ->  | I20: =SUM(D20:H20) -> 375.4312873
C21: Total Variable Costs | D21: =IF(ISBLANK(RR),"",SUM(D$18:D$20)) -> 2976.030383 | I21: =SUM(D21:H21) -> 2976.030383
A23: HDR | B23: Train Mileage | C23: Source | D23: =IF(ISBLANK(RR),"",RR) -> WEST | E23: =IF(ISBLANK(RR),"",RR) ->  | F23: =IF(ISBLANK(RR),"",RR) ->  | G23: =IF(ISBLANK(RR),"",RR) ->  | H23: =IF(ISBLANK(RR),"",RR) ->  | I23: =I$4 -> Total
A24: 101 | B24: Short line miles | C24: [User] | D24: =IF(ISBLANK(RR),"",IF(OR(SG="IA",SG="IR"),0,DIS)) -> 1000 | E24: =IF(ISBLANK(RR),"",IF(OR(SG="IA",SG="IR"),0,DIS)) ->  | F24: =IF(ISBLANK(RR),"",IF(OR(SG="IA",SG="IR"),0,DIS)) ->  | G24: =IF(ISBLANK(RR),"",IF(OR(SG="IA",SG="IR"),0,DIS)) ->  | H24: =IF(ISBLANK(RR),"",IF(OR(SG="IA",SG="IR"),0,DIS)) ->  | I24: =SUM(D24:H24) -> 1000
A25: 102 | B25: Circuity factor | C25: ="E2L1"&TEXT(CarIndex,"00")&"C"&IF(INDEX(SG,1)="OT","5","6") -> E2L106C5 | D25: =IF(ISBLANK(RR),"",IF(OR(SG="IA",SG="IR"),0,IF(ISNUMBER(INDEX(User_Circuity,D$3)),INDEX(User_Circuity,D$3),AdjustL102*VLOOKUP(RR&"-"&$C25,UnitCostXML,MATCH(CostYear,UnitCostXMLHeaders,0),FALSE)))) -> 1 | E25: =IF(ISBLANK(RR),"",IF(OR(SG="IA",SG="IR"),0,IF(ISNUMBER(INDEX(User_Circuity,E$3)),INDEX(User_Circuity,E$3),AdjustL102*VLOOKUP(RR&"-"&$C25,UnitCostXML,MATCH(CostYear,UnitCostXMLHeaders,0),FALSE)))) ->  | F25: =IF(ISBLANK(RR),"",IF(OR(SG="IA",SG="IR"),0,IF(ISNUMBER(INDEX(User_Circuity,F$3)),INDEX(User_Circuity,F$3),AdjustL102*VLOOKUP(RR&"-"&$C25,UnitCostXML,MATCH(CostYear,UnitCostXMLHeaders,0),FALSE)))) ->  | G25: =IF(ISBLANK(RR),"",IF(OR(SG="IA",SG="IR"),0,IF(ISNUMBER(INDEX(User_Circuity,G$3)),INDEX(User_Circuity,G$3),AdjustL102*VLOOKUP(RR&"-"&$C25,UnitCostXML,MATCH(CostYear,UnitCostXMLHeaders,0),FALSE)))) ->  | H25: =IF(ISBLANK(RR),"",IF(OR(SG="IA",SG="IR"),0,IF(ISNUMBER(INDEX(User_Circuity,H$3)),INDEX(User_Circuity,H$3),AdjustL102*VLOOKUP(RR&"-"&$C25,UnitCostXML,MATCH(CostYear,UnitCostXMLHeaders,0),FALSE)))) ->  | J25: =$C25&"="&VLOOKUP($C25,ECodeTable,MATCH("eTitle_and_Desc",ECodeHeaders,0),FALSE) -> E2L106C5=Local circuity, HOPPER - COVERED
A26: 103 | B26: Actual miles including circuity | C26: L101*L102 | D26: =IF(ISBLANK(RR),"",Line101*Line102) -> 1000 | E26: =IF(ISBLANK(RR),"",Line101*Line102) ->  | F26: =IF(ISBLANK(RR),"",Line101*Line102) ->  | G26: =IF(ISBLANK(RR),"",Line101*Line102) ->  | H26: =IF(ISBLANK(RR),"",Line101*Line102) ->  | I26: =SUM(D26:H26) -> 1000
A27: 104 | B27: Actual unit train miles including circuity | C27: [User] | D27: =IF(ISBLANK(RR),"",IF(SZ<>"Unit",0,Line101*Line102)) -> 0 | E27: =IF(ISBLANK(RR),"",IF(SZ<>"Unit",0,Line101*Line102)) ->  | F27: =IF(ISBLANK(RR),"",IF(SZ<>"Unit",0,Line101*Line102)) ->  | G27: =IF(ISBLANK(RR),"",IF(SZ<>"Unit",0,Line101*Line102)) ->  | H27: =IF(ISBLANK(RR),"",IF(SZ<>"Unit",0,Line101*Line102)) ->  | I27: =SUM(D27:H27) -> 0
A28: 105 | B28: E/L ratio, this car | C28: ="E2L1"&TEXT(CarIndex,"00")&"C"&IF(OWN="Railroad","2","3") -> E2L106C2 | D28: =IF(ISBLANK(RR),"",IF(ISNUMBER(INDEX(User_ELRatio,D$3)),INDEX(User_ELRatio,D$3),AdjustL105*VLOOKUP(RR&"-"&$C28,UnitCostXML,MATCH(CostYear,UnitCostXMLHeaders,0),FALSE))) -> 2.004048943 | E28: =IF(ISBLANK(RR),"",IF(ISNUMBER(INDEX(User_ELRatio,E$3)),INDEX(User_ELRatio,E$3),AdjustL105*VLOOKUP(RR&"-"&$C28,UnitCostXML,MATCH(CostYear,UnitCostXMLHeaders,0),FALSE))) ->  | F28: =IF(ISBLANK(RR),"",IF(ISNUMBER(INDEX(User_ELRatio,F$3)),INDEX(User_ELRatio,F$3),AdjustL105*VLOOKUP(RR&"-"&$C28,UnitCostXML,MATCH(CostYear,UnitCostXMLHeaders,0),FALSE))) ->  | G28: =IF(ISBLANK(RR),"",IF(ISNUMBER(INDEX(User_ELRatio,G$3)),INDEX(User_ELRatio,G$3),AdjustL105*VLOOKUP(RR&"-"&$C28,UnitCostXML,MATCH(CostYear,UnitCostXMLHeaders,0),FALSE))) ->  | H28: =IF(ISBLANK(RR),"",IF(ISNUMBER(INDEX(User_ELRatio,H$3)),INDEX(User_ELRatio,H$3),AdjustL105*VLOOKUP(RR&"-"&$C28,UnitCostXML,MATCH(CostYear,UnitCostXMLHeaders,0),FALSE))) ->  | J28: =$C28&"="&VLOOKUP($C28,ECodeTable,MATCH("eTitle_and_Desc",ECodeHeaders,0),FALSE) -> E2L106C2=E/L Ratio, Railroad-Owned, HOPPER - COVERED
A29: 106 | B29: Estimated way train miles including circuity | C29: ="(E2L201C1/E2L118C4)*("&$C$25&"/E2L118C7)*L250" -> (E2L201C1/E2L118C4)*(E2L106C5/E2L118C7)*L250 | D29: =IF(ISBLANK(RR),"",IF(OR(SZ="Unit",SZ="Intermodal"),0,D$480)) -> 15.71475541 | E29: =IF(ISBLANK(RR),"",IF(OR(SZ="Unit",SZ="Intermodal"),0,E$480)) ->  | F29: =IF(ISBLANK(RR),"",IF(OR(SZ="Unit",SZ="Intermodal"),0,F$480)) ->  | G29: =IF(ISBLANK(RR),"",IF(OR(SZ="Unit",SZ="Intermodal"),0,G$480)) ->  | H29: =IF(ISBLANK(RR),"",IF(OR(SZ="Unit",SZ="Intermodal"),0,H$480)) ->  | J29: See Special Calculations area below, after L703
A30: 107 | B30: Estimated through train miles including circuity | C30: L103-L106 | D30: =IF(ISBLANK(RR),"",IF(SZ="Unit",0,Line103-Line106)) -> 984.2852446 | E30: =IF(ISBLANK(RR),"",IF(SZ="Unit",0,Line103-Line106)) ->  | F30: =IF(ISBLANK(RR),"",IF(SZ="Unit",0,Line103-Line106)) ->  | G30: =IF(ISBLANK(RR),"",IF(SZ="Unit",0,Line103-Line106)) ->  | H30: =IF(ISBLANK(RR),"",IF(SZ="Unit",0,Line103-Line106)) -> 
A31: 108 | B31: Total unit train miles including empty return | C31: L104*L105 | D31: =IF(ISBLANK(RR),"",IF(SZ<>"Unit",0,Line104*Line105)) -> 0 | E31: =IF(ISBLANK(E$5),"",IF(SZ<>"Unit",0,E27*E28)) ->  | F31: =IF(ISBLANK(F$5),"",IF(SZ<>"Unit",0,F27*F28)) ->  | G31: =IF(ISBLANK(G$5),"",IF(SZ<>"Unit",0,G27*G28)) ->  | H31: =IF(ISBLANK(H$5),"",IF(SZ<>"Unit",0,H27*H28)) ->  | I31: =SUM(D31:H31) -> 0
A32: 109 | B32: Total way train miles including empty return | C32: L105*L106 | D32: =IF(ISBLANK(RR),"",IF(SZ="Unit",0,Line105*Line106)) -> 31.49313897 | E32: =IF(ISBLANK(RR),"",IF(SZ="Unit",0,Line105*Line106)) ->  | F32: =IF(ISBLANK(RR),"",IF(SZ="Unit",0,Line105*Line106)) ->  | G32: =IF(ISBLANK(RR),"",IF(SZ="Unit",0,Line105*Line106)) ->  | H32: =IF(ISBLANK(RR),"",IF(SZ="Unit",0,Line105*Line106)) ->  | I32: =SUM(D32:H32) -> 31.49313897
A33: 110 | B33: Total through train miles including empty return | C33: L105*L107 | D33: =IF(ISBLANK(RR),"",IF(SZ="Unit",0,Line105*Line107)) -> 1972.555804 | E33: =IF(ISBLANK(RR),"",IF(SZ="Unit",0,Line105*Line107)) ->  | F33: =IF(ISBLANK(RR),"",IF(SZ="Unit",0,Line105*Line107)) ->  | G33: =IF(ISBLANK(RR),"",IF(SZ="Unit",0,Line105*Line107)) ->  | H33: =IF(ISBLANK(RR),"",IF(SZ="Unit",0,Line105*Line107)) ->  | I33: =SUM(D33:H33) -> 1972.555804
A34: 111 | B34: Total train miles including empty return | C34: L103*L105 | D34: =IF(ISBLANK(RR),"",Line103*Line105) -> 2004.048943 | E34: =IF(ISBLANK(RR),"",Line103*Line105) ->  | F34: =IF(ISBLANK(RR),"",Line103*Line105) ->  | G34: =IF(ISBLANK(RR),"",Line103*Line105) ->  | H34: =IF(ISBLANK(RR),"",Line103*Line105) ->  | I34: =SUM(D34:H34) -> 2004.048943
A35: HDR | B35: Car Mile Costs (Other than Clerical) | C35: Source | D35: =IF(ISBLANK(RR),"",RR) -> WEST | E35: =IF(ISBLANK(RR),"",RR) ->  | F35: =IF(ISBLANK(RR),"",RR) ->  | G35: =IF(ISBLANK(RR),"",RR) ->  | H35: =IF(ISBLANK(RR),"",RR) ->  | I35: =I$4 -> Total
A36: 201 | B36: Number of freight cars | C36: [User] | D36: =IF(ISBLANK(RR),"",IF(SZ<>"Intermodal",NC,0)) -> 1 | E36: =IF(ISBLANK(RR),"",IF(SZ<>"Intermodal",NC,0)) ->  | F36: =IF(ISBLANK(RR),"",IF(SZ<>"Intermodal",NC,0)) ->  | G36: =IF(ISBLANK(RR),"",IF(SZ<>"Intermodal",NC,0)) ->  | H36: =IF(ISBLANK(RR),"",IF(SZ<>"Intermodal",NC,0)) -> 
A37: 202 | B37: TCUs per flat car | C37: E2L202C1 | D37: =IF(ISBLANK(RR),"",IF(SZ<>"Intermodal",0,IF(User_TOFCPlanCode=4,1,IF(ISNUMBER(User_TCUsPerFlatcar),User_TCUsPerFlatcar,TCUsPerFlatcarDefault)))) -> 0 | E37: =IF(ISBLANK(RR),"",IF(SZ<>"Intermodal",0,IF(User_TOFCPlanCode=4,1,IF(ISNUMBER(User_TCUsPerFlatcar),User_TCUsPerFlatcar,TCUsPerFlatcarDefault)))) ->  | F37: =IF(ISBLANK(RR),"",IF(SZ<>"Intermodal",0,IF(User_TOFCPlanCode=4,1,IF(ISNUMBER(User_TCUsPerFlatcar),User_TCUsPerFlatcar,TCUsPerFlatcarDefault)))) ->  | G37: =IF(ISBLANK(RR),"",IF(SZ<>"Intermodal",0,IF(User_TOFCPlanCode=4,1,IF(ISNUMBER(User_TCUsPerFlatcar),User_TCUsPerFlatcar,TCUsPerFlatcarDefault)))) ->  | H37: =IF(ISBLANK(RR),"",IF(SZ<>"Intermodal",0,IF(User_TOFCPlanCode=4,1,IF(ISNUMBER(User_TCUsPerFlatcar),User_TCUsPerFlatcar,TCUsPerFlatcarDefault)))) ->  | J37: =$C37&"="&VLOOKUP($C37,ECodeTable,MATCH("eTitle_and_Desc",ECodeHeaders,0),FALSE) -> E2L202C1=Average TCUs Per Flat Car
A38: 203 | B38: Number of TCUs | C38: [User] | D38: =IF(ISBLANK(RR),"",IF(SZ<>"Intermodal",0,IF(ISNUMBER(User_TCUs),User_TCUs,NC))) -> 0 | E38: =IF(ISBLANK(RR),"",IF(SZ<>"Intermodal",0,IF(ISNUMBER(User_TCUs),User_TCUs,NC))) ->  | F38: =IF(ISBLANK(RR),"",IF(SZ<>"Intermodal",0,IF(ISNUMBER(User_TCUs),User_TCUs,NC))) ->  | G38: =IF(ISBLANK(RR),"",IF(SZ<>"Intermodal",0,IF(ISNUMBER(User_TCUs),User_TCUs,NC))) ->  | H38: =IF(ISBLANK(RR),"",IF(SZ<>"Intermodal",0,IF(ISNUMBER(User_TCUs),User_TCUs,NC))) -> 
A39: 204 | B39: Number of flat cars | C39: L203/L202 | D39: =IF(ISBLANK(RR),"",IF(SZ="Intermodal",Line203/Line202,0)) -> 0 | E39: =IF(ISBLANK(RR),"",IF(SZ="Intermodal",Line203/Line202,0)) ->  | F39: =IF(ISBLANK(RR),"",IF(SZ="Intermodal",Line203/Line202,0)) ->  | G39: =IF(ISBLANK(RR),"",IF(SZ="Intermodal",Line203/Line202,0)) ->  | H39: =IF(ISBLANK(RR),"",IF(SZ="Intermodal",Line203/Line202,0)) -> 
A40: 205 | B40: Car miles including empty return | C40: L111*L201; TOFC:L111*L204 | D40: =IF(ISBLANK(D$5),"",IF(SZ<>"Intermodal",Line111*Line201,IF(User_TOFCPlanCode=4,0,Line111*Line204))) -> 2004.048943 | E40: =IF(ISBLANK(E$5),"",IF(SZ<>"Intermodal",Line111*Line201,IF(User_TOFCPlanCode=4,0,Line111*Line204))) ->  | F40: =IF(ISBLANK(F$5),"",IF(SZ<>"Intermodal",Line111*Line201,IF(User_TOFCPlanCode=4,0,Line111*Line204))) ->  | G40: =IF(ISBLANK(G$5),"",IF(SZ<>"Intermodal",Line111*Line201,IF(User_TOFCPlanCode=4,0,Line111*Line204))) ->  | H40: =IF(ISBLANK(H$5),"",IF(SZ<>"Intermodal",Line111*Line201,IF(User_TOFCPlanCode=4,0,Line111*Line204))) ->  | I40: =SUM(D40:H40) -> 2004.048943
A41: 206 | B41: UC per CM-OPR | C41: E1L102C1 | D41: =IF(ISBLANK(RR),"",VLOOKUP(RR&"-"&$C41,UnitCostXML,MATCH(CostYear,UnitCostXMLHeaders,0),FALSE)) -> 0 | E41: =IF(ISBLANK(RR),"",VLOOKUP(RR&"-"&$C41,UnitCostXML,MATCH(CostYear,UnitCostXMLHeaders,0),FALSE)) ->  | F41: =IF(ISBLANK(RR),"",VLOOKUP(RR&"-"&$C41,UnitCostXML,MATCH(CostYear,UnitCostXMLHeaders,0),FALSE)) ->  | G41: =IF(ISBLANK(RR),"",VLOOKUP(RR&"-"&$C41,UnitCostXML,MATCH(CostYear,UnitCostXMLHeaders,0),FALSE)) ->  | H41: =IF(ISBLANK(RR),"",VLOOKUP(RR&"-"&$C41,UnitCostXML,MATCH(CostYear,UnitCostXMLHeaders,0),FALSE)) ->  | J41: =$C41&"="&VLOOKUP($C41,ECodeTable,MATCH("eTitle_and_Desc",ECodeHeaders,0),FALSE) -> E1L102C1=Car Mile (CM) - Other Than Clerical, OPR Expense
A42: 207 | B42: VC-CM Other-OPR | C42: L205*L206 | D42: =IF(ISBLANK(RR),"",Line205*Line206) -> 0 | E42: =IF(ISBLANK(RR),"",Line205*Line206) ->  | F42: =IF(ISBLANK(RR),"",Line205*Line206) ->  | G42: =IF(ISBLANK(RR),"",Line205*Line206) ->  | H42: =IF(ISBLANK(RR),"",Line205*Line206) ->  | I42: =SUM(D42:H42) -> 0
A43: 208 | B43: UC per CM-DRL | C43: E1L102C2 | D43: =IF(ISBLANK(RR),"",VLOOKUP(RR&"-"&$C43,UnitCostXML,MATCH(CostYear,UnitCostXMLHeaders,0),FALSE)) -> 0 | E43: =IF(ISBLANK(RR),"",VLOOKUP(RR&"-"&$C43,UnitCostXML,MATCH(CostYear,UnitCostXMLHeaders,0),FALSE)) ->  | F43: =IF(ISBLANK(RR),"",VLOOKUP(RR&"-"&$C43,UnitCostXML,MATCH(CostYear,UnitCostXMLHeaders,0),FALSE)) ->  | G43: =IF(ISBLANK(RR),"",VLOOKUP(RR&"-"&$C43,UnitCostXML,MATCH(CostYear,UnitCostXMLHeaders,0),FALSE)) ->  | H43: =IF(ISBLANK(RR),"",VLOOKUP(RR&"-"&$C43,UnitCostXML,MATCH(CostYear,UnitCostXMLHeaders,0),FALSE)) ->  | J43: =$C43&"="&VLOOKUP($C43,ECodeTable,MATCH("eTitle_and_Desc",ECodeHeaders,0),FALSE) -> E1L102C2=Car Mile (CM) - Other Than Clerical, DRL Expense
A44: 209 | B44: VC-CM Other-DRL | C44: L205*L208 | D44: =IF(ISBLANK(RR),"",Line205*Line208) -> 0 | E44: =IF(ISBLANK(RR),"",Line205*Line208) ->  | F44: =IF(ISBLANK(RR),"",Line205*Line208) ->  | G44: =IF(ISBLANK(RR),"",Line205*Line208) ->  | H44: =IF(ISBLANK(RR),"",Line205*Line208) ->  | I44: =SUM(D44:H44) -> 0
A45: 210 | B45: UC per CM-ROI | C45: E1L102C3 | D45: =IF(ISBLANK(RR),"",VLOOKUP(RR&"-"&$C45,UnitCostXML,MATCH(CostYear,UnitCostXMLHeaders,0),FALSE)) -> 0 | E45: =IF(ISBLANK(RR),"",VLOOKUP(RR&"-"&$C45,UnitCostXML,MATCH(CostYear,UnitCostXMLHeaders,0),FALSE)) ->  | F45: =IF(ISBLANK(RR),"",VLOOKUP(RR&"-"&$C45,UnitCostXML,MATCH(CostYear,UnitCostXMLHeaders,0),FALSE)) ->  | G45: =IF(ISBLANK(RR),"",VLOOKUP(RR&"-"&$C45,UnitCostXML,MATCH(CostYear,UnitCostXMLHeaders,0),FALSE)) ->  | H45: =IF(ISBLANK(RR),"",VLOOKUP(RR&"-"&$C45,UnitCostXML,MATCH(CostYear,UnitCostXMLHeaders,0),FALSE)) ->  | J45: =$C45&"="&VLOOKUP($C45,ECodeTable,MATCH("eTitle_and_Desc",ECodeHeaders,0),FALSE) -> E1L102C3=Car Mile (CM) - Other Than Clerical, ROI Expense
A46: 211 | B46: VC-CM Other-ROI | C46: L205*L210 | D46: =IF(ISBLANK(RR),"",Line205*Line210) -> 0 | E46: =IF(ISBLANK(RR),"",Line205*Line210) ->  | F46: =IF(ISBLANK(RR),"",Line205*Line210) ->  | G46: =IF(ISBLANK(RR),"",Line205*Line210) ->  | H46: =IF(ISBLANK(RR),"",Line205*Line210) ->  | I46: =SUM(D46:H46) -> 0
A47: HDR | B47: Gross Ton Mile Costs | C47: Source | D47: =IF(ISBLANK(RR),"",RR) -> WEST | E47: =IF(ISBLANK(RR),"",RR) ->  | F47: =IF(ISBLANK(RR),"",RR) ->  | G47: =IF(ISBLANK(RR),"",RR) ->  | H47: =IF(ISBLANK(RR),"",RR) ->  | I47: =I$4 -> Total
A48: 212 | B48: Tare weight (tons) this car type | C48: ="E2L1"&TEXT(CarIndex,"00")&"C1" -> E2L106C1 | D48: =IF(ISBLANK(RR),"",IF(AND(SZ="Intermodal",User_TOFCPlanCode=4),0,IF(ISNUMBER(User_FreightCarTareWeight),User_FreightCarTareWeight,VLOOKUP(RR&"-"&$C48,UnitCostXML,MATCH(CostYear,UnitCostXMLHeaders,0),FALSE)))) -> 31 | E48: =IF(ISBLANK(RR),"",IF(AND(SZ="Intermodal",User_TOFCPlanCode=4),0,IF(ISNUMBER(User_FreightCarTareWeight),User_FreightCarTareWeight,VLOOKUP(RR&"-"&$C48,UnitCostXML,MATCH(CostYear,UnitCostXMLHeaders,0),FALSE)))) ->  | F48: =IF(ISBLANK(RR),"",IF(AND(SZ="Intermodal",User_TOFCPlanCode=4),0,IF(ISNUMBER(User_FreightCarTareWeight),User_FreightCarTareWeight,VLOOKUP(RR&"-"&$C48,UnitCostXML,MATCH(CostYear,UnitCostXMLHeaders,0),FALSE)))) ->  | G48: =IF(ISBLANK(RR),"",IF(AND(SZ="Intermodal",User_TOFCPlanCode=4),0,IF(ISNUMBER(User_FreightCarTareWeight),User_FreightCarTareWeight,VLOOKUP(RR&"-"&$C48,UnitCostXML,MATCH(CostYear,UnitCostXMLHeaders,0),FALSE)))) ->  | H48: =IF(ISBLANK(RR),"",IF(AND(SZ="Intermodal",User_TOFCPlanCode=4),0,IF(ISNUMBER(User_FreightCarTareWeight),User_FreightCarTareWeight,VLOOKUP(RR&"-"&$C48,UnitCostXML,MATCH(CostYear,UnitCostXMLHeaders,0),FALSE)))) ->  | J48: =$C48&"="&VLOOKUP($C48,ECodeTable,MATCH("eTitle_and_Desc",ECodeHeaders,0),FALSE) -> E2L106C1=Average Tare Weight, HOPPER - COVERED
A49: 213 | B49: Freight car tare ton mileage | C49: L111*L201*L212; TOFC:L111*L204*L212 | D49: =IF(ISBLANK(RR),"",IF(SZ<>"Intermodal",Line111*Line201*Line212,Line111*Line204*Line212)) -> 62125.51724 | E49: =IF(ISBLANK(RR),"",IF(SZ<>"Intermodal",Line111*Line201*Line212,Line111*Line204*Line212)) ->  | F49: =IF(ISBLANK(RR),"",IF(SZ<>"Intermodal",Line111*Line201*Line212,Line111*Line204*Line212)) ->  | G49: =IF(ISBLANK(RR),"",IF(SZ<>"Intermodal",Line111*Line201*Line212,Line111*Line204*Line212)) ->  | H49: =IF(ISBLANK(RR),"",IF(SZ<>"Intermodal",Line111*Line201*Line212,Line111*Line204*Line212)) ->  | I49: =SUM(D49:H49) -> 62125.51724
A50: 214 | B50: Tare weight (tons) of one TCU | C50: =IF(User_TCURefrigFlag="Y","E2L203C1","E2L204C1") -> E2L204C1 | D50: =IF(ISBLANK(RR),"",IF(SZ<>"Intermodal",0,IF(User_TOFCPlanCode=4,13.9,IF(ISNUMBER(User_TCUTareWeight),User_TCUTareWeight,TCUTareWeightDefault)))) -> 0 | E50: =IF(ISBLANK(RR),"",IF(SZ<>"Intermodal",0,IF(User_TOFCPlanCode=4,13.9,IF(ISNUMBER(User_TCUTareWeight),User_TCUTareWeight,TCUTareWeightDefault)))) ->  | F50: =IF(ISBLANK(RR),"",IF(SZ<>"Intermodal",0,IF(User_TOFCPlanCode=4,13.9,IF(ISNUMBER(User_TCUTareWeight),User_TCUTareWeight,TCUTareWeightDefault)))) ->  | G50: =IF(ISBLANK(RR),"",IF(SZ<>"Intermodal",0,IF(User_TOFCPlanCode=4,13.9,IF(ISNUMBER(User_TCUTareWeight),User_TCUTareWeight,TCUTareWeightDefault)))) ->  | H50: =IF(ISBLANK(RR),"",IF(SZ<>"Intermodal",0,IF(User_TOFCPlanCode=4,13.9,IF(ISNUMBER(User_TCUTareWeight),User_TCUTareWeight,TCUTareWeightDefault)))) ->  | J50: =$C50&"="&VLOOKUP($C50,ECodeTable,MATCH("eTitle_and_Desc",ECodeHeaders,0),FALSE) -> E2L204C1=Average Tare Weight - Non-Refrigerated TCU
A51: 215 | B51: E/L ratio - TCU | C51: E2L207C1 | D51: =IF(ISBLANK(RR),"",IF(SZ<>"Intermodal",0,IF(ISNUMBER(User_TCUELRatio),User_TCUELRatio,TCUELRatioDefault))) -> 0 | E51: =IF(ISBLANK(RR),"",IF(SZ<>"Intermodal",0,IF(ISNUMBER(User_TCUELRatio),User_TCUELRatio,TCUELRatioDefault))) ->  | F51: =IF(ISBLANK(RR),"",IF(SZ<>"Intermodal",0,IF(ISNUMBER(User_TCUELRatio),User_TCUELRatio,TCUELRatioDefault))) ->  | G51: =IF(ISBLANK(RR),"",IF(SZ<>"Intermodal",0,IF(ISNUMBER(User_TCUELRatio),User_TCUELRatio,TCUELRatioDefault))) ->  | H51: =IF(ISBLANK(RR),"",IF(SZ<>"Intermodal",0,IF(ISNUMBER(User_TCUELRatio),User_TCUELRatio,TCUELRatioDefault))) ->  | J51: =$C51&"="&VLOOKUP($C51,ECodeTable,MATCH("eTitle_and_Desc",ECodeHeaders,0),FALSE) -> E2L207C1=L/E Ratio - Refrigerated/Non-Refrigerated - TCU
A52: 216 | B52: TCU tare ton mileage | C52: L103*L203*L214*L215 | D52: =IF(ISBLANK(RR),"",Line103*Line203*Line214*Line215) -> 0 | E52: =IF(ISBLANK(RR),"",Line103*Line203*Line214*Line215) ->  | F52: =IF(ISBLANK(RR),"",Line103*Line203*Line214*Line215) ->  | G52: =IF(ISBLANK(RR),"",Line103*Line203*Line214*Line215) ->  | H52: =IF(ISBLANK(RR),"",Line103*Line203*Line214*Line215) ->  | I52: =SUM(D52:H52) -> 0
A53: 217 | B53: Weight of shipment (tons) | C53: [User] | D53: =IF(ISBLANK(RR),"",NC*WT) -> 80 | E53: =IF(ISBLANK(RR),"",NC*WT) ->  | F53: =IF(ISBLANK(RR),"",NC*WT) ->  | G53: =IF(ISBLANK(RR),"",NC*WT) ->  | H53: =IF(ISBLANK(RR),"",NC*WT) -> 
A54: 218 | B54: Shipment net ton miles | C54: L103*L217 | D54: =IF(ISBLANK(RR),"",Line103*Line217) -> 80000 | E54: =IF(ISBLANK(RR),"",Line103*Line217) ->  | F54: =IF(ISBLANK(RR),"",Line103*Line217) ->  | G54: =IF(ISBLANK(RR),"",Line103*Line217) ->  | H54: =IF(ISBLANK(RR),"",Line103*Line217) ->  | I54: =SUM(D54:H54) -> 80000
A55: 219 | B55: Gross ton miles | C55: L213+L216+L218 | D55: =IF(ISBLANK(RR),"",Line213+Line216+Line218) -> 142125.5172 | E55: =IF(ISBLANK(RR),"",Line213+Line216+Line218) ->  | F55: =IF(ISBLANK(RR),"",Line213+Line216+Line218) ->  | G55: =IF(ISBLANK(RR),"",Line213+Line216+Line218) ->  | H55: =IF(ISBLANK(RR),"",Line213+Line216+Line218) ->  | I55: =SUM(D55:H55) -> 142125.5172
A56: 220 | B56: UC per GTM-OPR | C56: E1L101C1 | D56: =IF(ISBLANK(RR),"",VLOOKUP(RR&"-"&$C56,UnitCostXML,MATCH(CostYear,UnitCostXMLHeaders,0),FALSE)) -> 0.002774376683 | E56: =IF(ISBLANK(RR),"",VLOOKUP(RR&"-"&$C56,UnitCostXML,MATCH(CostYear,UnitCostXMLHeaders,0),FALSE)) ->  | F56: =IF(ISBLANK(RR),"",VLOOKUP(RR&"-"&$C56,UnitCostXML,MATCH(CostYear,UnitCostXMLHeaders,0),FALSE)) ->  | G56: =IF(ISBLANK(RR),"",VLOOKUP(RR&"-"&$C56,UnitCostXML,MATCH(CostYear,UnitCostXMLHeaders,0),FALSE)) ->  | H56: =IF(ISBLANK(RR),"",VLOOKUP(RR&"-"&$C56,UnitCostXML,MATCH(CostYear,UnitCostXMLHeaders,0),FALSE)) ->  | J56: =$C56&"="&VLOOKUP($C56,ECodeTable,MATCH("eTitle_and_Desc",ECodeHeaders,0),FALSE) -> E1L101C1=Gross Ton Mile (GTM), OPR Expense
A57: 221 | B57: VC-GTM-OPR | C57: L219*L220 | D57: =IF(ISBLANK(RR),"",Line219*Line220) -> 394.3097211 | E57: =IF(ISBLANK(RR),"",Line219*Line220) ->  | F57: =IF(ISBLANK(RR),"",Line219*Line220) ->  | G57: =IF(ISBLANK(RR),"",Line219*Line220) ->  | H57: =IF(ISBLANK(RR),"",Line219*Line220) ->  | I57: =SUM(D57:H57) -> 394.3097211
A58: 222 | B58: UC per GTM-DRL | C58: E1L101C2 | D58: =IF(ISBLANK(RR),"",VLOOKUP(RR&"-"&$C58,UnitCostXML,MATCH(CostYear,UnitCostXMLHeaders,0),FALSE)) -> 0.001086434988 | E58: =IF(ISBLANK(RR),"",VLOOKUP(RR&"-"&$C58,UnitCostXML,MATCH(CostYear,UnitCostXMLHeaders,0),FALSE)) ->  | F58: =IF(ISBLANK(RR),"",VLOOKUP(RR&"-"&$C58,UnitCostXML,MATCH(CostYear,UnitCostXMLHeaders,0),FALSE)) ->  | G58: =IF(ISBLANK(RR),"",VLOOKUP(RR&"-"&$C58,UnitCostXML,MATCH(CostYear,UnitCostXMLHeaders,0),FALSE)) ->  | H58: =IF(ISBLANK(RR),"",VLOOKUP(RR&"-"&$C58,UnitCostXML,MATCH(CostYear,UnitCostXMLHeaders,0),FALSE)) ->  | J58: =$C58&"="&VLOOKUP($C58,ECodeTable,MATCH("eTitle_and_Desc",ECodeHeaders,0),FALSE) -> E1L101C2=Gross Ton Mile (GTM), DRL Expense
A59: 223 | B59: VC-GTM-DRL | C59: L219*L222 | D59: =IF(ISBLANK(RR),"",Line219*Line222) -> 154.4101346 | E59: =IF(ISBLANK(RR),"",Line219*Line222) ->  | F59: =IF(ISBLANK(RR),"",Line219*Line222) ->  | G59: =IF(ISBLANK(RR),"",Line219*Line222) ->  | H59: =IF(ISBLANK(RR),"",Line219*Line222) ->  | I59: =SUM(D59:H59) -> 154.4101346
A60: 224 | B60: UC per GTM-ROI | C60: E1L101C3 | D60: =IF(ISBLANK(RR),"",VLOOKUP(RR&"-"&$C60,UnitCostXML,MATCH(CostYear,UnitCostXMLHeaders,0),FALSE)) -> 0.002499923771 | E60: =IF(ISBLANK(RR),"",VLOOKUP(RR&"-"&$C60,UnitCostXML,MATCH(CostYear,UnitCostXMLHeaders,0),FALSE)) ->  | F60: =IF(ISBLANK(RR),"",VLOOKUP(RR&"-"&$C60,UnitCostXML,MATCH(CostYear,UnitCostXMLHeaders,0),FALSE)) ->  | G60: =IF(ISBLANK(RR),"",VLOOKUP(RR&"-"&$C60,UnitCostXML,MATCH(CostYear,UnitCostXMLHeaders,0),FALSE)) ->  | H60: =IF(ISBLANK(RR),"",VLOOKUP(RR&"-"&$C60,UnitCostXML,MATCH(CostYear,UnitCostXMLHeaders,0),FALSE)) ->  | J60: =$C60&"="&VLOOKUP($C60,ECodeTable,MATCH("eTitle_and_Desc",ECodeHeaders,0),FALSE) -> E1L101C3=Gross Ton Mile (GTM), ROI Expense
A61: 225 | B61: VC-GTM-ROI | C61: L219*L224 | D61: =IF(ISBLANK(RR),"",Line219*Line224) -> 355.3029591 | E61: =IF(ISBLANK(RR),"",Line219*Line224) ->  | F61: =IF(ISBLANK(RR),"",Line219*Line224) ->  | G61: =IF(ISBLANK(RR),"",Line219*Line224) ->  | H61: =IF(ISBLANK(RR),"",Line219*Line224) ->  | I61: =SUM(D61:H61) -> 355.3029591
A62: HDR | B62: Locomotive Unit Miles | C62: Source | D62: =IF(ISBLANK(RR),"",RR) -> WEST | E62: =IF(ISBLANK(RR),"",RR) ->  | F62: =IF(ISBLANK(RR),"",RR) ->  | G62: =IF(ISBLANK(RR),"",RR) ->  | H62: =IF(ISBLANK(RR),"",RR) ->  | I62: =I$4 -> Total
A63: 226 | B63: Average loco units/Unit train | C63: E2L208C1 | D63: =IF(ISBLANK(RR),"",IF(ISNUMBER(INDEX(User_L226,D$3)),INDEX(User_L226,D$3),VLOOKUP(RR&"-"&$C63,UnitCostXML,MATCH(CostYear,UnitCostXMLHeaders,0),FALSE))) -> 3.309273883 | E63: =IF(ISBLANK(RR),"",IF(ISNUMBER(INDEX(User_L226,E$3)),INDEX(User_L226,E$3),VLOOKUP(RR&"-"&$C63,UnitCostXML,MATCH(CostYear,UnitCostXMLHeaders,0),FALSE))) ->  | F63: =IF(ISBLANK(RR),"",IF(ISNUMBER(INDEX(User_L226,F$3)),INDEX(User_L226,F$3),VLOOKUP(RR&"-"&$C63,UnitCostXML,MATCH(CostYear,UnitCostXMLHeaders,0),FALSE))) ->  | G63: =IF(ISBLANK(RR),"",IF(ISNUMBER(INDEX(User_L226,G$3)),INDEX(User_L226,G$3),VLOOKUP(RR&"-"&$C63,UnitCostXML,MATCH(CostYear,UnitCostXMLHeaders,0),FALSE))) ->  | H63: =IF(ISBLANK(RR),"",IF(ISNUMBER(INDEX(User_L226,H$3)),INDEX(User_L226,H$3),VLOOKUP(RR&"-"&$C63,UnitCostXML,MATCH(CostYear,UnitCostXMLHeaders,0),FALSE))) ->  | J63: =$C63&"="&VLOOKUP($C63,ECodeTable,MATCH("eTitle_and_Desc",ECodeHeaders,0),FALSE) -> E2L208C1=Average Locomotive Units - Unit Train
A64: 227 | B64: Average loco units/Way train | C64: E2L209C1 | D64: =IF(ISBLANK(RR),"",IF(ISNUMBER(INDEX(User_L227,D$3)),INDEX(User_L227,D$3),VLOOKUP(RR&"-"&$C64,UnitCostXML,MATCH(CostYear,UnitCostXMLHeaders,0),FALSE))) -> 2.064256012 | E64: =IF(ISBLANK(RR),"",IF(ISNUMBER(INDEX(User_L227,E$3)),INDEX(User_L227,E$3),VLOOKUP(RR&"-"&$C64,UnitCostXML,MATCH(CostYear,UnitCostXMLHeaders,0),FALSE))) ->  | F64: =IF(ISBLANK(RR),"",IF(ISNUMBER(INDEX(User_L227,F$3)),INDEX(User_L227,F$3),VLOOKUP(RR&"-"&$C64,UnitCostXML,MATCH(CostYear,UnitCostXMLHeaders,0),FALSE))) ->  | G64: =IF(ISBLANK(RR),"",IF(ISNUMBER(INDEX(User_L227,G$3)),INDEX(User_L227,G$3),VLOOKUP(RR&"-"&$C64,UnitCostXML,MATCH(CostYear,UnitCostXMLHeaders,0),FALSE))) ->  | H64: =IF(ISBLANK(RR),"",IF(ISNUMBER(INDEX(User_L227,H$3)),INDEX(User_L227,H$3),VLOOKUP(RR&"-"&$C64,UnitCostXML,MATCH(CostYear,UnitCostXMLHeaders,0),FALSE))) ->  | J64: =$C64&"="&VLOOKUP($C64,ECodeTable,MATCH("eTitle_and_Desc",ECodeHeaders,0),FALSE) -> E2L209C1=Average Locomotive Units - Way Train
A65: 228 | B65: Average loco units/Through train | C65: E2L210C1 | D65: =IF(ISBLANK(RR),"",IF(ISNUMBER(INDEX(User_L228,D$3)),INDEX(User_L228,D$3),VLOOKUP(RR&"-"&$C65,UnitCostXML,MATCH(CostYear,UnitCostXMLHeaders,0),FALSE))) -> 3.333558035 | E65: =IF(ISBLANK(RR),"",IF(ISNUMBER(INDEX(User_L228,E$3)),INDEX(User_L228,E$3),VLOOKUP(RR&"-"&$C65,UnitCostXML,MATCH(CostYear,UnitCostXMLHeaders,0),FALSE))) ->  | F65: =IF(ISBLANK(RR),"",IF(ISNUMBER(INDEX(User_L228,F$3)),INDEX(User_L228,F$3),VLOOKUP(RR&"-"&$C65,UnitCostXML,MATCH(CostYear,UnitCostXMLHeaders,0),FALSE))) ->  | G65: =IF(ISBLANK(RR),"",IF(ISNUMBER(INDEX(User_L228,G$3)),INDEX(User_L228,G$3),VLOOKUP(RR&"-"&$C65,UnitCostXML,MATCH(CostYear,UnitCostXMLHeaders,0),FALSE))) ->  | H65: =IF(ISBLANK(RR),"",IF(ISNUMBER(INDEX(User_L228,H$3)),INDEX(User_L228,H$3),VLOOKUP(RR&"-"&$C65,UnitCostXML,MATCH(CostYear,UnitCostXMLHeaders,0),FALSE))) ->  | J65: =$C65&"="&VLOOKUP($C65,ECodeTable,MATCH("eTitle_and_Desc",ECodeHeaders,0),FALSE) -> E2L210C1=Average Locomotive Units - Through Train
A66: 229 | B66: Unit train loco unit miles | C66: L108*L226 | D66: =IF(ISBLANK(RR),"",Line108*Line226) -> 0 | E66: =IF(ISBLANK(RR),"",Line108*Line226) ->  | F66: =IF(ISBLANK(RR),"",Line108*Line226) ->  | G66: =IF(ISBLANK(RR),"",Line108*Line226) ->  | H66: =IF(ISBLANK(RR),"",Line108*Line226) -> 
A67: 230 | B67: Way train loco unit miles | C67: L109*L227 | D67: =IF(ISBLANK(RR),"",Line109*Line227) -> 65.00990147 | E67: =IF(ISBLANK(RR),"",Line109*Line227) ->  | F67: =IF(ISBLANK(RR),"",Line109*Line227) ->  | G67: =IF(ISBLANK(RR),"",Line109*Line227) ->  | H67: =IF(ISBLANK(RR),"",Line109*Line227) -> 
A68: 231 | B68: Through train loco unit miles | C68: L110*L228 | D68: =IF(ISBLANK(RR),"",Line110*Line228) -> 6575.629251 | E68: =IF(ISBLANK(RR),"",Line110*Line228) ->  | F68: =IF(ISBLANK(RR),"",Line110*Line228) ->  | G68: =IF(ISBLANK(RR),"",Line110*Line228) ->  | H68: =IF(ISBLANK(RR),"",Line110*Line228) -> 
A69: 232 | B69: Avg trailing gross tons-Unit round trip | C69: E2L211C1*L105 | D69: =IF(ISBLANK(RR),"",IF(ISNUMBER(INDEX(User_L232,D$3)),INDEX(User_L232,D$3),Line105*VLOOKUP(RR&"-"&LEFT($C69,8),UnitCostXML,MATCH(CostYear,UnitCostXMLHeaders,0),FALSE))) -> 20336.68172 | E69: =IF(ISBLANK(RR),"",IF(ISNUMBER(INDEX(User_L232,E$3)),INDEX(User_L232,E$3),Line105*VLOOKUP(RR&"-"&LEFT($C69,8),UnitCostXML,MATCH(CostYear,UnitCostXMLHeaders,0),FALSE))) ->  | F69: =IF(ISBLANK(RR),"",IF(ISNUMBER(INDEX(User_L232,F$3)),INDEX(User_L232,F$3),Line105*VLOOKUP(RR&"-"&LEFT($C69,8),UnitCostXML,MATCH(CostYear,UnitCostXMLHeaders,0),FALSE))) ->  | G69: =IF(ISBLANK(RR),"",IF(ISNUMBER(INDEX(User_L232,G$3)),INDEX(User_L232,G$3),Line105*VLOOKUP(RR&"-"&LEFT($C69,8),UnitCostXML,MATCH(CostYear,UnitCostXMLHeaders,0),FALSE))) ->  | H69: =IF(ISBLANK(RR),"",IF(ISNUMBER(INDEX(User_L232,H$3)),INDEX(User_L232,H$3),Line105*VLOOKUP(RR&"-"&LEFT($C69,8),UnitCostXML,MATCH(CostYear,UnitCostXMLHeaders,0),FALSE))) ->  | J69: =LEFT($C69,8)&"="&VLOOKUP(LEFT($C69,8),ECodeTable,MATCH("eTitle_and_Desc",ECodeHeaders,0),FALSE) -> E2L211C1=Average Gross Tons - Unit Train
A70: 233 | B70: Avg trailing gross tons-Way round trip | C70: E2L212C1*L105 | D70: =IF(ISBLANK(RR),"",IF(ISNUMBER(INDEX(User_L233,D$3)),INDEX(User_L233,D$3),Line105*VLOOKUP(RR&"-"&LEFT($C70,8),UnitCostXML,MATCH(CostYear,UnitCostXMLHeaders,0),FALSE))) -> 5687.13142 | E70: =IF(ISBLANK(RR),"",IF(ISNUMBER(INDEX(User_L233,E$3)),INDEX(User_L233,E$3),Line105*VLOOKUP(RR&"-"&LEFT($C70,8),UnitCostXML,MATCH(CostYear,UnitCostXMLHeaders,0),FALSE))) ->  | F70: =IF(ISBLANK(RR),"",IF(ISNUMBER(INDEX(User_L233,F$3)),INDEX(User_L233,F$3),Line105*VLOOKUP(RR&"-"&LEFT($C70,8),UnitCostXML,MATCH(CostYear,UnitCostXMLHeaders,0),FALSE))) ->  | G70: =IF(ISBLANK(RR),"",IF(ISNUMBER(INDEX(User_L233,G$3)),INDEX(User_L233,G$3),Line105*VLOOKUP(RR&"-"&LEFT($C70,8),UnitCostXML,MATCH(CostYear,UnitCostXMLHeaders,0),FALSE))) ->  | H70: =IF(ISBLANK(RR),"",IF(ISNUMBER(INDEX(User_L233,H$3)),INDEX(User_L233,H$3),Line105*VLOOKUP(RR&"-"&LEFT($C70,8),UnitCostXML,MATCH(CostYear,UnitCostXMLHeaders,0),FALSE))) ->  | J70: =LEFT($C70,8)&"="&VLOOKUP(LEFT($C70,8),ECodeTable,MATCH("eTitle_and_Desc",ECodeHeaders,0),FALSE) -> E2L212C1=Average Gross Tons - Way Train
A71: 234 | B71: Avg trailing gross tons-Through round trip | C71: E2L213C1*L105 | D71: =IF(ISBLANK(RR),"",IF(ISNUMBER(INDEX(User_L234,D$3)),INDEX(User_L234,D$3),Line105*VLOOKUP(RR&"-"&LEFT($C71,8),UnitCostXML,MATCH(CostYear,UnitCostXMLHeaders,0),FALSE))) -> 14825.54282 | E71: =IF(ISBLANK(RR),"",IF(ISNUMBER(INDEX(User_L234,E$3)),INDEX(User_L234,E$3),Line105*VLOOKUP(RR&"-"&LEFT($C71,8),UnitCostXML,MATCH(CostYear,UnitCostXMLHeaders,0),FALSE))) ->  | F71: =IF(ISBLANK(RR),"",IF(ISNUMBER(INDEX(User_L234,F$3)),INDEX(User_L234,F$3),Line105*VLOOKUP(RR&"-"&LEFT($C71,8),UnitCostXML,MATCH(CostYear,UnitCostXMLHeaders,0),FALSE))) ->  | G71: =IF(ISBLANK(RR),"",IF(ISNUMBER(INDEX(User_L234,G$3)),INDEX(User_L234,G$3),Line105*VLOOKUP(RR&"-"&LEFT($C71,8),UnitCostXML,MATCH(CostYear,UnitCostXMLHeaders,0),FALSE))) ->  | H71: =IF(ISBLANK(RR),"",IF(ISNUMBER(INDEX(User_L234,H$3)),INDEX(User_L234,H$3),Line105*VLOOKUP(RR&"-"&LEFT($C71,8),UnitCostXML,MATCH(CostYear,UnitCostXMLHeaders,0),FALSE))) ->  | J71: =LEFT($C71,8)&"="&VLOOKUP(LEFT($C71,8),ECodeTable,MATCH("eTitle_and_Desc",ECodeHeaders,0),FALSE) -> E2L213C1=Average Gross Tons - Through Train
A72: 235 | B72: Gross tons - cars & contents | C72: (L105*L201*L212)+L217; TOFC:(L105*L204*L212)+(L203*L214*L215)+L217 | D72: =IF(ISBLANK(RR),"",IF(SZ<>"Intermodal",(Line105*Line201*Line212)+Line217,(Line105*Line204*Line212)+(Line203*Line214*Line215)+Line217)) -> 142.1255172 | E72: =IF(ISBLANK(RR),"",IF(SZ<>"Intermodal",(Line105*Line201*Line212)+Line217,(Line105*Line204*Line212)+(Line203*Line214*Line215)+Line217)) ->  | F72: =IF(ISBLANK(RR),"",IF(SZ<>"Intermodal",(Line105*Line201*Line212)+Line217,(Line105*Line204*Line212)+(Line203*Line214*Line215)+Line217)) ->  | G72: =IF(ISBLANK(RR),"",IF(SZ<>"Intermodal",(Line105*Line201*Line212)+Line217,(Line105*Line204*Line212)+(Line203*Line214*Line215)+Line217)) ->  | H72: =IF(ISBLANK(RR),"",IF(SZ<>"Intermodal",(Line105*Line201*Line212)+Line217,(Line105*Line204*Line212)+(Line203*Line214*Line215)+Line217)) ->  | I72: =SUM(D72:H72) -> 142.1255172
A73: 236 | B73: Percent of Unit train tonnage | C73: L235/L232 | D73: =IF(ISBLANK(RR),"",IF(SZ="Unit",Line235/Line232,0)) -> 0 | E73: =IF(ISBLANK(RR),"",IF(SZ="Unit",Line235/Line232,0)) ->  | F73: =IF(ISBLANK(RR),"",IF(SZ="Unit",Line235/Line232,0)) ->  | G73: =IF(ISBLANK(RR),"",IF(SZ="Unit",Line235/Line232,0)) ->  | H73: =IF(ISBLANK(RR),"",IF(SZ="Unit",Line235/Line232,0)) -> 
A74: 237 | B74: Percent of Way train tonnage | C74: L235/L233 | D74: =IF(ISBLANK(RR),"",IF(SZ<>"Unit",Line235/Line233,0)) -> 0.02499072146 | E74: =IF(ISBLANK(RR),"",IF(SZ<>"Unit",Line235/Line233,0)) ->  | F74: =IF(ISBLANK(RR),"",IF(SZ<>"Unit",Line235/Line233,0)) ->  | G74: =IF(ISBLANK(RR),"",IF(SZ<>"Unit",Line235/Line233,0)) ->  | H74: =IF(ISBLANK(RR),"",IF(SZ<>"Unit",Line235/Line233,0)) -> 
A75: 238 | B75: Percent of Through train tonnage | C75: L235/L234 | D75: =IF(ISBLANK(RR),"",IF(SZ<>"Unit",Line235/Line234,0)) -> 0.009586530417 | E75: =IF(ISBLANK(RR),"",IF(SZ<>"Unit",Line235/Line234,0)) ->  | F75: =IF(ISBLANK(RR),"",IF(SZ<>"Unit",Line235/Line234,0)) ->  | G75: =IF(ISBLANK(RR),"",IF(SZ<>"Unit",Line235/Line234,0)) ->  | H75: =IF(ISBLANK(RR),"",IF(SZ<>"Unit",Line235/Line234,0)) -> 
A76: 239 | B76: Unit train LUM (alloc) | C76: L229*L236 | D76: =IF(ISBLANK(RR),"",Line229*Line236) -> 0 | E76: =IF(ISBLANK(RR),"",Line229*Line236) ->  | F76: =IF(ISBLANK(RR),"",Line229*Line236) ->  | G76: =IF(ISBLANK(RR),"",Line229*Line236) ->  | H76: =IF(ISBLANK(RR),"",Line229*Line236) -> 
A77: 240 | B77: Way train LUM (alloc) | C77: L230*L237 | D77: =IF(ISBLANK(RR),"",Line230*Line237) -> 1.62464434 | E77: =IF(ISBLANK(RR),"",Line230*Line237) ->  | F77: =IF(ISBLANK(RR),"",Line230*Line237) ->  | G77: =IF(ISBLANK(RR),"",Line230*Line237) ->  | H77: =IF(ISBLANK(RR),"",Line230*Line237) -> 
A78: 241 | B78: Thru train LUM (alloc) | C78: L231*L238 | D78: =IF(ISBLANK(RR),"",Line231*Line238) -> 63.03746983 | E78: =IF(ISBLANK(RR),"",Line231*Line238) ->  | F78: =IF(ISBLANK(RR),"",Line231*Line238) ->  | G78: =IF(ISBLANK(RR),"",Line231*Line238) ->  | H78: =IF(ISBLANK(RR),"",Line231*Line238) -> 
A79: 242 | B79: Total shipment LUM (allocated) | C79: L239+L240+L241 | D79: =IF(ISBLANK(RR),"",Line239+Line240+Line241) -> 64.66211417 | E79: =IF(ISBLANK(RR),"",Line239+Line240+Line241) ->  | F79: =IF(ISBLANK(RR),"",Line239+Line240+Line241) ->  | G79: =IF(ISBLANK(RR),"",Line239+Line240+Line241) ->  | H79: =IF(ISBLANK(RR),"",Line239+Line240+Line241) ->  | I79: =SUM(D79:H79) -> 64.66211417
A80: 243 | B80: UC per LUM-OPR | C80: E1L105C1 | D80: =IF(ISBLANK(RR),"",VLOOKUP(RR&"-"&$C80,UnitCostXML,MATCH(CostYear,UnitCostXMLHeaders,0),FALSE)) -> 5.630923327 | E80: =IF(ISBLANK(RR),"",VLOOKUP(RR&"-"&$C80,UnitCostXML,MATCH(CostYear,UnitCostXMLHeaders,0),FALSE)) ->  | F80: =IF(ISBLANK(RR),"",VLOOKUP(RR&"-"&$C80,UnitCostXML,MATCH(CostYear,UnitCostXMLHeaders,0),FALSE)) ->  | G80: =IF(ISBLANK(RR),"",VLOOKUP(RR&"-"&$C80,UnitCostXML,MATCH(CostYear,UnitCostXMLHeaders,0),FALSE)) ->  | H80: =IF(ISBLANK(RR),"",VLOOKUP(RR&"-"&$C80,UnitCostXML,MATCH(CostYear,UnitCostXMLHeaders,0),FALSE)) ->  | J80: =$C80&"="&VLOOKUP($C80,ECodeTable,MATCH("eTitle_and_Desc",ECodeHeaders,0),FALSE) -> E1L105C1=Locomotive Unit Mile (LUM), OPR Expense
A81: 244 | B81: VC-LUM-OPR | C81: L242*L243 | D81: =IF(ISBLANK(RR),"",Line242*Line243) -> 364.107407 | E81: =IF(ISBLANK(RR),"",Line242*Line243) ->  | F81: =IF(ISBLANK(RR),"",Line242*Line243) ->  | G81: =IF(ISBLANK(RR),"",Line242*Line243) ->  | H81: =IF(ISBLANK(RR),"",Line242*Line243) ->  | I81: =SUM(D81:H81) -> 364.107407
A82: 245 | B82: UC per LUM-DRL | C82: E1L105C2 | D82: =IF(ISBLANK(RR),"",VLOOKUP(RR&"-"&$C82,UnitCostXML,MATCH(CostYear,UnitCostXMLHeaders,0),FALSE)) -> 0.6657305401 | E82: =IF(ISBLANK(RR),"",VLOOKUP(RR&"-"&$C82,UnitCostXML,MATCH(CostYear,UnitCostXMLHeaders,0),FALSE)) ->  | F82: =IF(ISBLANK(RR),"",VLOOKUP(RR&"-"&$C82,UnitCostXML,MATCH(CostYear,UnitCostXMLHeaders,0),FALSE)) ->  | G82: =IF(ISBLANK(RR),"",VLOOKUP(RR&"-"&$C82,UnitCostXML,MATCH(CostYear,UnitCostXMLHeaders,0),FALSE)) ->  | H82: =IF(ISBLANK(RR),"",VLOOKUP(RR&"-"&$C82,UnitCostXML,MATCH(CostYear,UnitCostXMLHeaders,0),FALSE)) ->  | J82: =$C82&"="&VLOOKUP($C82,ECodeTable,MATCH("eTitle_and_Desc",ECodeHeaders,0),FALSE) -> E1L105C2=Locomotive Unit Mile (LUM), DRL Expense
A83: 246 | B83: VC-LUM-DRL | C83: L242*L245 | D83: =IF(ISBLANK(RR),"",Line242*Line245) -> 43.04754419 | E83: =IF(ISBLANK(RR),"",Line242*Line245) ->  | F83: =IF(ISBLANK(RR),"",Line242*Line245) ->  | G83: =IF(ISBLANK(RR),"",Line242*Line245) ->  | H83: =IF(ISBLANK(RR),"",Line242*Line245) ->  | I83: =SUM(D83:H83) -> 43.04754419
A84: 247 | B84: UC per LUM-ROI | C84: E1L105C3 | D84: =IF(ISBLANK(RR),"",VLOOKUP(RR&"-"&$C84,UnitCostXML,MATCH(CostYear,UnitCostXMLHeaders,0),FALSE)) -> 0.8621249795 | E84: =IF(ISBLANK(RR),"",VLOOKUP(RR&"-"&$C84,UnitCostXML,MATCH(CostYear,UnitCostXMLHeaders,0),FALSE)) ->  | F84: =IF(ISBLANK(RR),"",VLOOKUP(RR&"-"&$C84,UnitCostXML,MATCH(CostYear,UnitCostXMLHeaders,0),FALSE)) ->  | G84: =IF(ISBLANK(RR),"",VLOOKUP(RR&"-"&$C84,UnitCostXML,MATCH(CostYear,UnitCostXMLHeaders,0),FALSE)) ->  | H84: =IF(ISBLANK(RR),"",VLOOKUP(RR&"-"&$C84,UnitCostXML,MATCH(CostYear,UnitCostXMLHeaders,0),FALSE)) ->  | J84: =$C84&"="&VLOOKUP($C84,ECodeTable,MATCH("eTitle_and_Desc",ECodeHeaders,0),FALSE) -> E1L105C3=Locomotive Unit Mile (LUM), ROI Expense
A85: 248 | B85: VC-LUM-ROI | C85: L242*L247 | D85: =IF(ISBLANK(RR),"",Line242*Line247) -> 55.74682385 | E85: =IF(ISBLANK(RR),"",Line242*Line247) ->  | F85: =IF(ISBLANK(RR),"",Line242*Line247) ->  | G85: =IF(ISBLANK(RR),"",Line242*Line247) ->  | H85: =IF(ISBLANK(RR),"",Line242*Line247) ->  | I85: =SUM(D85:H85) -> 55.74682385
A86: HDR | B86: Carload and Clerical Costs | C86: Source | D86: =IF(ISBLANK(RR),"",RR) -> WEST | E86: =IF(ISBLANK(RR),"",RR) ->  | F86: =IF(ISBLANK(RR),"",RR) ->  | G86: =IF(ISBLANK(RR),"",RR) ->  | H86: =IF(ISBLANK(RR),"",RR) ->  | I86: =I$4 -> Total
A87: 250 | B87: Shipment origination/termination | C87: Originate=1; Terminate=1 | D87: =IF(ISBLANK(RR),"",VLOOKUP(SG,URCSSegments,MATCH("L"&$A87,URCSSegmentsHeaders,0),FALSE)) -> 2 | E87: =IF(ISBLANK(RR),"",VLOOKUP(SG,URCSSegments,MATCH("L"&$A87,URCSSegmentsHeaders,0),FALSE)) ->  | F87: =IF(ISBLANK(RR),"",VLOOKUP(SG,URCSSegments,MATCH("L"&$A87,URCSSegmentsHeaders,0),FALSE)) ->  | G87: =IF(ISBLANK(RR),"",VLOOKUP(SG,URCSSegments,MATCH("L"&$A87,URCSSegmentsHeaders,0),FALSE)) ->  | H87: =IF(ISBLANK(RR),"",VLOOKUP(SG,URCSSegments,MATCH("L"&$A87,URCSSegmentsHeaders,0),FALSE)) -> 
A88: 251 | B88: Carloads orig/term (TOFC) | C88: L204*L250 | D88: =IF(ISBLANK(RR),"",IF(SZ<>"Intermodal",0,Line204*Line250)) -> 0 | E88: =IF(ISBLANK(RR),"",IF(SZ<>"Intermodal",0,Line204*Line250)) ->  | F88: =IF(ISBLANK(RR),"",IF(SZ<>"Intermodal",0,Line204*Line250)) ->  | G88: =IF(ISBLANK(RR),"",IF(SZ<>"Intermodal",0,Line204*Line250)) ->  | H88: =IF(ISBLANK(RR),"",IF(SZ<>"Intermodal",0,Line204*Line250)) -> 
A89: 252 | B89: Carloads orig/term (Non-TOFC) | C89: L201*L250 | D89: =IF(ISBLANK(RR),"",IF(SZ="Intermodal",0,Line201*Line250)) -> 2 | E89: =IF(ISBLANK(RR),"",IF(SZ="Intermodal",0,Line201*Line250)) ->  | F89: =IF(ISBLANK(RR),"",IF(SZ="Intermodal",0,Line201*Line250)) ->  | G89: =IF(ISBLANK(RR),"",IF(SZ="Intermodal",0,Line201*Line250)) ->  | H89: =IF(ISBLANK(RR),"",IF(SZ="Intermodal",0,Line201*Line250)) -> 
A90: 253 | B90: Carloads handled (TOFC) | C90: L204 | D90: =IF(ISBLANK(RR),"",IF(SZ<>"Intermodal",0,IF(OR(SG="IA",SG="IR"),0,Line204))) -> 0 | E90: =IF(ISBLANK(RR),"",IF(SZ<>"Intermodal",0,IF(OR(SG="IA",SG="IR"),0,Line204))) ->  | F90: =IF(ISBLANK(RR),"",IF(SZ<>"Intermodal",0,IF(OR(SG="IA",SG="IR"),0,Line204))) ->  | G90: =IF(ISBLANK(RR),"",IF(SZ<>"Intermodal",0,IF(OR(SG="IA",SG="IR"),0,Line204))) ->  | H90: =IF(ISBLANK(RR),"",IF(SZ<>"Intermodal",0,IF(OR(SG="IA",SG="IR"),0,Line204))) -> 
A91: 254 | B91: Carloads handled (Non-TOFC) | C91: L201 | D91: =IF(ISBLANK(RR),"",IF(SZ="Intermodal",0,IF(OR(SG="IA",SG="IR"),0,Line201))) -> 1 | E91: =IF(ISBLANK(RR),"",IF(SZ="Intermodal",0,IF(OR(SG="IA",SG="IR"),0,Line201))) ->  | F91: =IF(ISBLANK(RR),"",IF(SZ="Intermodal",0,IF(OR(SG="IA",SG="IR"),0,Line201))) ->  | G91: =IF(ISBLANK(RR),"",IF(SZ="Intermodal",0,IF(OR(SG="IA",SG="IR"),0,Line201))) ->  | H91: =IF(ISBLANK(RR),"",IF(SZ="Intermodal",0,IF(OR(SG="IA",SG="IR"),0,Line201))) -> 
A92: 255 | B92: UC per CM Cler-OPR | C92: E1L110C1 | D92: =IF(ISBLANK(RR),"",VLOOKUP(RR&"-"&$C92,UnitCostXML,MATCH(CostYear,UnitCostXMLHeaders,0),FALSE)) -> 0 | E92: =IF(ISBLANK(RR),"",VLOOKUP(RR&"-"&$C92,UnitCostXML,MATCH(CostYear,UnitCostXMLHeaders,0),FALSE)) ->  | F92: =IF(ISBLANK(RR),"",VLOOKUP(RR&"-"&$C92,UnitCostXML,MATCH(CostYear,UnitCostXMLHeaders,0),FALSE)) ->  | G92: =IF(ISBLANK(RR),"",VLOOKUP(RR&"-"&$C92,UnitCostXML,MATCH(CostYear,UnitCostXMLHeaders,0),FALSE)) ->  | H92: =IF(ISBLANK(RR),"",VLOOKUP(RR&"-"&$C92,UnitCostXML,MATCH(CostYear,UnitCostXMLHeaders,0),FALSE)) ->  | J92: =$C92&"="&VLOOKUP($C92,ECodeTable,MATCH("eTitle_and_Desc",ECodeHeaders,0),FALSE) -> E1L110C1=Car Mile (CM) - Clerical, OPR Expense
A93: 256 | B93: VC-CM Cler-OPR | C93: L205*L255 | D93: =IF(ISBLANK(RR),"",Line205*Line255) -> 0 | E93: =IF(ISBLANK(RR),"",Line205*Line255) ->  | F93: =IF(ISBLANK(RR),"",Line205*Line255) ->  | G93: =IF(ISBLANK(RR),"",Line205*Line255) ->  | H93: =IF(ISBLANK(RR),"",Line205*Line255) ->  | I93: =SUM(D93:H93) -> 0
A94: 257 | B94: UC per CLOT Cler-OPR | C94: E1L109C1 | D94: =IF(ISBLANK(RR),"",AdjustL257*VLOOKUP(RR&"-"&$C94,UnitCostXML,MATCH(CostYear,UnitCostXMLHeaders,0),FALSE)) -> 9.940120751 | E94: =IF(ISBLANK(RR),"",AdjustL257*VLOOKUP(RR&"-"&$C94,UnitCostXML,MATCH(CostYear,UnitCostXMLHeaders,0),FALSE)) ->  | F94: =IF(ISBLANK(RR),"",AdjustL257*VLOOKUP(RR&"-"&$C94,UnitCostXML,MATCH(CostYear,UnitCostXMLHeaders,0),FALSE)) ->  | G94: =IF(ISBLANK(RR),"",AdjustL257*VLOOKUP(RR&"-"&$C94,UnitCostXML,MATCH(CostYear,UnitCostXMLHeaders,0),FALSE)) ->  | H94: =IF(ISBLANK(RR),"",AdjustL257*VLOOKUP(RR&"-"&$C94,UnitCostXML,MATCH(CostYear,UnitCostXMLHeaders,0),FALSE)) ->  | J94: =$C94&"="&VLOOKUP($C94,ECodeTable,MATCH("eTitle_and_Desc",ECodeHeaders,0),FALSE) -> E1L109C1=CLOT (Carloads Orig Or Term) - Clerical, OPR Expense
A95: 258 | B95: VC-CLOT Cler-OPR | C95: L252*L257; TOFC:L251*L257 | D95: =IF(ISBLANK(RR),"",IF(SZ<>"Intermodal",Line252*Line257,Line251*Line257)) -> 19.8802415 | E95: =IF(ISBLANK(RR),"",IF(SZ<>"Intermodal",Line252*Line257,Line251*Line257)) ->  | F95: =IF(ISBLANK(RR),"",IF(SZ<>"Intermodal",Line252*Line257,Line251*Line257)) ->  | G95: =IF(ISBLANK(RR),"",IF(SZ<>"Intermodal",Line252*Line257,Line251*Line257)) ->  | H95: =IF(ISBLANK(RR),"",IF(SZ<>"Intermodal",Line252*Line257,Line251*Line257)) ->  | I95: =SUM(D95:H95) -> 19.8802415
A96: 259 | B96: UC per CLOR Cler-OPR | C96: E1L107C1 | D96: =IF(ISBLANK(RR),"",VLOOKUP(RR&"-"&$C96,UnitCostXML,MATCH(CostYear,UnitCostXMLHeaders,0),FALSE)) -> 0 | E96: =IF(ISBLANK(RR),"",VLOOKUP(RR&"-"&$C96,UnitCostXML,MATCH(CostYear,UnitCostXMLHeaders,0),FALSE)) ->  | F96: =IF(ISBLANK(RR),"",VLOOKUP(RR&"-"&$C96,UnitCostXML,MATCH(CostYear,UnitCostXMLHeaders,0),FALSE)) ->  | G96: =IF(ISBLANK(RR),"",VLOOKUP(RR&"-"&$C96,UnitCostXML,MATCH(CostYear,UnitCostXMLHeaders,0),FALSE)) ->  | H96: =IF(ISBLANK(RR),"",VLOOKUP(RR&"-"&$C96,UnitCostXML,MATCH(CostYear,UnitCostXMLHeaders,0),FALSE)) ->  | J96: =$C96&"="&VLOOKUP($C96,ECodeTable,MATCH("eTitle_and_Desc",ECodeHeaders,0),FALSE) -> E1L107C1=CLOR (Carloads Handled) - Clerical, OPR Expense
A97: 260 | B97: VC-CLOR Cler-OPR | C97: L254*L259 | D97: =IF(ISBLANK(RR),"",Line254*Line259) -> 0 | E97: =IF(ISBLANK(RR),"",Line254*Line259) ->  | F97: =IF(ISBLANK(RR),"",Line254*Line259) ->  | G97: =IF(ISBLANK(RR),"",Line254*Line259) ->  | H97: =IF(ISBLANK(RR),"",Line254*Line259) ->  | I97: =SUM(D97:H97) -> 0
A98: 261 | B98: UC per CLOT Other-OPR | C98: E1L108C1 | D98: =IF(ISBLANK(RR),"",VLOOKUP(RR&"-"&$C98,UnitCostXML,MATCH(CostYear,UnitCostXMLHeaders,0),FALSE)) -> 0 | E98: =IF(ISBLANK(RR),"",VLOOKUP(RR&"-"&$C98,UnitCostXML,MATCH(CostYear,UnitCostXMLHeaders,0),FALSE)) ->  | F98: =IF(ISBLANK(RR),"",VLOOKUP(RR&"-"&$C98,UnitCostXML,MATCH(CostYear,UnitCostXMLHeaders,0),FALSE)) ->  | G98: =IF(ISBLANK(RR),"",VLOOKUP(RR&"-"&$C98,UnitCostXML,MATCH(CostYear,UnitCostXMLHeaders,0),FALSE)) ->  | H98: =IF(ISBLANK(RR),"",VLOOKUP(RR&"-"&$C98,UnitCostXML,MATCH(CostYear,UnitCostXMLHeaders,0),FALSE)) ->  | J98: =$C98&"="&VLOOKUP($C98,ECodeTable,MATCH("eTitle_and_Desc",ECodeHeaders,0),FALSE) -> E1L108C1=CLOT (Carloads Orig Or Term) - Other, OPR Expense
A99: 262 | B99: VC-CLOT Other-OPR | C99: L252*L261 | D99: =IF(ISBLANK(RR),"",Line252*Line261) -> 0 | E99: =IF(ISBLANK(RR),"",Line252*Line261) ->  | F99: =IF(ISBLANK(RR),"",Line252*Line261) ->  | G99: =IF(ISBLANK(RR),"",Line252*Line261) ->  | H99: =IF(ISBLANK(RR),"",Line252*Line261) ->  | I99: =SUM(D99:H99) -> 0
A100: 263 | B100: UC per CLOR Other-OPR | C100: E1L106C1 | D100: =IF(ISBLANK(RR),"",VLOOKUP(RR&"-"&$C100,UnitCostXML,MATCH(CostYear,UnitCostXMLHeaders,0),FALSE)) -> 2.512007596 | E100: =IF(ISBLANK(RR),"",VLOOKUP(RR&"-"&$C100,UnitCostXML,MATCH(CostYear,UnitCostXMLHeaders,0),FALSE)) ->  | F100: =IF(ISBLANK(RR),"",VLOOKUP(RR&"-"&$C100,UnitCostXML,MATCH(CostYear,UnitCostXMLHeaders,0),FALSE)) ->  | G100: =IF(ISBLANK(RR),"",VLOOKUP(RR&"-"&$C100,UnitCostXML,MATCH(CostYear,UnitCostXMLHeaders,0),FALSE)) ->  | H100: =IF(ISBLANK(RR),"",VLOOKUP(RR&"-"&$C100,UnitCostXML,MATCH(CostYear,UnitCostXMLHeaders,0),FALSE)) ->  | J100: =$C100&"="&VLOOKUP($C100,ECodeTable,MATCH("eTitle_and_Desc",ECodeHeaders,0),FALSE) -> E1L106C1=CLOR (Carloads Handled) - Other, OPR Expense
A101: 264 | B101: VC-CLOR Other-OPR | C101: L254*L263; TOFC:L253*L257 | D101: =IF(ISBLANK(RR),"",IF(SZ<>"Intermodal",Line254*Line263,Line253*Line263)) -> 2.512007596 | E101: =IF(ISBLANK(RR),"",IF(SZ<>"Intermodal",Line254*Line263,Line253*Line263)) ->  | F101: =IF(ISBLANK(RR),"",IF(SZ<>"Intermodal",Line254*Line263,Line253*Line263)) ->  | G101: =IF(ISBLANK(RR),"",IF(SZ<>"Intermodal",Line254*Line263,Line253*Line263)) ->  | H101: =IF(ISBLANK(RR),"",IF(SZ<>"Intermodal",Line254*Line263,Line253*Line263)) ->  | I101: =SUM(D101:H101) -> 2.512007596
A102: 265 | B102: UC per CLOR Other-DRL | C102: E1L106C2 | D102: =IF(ISBLANK(RR),"",VLOOKUP(RR&"-"&$C102,UnitCostXML,MATCH(CostYear,UnitCostXMLHeaders,0),FALSE)) -> 0 | E102: =IF(ISBLANK(RR),"",VLOOKUP(RR&"-"&$C102,UnitCostXML,MATCH(CostYear,UnitCostXMLHeaders,0),FALSE)) ->  | F102: =IF(ISBLANK(RR),"",VLOOKUP(RR&"-"&$C102,UnitCostXML,MATCH(CostYear,UnitCostXMLHeaders,0),FALSE)) ->  | G102: =IF(ISBLANK(RR),"",VLOOKUP(RR&"-"&$C102,UnitCostXML,MATCH(CostYear,UnitCostXMLHeaders,0),FALSE)) ->  | H102: =IF(ISBLANK(RR),"",VLOOKUP(RR&"-"&$C102,UnitCostXML,MATCH(CostYear,UnitCostXMLHeaders,0),FALSE)) ->  | J102: =$C102&"="&VLOOKUP($C102,ECodeTable,MATCH("eTitle_and_Desc",ECodeHeaders,0),FALSE) -> E1L106C2=CLOR (Carloads Handled) - Other, DRL Expense
A103: 266 | B103: VC-CLOR Other-DRL | C103: L254*L265 | D103: =IF(ISBLANK(RR),"",Line254*Line265) -> 0 | E103: =IF(ISBLANK(RR),"",Line254*Line265) ->  | F103: =IF(ISBLANK(RR),"",Line254*Line265) ->  | G103: =IF(ISBLANK(RR),"",Line254*Line265) ->  | H103: =IF(ISBLANK(RR),"",Line254*Line265) ->  | I103: =SUM(D103:H103) -> 0
A104: 267 | B104: UC per CLOR Other-ROI | C104: E1L106C3 | D104: =IF(ISBLANK(RR),"",VLOOKUP(RR&"-"&$C104,UnitCostXML,MATCH(CostYear,UnitCostXMLHeaders,0),FALSE)) -> 0 | E104: =IF(ISBLANK(RR),"",VLOOKUP(RR&"-"&$C104,UnitCostXML,MATCH(CostYear,UnitCostXMLHeaders,0),FALSE)) ->  | F104: =IF(ISBLANK(RR),"",VLOOKUP(RR&"-"&$C104,UnitCostXML,MATCH(CostYear,UnitCostXMLHeaders,0),FALSE)) ->  | G104: =IF(ISBLANK(RR),"",VLOOKUP(RR&"-"&$C104,UnitCostXML,MATCH(CostYear,UnitCostXMLHeaders,0),FALSE)) ->  | H104: =IF(ISBLANK(RR),"",VLOOKUP(RR&"-"&$C104,UnitCostXML,MATCH(CostYear,UnitCostXMLHeaders,0),FALSE)) ->  | J104: =$C104&"="&VLOOKUP($C104,ECodeTable,MATCH("eTitle_and_Desc",ECodeHeaders,0),FALSE) -> E1L106C3=CLOR (Carloads Handled) - Other, ROI Expense
A105: 268 | B105: VC-CLOR Other-ROI | C105: L254*L267 | D105: =IF(ISBLANK(RR),"",Line254*Line267) -> 0 | E105: =IF(ISBLANK(RR),"",Line254*Line267) ->  | F105: =IF(ISBLANK(RR),"",Line254*Line267) ->  | G105: =IF(ISBLANK(RR),"",Line254*Line267) ->  | H105: =IF(ISBLANK(RR),"",Line254*Line267) ->  | I105: =SUM(D105:H105) -> 0
A106: HDR | B106: Train Mile Costs - Crew Wage Expense | C106: Source | D106: =IF(ISBLANK(RR),"",RR) -> WEST | E106: =IF(ISBLANK(RR),"",RR) ->  | F106: =IF(ISBLANK(RR),"",RR) ->  | G106: =IF(ISBLANK(RR),"",RR) ->  | H106: =IF(ISBLANK(RR),"",RR) ->  | I106: =I$4 -> Total
A107: 269 | B107: Shipment share-Unit train miles | C107: L108 | D107: =IF(ISBLANK(RR),"",IF(SZ<>"Unit",0,IF(ISNUMBER(INDEX(User_L269,D$3)),INDEX(User_L269,D$3),Line108))) -> 0 | E107: =IF(ISBLANK(RR),"",IF(SZ<>"Unit",0,IF(ISNUMBER(INDEX(User_L269,E$3)),INDEX(User_L269,E$3),Line108))) ->  | F107: =IF(ISBLANK(RR),"",IF(SZ<>"Unit",0,IF(ISNUMBER(INDEX(User_L269,F$3)),INDEX(User_L269,F$3),Line108))) ->  | G107: =IF(ISBLANK(RR),"",IF(SZ<>"Unit",0,IF(ISNUMBER(INDEX(User_L269,G$3)),INDEX(User_L269,G$3),Line108))) ->  | H107: =IF(ISBLANK(RR),"",IF(SZ<>"Unit",0,IF(ISNUMBER(INDEX(User_L269,H$3)),INDEX(User_L269,H$3),Line108))) -> 
A108: 270 | B108: Shipment share-Way train miles | C108: L109*L237 | D108: =IF(ISBLANK(RR),"",IF(SZ="Unit",0,IF(ISNUMBER(INDEX(User_L270,D$3)),INDEX(User_L270,D$3),Line109*Line237))) -> 0.787036264 | E108: =IF(ISBLANK(RR),"",IF(SZ="Unit",0,IF(ISNUMBER(INDEX(User_L270,E$3)),INDEX(User_L270,E$3),Line109*Line237))) ->  | F108: =IF(ISBLANK(RR),"",IF(SZ="Unit",0,IF(ISNUMBER(INDEX(User_L270,F$3)),INDEX(User_L270,F$3),Line109*Line237))) ->  | G108: =IF(ISBLANK(RR),"",IF(SZ="Unit",0,IF(ISNUMBER(INDEX(User_L270,G$3)),INDEX(User_L270,G$3),Line109*Line237))) ->  | H108: =IF(ISBLANK(RR),"",IF(SZ="Unit",0,IF(ISNUMBER(INDEX(User_L270,H$3)),INDEX(User_L270,H$3),Line109*Line237))) -> 
A109: 271 | B109: Shipment share-Thru train miles | C109: L110*L238 | D109: =IF(ISBLANK(RR),"",IF(SZ="Unit",0,IF(ISNUMBER(INDEX(User_L271,D$3)),INDEX(User_L271,D$3),Line110*Line238))) -> 18.90996622 | E109: =IF(ISBLANK(RR),"",IF(SZ="Unit",0,IF(ISNUMBER(INDEX(User_L271,E$3)),INDEX(User_L271,E$3),Line110*Line238))) ->  | F109: =IF(ISBLANK(RR),"",IF(SZ="Unit",0,IF(ISNUMBER(INDEX(User_L271,F$3)),INDEX(User_L271,F$3),Line110*Line238))) ->  | G109: =IF(ISBLANK(RR),"",IF(SZ="Unit",0,IF(ISNUMBER(INDEX(User_L271,G$3)),INDEX(User_L271,G$3),Line110*Line238))) ->  | H109: =IF(ISBLANK(RR),"",IF(SZ="Unit",0,IF(ISNUMBER(INDEX(User_L271,H$3)),INDEX(User_L271,H$3),Line110*Line238))) -> 
A110: 272 | B110: Total train miles (allocated) | C110: L269+L270+L271 | D110: =IF(ISBLANK(RR),"",Line269+Line270+Line271) -> 19.69700248 | E110: =IF(ISBLANK(RR),"",Line269+Line270+Line271) ->  | F110: =IF(ISBLANK(RR),"",Line269+Line270+Line271) ->  | G110: =IF(ISBLANK(RR),"",Line269+Line270+Line271) ->  | H110: =IF(ISBLANK(RR),"",Line269+Line270+Line271) ->  | I110: =SUM(D110:H110) -> 19.69700248
A111: 273 | B111: Actual crew wage/train mile-Unit | C111: [User] | D111: =IF(ISBLANK(RR),"",IF(SZ<>"Unit",0,IF(ISNUMBER(INDEX(User_L273,D$3)),INDEX(User_L273,D$3),0))) -> 0 | E111: =IF(ISBLANK(RR),"",IF(SZ<>"Unit",0,IF(ISNUMBER(INDEX(User_L273,E$3)),INDEX(User_L273,E$3),0))) ->  | F111: =IF(ISBLANK(RR),"",IF(SZ<>"Unit",0,IF(ISNUMBER(INDEX(User_L273,F$3)),INDEX(User_L273,F$3),0))) ->  | G111: =IF(ISBLANK(RR),"",IF(SZ<>"Unit",0,IF(ISNUMBER(INDEX(User_L273,G$3)),INDEX(User_L273,G$3),0))) ->  | H111: =IF(ISBLANK(RR),"",IF(SZ<>"Unit",0,IF(ISNUMBER(INDEX(User_L273,H$3)),INDEX(User_L273,H$3),0))) -> 
A112: 274 | B112: Actual crew wage/train mile-Way | C112: [User] | D112: =IF(ISBLANK(RR),"",IF(SZ="Unit",0,IF(ISNUMBER(INDEX(User_L274,D$3)),INDEX(User_L274,D$3),0))) -> 0 | E112: =IF(ISBLANK(RR),"",IF(SZ="Unit",0,IF(ISNUMBER(INDEX(User_L274,E$3)),INDEX(User_L274,E$3),0))) ->  | F112: =IF(ISBLANK(RR),"",IF(SZ="Unit",0,IF(ISNUMBER(INDEX(User_L274,F$3)),INDEX(User_L274,F$3),0))) ->  | G112: =IF(ISBLANK(RR),"",IF(SZ="Unit",0,IF(ISNUMBER(INDEX(User_L274,G$3)),INDEX(User_L274,G$3),0))) ->  | H112: =IF(ISBLANK(RR),"",IF(SZ="Unit",0,IF(ISNUMBER(INDEX(User_L274,H$3)),INDEX(User_L274,H$3),0))) -> 
A113: 275 | B113: Actual crew wage/train mile-Thru | C113: [User] | D113: =IF(ISBLANK(RR),"",IF(SZ="Unit",0,IF(ISNUMBER(INDEX(User_L275,D$3)),INDEX(User_L275,D$3),0))) -> 0 | E113: =IF(ISBLANK(RR),"",IF(SZ="Unit",0,IF(ISNUMBER(INDEX(User_L275,E$3)),INDEX(User_L275,E$3),0))) ->  | F113: =IF(ISBLANK(RR),"",IF(SZ="Unit",0,IF(ISNUMBER(INDEX(User_L275,F$3)),INDEX(User_L275,F$3),0))) ->  | G113: =IF(ISBLANK(RR),"",IF(SZ="Unit",0,IF(ISNUMBER(INDEX(User_L275,G$3)),INDEX(User_L275,G$3),0))) ->  | H113: =IF(ISBLANK(RR),"",IF(SZ="Unit",0,IF(ISNUMBER(INDEX(User_L275,H$3)),INDEX(User_L275,H$3),0))) -> 
A114: 276 | B114: Average/wages per train mile | C114: E2L218C1 | D114: =IF(ISBLANK(RR),"",VLOOKUP(RR&"-"&$C114,UnitCostXML,MATCH(CostYear,UnitCostXMLHeaders,0),FALSE)) -> 11.49971241 | E114: =IF(ISBLANK(RR),"",VLOOKUP(RR&"-"&$C114,UnitCostXML,MATCH(CostYear,UnitCostXMLHeaders,0),FALSE)) ->  | F114: =IF(ISBLANK(RR),"",VLOOKUP(RR&"-"&$C114,UnitCostXML,MATCH(CostYear,UnitCostXMLHeaders,0),FALSE)) ->  | G114: =IF(ISBLANK(RR),"",VLOOKUP(RR&"-"&$C114,UnitCostXML,MATCH(CostYear,UnitCostXMLHeaders,0),FALSE)) ->  | H114: =IF(ISBLANK(RR),"",VLOOKUP(RR&"-"&$C114,UnitCostXML,MATCH(CostYear,UnitCostXMLHeaders,0),FALSE)) ->  | J114: =$C114&"="&VLOOKUP($C114,ECodeTable,MATCH("eTitle_and_Desc",ECodeHeaders,0),FALSE) -> E2L218C1=Average Crew Wages (Assigned To TM-Crew)
A115: 277 | B115: Crew wages adj. ratio-Unit train | C115: L273/L276 | D115: =IF(ISBLANK(RR),"",IF(Line273=0,1,Line273/Line276)) -> 1 | E115: =IF(ISBLANK(RR),"",IF(Line273=0,1,Line273/Line276)) ->  | F115: =IF(ISBLANK(RR),"",IF(Line273=0,1,Line273/Line276)) ->  | G115: =IF(ISBLANK(RR),"",IF(Line273=0,1,Line273/Line276)) ->  | H115: =IF(ISBLANK(RR),"",IF(Line273=0,1,Line273/Line276)) -> 
A116: 278 | B116: Crew wages adj. ratio-Way train | C116: L274/L276 | D116: =IF(ISBLANK(RR),"",IF(Line274=0,1,Line274/Line276)) -> 1 | E116: =IF(ISBLANK(RR),"",IF(Line274=0,1,Line274/Line276)) ->  | F116: =IF(ISBLANK(RR),"",IF(Line274=0,1,Line274/Line276)) ->  | G116: =IF(ISBLANK(RR),"",IF(Line274=0,1,Line274/Line276)) ->  | H116: =IF(ISBLANK(RR),"",IF(Line274=0,1,Line274/Line276)) -> 
A117: 279 | B117: Crew wages adj. ratio-Thru train | C117: L275/L276 | D117: =IF(ISBLANK(RR),"",IF(Line275=0,1,Line275/Line276)) -> 1 | E117: =IF(ISBLANK(RR),"",IF(Line275=0,1,Line275/Line276)) ->  | F117: =IF(ISBLANK(RR),"",IF(Line275=0,1,Line275/Line276)) ->  | G117: =IF(ISBLANK(RR),"",IF(Line275=0,1,Line275/Line276)) ->  | H117: =IF(ISBLANK(RR),"",IF(Line275=0,1,Line275/Line276)) -> 
A118: 280 | B118: UC per TM Crew-OPR | C118: E1L104C1 | D118: =IF(ISBLANK(RR),"",VLOOKUP(RR&"-"&$C118,UnitCostXML,MATCH(CostYear,UnitCostXMLHeaders,0),FALSE)) -> 14.53301172 | E118: =IF(ISBLANK(RR),"",VLOOKUP(RR&"-"&$C118,UnitCostXML,MATCH(CostYear,UnitCostXMLHeaders,0),FALSE)) ->  | F118: =IF(ISBLANK(RR),"",VLOOKUP(RR&"-"&$C118,UnitCostXML,MATCH(CostYear,UnitCostXMLHeaders,0),FALSE)) ->  | G118: =IF(ISBLANK(RR),"",VLOOKUP(RR&"-"&$C118,UnitCostXML,MATCH(CostYear,UnitCostXMLHeaders,0),FALSE)) ->  | H118: =IF(ISBLANK(RR),"",VLOOKUP(RR&"-"&$C118,UnitCostXML,MATCH(CostYear,UnitCostXMLHeaders,0),FALSE)) ->  | J118: =$C118&"="&VLOOKUP($C118,ECodeTable,MATCH("eTitle_and_Desc",ECodeHeaders,0),FALSE) -> E1L104C1=Train Mile (TM) - Crew, OPR Expense
A119: 281 | B119: VC-TM Crew-OPR-Unit train | C119: L269*L277*L280 | D119: =IF(ISBLANK(RR),"",Line269*Line277*Line280) -> 0 | E119: =IF(ISBLANK(RR),"",Line269*Line277*Line280) ->  | F119: =IF(ISBLANK(RR),"",Line269*Line277*Line280) ->  | G119: =IF(ISBLANK(RR),"",Line269*Line277*Line280) ->  | H119: =IF(ISBLANK(RR),"",Line269*Line277*Line280) -> 
A120: 282 | B120: VC-TM Crew-OPR-Way train | C120: L270*L278*L280 | D120: =IF(ISBLANK(RR),"",Line270*Line278*Line280) -> 11.43800725 | E120: =IF(ISBLANK(RR),"",Line270*Line278*Line280) ->  | F120: =IF(ISBLANK(RR),"",Line270*Line278*Line280) ->  | G120: =IF(ISBLANK(RR),"",Line270*Line278*Line280) ->  | H120: =IF(ISBLANK(RR),"",Line270*Line278*Line280) -> 
A121: 283 | B121: VC-TM Crew-OPR-Thru train | C121: L271*L279*L280 | D121: =IF(ISBLANK(RR),"",Line271*Line279*Line280) -> 274.8187606 | E121: =IF(ISBLANK(RR),"",Line271*Line279*Line280) ->  | F121: =IF(ISBLANK(RR),"",Line271*Line279*Line280) ->  | G121: =IF(ISBLANK(RR),"",Line271*Line279*Line280) ->  | H121: =IF(ISBLANK(RR),"",Line271*Line279*Line280) -> 
A122: 284 | B122: Total VC-TM Crew-OPR | C122: L281+L282+L283 | D122: =IF(ISBLANK(RR),"",Line281+Line282+Line283) -> 286.2567679 | E122: =IF(ISBLANK(RR),"",Line281+Line282+Line283) ->  | F122: =IF(ISBLANK(RR),"",Line281+Line282+Line283) ->  | G122: =IF(ISBLANK(RR),"",Line281+Line282+Line283) ->  | H122: =IF(ISBLANK(RR),"",Line281+Line282+Line283) ->  | I122: =SUM(D122:H122) -> 286.2567679
A123: HDR | B123: Train Mile Costs - Other Expenses | C123: Source | D123: =IF(ISBLANK(RR),"",RR) -> WEST | E123: =IF(ISBLANK(RR),"",RR) ->  | F123: =IF(ISBLANK(RR),"",RR) ->  | G123: =IF(ISBLANK(RR),"",RR) ->  | H123: =IF(ISBLANK(RR),"",RR) ->  | I123: =I$4 -> Total
A124: 285 | B124: UC per TM Other-OPR | C124: E1L103C1 | D124: =IF(ISBLANK(RR),"",VLOOKUP(RR&"-"&$C124,UnitCostXML,MATCH(CostYear,UnitCostXMLHeaders,0),FALSE)) -> 0.8560288634 | E124: =IF(ISBLANK(RR),"",VLOOKUP(RR&"-"&$C124,UnitCostXML,MATCH(CostYear,UnitCostXMLHeaders,0),FALSE)) ->  | F124: =IF(ISBLANK(RR),"",VLOOKUP(RR&"-"&$C124,UnitCostXML,MATCH(CostYear,UnitCostXMLHeaders,0),FALSE)) ->  | G124: =IF(ISBLANK(RR),"",VLOOKUP(RR&"-"&$C124,UnitCostXML,MATCH(CostYear,UnitCostXMLHeaders,0),FALSE)) ->  | H124: =IF(ISBLANK(RR),"",VLOOKUP(RR&"-"&$C124,UnitCostXML,MATCH(CostYear,UnitCostXMLHeaders,0),FALSE)) ->  | J124: =$C124&"="&VLOOKUP($C124,ECodeTable,MATCH("eTitle_and_Desc",ECodeHeaders,0),FALSE) -> E1L103C1=Train Mile (TM) - Other Than Crew, OPR Expense
A125: 286 | B125: VC-TM Other-OPR | C125: L272*L285 | D125: =IF(ISBLANK(RR),"",Line272*Line285) -> 16.86120265 | E125: =IF(ISBLANK(RR),"",Line272*Line285) ->  | F125: =IF(ISBLANK(RR),"",Line272*Line285) ->  | G125: =IF(ISBLANK(RR),"",Line272*Line285) ->  | H125: =IF(ISBLANK(RR),"",Line272*Line285) ->  | I125: =SUM(D125:H125) -> 16.86120265
A126: 287 | B126: UC per TM Other-DRL | C126: E1L103C2 | D126: =IF(ISBLANK(RR),"",VLOOKUP(RR&"-"&$C126,UnitCostXML,MATCH(CostYear,UnitCostXMLHeaders,0),FALSE)) -> -0.0002370620544 | E126: =IF(ISBLANK(RR),"",VLOOKUP(RR&"-"&$C126,UnitCostXML,MATCH(CostYear,UnitCostXMLHeaders,0),FALSE)) ->  | F126: =IF(ISBLANK(RR),"",VLOOKUP(RR&"-"&$C126,UnitCostXML,MATCH(CostYear,UnitCostXMLHeaders,0),FALSE)) ->  | G126: =IF(ISBLANK(RR),"",VLOOKUP(RR&"-"&$C126,UnitCostXML,MATCH(CostYear,UnitCostXMLHeaders,0),FALSE)) ->  | H126: =IF(ISBLANK(RR),"",VLOOKUP(RR&"-"&$C126,UnitCostXML,MATCH(CostYear,UnitCostXMLHeaders,0),FALSE)) ->  | J126: =$C126&"="&VLOOKUP($C126,ECodeTable,MATCH("eTitle_and_Desc",ECodeHeaders,0),FALSE) -> E1L103C2=Train Mile (TM) - Other Than Crew, DRL Expense
A127: 288 | B127: VC-TM Other-DRL | C127: L272*L287 | D127: =IF(ISBLANK(RR),"",Line272*Line287) -> -0.004669411873 | E127: =IF(ISBLANK(RR),"",Line272*Line287) ->  | F127: =IF(ISBLANK(RR),"",Line272*Line287) ->  | G127: =IF(ISBLANK(RR),"",Line272*Line287) ->  | H127: =IF(ISBLANK(RR),"",Line272*Line287) ->  | I127: =SUM(D127:H127) -> -0.004669411873
A128: 289 | B128: UC per TM Other-ROI | C128: E1L103C3 | D128: =IF(ISBLANK(RR),"",VLOOKUP(RR&"-"&$C128,UnitCostXML,MATCH(CostYear,UnitCostXMLHeaders,0),FALSE)) -> 1.952539315e-05 | E128: =IF(ISBLANK(RR),"",VLOOKUP(RR&"-"&$C128,UnitCostXML,MATCH(CostYear,UnitCostXMLHeaders,0),FALSE)) ->  | F128: =IF(ISBLANK(RR),"",VLOOKUP(RR&"-"&$C128,UnitCostXML,MATCH(CostYear,UnitCostXMLHeaders,0),FALSE)) ->  | G128: =IF(ISBLANK(RR),"",VLOOKUP(RR&"-"&$C128,UnitCostXML,MATCH(CostYear,UnitCostXMLHeaders,0),FALSE)) ->  | H128: =IF(ISBLANK(RR),"",VLOOKUP(RR&"-"&$C128,UnitCostXML,MATCH(CostYear,UnitCostXMLHeaders,0),FALSE)) ->  | J128: =$C128&"="&VLOOKUP($C128,ECodeTable,MATCH("eTitle_and_Desc",ECodeHeaders,0),FALSE) -> E1L103C3=Train Mile (TM) - Other Than Crew, ROI Expense
A129: 290 | B129: VC-TM Other-ROI | C129: L272*L289 | D129: =IF(ISBLANK(RR),"",Line272*Line289) -> 0.0003845917173 | E129: =IF(ISBLANK(RR),"",Line272*Line289) ->  | F129: =IF(ISBLANK(RR),"",Line272*Line289) ->  | G129: =IF(ISBLANK(RR),"",Line272*Line289) ->  | H129: =IF(ISBLANK(RR),"",Line272*Line289) ->  | I129: =SUM(D129:H129) -> 0.0003845917173
A130: HDR | B130: Industry, Interchange and Inter & Intratrain Switching | C130: Source | D130: =IF(ISBLANK(RR),"",RR) -> WEST | E130: =IF(ISBLANK(RR),"",RR) ->  | F130: =IF(ISBLANK(RR),"",RR) ->  | G130: =IF(ISBLANK(RR),"",RR) ->  | H130: =IF(ISBLANK(RR),"",RR) ->  | I130: =I$4 -> Total
A131: 301 | B131: SEM per Industry switch event | C131: ="E2L1"&TEXT(CarIndex,"00")&"C25" -> E2L106C25 | D131: =IF(ISBLANK(RR),"",IF(OR(SG="IA",SG="IR"),0,IF(ISNUMBER(INDEX(User_L301,D$3)),INDEX(User_L301,D$3),AdjustL301*VLOOKUP(RR&"-"&$C131,UnitCostXML,MATCH(CostYear,UnitCostXMLHeaders,0),FALSE)))) -> 4.742663379 | E131: =IF(ISBLANK(RR),"",IF(OR(SG="IA",SG="IR"),0,IF(ISNUMBER(INDEX(User_L301,E$3)),INDEX(User_L301,E$3),AdjustL301*VLOOKUP(RR&"-"&$C131,UnitCostXML,MATCH(CostYear,UnitCostXMLHeaders,0),FALSE)))) ->  | F131: =IF(ISBLANK(RR),"",IF(OR(SG="IA",SG="IR"),0,IF(ISNUMBER(INDEX(User_L301,F$3)),INDEX(User_L301,F$3),AdjustL301*VLOOKUP(RR&"-"&$C131,UnitCostXML,MATCH(CostYear,UnitCostXMLHeaders,0),FALSE)))) ->  | G131: =IF(ISBLANK(RR),"",IF(OR(SG="IA",SG="IR"),0,IF(ISNUMBER(INDEX(User_L301,G$3)),INDEX(User_L301,G$3),AdjustL301*VLOOKUP(RR&"-"&$C131,UnitCostXML,MATCH(CostYear,UnitCostXMLHeaders,0),FALSE)))) ->  | H131: =IF(ISBLANK(RR),"",IF(OR(SG="IA",SG="IR"),0,IF(ISNUMBER(INDEX(User_L301,H$3)),INDEX(User_L301,H$3),AdjustL301*VLOOKUP(RR&"-"&$C131,UnitCostXML,MATCH(CostYear,UnitCostXMLHeaders,0),FALSE)))) ->  | J131: =$C131&"="&VLOOKUP($C131,ECodeTable,MATCH("eTitle_and_Desc",ECodeHeaders,0),FALSE) -> E2L106C25=SEMs per Industry Switch, HOPPER - COVERED
A132: 302 | B132: SEM per Interchange switch event | C132: ="E2L1"&TEXT(CarIndex,"00")&"C26" -> E2L106C26 | D132: =IF(ISBLANK(RR),"",IF(OR(SG="IA",SG="IR"),0,IF(ISNUMBER(INDEX(User_L302,D$3)),INDEX(User_L302,D$3),AdjustL302*VLOOKUP(RR&"-"&$C132,UnitCostXML,MATCH(CostYear,UnitCostXMLHeaders,0),FALSE)))) -> 2.608464858 | E132: =IF(ISBLANK(RR),"",IF(OR(SG="IA",SG="IR"),0,IF(ISNUMBER(INDEX(User_L302,E$3)),INDEX(User_L302,E$3),AdjustL302*VLOOKUP(RR&"-"&$C132,UnitCostXML,MATCH(CostYear,UnitCostXMLHeaders,0),FALSE)))) ->  | F132: =IF(ISBLANK(RR),"",IF(OR(SG="IA",SG="IR"),0,IF(ISNUMBER(INDEX(User_L302,F$3)),INDEX(User_L302,F$3),AdjustL302*VLOOKUP(RR&"-"&$C132,UnitCostXML,MATCH(CostYear,UnitCostXMLHeaders,0),FALSE)))) ->  | G132: =IF(ISBLANK(RR),"",IF(OR(SG="IA",SG="IR"),0,IF(ISNUMBER(INDEX(User_L302,G$3)),INDEX(User_L302,G$3),AdjustL302*VLOOKUP(RR&"-"&$C132,UnitCostXML,MATCH(CostYear,UnitCostXMLHeaders,0),FALSE)))) ->  | H132: =IF(ISBLANK(RR),"",IF(OR(SG="IA",SG="IR"),0,IF(ISNUMBER(INDEX(User_L302,H$3)),INDEX(User_L302,H$3),AdjustL302*VLOOKUP(RR&"-"&$C132,UnitCostXML,MATCH(CostYear,UnitCostXMLHeaders,0),FALSE)))) ->  | J132: =$C132&"="&VLOOKUP($C132,ECodeTable,MATCH("eTitle_and_Desc",ECodeHeaders,0),FALSE) -> E2L106C26=SEMs per Interchange Switch, HOPPER - COVERED
A133: 303 | B133: SEM per I&I train switch event | C133: ="E2L1"&TEXT(CarIndex,"00")&"C29" -> E2L106C29 | D133: =IF(ISBLANK(RR),"",IF(OR(SG="IA",SG="IR"),0,IF(ISNUMBER(INDEX(User_L303,D$3)),INDEX(User_L303,D$3),AdjustL303*VLOOKUP(RR&"-"&$C133,UnitCostXML,MATCH(CostYear,UnitCostXMLHeaders,0),FALSE)))) -> 1.185665845 | E133: =IF(ISBLANK(RR),"",IF(OR(SG="IA",SG="IR"),0,IF(ISNUMBER(INDEX(User_L303,E$3)),INDEX(User_L303,E$3),AdjustL303*VLOOKUP(RR&"-"&$C133,UnitCostXML,MATCH(CostYear,UnitCostXMLHeaders,0),FALSE)))) ->  | F133: =IF(ISBLANK(RR),"",IF(OR(SG="IA",SG="IR"),0,IF(ISNUMBER(INDEX(User_L303,F$3)),INDEX(User_L303,F$3),AdjustL303*VLOOKUP(RR&"-"&$C133,UnitCostXML,MATCH(CostYear,UnitCostXMLHeaders,0),FALSE)))) ->  | G133: =IF(ISBLANK(RR),"",IF(OR(SG="IA",SG="IR"),0,IF(ISNUMBER(INDEX(User_L303,G$3)),INDEX(User_L303,G$3),AdjustL303*VLOOKUP(RR&"-"&$C133,UnitCostXML,MATCH(CostYear,UnitCostXMLHeaders,0),FALSE)))) ->  | H133: =IF(ISBLANK(RR),"",IF(OR(SG="IA",SG="IR"),0,IF(ISNUMBER(INDEX(User_L303,H$3)),INDEX(User_L303,H$3),AdjustL303*VLOOKUP(RR&"-"&$C133,UnitCostXML,MATCH(CostYear,UnitCostXMLHeaders,0),FALSE)))) ->  | J133: =$C133&"="&VLOOKUP($C133,ECodeTable,MATCH("eTitle_and_Desc",ECodeHeaders,0),FALSE) -> E2L106C29=SEMs per I&I Switch, HOPPER - COVERED
A134: 304 | B134: Spotted-Pulled Ratio this car | C134: ="E2L1"&TEXT(CarIndex,"00")&"C8" -> E2L106C8 | D134: =IF(ISBLANK(RR),"",IF(ISNUMBER(INDEX(User_L304,D$3)),INDEX(User_L304,D$3),VLOOKUP(RR&"-"&$C134,UnitCostXML,MATCH(CostYear,UnitCostXMLHeaders,0),FALSE))) -> 2 | E134: =IF(ISBLANK(RR),"",IF(ISNUMBER(INDEX(User_L304,E$3)),INDEX(User_L304,E$3),VLOOKUP(RR&"-"&$C134,UnitCostXML,MATCH(CostYear,UnitCostXMLHeaders,0),FALSE))) ->  | F134: =IF(ISBLANK(RR),"",IF(ISNUMBER(INDEX(User_L304,F$3)),INDEX(User_L304,F$3),VLOOKUP(RR&"-"&$C134,UnitCostXML,MATCH(CostYear,UnitCostXMLHeaders,0),FALSE))) ->  | G134: =IF(ISBLANK(RR),"",IF(ISNUMBER(INDEX(User_L304,G$3)),INDEX(User_L304,G$3),VLOOKUP(RR&"-"&$C134,UnitCostXML,MATCH(CostYear,UnitCostXMLHeaders,0),FALSE))) ->  | H134: =IF(ISBLANK(RR),"",IF(ISNUMBER(INDEX(User_L304,H$3)),INDEX(User_L304,H$3),VLOOKUP(RR&"-"&$C134,UnitCostXML,MATCH(CostYear,UnitCostXMLHeaders,0),FALSE))) ->  | J134: =$C134&"="&VLOOKUP($C134,ECodeTable,MATCH("eTitle_and_Desc",ECodeHeaders,0),FALSE) -> E2L106C8=Spotted-to-Pulled Ratio, HOPPER - COVERED
A135: 305 | B135: Industry switch events | C135: L252*L304; TOFC:L251*L304 | D135: =IF(ISBLANK(RR),"",IF(ISNUMBER(INDEX(User_L305,D$3)),INDEX(User_L305,D$3),IF(SZ<>"Intermodal",Line252*Line304,Line251*Line304))) -> 4 | E135: =IF(ISBLANK(RR),"",IF(ISNUMBER(INDEX(User_L305,E$3)),INDEX(User_L305,E$3),IF(SZ<>"Intermodal",Line252*Line304,Line251*Line304))) ->  | F135: =IF(ISBLANK(RR),"",IF(ISNUMBER(INDEX(User_L305,F$3)),INDEX(User_L305,F$3),IF(SZ<>"Intermodal",Line252*Line304,Line251*Line304))) ->  | G135: =IF(ISBLANK(RR),"",IF(ISNUMBER(INDEX(User_L305,G$3)),INDEX(User_L305,G$3),IF(SZ<>"Intermodal",Line252*Line304,Line251*Line304))) ->  | H135: =IF(ISBLANK(RR),"",IF(ISNUMBER(INDEX(User_L305,H$3)),INDEX(User_L305,H$3),IF(SZ<>"Intermodal",Line252*Line304,Line251*Line304))) -> 
A136: 306 | B136: Avg miles bet. Interchange event | C136: ="E2L1"&TEXT(CarIndex,"00")&"C24" -> E2L106C24 | D136: =IF(ISBLANK(RR),"",VLOOKUP(RR&"-"&$C136,UnitCostXML,MATCH(CostYear,UnitCostXMLHeaders,0),FALSE)) -> 1895.04297 | E136: =IF(ISBLANK(RR),"",VLOOKUP(RR&"-"&$C136,UnitCostXML,MATCH(CostYear,UnitCostXMLHeaders,0),FALSE)) ->  | F136: =IF(ISBLANK(RR),"",VLOOKUP(RR&"-"&$C136,UnitCostXML,MATCH(CostYear,UnitCostXMLHeaders,0),FALSE)) ->  | G136: =IF(ISBLANK(RR),"",VLOOKUP(RR&"-"&$C136,UnitCostXML,MATCH(CostYear,UnitCostXMLHeaders,0),FALSE)) ->  | H136: =IF(ISBLANK(RR),"",VLOOKUP(RR&"-"&$C136,UnitCostXML,MATCH(CostYear,UnitCostXMLHeaders,0),FALSE)) ->  | J136: =$C136&"="&VLOOKUP($C136,ECodeTable,MATCH("eTitle_and_Desc",ECodeHeaders,0),FALSE) -> E2L106C24=Average Miles between Interchange Switches, HOPPER - COVERED
A137: 307 | B137: Number of interchange events | C137: Receive=1; Deliver=1 | D137: =IF(ISBLANK(RR),"",VLOOKUP(SG,URCSSegments,MATCH("L"&$A137,URCSSegmentsHeaders,0),FALSE)) -> 0 | E137: =IF(ISBLANK(RR),"",VLOOKUP(SG,URCSSegments,MATCH("L"&$A137,URCSSegmentsHeaders,0),FALSE)) ->  | F137: =IF(ISBLANK(RR),"",VLOOKUP(SG,URCSSegments,MATCH("L"&$A137,URCSSegmentsHeaders,0),FALSE)) ->  | G137: =IF(ISBLANK(RR),"",VLOOKUP(SG,URCSSegments,MATCH("L"&$A137,URCSSegmentsHeaders,0),FALSE)) ->  | H137: =IF(ISBLANK(RR),"",VLOOKUP(SG,URCSSegments,MATCH("L"&$A137,URCSSegmentsHeaders,0),FALSE)) -> 
A138: 308 | B138: Number of cars interchanged | C138: L105*L201*L307; TOFC:L105*L204*L307 | D138: =IF(ISBLANK(RR),"",IF(ISNUMBER(INDEX(User_L308,D$3)),INDEX(User_L308,D$3),IF(SZ<>"Intermodal",Line105*Line201*Line307,Line105*Line204*Line307))) -> 0 | E138: =IF(ISBLANK(RR),"",IF(ISNUMBER(INDEX(User_L308,E$3)),INDEX(User_L308,E$3),IF(SZ<>"Intermodal",Line105*Line201*Line307,Line105*Line204*Line307))) ->  | F138: =IF(ISBLANK(RR),"",IF(ISNUMBER(INDEX(User_L308,F$3)),INDEX(User_L308,F$3),IF(SZ<>"Intermodal",Line105*Line201*Line307,Line105*Line204*Line307))) ->  | G138: =IF(ISBLANK(RR),"",IF(ISNUMBER(INDEX(User_L308,G$3)),INDEX(User_L308,G$3),IF(SZ<>"Intermodal",Line105*Line201*Line307,Line105*Line204*Line307))) ->  | H138: =IF(ISBLANK(RR),"",IF(ISNUMBER(INDEX(User_L308,H$3)),INDEX(User_L308,H$3),IF(SZ<>"Intermodal",Line105*Line201*Line307,Line105*Line204*Line307))) -> 
A139: 309 | B139: Avg miles between I&I sw event | C139: ="E2L1"&TEXT(CarIndex,"00")&"C23" -> E2L106C23 | D139: =IF(ISBLANK(RR),"",IF(ISNUMBER(INDEX(User_L309,D$3)),INDEX(User_L309,D$3),VLOOKUP(RR&"-"&$C139,UnitCostXML,MATCH(CostYear,UnitCostXMLHeaders,0),FALSE))) -> 200 | E139: =IF(ISBLANK(RR),"",IF(ISNUMBER(INDEX(User_L309,E$3)),INDEX(User_L309,E$3),VLOOKUP(RR&"-"&$C139,UnitCostXML,MATCH(CostYear,UnitCostXMLHeaders,0),FALSE))) ->  | F139: =IF(ISBLANK(RR),"",IF(ISNUMBER(INDEX(User_L309,F$3)),INDEX(User_L309,F$3),VLOOKUP(RR&"-"&$C139,UnitCostXML,MATCH(CostYear,UnitCostXMLHeaders,0),FALSE))) ->  | G139: =IF(ISBLANK(RR),"",IF(ISNUMBER(INDEX(User_L309,G$3)),INDEX(User_L309,G$3),VLOOKUP(RR&"-"&$C139,UnitCostXML,MATCH(CostYear,UnitCostXMLHeaders,0),FALSE))) ->  | H139: =IF(ISBLANK(RR),"",IF(ISNUMBER(INDEX(User_L309,H$3)),INDEX(User_L309,H$3),VLOOKUP(RR&"-"&$C139,UnitCostXML,MATCH(CostYear,UnitCostXMLHeaders,0),FALSE))) ->  | J139: =$C139&"="&VLOOKUP($C139,ECodeTable,MATCH("eTitle_and_Desc",ECodeHeaders,0),FALSE) -> E2L106C23=Average Miles between I&I Switches, HOPPER - COVERED
A140: 310 | B140: Cars given I&I switch | C140: L205/L309 | D140: =IF(ISBLANK(RR),"",IF(ISNUMBER(INDEX(User_L310,D$3)),INDEX(User_L310,D$3),Line205/Line309)) -> 10.02024472 | E140: =IF(ISBLANK(RR),"",IF(ISNUMBER(INDEX(User_L310,E$3)),INDEX(User_L310,E$3),Line205/Line309)) ->  | F140: =IF(ISBLANK(RR),"",IF(ISNUMBER(INDEX(User_L310,F$3)),INDEX(User_L310,F$3),Line205/Line309)) ->  | G140: =IF(ISBLANK(RR),"",IF(ISNUMBER(INDEX(User_L310,G$3)),INDEX(User_L310,G$3),Line205/Line309)) ->  | H140: =IF(ISBLANK(RR),"",IF(ISNUMBER(INDEX(User_L310,H$3)),INDEX(User_L310,H$3),Line205/Line309)) -> 
A141: 311 | B141: Total SEM-Industry | C141: L301*L305 | D141: =IF(ISBLANK(RR),"",Line301*Line305) -> 18.97065352 | E141: =IF(ISBLANK(RR),"",Line301*Line305) ->  | F141: =IF(ISBLANK(RR),"",Line301*Line305) ->  | G141: =IF(ISBLANK(RR),"",Line301*Line305) ->  | H141: =IF(ISBLANK(RR),"",Line301*Line305) -> 
A142: 312 | B142: Total SEM-Interchange | C142: L302*L308 | D142: =IF(ISBLANK(RR),"",Line302*Line308) -> 0 | E142: =IF(ISBLANK(RR),"",Line302*Line308) ->  | F142: =IF(ISBLANK(RR),"",Line302*Line308) ->  | G142: =IF(ISBLANK(RR),"",Line302*Line308) ->  | H142: =IF(ISBLANK(RR),"",Line302*Line308) -> 
A143: 313 | B143: Total SEM-I&I train | C143: L303*L310 | D143: =IF(ISBLANK(RR),"",Line303*Line310) -> 11.88066192 | E143: =IF(ISBLANK(RR),"",Line303*Line310) ->  | F143: =IF(ISBLANK(RR),"",Line303*Line310) ->  | G143: =IF(ISBLANK(RR),"",Line303*Line310) ->  | H143: =IF(ISBLANK(RR),"",Line303*Line310) -> 
A144: 314 | B144: Total SEM | C144: L311+L312+L313 | D144: =IF(ISBLANK(RR),"",Line311+Line312+Line313) -> 30.85131543 | E144: =IF(ISBLANK(RR),"",Line311+Line312+Line313) ->  | F144: =IF(ISBLANK(RR),"",Line311+Line312+Line313) ->  | G144: =IF(ISBLANK(RR),"",Line311+Line312+Line313) ->  | H144: =IF(ISBLANK(RR),"",Line311+Line312+Line313) ->  | I144: =SUM(D144:H144) -> 30.85131543
A145: 315 | B145: UC per SEM-OPR | C145: E1L111C1 | D145: =IF(ISBLANK(RR),"",VLOOKUP(RR&"-"&$C145,UnitCostXML,MATCH(CostYear,UnitCostXMLHeaders,0),FALSE)) -> 7.418555818 | E145: =IF(ISBLANK(RR),"",VLOOKUP(RR&"-"&$C145,UnitCostXML,MATCH(CostYear,UnitCostXMLHeaders,0),FALSE)) ->  | F145: =IF(ISBLANK(RR),"",VLOOKUP(RR&"-"&$C145,UnitCostXML,MATCH(CostYear,UnitCostXMLHeaders,0),FALSE)) ->  | G145: =IF(ISBLANK(RR),"",VLOOKUP(RR&"-"&$C145,UnitCostXML,MATCH(CostYear,UnitCostXMLHeaders,0),FALSE)) ->  | H145: =IF(ISBLANK(RR),"",VLOOKUP(RR&"-"&$C145,UnitCostXML,MATCH(CostYear,UnitCostXMLHeaders,0),FALSE)) ->  | J145: =$C145&"="&VLOOKUP($C145,ECodeTable,MATCH("eTitle_and_Desc",ECodeHeaders,0),FALSE) -> E1L111C1=Switch Engine Minutes (SEM), OPR Expense
A146: 316 | B146: VC-SEM-OPR | C146: L314*L315 | D146: =IF(ISBLANK(RR),"",Line314*Line315) -> 228.8722056 | E146: =IF(ISBLANK(RR),"",Line314*Line315) ->  | F146: =IF(ISBLANK(RR),"",Line314*Line315) ->  | G146: =IF(ISBLANK(RR),"",Line314*Line315) ->  | H146: =IF(ISBLANK(RR),"",Line314*Line315) ->  | I146: =SUM(D146:H146) -> 228.8722056
A147: 317 | B147: UC per SEM-DRL | C147: E1L111C2 | D147: =IF(ISBLANK(RR),"",VLOOKUP(RR&"-"&$C147,UnitCostXML,MATCH(CostYear,UnitCostXMLHeaders,0),FALSE)) -> 1.873242722 | E147: =IF(ISBLANK(RR),"",VLOOKUP(RR&"-"&$C147,UnitCostXML,MATCH(CostYear,UnitCostXMLHeaders,0),FALSE)) ->  | F147: =IF(ISBLANK(RR),"",VLOOKUP(RR&"-"&$C147,UnitCostXML,MATCH(CostYear,UnitCostXMLHeaders,0),FALSE)) ->  | G147: =IF(ISBLANK(RR),"",VLOOKUP(RR&"-"&$C147,UnitCostXML,MATCH(CostYear,UnitCostXMLHeaders,0),FALSE)) ->  | H147: =IF(ISBLANK(RR),"",VLOOKUP(RR&"-"&$C147,UnitCostXML,MATCH(CostYear,UnitCostXMLHeaders,0),FALSE)) ->  | J147: =$C147&"="&VLOOKUP($C147,ECodeTable,MATCH("eTitle_and_Desc",ECodeHeaders,0),FALSE) -> E1L111C2=Switch Engine Minutes (SEM), DRL Expense
A148: 318 | B148: VC-SEM-DRL | C148: L314*L317 | D148: =IF(ISBLANK(RR),"",Line314*Line317) -> 57.79200208 | E148: =IF(ISBLANK(RR),"",Line314*Line317) ->  | F148: =IF(ISBLANK(RR),"",Line314*Line317) ->  | G148: =IF(ISBLANK(RR),"",Line314*Line317) ->  | H148: =IF(ISBLANK(RR),"",Line314*Line317) ->  | I148: =SUM(D148:H148) -> 57.79200208
A149: 319 | B149: UC per SEM-ROI | C149: E1L111C3 | D149: =IF(ISBLANK(RR),"",VLOOKUP(RR&"-"&$C149,UnitCostXML,MATCH(CostYear,UnitCostXMLHeaders,0),FALSE)) -> 5.458760133 | E149: =IF(ISBLANK(RR),"",VLOOKUP(RR&"-"&$C149,UnitCostXML,MATCH(CostYear,UnitCostXMLHeaders,0),FALSE)) ->  | F149: =IF(ISBLANK(RR),"",VLOOKUP(RR&"-"&$C149,UnitCostXML,MATCH(CostYear,UnitCostXMLHeaders,0),FALSE)) ->  | G149: =IF(ISBLANK(RR),"",VLOOKUP(RR&"-"&$C149,UnitCostXML,MATCH(CostYear,UnitCostXMLHeaders,0),FALSE)) ->  | H149: =IF(ISBLANK(RR),"",VLOOKUP(RR&"-"&$C149,UnitCostXML,MATCH(CostYear,UnitCostXMLHeaders,0),FALSE)) ->  | J149: =$C149&"="&VLOOKUP($C149,ECodeTable,MATCH("eTitle_and_Desc",ECodeHeaders,0),FALSE) -> E1L111C3=Switch Engine Minutes (SEM), ROI Expense
A150: 320 | B150: VC-SEM-ROI | C150: L314*L319 | D150: =IF(ISBLANK(RR),"",Line314*Line319) -> 168.4099307 | E150: =IF(ISBLANK(RR),"",Line314*Line319) ->  | F150: =IF(ISBLANK(RR),"",Line314*Line319) ->  | G150: =IF(ISBLANK(RR),"",Line314*Line319) ->  | H150: =IF(ISBLANK(RR),"",Line314*Line319) ->  | I150: =SUM(D150:H150) -> 168.4099307
A151: HDR | B151: Intraterminal and Interterminal Switching | C151: Source | D151: =IF(ISBLANK(RR),"",RR) -> WEST | E151: =IF(ISBLANK(RR),"",RR) ->  | F151: =IF(ISBLANK(RR),"",RR) ->  | G151: =IF(ISBLANK(RR),"",RR) ->  | H151: =IF(ISBLANK(RR),"",RR) ->  | I151: =I$4 -> Total
A152: 321 | B152: Cars-Intraterm switching | C152: [User] | D152: =IF(ISBLANK(RR),"",IF(SG<>"IA",0,IF(ISNUMBER(INDEX(User_L321,D$3)),INDEX(User_L321,D$3),NC))) -> 0 | E152: =IF(ISBLANK(RR),"",IF(SG<>"IA",0,IF(ISNUMBER(INDEX(User_L321,E$3)),INDEX(User_L321,E$3),NC))) ->  | F152: =IF(ISBLANK(RR),"",IF(SG<>"IA",0,IF(ISNUMBER(INDEX(User_L321,F$3)),INDEX(User_L321,F$3),NC))) ->  | G152: =IF(ISBLANK(RR),"",IF(SG<>"IA",0,IF(ISNUMBER(INDEX(User_L321,G$3)),INDEX(User_L321,G$3),NC))) ->  | H152: =IF(ISBLANK(RR),"",IF(SG<>"IA",0,IF(ISNUMBER(INDEX(User_L321,H$3)),INDEX(User_L321,H$3),NC))) -> 
A153: 322 | B153: Cars-Interterm switching | C153: [User] | D153: =IF(ISBLANK(RR),"",IF(SG<>"IR",0,IF(ISNUMBER(INDEX(User_L322,D$3)),INDEX(User_L322,D$3),NC))) -> 0 | E153: =IF(ISBLANK(RR),"",IF(SG<>"IR",0,IF(ISNUMBER(INDEX(User_L322,E$3)),INDEX(User_L322,E$3),NC))) ->  | F153: =IF(ISBLANK(RR),"",IF(SG<>"IR",0,IF(ISNUMBER(INDEX(User_L322,F$3)),INDEX(User_L322,F$3),NC))) ->  | G153: =IF(ISBLANK(RR),"",IF(SG<>"IR",0,IF(ISNUMBER(INDEX(User_L322,G$3)),INDEX(User_L322,G$3),NC))) ->  | H153: =IF(ISBLANK(RR),"",IF(SG<>"IR",0,IF(ISNUMBER(INDEX(User_L322,H$3)),INDEX(User_L322,H$3),NC))) -> 
A154: 323 | B154: Cars-Intraterminal switching including empty | C154: L304*L321 | D154: =IF(ISBLANK(RR),"",Line304*Line321) -> 0 | E154: =IF(ISBLANK(RR),"",Line304*Line321) ->  | F154: =IF(ISBLANK(RR),"",Line304*Line321) ->  | G154: =IF(ISBLANK(RR),"",Line304*Line321) ->  | H154: =IF(ISBLANK(RR),"",Line304*Line321) -> 
A155: 324 | B155: Cars-Interterminal switching including empty | C155: L304*L322 | D155: =IF(ISBLANK(RR),"",Line304*Line322) -> 0 | E155: =IF(ISBLANK(RR),"",Line304*Line322) ->  | F155: =IF(ISBLANK(RR),"",Line304*Line322) ->  | G155: =IF(ISBLANK(RR),"",Line304*Line322) ->  | H155: =IF(ISBLANK(RR),"",Line304*Line322) -> 
A156: 325 | B156: SEM per Intraterminal switch | C156: ="E2L1"&TEXT(CarIndex,"00")&"C27" -> E2L106C27 | D156: =IF(ISBLANK(RR),"",IF(SG<>"IA",0,IF(ISNUMBER(INDEX(User_L325,D$3)),INDEX(User_L325,D$3),AdjustL325*VLOOKUP(RR&"-"&$C156,UnitCostXML,MATCH(CostYear,UnitCostXMLHeaders,0),FALSE)))) -> 0 | E156: =IF(ISBLANK(RR),"",IF(SG<>"IA",0,IF(ISNUMBER(INDEX(User_L325,E$3)),INDEX(User_L325,E$3),AdjustL325*VLOOKUP(RR&"-"&$C156,UnitCostXML,MATCH(CostYear,UnitCostXMLHeaders,0),FALSE)))) ->  | F156: =IF(ISBLANK(RR),"",IF(SG<>"IA",0,IF(ISNUMBER(INDEX(User_L325,F$3)),INDEX(User_L325,F$3),AdjustL325*VLOOKUP(RR&"-"&$C156,UnitCostXML,MATCH(CostYear,UnitCostXMLHeaders,0),FALSE)))) ->  | G156: =IF(ISBLANK(RR),"",IF(SG<>"IA",0,IF(ISNUMBER(INDEX(User_L325,G$3)),INDEX(User_L325,G$3),AdjustL325*VLOOKUP(RR&"-"&$C156,UnitCostXML,MATCH(CostYear,UnitCostXMLHeaders,0),FALSE)))) ->  | H156: =IF(ISBLANK(RR),"",IF(SG<>"IA",0,IF(ISNUMBER(INDEX(User_L325,H$3)),INDEX(User_L325,H$3),AdjustL325*VLOOKUP(RR&"-"&$C156,UnitCostXML,MATCH(CostYear,UnitCostXMLHeaders,0),FALSE)))) ->  | J156: =$C156&"="&VLOOKUP($C156,ECodeTable,MATCH("eTitle_and_Desc",ECodeHeaders,0),FALSE) -> E2L106C27=SEMs per Intraterminal Switch, HOPPER - COVERED
A157: 326 | B157: SEM per Interterminal switch | C157: ="E2L1"&TEXT(CarIndex,"00")&"C28" -> E2L106C28 | D157: =IF(ISBLANK(RR),"",IF(SG<>"IR",0,IF(ISNUMBER(INDEX(User_L326,D$3)),INDEX(User_L326,D$3),AdjustL326*VLOOKUP(RR&"-"&$C157,UnitCostXML,MATCH(CostYear,UnitCostXMLHeaders,0),FALSE)))) -> 0 | E157: =IF(ISBLANK(RR),"",IF(SG<>"IR",0,IF(ISNUMBER(INDEX(User_L326,E$3)),INDEX(User_L326,E$3),AdjustL326*VLOOKUP(RR&"-"&$C157,UnitCostXML,MATCH(CostYear,UnitCostXMLHeaders,0),FALSE)))) ->  | F157: =IF(ISBLANK(RR),"",IF(SG<>"IR",0,IF(ISNUMBER(INDEX(User_L326,F$3)),INDEX(User_L326,F$3),AdjustL326*VLOOKUP(RR&"-"&$C157,UnitCostXML,MATCH(CostYear,UnitCostXMLHeaders,0),FALSE)))) ->  | G157: =IF(ISBLANK(RR),"",IF(SG<>"IR",0,IF(ISNUMBER(INDEX(User_L326,G$3)),INDEX(User_L326,G$3),AdjustL326*VLOOKUP(RR&"-"&$C157,UnitCostXML,MATCH(CostYear,UnitCostXMLHeaders,0),FALSE)))) ->  | H157: =IF(ISBLANK(RR),"",IF(SG<>"IR",0,IF(ISNUMBER(INDEX(User_L326,H$3)),INDEX(User_L326,H$3),AdjustL326*VLOOKUP(RR&"-"&$C157,UnitCostXML,MATCH(CostYear,UnitCostXMLHeaders,0),FALSE)))) ->  | J157: =$C157&"="&VLOOKUP($C157,ECodeTable,MATCH("eTitle_and_Desc",ECodeHeaders,0),FALSE) -> E2L106C28=SEMs per Interterminal Switch, HOPPER - COVERED
A158: 327 | B158: Total SEM Intraterm | C158: L323*L325 | D158: =IF(ISBLANK(RR),"",Line323*Line325) -> 0 | E158: =IF(ISBLANK(RR),"",Line323*Line325) ->  | F158: =IF(ISBLANK(RR),"",Line323*Line325) ->  | G158: =IF(ISBLANK(RR),"",Line323*Line325) ->  | H158: =IF(ISBLANK(RR),"",Line323*Line325) -> 
A159: 328 | B159: Total SEM Interterm | C159: L324*L326 | D159: =IF(ISBLANK(RR),"",Line324*Line326) -> 0 | E159: =IF(ISBLANK(RR),"",Line324*Line326) ->  | F159: =IF(ISBLANK(RR),"",Line324*Line326) ->  | G159: =IF(ISBLANK(RR),"",Line324*Line326) ->  | H159: =IF(ISBLANK(RR),"",Line324*Line326) -> 
A160: 329 | B160: VC-Intraterm-SEM-OPR | C160: L315*L327 | D160: =IF(ISBLANK(RR),"",Line315*Line327) -> 0 | E160: =IF(ISBLANK(RR),"",Line315*Line327) ->  | F160: =IF(ISBLANK(RR),"",Line315*Line327) ->  | G160: =IF(ISBLANK(RR),"",Line315*Line327) ->  | H160: =IF(ISBLANK(RR),"",Line315*Line327) ->  | I160: =SUM(D160:H160) -> 0
A161: 330 | B161: VC-Intraterm-SEM-DRL | C161: L317*L327 | D161: =IF(ISBLANK(RR),"",Line317*Line327) -> 0 | E161: =IF(ISBLANK(RR),"",Line317*Line327) ->  | F161: =IF(ISBLANK(RR),"",Line317*Line327) ->  | G161: =IF(ISBLANK(RR),"",Line317*Line327) ->  | H161: =IF(ISBLANK(RR),"",Line317*Line327) ->  | I161: 0
A162: 331 | B162: VC-Intraterm-SEM-ROI | C162: L319*L327 | D162: =IF(ISBLANK(RR),"",Line319*Line327) -> 0 | E162: =IF(ISBLANK(RR),"",Line319*Line327) ->  | F162: =IF(ISBLANK(RR),"",Line319*Line327) ->  | G162: =IF(ISBLANK(RR),"",Line319*Line327) ->  | H162: =IF(ISBLANK(RR),"",Line319*Line327) ->  | I162: 0
A163: 332 | B163: VC-Interterm-SEM-OPR | C163: L315*L328 | D163: =IF(ISBLANK(RR),"",Line315*Line328) -> 0 | E163: =IF(ISBLANK(RR),"",Line315*Line328) ->  | F163: =IF(ISBLANK(RR),"",Line315*Line328) ->  | G163: =IF(ISBLANK(RR),"",Line315*Line328) ->  | H163: =IF(ISBLANK(RR),"",Line315*Line328) ->  | I163: 0
A164: 333 | B164: VC-Interterm-SEM-DRL | C164: L317*L328 | D164: =IF(ISBLANK(RR),"",Line317*Line328) -> 0 | E164: =IF(ISBLANK(RR),"",Line317*Line328) ->  | F164: =IF(ISBLANK(RR),"",Line317*Line328) ->  | G164: =IF(ISBLANK(RR),"",Line317*Line328) ->  | H164: =IF(ISBLANK(RR),"",Line317*Line328) ->  | I164: 0
A165: 334 | B165: VC-Interterm-SEM-ROI | C165: L319*L328 | D165: =IF(ISBLANK(RR),"",Line319*Line328) -> 0 | E165: =IF(ISBLANK(RR),"",Line319*Line328) ->  | F165: =IF(ISBLANK(RR),"",Line319*Line328) ->  | G165: =IF(ISBLANK(RR),"",Line319*Line328) ->  | H165: =IF(ISBLANK(RR),"",Line319*Line328) ->  | I165: 0
A166: HDR | B166: Private Line Car Rentals | C166: Source | D166: =IF(ISBLANK(RR),"",RR) -> WEST | E166: =IF(ISBLANK(RR),"",RR) ->  | F166: =IF(ISBLANK(RR),"",RR) ->  | G166: =IF(ISBLANK(RR),"",RR) ->  | H166: =IF(ISBLANK(RR),"",RR) ->  | I166: =I$4 -> Total
A167: 401 | B167: Total car miles | C167: L205 | D167: =IF(ISBLANK(RR),"",IF(OWN="Railroad",0,Line205)) -> 0 | E167: =IF(ISBLANK(RR),"",IF(OWN="Railroad",0,Line205)) ->  | F167: =IF(ISBLANK(RR),"",IF(OWN="Railroad",0,Line205)) ->  | G167: =IF(ISBLANK(RR),"",IF(OWN="Railroad",0,Line205)) ->  | H167: =IF(ISBLANK(RR),"",IF(OWN="Railroad",0,Line205)) -> 
A168: 402 | B168: Rental cost per car mile | C168: [User] | D168: =IF(ISBLANK(RR),"",IF(OWN="Railroad",0,IF(ISNUMBER(INDEX(User_L402,D$3)),INDEX(User_L402,D$3),0))) -> 0 | E168: =IF(ISBLANK(RR),"",IF(OWN="Railroad",0,IF(ISNUMBER(INDEX(User_L402,E$3)),INDEX(User_L402,E$3),0))) ->  | F168: =IF(ISBLANK(RR),"",IF(OWN="Railroad",0,IF(ISNUMBER(INDEX(User_L402,F$3)),INDEX(User_L402,F$3),0))) ->  | G168: =IF(ISBLANK(RR),"",IF(OWN="Railroad",0,IF(ISNUMBER(INDEX(User_L402,G$3)),INDEX(User_L402,G$3),0))) ->  | H168: =IF(ISBLANK(RR),"",IF(OWN="Railroad",0,IF(ISNUMBER(INDEX(User_L402,H$3)),INDEX(User_L402,H$3),0))) -> 
A169: 403 | B169: General overhead ratio | C169: E2L219C1 | D169: =IF(ISBLANK(RR),"",IF(ISNUMBER(INDEX(User_OverheadRatio,D$3)),INDEX(User_OverheadRatio,D$3),VLOOKUP(RR&"-"&$C169,UnitCostXML,MATCH(CostYear,UnitCostXMLHeaders,0),FALSE))) -> 1.073684793 | E169: =IF(ISBLANK(RR),"",IF(ISNUMBER(INDEX(User_OverheadRatio,E$3)),INDEX(User_OverheadRatio,E$3),VLOOKUP(RR&"-"&$C169,UnitCostXML,MATCH(CostYear,UnitCostXMLHeaders,0),FALSE))) ->  | F169: =IF(ISBLANK(RR),"",IF(ISNUMBER(INDEX(User_OverheadRatio,F$3)),INDEX(User_OverheadRatio,F$3),VLOOKUP(RR&"-"&$C169,UnitCostXML,MATCH(CostYear,UnitCostXMLHeaders,0),FALSE))) ->  | G169: =IF(ISBLANK(RR),"",IF(ISNUMBER(INDEX(User_OverheadRatio,G$3)),INDEX(User_OverheadRatio,G$3),VLOOKUP(RR&"-"&$C169,UnitCostXML,MATCH(CostYear,UnitCostXMLHeaders,0),FALSE))) ->  | H169: =IF(ISBLANK(RR),"",IF(ISNUMBER(INDEX(User_OverheadRatio,H$3)),INDEX(User_OverheadRatio,H$3),VLOOKUP(RR&"-"&$C169,UnitCostXML,MATCH(CostYear,UnitCostXMLHeaders,0),FALSE))) ->  | J169: =$C169&"="&VLOOKUP($C169,ECodeTable,MATCH("eTitle_and_Desc",ECodeHeaders,0),FALSE) -> E2L219C1=General Overhead Ratio
A170: 404 | B170: UC per CM-rental | C170: ="E1L2"&TEXT(CarIndex,"00")&"C13" -> E1L206C13 | D170: =IF(ISBLANK(RR),"",IF(OWN="Railroad",0,IF(ISNUMBER(INDEX(User_L402,D$3)),0,VLOOKUP(RR&"-"&$C170,UnitCostXML,MATCH(CostYear,UnitCostXMLHeaders,0),FALSE)))) -> 0 | E170: =IF(ISBLANK(RR),"",IF(OWN="Railroad",0,IF(ISNUMBER(INDEX(User_L402,E$3)),0,VLOOKUP(RR&"-"&$C170,UnitCostXML,MATCH(CostYear,UnitCostXMLHeaders,0),FALSE)))) ->  | F170: =IF(ISBLANK(RR),"",IF(OWN="Railroad",0,IF(ISNUMBER(INDEX(User_L402,F$3)),0,VLOOKUP(RR&"-"&$C170,UnitCostXML,MATCH(CostYear,UnitCostXMLHeaders,0),FALSE)))) ->  | G170: =IF(ISBLANK(RR),"",IF(OWN="Railroad",0,IF(ISNUMBER(INDEX(User_L402,G$3)),0,VLOOKUP(RR&"-"&$C170,UnitCostXML,MATCH(CostYear,UnitCostXMLHeaders,0),FALSE)))) ->  | H170: =IF(ISBLANK(RR),"",IF(OWN="Railroad",0,IF(ISNUMBER(INDEX(User_L402,H$3)),0,VLOOKUP(RR&"-"&$C170,UnitCostXML,MATCH(CostYear,UnitCostXMLHeaders,0),FALSE)))) ->  | J170: =$C170&"="&VLOOKUP($C170,ECodeTable,MATCH("eTitle_and_Desc",ECodeHeaders,0),FALSE) -> E1L206C13=CM(R), DRL Expense, Privately-Owned, HOPPER - COVERED
A171: 405 | B171: VC-CM-rental | C171: if L402=0:L401*L404; else:L401*L402*L403 | D171: =IF(ISBLANK(RR),"",IF(OWN="Railroad",0,IF(ISNUMBER(INDEX(User_L402,D$3)),Line401*Line402*Line403,Line401*Line404))) -> 0 | E171: =IF(ISBLANK(RR),"",IF(OWN="Railroad",0,IF(ISNUMBER(INDEX(User_L402,E$3)),Line401*Line402*Line403,Line401*Line404))) ->  | F171: =IF(ISBLANK(RR),"",IF(OWN="Railroad",0,IF(ISNUMBER(INDEX(User_L402,F$3)),Line401*Line402*Line403,Line401*Line404))) ->  | G171: =IF(ISBLANK(RR),"",IF(OWN="Railroad",0,IF(ISNUMBER(INDEX(User_L402,G$3)),Line401*Line402*Line403,Line401*Line404))) ->  | H171: =IF(ISBLANK(RR),"",IF(OWN="Railroad",0,IF(ISNUMBER(INDEX(User_L402,H$3)),Line401*Line402*Line403,Line401*Line404))) ->  | I171: =SUM(D171:H171) -> 0
A172: HDR | B172: Railroad Owned Cars - Mileage Costs | C172: Source | D172: =IF(ISBLANK(RR),"",RR) -> WEST | E172: =IF(ISBLANK(RR),"",RR) ->  | F172: =IF(ISBLANK(RR),"",RR) ->  | G172: =IF(ISBLANK(RR),"",RR) ->  | H172: =IF(ISBLANK(RR),"",RR) ->  | I172: =I$4 -> Total
A173: 406 | B173: Total car miles | C173: L205 | D173: =IF(ISBLANK(RR),"",IF(OWN="Railroad",Line205,0)) -> 2004.048943 | E173: =IF(ISBLANK(RR),"",IF(OWN="Railroad",Line205,0)) ->  | F173: =IF(ISBLANK(RR),"",IF(OWN="Railroad",Line205,0)) ->  | G173: =IF(ISBLANK(RR),"",IF(OWN="Railroad",Line205,0)) ->  | H173: =IF(ISBLANK(RR),"",IF(OWN="Railroad",Line205,0)) -> 
A174: 407 | B174: Actual charge per car mile | C174: [User] | D174: =IF(ISBLANK(RR),"",IF(ISNUMBER(INDEX(User_L407,D$3)),INDEX(User_L407,D$3),0)) -> 0 | E174: =IF(ISBLANK(RR),"",IF(ISNUMBER(INDEX(User_L407,E$3)),INDEX(User_L407,E$3),0)) ->  | F174: =IF(ISBLANK(RR),"",IF(ISNUMBER(INDEX(User_L407,F$3)),INDEX(User_L407,F$3),0)) ->  | G174: =IF(ISBLANK(RR),"",IF(ISNUMBER(INDEX(User_L407,G$3)),INDEX(User_L407,G$3),0)) ->  | H174: =IF(ISBLANK(RR),"",IF(ISNUMBER(INDEX(User_L407,H$3)),INDEX(User_L407,H$3),0)) -> 
A175: 408 | B175: General overhead ratio | C175: E2L219C1 | D175: =IF(ISBLANK(RR),"",IF(ISNUMBER(INDEX(User_OverheadRatio,D$3)),INDEX(User_OverheadRatio,D$3),VLOOKUP(RR&"-"&$C175,UnitCostXML,MATCH(CostYear,UnitCostXMLHeaders,0),FALSE))) -> 1.073684793 | E175: =IF(ISBLANK(RR),"",IF(ISNUMBER(INDEX(User_OverheadRatio,E$3)),INDEX(User_OverheadRatio,E$3),VLOOKUP(RR&"-"&$C175,UnitCostXML,MATCH(CostYear,UnitCostXMLHeaders,0),FALSE))) ->  | F175: =IF(ISBLANK(RR),"",IF(ISNUMBER(INDEX(User_OverheadRatio,F$3)),INDEX(User_OverheadRatio,F$3),VLOOKUP(RR&"-"&$C175,UnitCostXML,MATCH(CostYear,UnitCostXMLHeaders,0),FALSE))) ->  | G175: =IF(ISBLANK(RR),"",IF(ISNUMBER(INDEX(User_OverheadRatio,G$3)),INDEX(User_OverheadRatio,G$3),VLOOKUP(RR&"-"&$C175,UnitCostXML,MATCH(CostYear,UnitCostXMLHeaders,0),FALSE))) ->  | H175: =IF(ISBLANK(RR),"",IF(ISNUMBER(INDEX(User_OverheadRatio,H$3)),INDEX(User_OverheadRatio,H$3),VLOOKUP(RR&"-"&$C175,UnitCostXML,MATCH(CostYear,UnitCostXMLHeaders,0),FALSE))) ->  | J175: =$C175&"="&VLOOKUP($C175,ECodeTable,MATCH("eTitle_and_Desc",ECodeHeaders,0),FALSE) -> E2L219C1=General Overhead Ratio
A176: 409 | B176: VC-CM-Total | C176: L406*L407*L408; L409 used only if L407 used | D176: =IF(ISBLANK(RR),"",IF(ISNUMBER(INDEX(User_L407,D$3)),Line406*Line407*Line408,0)) -> 0 | E176: =IF(ISBLANK(RR),"",IF(ISNUMBER(INDEX(User_L407,E$3)),Line406*Line407*Line408,0)) ->  | F176: =IF(ISBLANK(RR),"",IF(ISNUMBER(INDEX(User_L407,F$3)),Line406*Line407*Line408,0)) ->  | G176: =IF(ISBLANK(RR),"",IF(ISNUMBER(INDEX(User_L407,G$3)),Line406*Line407*Line408,0)) ->  | H176: =IF(ISBLANK(RR),"",IF(ISNUMBER(INDEX(User_L407,H$3)),Line406*Line407*Line408,0)) ->  | I176: =SUM(D176:H176) -> 0
A177: 410 | B177: UC per CM(R)-OPR | C177: ="E1L2"&TEXT(CarIndex,"00")&"C1" -> E1L206C1 | D177: =IF(ISBLANK(RR),"",IF(OWN<>"Railroad",0,IF(ISNUMBER(INDEX(User_L407,D$3)),0,VLOOKUP(RR&"-"&$C177,UnitCostXML,MATCH(CostYear,UnitCostXMLHeaders,0),FALSE)))) -> 0.04168113275 | E177: =IF(ISBLANK(RR),"",IF(OWN<>"Railroad",0,IF(ISNUMBER(INDEX(User_L407,E$3)),0,VLOOKUP(RR&"-"&$C177,UnitCostXML,MATCH(CostYear,UnitCostXMLHeaders,0),FALSE)))) ->  | F177: =IF(ISBLANK(RR),"",IF(OWN<>"Railroad",0,IF(ISNUMBER(INDEX(User_L407,F$3)),0,VLOOKUP(RR&"-"&$C177,UnitCostXML,MATCH(CostYear,UnitCostXMLHeaders,0),FALSE)))) ->  | G177: =IF(ISBLANK(RR),"",IF(OWN<>"Railroad",0,IF(ISNUMBER(INDEX(User_L407,G$3)),0,VLOOKUP(RR&"-"&$C177,UnitCostXML,MATCH(CostYear,UnitCostXMLHeaders,0),FALSE)))) ->  | H177: =IF(ISBLANK(RR),"",IF(OWN<>"Railroad",0,IF(ISNUMBER(INDEX(User_L407,H$3)),0,VLOOKUP(RR&"-"&$C177,UnitCostXML,MATCH(CostYear,UnitCostXMLHeaders,0),FALSE)))) ->  | J177: =$C177&"="&VLOOKUP($C177,ECodeTable,MATCH("eTitle_and_Desc",ECodeHeaders,0),FALSE) -> E1L206C1=CM(R), OPR Expense, Railroad-Owned, HOPPER - COVERED
A178: 411 | B178: VC-CM(R)-OPR | C178: L406*L410 | D178: =IF(ISBLANK(RR),"",Line406*Line410) -> 83.53103005 | E178: =IF(ISBLANK(RR),"",Line406*Line410) ->  | F178: =IF(ISBLANK(RR),"",Line406*Line410) ->  | G178: =IF(ISBLANK(RR),"",Line406*Line410) ->  | H178: =IF(ISBLANK(RR),"",Line406*Line410) ->  | I178: =SUM(D178:H178) -> 83.53103005
A179: 412 | B179: UC per CM(R)-DRL | C179: ="E1L2"&TEXT(CarIndex,"00")&"C2" -> E1L206C2 | D179: =IF(ISBLANK(RR),"",IF(OWN<>"Railroad",0,IF(ISNUMBER(INDEX(User_L407,D$3)),0,VLOOKUP(RR&"-"&$C179,UnitCostXML,MATCH(CostYear,UnitCostXMLHeaders,0),FALSE)))) -> 0.001429859828 | E179: =IF(ISBLANK(RR),"",IF(OWN<>"Railroad",0,IF(ISNUMBER(INDEX(User_L407,E$3)),0,VLOOKUP(RR&"-"&$C179,UnitCostXML,MATCH(CostYear,UnitCostXMLHeaders,0),FALSE)))) ->  | F179: =IF(ISBLANK(RR),"",IF(OWN<>"Railroad",0,IF(ISNUMBER(INDEX(User_L407,F$3)),0,VLOOKUP(RR&"-"&$C179,UnitCostXML,MATCH(CostYear,UnitCostXMLHeaders,0),FALSE)))) ->  | G179: =IF(ISBLANK(RR),"",IF(OWN<>"Railroad",0,IF(ISNUMBER(INDEX(User_L407,G$3)),0,VLOOKUP(RR&"-"&$C179,UnitCostXML,MATCH(CostYear,UnitCostXMLHeaders,0),FALSE)))) ->  | H179: =IF(ISBLANK(RR),"",IF(OWN<>"Railroad",0,IF(ISNUMBER(INDEX(User_L407,H$3)),0,VLOOKUP(RR&"-"&$C179,UnitCostXML,MATCH(CostYear,UnitCostXMLHeaders,0),FALSE)))) ->  | J179: =$C179&"="&VLOOKUP($C179,ECodeTable,MATCH("eTitle_and_Desc",ECodeHeaders,0),FALSE) -> E1L206C2=CM(R), DRL Expense, Railroad-Owned, HOPPER - COVERED
A180: 413 | B180: VC-CM(R)-DRL | C180: L406*L412 | D180: =IF(ISBLANK(RR),"",Line406*Line412) -> 2.865509078 | E180: =IF(ISBLANK(RR),"",Line406*Line412) ->  | F180: =IF(ISBLANK(RR),"",Line406*Line412) ->  | G180: =IF(ISBLANK(RR),"",Line406*Line412) ->  | H180: =IF(ISBLANK(RR),"",Line406*Line412) ->  | I180: =SUM(D180:H180) -> 2.865509078
A181: 414 | B181: UC per CM(R)-ROI | C181: ="E1L2"&TEXT(CarIndex,"00")&"C3" -> E1L206C3 | D181: =IF(ISBLANK(RR),"",IF(OWN<>"Railroad",0,IF(ISNUMBER(INDEX(User_L407,D$3)),0,VLOOKUP(RR&"-"&$C181,UnitCostXML,MATCH(CostYear,UnitCostXMLHeaders,0),FALSE)))) -> 0.02502270183 | E181: =IF(ISBLANK(RR),"",IF(OWN<>"Railroad",0,IF(ISNUMBER(INDEX(User_L407,E$3)),0,VLOOKUP(RR&"-"&$C181,UnitCostXML,MATCH(CostYear,UnitCostXMLHeaders,0),FALSE)))) ->  | F181: =IF(ISBLANK(RR),"",IF(OWN<>"Railroad",0,IF(ISNUMBER(INDEX(User_L407,F$3)),0,VLOOKUP(RR&"-"&$C181,UnitCostXML,MATCH(CostYear,UnitCostXMLHeaders,0),FALSE)))) ->  | G181: =IF(ISBLANK(RR),"",IF(OWN<>"Railroad",0,IF(ISNUMBER(INDEX(User_L407,G$3)),0,VLOOKUP(RR&"-"&$C181,UnitCostXML,MATCH(CostYear,UnitCostXMLHeaders,0),FALSE)))) ->  | H181: =IF(ISBLANK(RR),"",IF(OWN<>"Railroad",0,IF(ISNUMBER(INDEX(User_L407,H$3)),0,VLOOKUP(RR&"-"&$C181,UnitCostXML,MATCH(CostYear,UnitCostXMLHeaders,0),FALSE)))) ->  | J181: =$C181&"="&VLOOKUP($C181,ECodeTable,MATCH("eTitle_and_Desc",ECodeHeaders,0),FALSE) -> E1L206C3=CM(R), ROI Expense, Railroad-Owned, HOPPER - COVERED
A182: 415 | B182: VC-CM(R)-ROI | C182: L406*L414 | D182: =IF(ISBLANK(RR),"",Line406*Line414) -> 50.14671916 | E182: =IF(ISBLANK(RR),"",Line406*Line414) ->  | F182: =IF(ISBLANK(RR),"",Line406*Line414) ->  | G182: =IF(ISBLANK(RR),"",Line406*Line414) ->  | H182: =IF(ISBLANK(RR),"",Line406*Line414) ->  | I182: =SUM(D182:H182) -> 50.14671916
A183: 416 | B183: Industry switch event (L&E) | C183: L305 | D183: =IF(ISBLANK(RR),"",IF(OWN<>"Railroad",0,Line305)) -> 4 | E183: =IF(ISBLANK(RR),"",IF(OWN<>"Railroad",0,Line305)) ->  | F183: =IF(ISBLANK(RR),"",IF(OWN<>"Railroad",0,Line305)) ->  | G183: =IF(ISBLANK(RR),"",IF(OWN<>"Railroad",0,Line305)) ->  | H183: =IF(ISBLANK(RR),"",IF(OWN<>"Railroad",0,Line305)) -> 
A184: 417 | B184: Interchange swt event (L&E) | C184: L308 | D184: =IF(ISBLANK(RR),"",IF(OWN<>"Railroad",0,Line308)) -> 0 | E184: =IF(ISBLANK(RR),"",IF(OWN<>"Railroad",0,Line308)) ->  | F184: =IF(ISBLANK(RR),"",IF(OWN<>"Railroad",0,Line308)) ->  | G184: =IF(ISBLANK(RR),"",IF(OWN<>"Railroad",0,Line308)) ->  | H184: =IF(ISBLANK(RR),"",IF(OWN<>"Railroad",0,Line308)) -> 
A185: 418 | B185: I&I train swt event (L&E) | C185: L310 | D185: =IF(ISBLANK(RR),"",IF(OWN<>"Railroad",0,Line310)) -> 10.02024472 | E185: =IF(ISBLANK(RR),"",IF(OWN<>"Railroad",0,Line310)) ->  | F185: =IF(ISBLANK(RR),"",IF(OWN<>"Railroad",0,Line310)) ->  | G185: =IF(ISBLANK(RR),"",IF(OWN<>"Railroad",0,Line310)) ->  | H185: =IF(ISBLANK(RR),"",IF(OWN<>"Railroad",0,Line310)) -> 
A186: 419 | B186: CM(Y)/Industry switch (L-E) | C186: ="E2L1"&TEXT(CarIndex,"00")&"C17" -> E2L106C17 | D186: =IF(ISBLANK(RR),"",IF(OWN<>"Railroad",0,IF(AND(SZ="Intermodal",User_TOFCPlanCode=4),0,IF(OR(SG="IA",SG="IR"),0,IF(ISNUMBER(INDEX(User_L419,D$3)),INDEX(User_L419,D$3),AdjustL419*VLOOKUP(RR&"-"&$C186,UnitCostXML,MATCH(CostYear,UnitCostXMLHeaders,0),FALSE)))))) -> 4 | E186: =IF(ISBLANK(RR),"",IF(OWN<>"Railroad",0,IF(AND(SZ="Intermodal",User_TOFCPlanCode=4),0,IF(OR(SG="IA",SG="IR"),0,IF(ISNUMBER(INDEX(User_L419,E$3)),INDEX(User_L419,E$3),AdjustL419*VLOOKUP(RR&"-"&$C186,UnitCostXML,MATCH(CostYear,UnitCostXMLHeaders,0),FALSE)))))) ->  | F186: =IF(ISBLANK(RR),"",IF(OWN<>"Railroad",0,IF(AND(SZ="Intermodal",User_TOFCPlanCode=4),0,IF(OR(SG="IA",SG="IR"),0,IF(ISNUMBER(INDEX(User_L419,F$3)),INDEX(User_L419,F$3),AdjustL419*VLOOKUP(RR&"-"&$C186,UnitCostXML,MATCH(CostYear,UnitCostXMLHeaders,0),FALSE)))))) ->  | G186: =IF(ISBLANK(RR),"",IF(OWN<>"Railroad",0,IF(AND(SZ="Intermodal",User_TOFCPlanCode=4),0,IF(OR(SG="IA",SG="IR"),0,IF(ISNUMBER(INDEX(User_L419,G$3)),INDEX(User_L419,G$3),AdjustL419*VLOOKUP(RR&"-"&$C186,UnitCostXML,MATCH(CostYear,UnitCostXMLHeaders,0),FALSE)))))) ->  | H186: =IF(ISBLANK(RR),"",IF(OWN<>"Railroad",0,IF(AND(SZ="Intermodal",User_TOFCPlanCode=4),0,IF(OR(SG="IA",SG="IR"),0,IF(ISNUMBER(INDEX(User_L419,H$3)),INDEX(User_L419,H$3),AdjustL419*VLOOKUP(RR&"-"&$C186,UnitCostXML,MATCH(CostYear,UnitCostXMLHeaders,0),FALSE)))))) ->  | J186: =$C186&"="&VLOOKUP($C186,ECodeTable,MATCH("eTitle_and_Desc",ECodeHeaders,0),FALSE) -> E2L106C17=CM per Industry Switch, HOPPER - COVERED
A187: 420 | B187: CM(Y)/Interchange switch (L-E) | C187: ="E2L1"&TEXT(CarIndex,"00")&"C18" -> E2L106C18 | D187: =IF(ISBLANK(RR),"",IF(OWN<>"Railroad",0,IF(AND(SZ="Intermodal",User_TOFCPlanCode=4),0,IF(OR(SG="IA",SG="IR"),0,IF(ISNUMBER(INDEX(User_L420,D$3)),INDEX(User_L420,D$3),AdjustL420*VLOOKUP(RR&"-"&$C187,UnitCostXML,MATCH(CostYear,UnitCostXMLHeaders,0),FALSE)))))) -> 2.75 | E187: =IF(ISBLANK(RR),"",IF(OWN<>"Railroad",0,IF(AND(SZ="Intermodal",User_TOFCPlanCode=4),0,IF(OR(SG="IA",SG="IR"),0,IF(ISNUMBER(INDEX(User_L420,E$3)),INDEX(User_L420,E$3),AdjustL420*VLOOKUP(RR&"-"&$C187,UnitCostXML,MATCH(CostYear,UnitCostXMLHeaders,0),FALSE)))))) ->  | F187: =IF(ISBLANK(RR),"",IF(OWN<>"Railroad",0,IF(AND(SZ="Intermodal",User_TOFCPlanCode=4),0,IF(OR(SG="IA",SG="IR"),0,IF(ISNUMBER(INDEX(User_L420,F$3)),INDEX(User_L420,F$3),AdjustL420*VLOOKUP(RR&"-"&$C187,UnitCostXML,MATCH(CostYear,UnitCostXMLHeaders,0),FALSE)))))) ->  | G187: =IF(ISBLANK(RR),"",IF(OWN<>"Railroad",0,IF(AND(SZ="Intermodal",User_TOFCPlanCode=4),0,IF(OR(SG="IA",SG="IR"),0,IF(ISNUMBER(INDEX(User_L420,G$3)),INDEX(User_L420,G$3),AdjustL420*VLOOKUP(RR&"-"&$C187,UnitCostXML,MATCH(CostYear,UnitCostXMLHeaders,0),FALSE)))))) ->  | H187: =IF(ISBLANK(RR),"",IF(OWN<>"Railroad",0,IF(AND(SZ="Intermodal",User_TOFCPlanCode=4),0,IF(OR(SG="IA",SG="IR"),0,IF(ISNUMBER(INDEX(User_L420,H$3)),INDEX(User_L420,H$3),AdjustL420*VLOOKUP(RR&"-"&$C187,UnitCostXML,MATCH(CostYear,UnitCostXMLHeaders,0),FALSE)))))) ->  | J187: =$C187&"="&VLOOKUP($C187,ECodeTable,MATCH("eTitle_and_Desc",ECodeHeaders,0),FALSE) -> E2L106C18=CM per Interchange Switch, HOPPER - COVERED
A188: 421 | B188: CM(Y)/I&I train switch (L-E) | C188: ="E2L1"&TEXT(CarIndex,"00")&"C21" -> E2L106C21 | D188: =IF(ISBLANK(RR),"",IF(OWN<>"Railroad",0,IF(AND(SZ="Intermodal",User_TOFCPlanCode=4),0,IF(OR(SG="IA",SG="IR"),0,IF(ISNUMBER(INDEX(User_L421,D$3)),INDEX(User_L421,D$3),AdjustL421*VLOOKUP(RR&"-"&$C188,UnitCostXML,MATCH(CostYear,UnitCostXMLHeaders,0),FALSE)))))) -> 1 | E188: =IF(ISBLANK(RR),"",IF(OWN<>"Railroad",0,IF(AND(SZ="Intermodal",User_TOFCPlanCode=4),0,IF(OR(SG="IA",SG="IR"),0,IF(ISNUMBER(INDEX(User_L421,E$3)),INDEX(User_L421,E$3),AdjustL421*VLOOKUP(RR&"-"&$C188,UnitCostXML,MATCH(CostYear,UnitCostXMLHeaders,0),FALSE)))))) ->  | F188: =IF(ISBLANK(RR),"",IF(OWN<>"Railroad",0,IF(AND(SZ="Intermodal",User_TOFCPlanCode=4),0,IF(OR(SG="IA",SG="IR"),0,IF(ISNUMBER(INDEX(User_L421,F$3)),INDEX(User_L421,F$3),AdjustL421*VLOOKUP(RR&"-"&$C188,UnitCostXML,MATCH(CostYear,UnitCostXMLHeaders,0),FALSE)))))) ->  | G188: =IF(ISBLANK(RR),"",IF(OWN<>"Railroad",0,IF(AND(SZ="Intermodal",User_TOFCPlanCode=4),0,IF(OR(SG="IA",SG="IR"),0,IF(ISNUMBER(INDEX(User_L421,G$3)),INDEX(User_L421,G$3),AdjustL421*VLOOKUP(RR&"-"&$C188,UnitCostXML,MATCH(CostYear,UnitCostXMLHeaders,0),FALSE)))))) ->  | H188: =IF(ISBLANK(RR),"",IF(OWN<>"Railroad",0,IF(AND(SZ="Intermodal",User_TOFCPlanCode=4),0,IF(OR(SG="IA",SG="IR"),0,IF(ISNUMBER(INDEX(User_L421,H$3)),INDEX(User_L421,H$3),AdjustL421*VLOOKUP(RR&"-"&$C188,UnitCostXML,MATCH(CostYear,UnitCostXMLHeaders,0),FALSE)))))) ->  | J188: =$C188&"="&VLOOKUP($C188,ECodeTable,MATCH("eTitle_and_Desc",ECodeHeaders,0),FALSE) -> E2L106C21=CM per I&I Switch, HOPPER - COVERED
A189: 422 | B189: CM(Y)-Industry | C189: L416*L419 | D189: =IF(ISBLANK(RR),"",Line416*Line419) -> 16 | E189: =IF(ISBLANK(RR),"",Line416*Line419) ->  | F189: =IF(ISBLANK(RR),"",Line416*Line419) ->  | G189: =IF(ISBLANK(RR),"",Line416*Line419) ->  | H189: =IF(ISBLANK(RR),"",Line416*Line419) -> 
A190: 423 | B190: CM(Y)-Interchange | C190: L417*L420 | D190: =IF(ISBLANK(RR),"",Line417*Line420) -> 0 | E190: =IF(ISBLANK(RR),"",Line417*Line420) ->  | F190: =IF(ISBLANK(RR),"",Line417*Line420) ->  | G190: =IF(ISBLANK(RR),"",Line417*Line420) ->  | H190: =IF(ISBLANK(RR),"",Line417*Line420) -> 
A191: 424 | B191: CM(Y)-I&I train | C191: L418*L421 | D191: =IF(ISBLANK(RR),"",Line418*Line421) -> 10.02024472 | E191: =IF(ISBLANK(RR),"",Line418*Line421) ->  | F191: =IF(ISBLANK(RR),"",Line418*Line421) ->  | G191: =IF(ISBLANK(RR),"",Line418*Line421) ->  | H191: =IF(ISBLANK(RR),"",Line418*Line421) -> 
A192: 425 | B192: CM(Y)-Total | C192: L422+L423+L424 | D192: =IF(ISBLANK(RR),"",IF(AND(SZ="Intermodal",User_TOFCPlanCode=4),0,IF(OR(SG="IA",SG="IR"),0,Line422+Line423+Line424))) -> 26.02024472 | E192: =IF(ISBLANK(RR),"",IF(AND(SZ="Intermodal",User_TOFCPlanCode=4),0,IF(OR(SG="IA",SG="IR"),0,Line422+Line423+Line424))) ->  | F192: =IF(ISBLANK(RR),"",IF(AND(SZ="Intermodal",User_TOFCPlanCode=4),0,IF(OR(SG="IA",SG="IR"),0,Line422+Line423+Line424))) ->  | G192: =IF(ISBLANK(RR),"",IF(AND(SZ="Intermodal",User_TOFCPlanCode=4),0,IF(OR(SG="IA",SG="IR"),0,Line422+Line423+Line424))) ->  | H192: =IF(ISBLANK(RR),"",IF(AND(SZ="Intermodal",User_TOFCPlanCode=4),0,IF(OR(SG="IA",SG="IR"),0,Line422+Line423+Line424))) -> 
A193: 426 | B193: UC per CM(Y)-OPR | C193: ="E1L2"&TEXT(CarIndex,"00")&"C4" -> E1L206C4 | D193: =IF(ISBLANK(RR),"",IF(OWN<>"Railroad",0,IF(ISNUMBER(INDEX(User_L407,D$3)),0,VLOOKUP(RR&"-"&$C193,UnitCostXML,MATCH(CostYear,UnitCostXMLHeaders,0),FALSE)))) -> 0.1083709452 | E193: =IF(ISBLANK(RR),"",IF(OWN<>"Railroad",0,IF(ISNUMBER(INDEX(User_L407,E$3)),0,VLOOKUP(RR&"-"&$C193,UnitCostXML,MATCH(CostYear,UnitCostXMLHeaders,0),FALSE)))) ->  | F193: =IF(ISBLANK(RR),"",IF(OWN<>"Railroad",0,IF(ISNUMBER(INDEX(User_L407,F$3)),0,VLOOKUP(RR&"-"&$C193,UnitCostXML,MATCH(CostYear,UnitCostXMLHeaders,0),FALSE)))) ->  | G193: =IF(ISBLANK(RR),"",IF(OWN<>"Railroad",0,IF(ISNUMBER(INDEX(User_L407,G$3)),0,VLOOKUP(RR&"-"&$C193,UnitCostXML,MATCH(CostYear,UnitCostXMLHeaders,0),FALSE)))) ->  | H193: =IF(ISBLANK(RR),"",IF(OWN<>"Railroad",0,IF(ISNUMBER(INDEX(User_L407,H$3)),0,VLOOKUP(RR&"-"&$C193,UnitCostXML,MATCH(CostYear,UnitCostXMLHeaders,0),FALSE)))) ->  | J193: =$C193&"="&VLOOKUP($C193,ECodeTable,MATCH("eTitle_and_Desc",ECodeHeaders,0),FALSE) -> E1L206C4=CM(Y), OPR Expense, Railroad-Owned, HOPPER - COVERED
A194: 427 | B194: VC-CM(Y)-OPR | C194: L425*L426 | D194: =IF(ISBLANK(RR),"",Line425*Line426) -> 2.819838513 | E194: =IF(ISBLANK(RR),"",Line425*Line426) ->  | F194: =IF(ISBLANK(RR),"",Line425*Line426) ->  | G194: =IF(ISBLANK(RR),"",Line425*Line426) ->  | H194: =IF(ISBLANK(RR),"",Line425*Line426) ->  | I194: =SUM(D194:H194) -> 2.819838513
A195: 428 | B195: UC per CM(Y)-DRL | C195: ="E1L2"&TEXT(CarIndex,"00")&"C5" -> E1L206C5 | D195: =IF(ISBLANK(RR),"",IF(OWN<>"Railroad",0,IF(ISNUMBER(INDEX(User_L407,D$3)),0,VLOOKUP(RR&"-"&$C195,UnitCostXML,MATCH(CostYear,UnitCostXMLHeaders,0),FALSE)))) -> 0.003717635553 | E195: =IF(ISBLANK(RR),"",IF(OWN<>"Railroad",0,IF(ISNUMBER(INDEX(User_L407,E$3)),0,VLOOKUP(RR&"-"&$C195,UnitCostXML,MATCH(CostYear,UnitCostXMLHeaders,0),FALSE)))) ->  | F195: =IF(ISBLANK(RR),"",IF(OWN<>"Railroad",0,IF(ISNUMBER(INDEX(User_L407,F$3)),0,VLOOKUP(RR&"-"&$C195,UnitCostXML,MATCH(CostYear,UnitCostXMLHeaders,0),FALSE)))) ->  | G195: =IF(ISBLANK(RR),"",IF(OWN<>"Railroad",0,IF(ISNUMBER(INDEX(User_L407,G$3)),0,VLOOKUP(RR&"-"&$C195,UnitCostXML,MATCH(CostYear,UnitCostXMLHeaders,0),FALSE)))) ->  | H195: =IF(ISBLANK(RR),"",IF(OWN<>"Railroad",0,IF(ISNUMBER(INDEX(User_L407,H$3)),0,VLOOKUP(RR&"-"&$C195,UnitCostXML,MATCH(CostYear,UnitCostXMLHeaders,0),FALSE)))) ->  | J195: =$C195&"="&VLOOKUP($C195,ECodeTable,MATCH("eTitle_and_Desc",ECodeHeaders,0),FALSE) -> E1L206C5=CM(Y), DRL Expense, Railroad-Owned, HOPPER - COVERED
A196: 429 | B196: VC-CM(Y)-DRL | C196: L425*L428 | D196: =IF(ISBLANK(RR),"",Line425*Line428) -> 0.09673378686 | E196: =IF(ISBLANK(RR),"",Line425*Line428) ->  | F196: =IF(ISBLANK(RR),"",Line425*Line428) ->  | G196: =IF(ISBLANK(RR),"",Line425*Line428) ->  | H196: =IF(ISBLANK(RR),"",Line425*Line428) ->  | I196: =SUM(D196:H196) -> 0.09673378686
A197: 430 | B197: UC per CM(Y)-ROI | C197: ="E1L2"&TEXT(CarIndex,"00")&"C6" -> E1L206C6 | D197: =IF(ISBLANK(RR),"",IF(OWN<>"Railroad",0,IF(ISNUMBER(INDEX(User_L407,D$3)),0,VLOOKUP(RR&"-"&$C197,UnitCostXML,MATCH(CostYear,UnitCostXMLHeaders,0),FALSE)))) -> 0.06505902476 | E197: =IF(ISBLANK(RR),"",IF(OWN<>"Railroad",0,IF(ISNUMBER(INDEX(User_L407,E$3)),0,VLOOKUP(RR&"-"&$C197,UnitCostXML,MATCH(CostYear,UnitCostXMLHeaders,0),FALSE)))) ->  | F197: =IF(ISBLANK(RR),"",IF(OWN<>"Railroad",0,IF(ISNUMBER(INDEX(User_L407,F$3)),0,VLOOKUP(RR&"-"&$C197,UnitCostXML,MATCH(CostYear,UnitCostXMLHeaders,0),FALSE)))) ->  | G197: =IF(ISBLANK(RR),"",IF(OWN<>"Railroad",0,IF(ISNUMBER(INDEX(User_L407,G$3)),0,VLOOKUP(RR&"-"&$C197,UnitCostXML,MATCH(CostYear,UnitCostXMLHeaders,0),FALSE)))) ->  | H197: =IF(ISBLANK(RR),"",IF(OWN<>"Railroad",0,IF(ISNUMBER(INDEX(User_L407,H$3)),0,VLOOKUP(RR&"-"&$C197,UnitCostXML,MATCH(CostYear,UnitCostXMLHeaders,0),FALSE)))) ->  | J197: =$C197&"="&VLOOKUP($C197,ECodeTable,MATCH("eTitle_and_Desc",ECodeHeaders,0),FALSE) -> E1L206C6=CM(Y), ROI Expense, Railroad-Owned, HOPPER - COVERED
A198: 431 | B198: VC-CM(Y)-ROI | C198: L425*L430 | D198: =IF(ISBLANK(RR),"",Line425*Line430) -> 1.692851745 | E198: =IF(ISBLANK(RR),"",Line425*Line430) ->  | F198: =IF(ISBLANK(RR),"",Line425*Line430) ->  | G198: =IF(ISBLANK(RR),"",Line425*Line430) ->  | H198: =IF(ISBLANK(RR),"",Line425*Line430) ->  | I198: =SUM(D198:H198) -> 1.692851745
A199: HDR | B199: Railroad Owned Cars - Time Costs | C199: Source | D199: =IF(ISBLANK(RR),"",RR) -> WEST | E199: =IF(ISBLANK(RR),"",RR) ->  | F199: =IF(ISBLANK(RR),"",RR) ->  | G199: =IF(ISBLANK(RR),"",RR) ->  | H199: =IF(ISBLANK(RR),"",RR) ->  | I199: =I$4 -> Total
A200: 432 | B200: Actual charge per day | C200: [User] | D200: =IF(ISBLANK(RR),"",IF(ISNUMBER(INDEX(User_L432,D$3)),INDEX(User_L432,D$3),0)) -> 0 | E200: =IF(ISBLANK(RR),"",IF(ISNUMBER(INDEX(User_L432,E$3)),INDEX(User_L432,E$3),0)) ->  | F200: =IF(ISBLANK(RR),"",IF(ISNUMBER(INDEX(User_L432,F$3)),INDEX(User_L432,F$3),0)) ->  | G200: =IF(ISBLANK(RR),"",IF(ISNUMBER(INDEX(User_L432,G$3)),INDEX(User_L432,G$3),0)) ->  | H200: =IF(ISBLANK(RR),"",IF(ISNUMBER(INDEX(User_L432,H$3)),INDEX(User_L432,H$3),0)) -> 
A201: 433 | B201: Total car days | C201: L436+L451 | D201: =IF(ISBLANK(RR),"",IF(ISNUMBER(INDEX(User_L432,D$3)),Line436+Line451,0)) -> 0 | E201: =IF(ISBLANK(RR),"",IF(ISNUMBER(INDEX(User_L432,E$3)),Line436+Line451,0)) ->  | F201: =IF(ISBLANK(RR),"",IF(ISNUMBER(INDEX(User_L432,F$3)),Line436+Line451,0)) ->  | G201: =IF(ISBLANK(RR),"",IF(ISNUMBER(INDEX(User_L432,G$3)),Line436+Line451,0)) ->  | H201: =IF(ISBLANK(RR),"",IF(ISNUMBER(INDEX(User_L432,H$3)),Line436+Line451,0)) -> 
A202: 434 | B202: VC-CD-Total | C202: L408*L432*L433; L434 used only if L432 used | D202: =IF(ISBLANK(RR),"",IF(ISNUMBER(INDEX(User_L432,D$3)),Line408*Line432*Line433,0)) -> 0 | E202: =IF(ISBLANK(RR),"",IF(ISNUMBER(INDEX(User_L432,E$3)),Line408*Line432*Line433,0)) ->  | F202: =IF(ISBLANK(RR),"",IF(ISNUMBER(INDEX(User_L432,F$3)),Line408*Line432*Line433,0)) ->  | G202: =IF(ISBLANK(RR),"",IF(ISNUMBER(INDEX(User_L432,G$3)),Line408*Line432*Line433,0)) ->  | H202: =IF(ISBLANK(RR),"",IF(ISNUMBER(INDEX(User_L432,H$3)),Line408*Line432*Line433,0)) -> 
... 296 more rows

Sheet DetailedParameters
A1: Surface Transportation Board - Railroad Cost Program - Detailed Parameters
C3: 1 | D3: 2 | E3: 3 | F3: 4 | G3: 5 | I3: Default Values of Detailed Parameters
A4: General | B4: Source | C4: =IF(ISBLANK(INDEX(RR,C$3)),"",INDEX(RR,C$3)) -> WEST | D4: =IF(ISBLANK(INDEX(RR,D$3)),"",INDEX(RR,D$3)) ->  | E4: =IF(ISBLANK(INDEX(RR,E$3)),"",INDEX(RR,E$3)) ->  | F4: =IF(ISBLANK(INDEX(RR,F$3)),"",INDEX(RR,F$3)) ->  | G4: =IF(ISBLANK(INDEX(RR,G$3)),"",INDEX(RR,G$3)) ->  | H4: Line | I4: =IF(ISBLANK(C$4),"",C$4) -> WEST | J4: =IF(ISBLANK(D$4),"",D$4) -> 
A5: Circuity | B5: =RailroadCostProgram!C25 -> E2L106C5 | C5: 1 | H5: L102 | I5: =IF(ISBLANK(INDEX(RR,C$3)),"",IF(OR(INDEX(SG,C$3)="IA",INDEX(SG,C$3)="IR"),0,INDEX(AdjustL102,C$3)*VLOOKUP(INDEX(RR,C$3)&"-"&$B5,UnitCostXML,MATCH(CostYear,UnitCostXMLHeaders,0),FALSE))) -> 1.126 | J5: =IF(ISBLANK(INDEX(RR,D$3)),"",IF(OR(INDEX(SG,D$3)="IA",INDEX(SG,D$3)="IR"),0,INDEX(AdjustL102,D$3)*VLOOKUP(INDEX(RR,D$3)&"-"&$B5,UnitCostXML,MATCH(CostYear,UnitCostXMLHeaders,0),FALSE))) ->  | K5: =IF(ISBLANK(INDEX(RR,E$3)),"",IF(OR(INDEX(SG,E$3)="IA",INDEX(SG,E$3)="IR"),0,INDEX(AdjustL102,E$3)*VLOOKUP(INDEX(RR,E$3)&"-"&$B5,UnitCostXML,MATCH(CostYear,UnitCostXMLHeaders,0),FALSE))) ->  | L5: =IF(ISBLANK(INDEX(RR,F$3)),"",IF(OR(INDEX(SG,F$3)="IA",INDEX(SG,F$3)="IR"),0,INDEX(AdjustL102,F$3)*VLOOKUP(INDEX(RR,F$3)&"-"&$B5,UnitCostXML,MATCH(CostYear,UnitCostXMLHeaders,0),FALSE))) ->  | M5: =IF(ISBLANK(INDEX(RR,G$3)),"",IF(OR(INDEX(SG,G$3)="IA",INDEX(SG,G$3)="IR"),0,INDEX(AdjustL102,G$3)*VLOOKUP(INDEX(RR,G$3)&"-"&$B5,UnitCostXML,MATCH(CostYear,UnitCostXMLHeaders,0),FALSE))) -> 
A6: Empty/Loaded Ratio | B6: =RailroadCostProgram!C28 -> E2L106C2 | H6: L105 | I6: =IF(ISBLANK(INDEX(RR,C$3)),"",INDEX(AdjustL105,C$3)*VLOOKUP(INDEX(RR,C$3)&"-"&$B6,UnitCostXML,MATCH(CostYear,UnitCostXMLHeaders,0),FALSE)) -> 2.004048943 | J6: =IF(ISBLANK(INDEX(RR,D$3)),"",INDEX(AdjustL105,D$3)*VLOOKUP(INDEX(RR,D$3)&"-"&$B6,UnitCostXML,MATCH(CostYear,UnitCostXMLHeaders,0),FALSE)) ->  | K6: =IF(ISBLANK(INDEX(RR,E$3)),"",INDEX(AdjustL105,E$3)*VLOOKUP(INDEX(RR,E$3)&"-"&$B6,UnitCostXML,MATCH(CostYear,UnitCostXMLHeaders,0),FALSE)) ->  | L6: =IF(ISBLANK(INDEX(RR,F$3)),"",INDEX(AdjustL105,F$3)*VLOOKUP(INDEX(RR,F$3)&"-"&$B6,UnitCostXML,MATCH(CostYear,UnitCostXMLHeaders,0),FALSE)) ->  | M6: =IF(ISBLANK(INDEX(RR,G$3)),"",INDEX(AdjustL105,G$3)*VLOOKUP(INDEX(RR,G$3)&"-"&$B6,UnitCostXML,MATCH(CostYear,UnitCostXMLHeaders,0),FALSE)) -> 
A7: General Overhead Ratio | B7: =RailroadCostProgram!C169 -> E2L219C1 | H7: L403/L408 | I7: =IF(ISBLANK(INDEX(RR,C$3)),"",VLOOKUP(INDEX(RR,C$3)&"-"&$B7,UnitCostXML,MATCH(CostYear,UnitCostXMLHeaders,0),FALSE)) -> 1.073684793 | J7: =IF(ISBLANK(INDEX(RR,D$3)),"",VLOOKUP(INDEX(RR,D$3)&"-"&$B7,UnitCostXML,MATCH(CostYear,UnitCostXMLHeaders,0),FALSE)) ->  | K7: =IF(ISBLANK(INDEX(RR,E$3)),"",VLOOKUP(INDEX(RR,E$3)&"-"&$B7,UnitCostXML,MATCH(CostYear,UnitCostXMLHeaders,0),FALSE)) ->  | L7: =IF(ISBLANK(INDEX(RR,F$3)),"",VLOOKUP(INDEX(RR,F$3)&"-"&$B7,UnitCostXML,MATCH(CostYear,UnitCostXMLHeaders,0),FALSE)) ->  | M7: =IF(ISBLANK(INDEX(RR,G$3)),"",VLOOKUP(INDEX(RR,G$3)&"-"&$B7,UnitCostXML,MATCH(CostYear,UnitCostXMLHeaders,0),FALSE)) -> 
A8: Tare Weight | B8: =RailroadCostProgram!C48 -> E2L106C1 | H8: L212 | I8: =IF(ISBLANK(INDEX(RR,C$3)),"",IF(AND(SZ="Intermodal",User_TOFCPlanCode=4),0,VLOOKUP(INDEX(RR,C$3)&"-"&$B8,UnitCostXML,MATCH(CostYear,UnitCostXMLHeaders,0),FALSE))) -> 31
A11: Intermodal | B11: Source | C11: =C$4 -> WEST | H11: Line | I11: Intermodal ORR
A12: Number of TCUs | B12: =RailroadCostProgram!C38 -> [User] | H12: L203 | I12: =IF(SZ<>"Intermodal","n/a",NC) -> n/a
A13: Number of TCUs per Flat Car | B13: =RailroadCostProgram!C37 -> E2L202C1 | H13: L202 | I13: =IF(ISBLANK(INDEX(RR,C$3)),"",IF(SZ<>"Intermodal","n/a",IF(User_TOFCPlanCode=4,1,VLOOKUP(IF(ISTEXT(User_IntermodalORR),User_IntermodalORR,INDEX(RR,C$3))&"-"&$B13,UnitCostXML,MATCH(CostYear,UnitCostXMLHeaders,0),FALSE)))) -> n/a
A14: TOFC Plan Code | B14: =RailroadCostProgram!C348 -> [User] | H14: L569 | I14: =IF(SZ<>"Intermodal","n/a",1) -> n/a
A15: Tare Weight of TCU | B15: =RailroadCostProgram!C50 -> E2L204C1 | H15: L214 | I15: =IF(ISBLANK(INDEX(RR,C$3)),"",IF(SZ<>"Intermodal","n/a",IF(User_TOFCPlanCode=4,13.9,VLOOKUP(IF(ISTEXT(User_IntermodalORR),User_IntermodalORR,INDEX(RR,C$3))&"-"&$B15,UnitCostXML,MATCH(CostYear,UnitCostXMLHeaders,0),FALSE)))) -> n/a
A16: E/L Ratio of TCU | B16: =RailroadCostProgram!C51 -> E2L207C1 | H16: L215 | I16: =IF(ISBLANK(INDEX(RR,C$3)),"",IF(SZ<>"Intermodal","n/a",VLOOKUP(INDEX(RR,C$3)&"-"&$B16,UnitCostXML,MATCH(CostYear,UnitCostXMLHeaders,0),FALSE))) -> n/a
A17: Line Haul Miles per TCU Day | B17: E2L205C1 | H17: L549 | I17: =IF(ISBLANK(INDEX(RR,C$3)),"",IF(SZ<>"Intermodal","n/a",VLOOKUP(INDEX(RR,C$3)&"-"&$B17,UnitCostXML,MATCH(CostYear,UnitCostXMLHeaders,0),FALSE))) -> n/a
A18: TCU Days per O/T Event | B18: =RailroadCostProgram!C330 -> E2L206C1 | H18: L550 | I18: =IF(ISBLANK(INDEX(RR,C$3)),"",IF(SZ<>"Intermodal","n/a",VLOOKUP(INDEX(RR,C$3)&"-"&$B18,UnitCostXML,MATCH(CostYear,UnitCostXMLHeaders,0),FALSE))) -> n/a
A19: Refrigerated TCU | B19: [User] | H19: L214 | I19: =IF(SZ<>"Intermodal","n/a","N") -> n/a
A20: Number of MVUs | B20: =RailroadCostProgram!C307 -> [User] | H20: L529 | I20: =IF(ISBLANK(INDEX(RR,C$3)),"",IF(CarIndex<>12,"n/a",(WT/2)*NC)) -> n/a
A23: Switching | B23: Source | C23: =C$4 -> WEST | D23: =D$4 ->  | H23: Line | I23: WEST
A24: SEMs per Industry Switch | B24: =RailroadCostProgram!C131 -> E2L106C25 | H24: L301 | I24: =IF(ISBLANK(INDEX(RR,C$3)),"",IF(OR(INDEX(SG,C$3)="IA",INDEX(SG,C$3)="IR"),0,INDEX(AdjustL301,C$3)*VLOOKUP(INDEX(RR,C$3)&"-"&$B24,UnitCostXML,MATCH(CostYear,UnitCostXMLHeaders,0),FALSE))) -> 4.742663379 | J24: =IF(ISBLANK(INDEX(RR,D$3)),"",IF(OR(INDEX(SG,D$3)="IA",INDEX(SG,D$3)="IR"),0,INDEX(AdjustL301,D$3)*VLOOKUP(INDEX(RR,D$3)&"-"&$B24,UnitCostXML,MATCH(CostYear,UnitCostXMLHeaders,0),FALSE))) ->  | K24: =IF(ISBLANK(INDEX(RR,E$3)),"",IF(OR(INDEX(SG,E$3)="IA",INDEX(SG,E$3)="IR"),0,INDEX(AdjustL301,E$3)*VLOOKUP(INDEX(RR,E$3)&"-"&$B24,UnitCostXML,MATCH(CostYear,UnitCostXMLHeaders,0),FALSE))) ->  | L24: =IF(ISBLANK(INDEX(RR,F$3)),"",IF(OR(INDEX(SG,F$3)="IA",INDEX(SG,F$3)="IR"),0,INDEX(AdjustL301,F$3)*VLOOKUP(INDEX(RR,F$3)&"-"&$B24,UnitCostXML,MATCH(CostYear,UnitCostXMLHeaders,0),FALSE))) ->  | M24: =IF(ISBLANK(INDEX(RR,G$3)),"",IF(OR(INDEX(SG,G$3)="IA",INDEX(SG,G$3)="IR"),0,INDEX(AdjustL301,G$3)*VLOOKUP(INDEX(RR,G$3)&"-"&$B24,UnitCostXML,MATCH(CostYear,UnitCostXMLHeaders,0),FALSE))) -> 
A25: SEMs per Interchange Switch | B25: =RailroadCostProgram!C132 -> E2L106C26 | H25: L302 | I25: =IF(ISBLANK(INDEX(RR,C$3)),"",IF(OR(INDEX(SG,C$3)="IA",INDEX(SG,C$3)="IR"),0,INDEX(AdjustL302,C$3)*VLOOKUP(INDEX(RR,C$3)&"-"&$B25,UnitCostXML,MATCH(CostYear,UnitCostXMLHeaders,0),FALSE))) -> 2.608464858 | J25: =IF(ISBLANK(INDEX(RR,D$3)),"",IF(OR(INDEX(SG,D$3)="IA",INDEX(SG,D$3)="IR"),0,INDEX(AdjustL302,D$3)*VLOOKUP(INDEX(RR,D$3)&"-"&$B25,UnitCostXML,MATCH(CostYear,UnitCostXMLHeaders,0),FALSE))) ->  | K25: =IF(ISBLANK(INDEX(RR,E$3)),"",IF(OR(INDEX(SG,E$3)="IA",INDEX(SG,E$3)="IR"),0,INDEX(AdjustL302,E$3)*VLOOKUP(INDEX(RR,E$3)&"-"&$B25,UnitCostXML,MATCH(CostYear,UnitCostXMLHeaders,0),FALSE))) ->  | L25: =IF(ISBLANK(INDEX(RR,F$3)),"",IF(OR(INDEX(SG,F$3)="IA",INDEX(SG,F$3)="IR"),0,INDEX(AdjustL302,F$3)*VLOOKUP(INDEX(RR,F$3)&"-"&$B25,UnitCostXML,MATCH(CostYear,UnitCostXMLHeaders,0),FALSE))) ->  | M25: =IF(ISBLANK(INDEX(RR,G$3)),"",IF(OR(INDEX(SG,G$3)="IA",INDEX(SG,G$3)="IR"),0,INDEX(AdjustL302,G$3)*VLOOKUP(INDEX(RR,G$3)&"-"&$B25,UnitCostXML,MATCH(CostYear,UnitCostXMLHeaders,0),FALSE))) -> 
A26: SEMs per I&I Switch | B26: =RailroadCostProgram!C133 -> E2L106C29 | H26: L303 | I26: =IF(ISBLANK(INDEX(RR,C$3)),"",IF(OR(INDEX(SG,C$3)="IA",INDEX(SG,C$3)="IR"),0,INDEX(AdjustL303,C$3)*VLOOKUP(INDEX(RR,C$3)&"-"&$B26,UnitCostXML,MATCH(CostYear,UnitCostXMLHeaders,0),FALSE))) -> 1.185665845 | J26: =IF(ISBLANK(INDEX(RR,D$3)),"",IF(OR(INDEX(SG,D$3)="IA",INDEX(SG,D$3)="IR"),0,INDEX(AdjustL303,D$3)*VLOOKUP(INDEX(RR,D$3)&"-"&$B26,UnitCostXML,MATCH(CostYear,UnitCostXMLHeaders,0),FALSE))) ->  | K26: =IF(ISBLANK(INDEX(RR,E$3)),"",IF(OR(INDEX(SG,E$3)="IA",INDEX(SG,E$3)="IR"),0,INDEX(AdjustL303,E$3)*VLOOKUP(INDEX(RR,E$3)&"-"&$B26,UnitCostXML,MATCH(CostYear,UnitCostXMLHeaders,0),FALSE))) ->  | L26: =IF(ISBLANK(INDEX(RR,F$3)),"",IF(OR(INDEX(SG,F$3)="IA",INDEX(SG,F$3)="IR"),0,INDEX(AdjustL303,F$3)*VLOOKUP(INDEX(RR,F$3)&"-"&$B26,UnitCostXML,MATCH(CostYear,UnitCostXMLHeaders,0),FALSE))) ->  | M26: =IF(ISBLANK(INDEX(RR,G$3)),"",IF(OR(INDEX(SG,G$3)="IA",INDEX(SG,G$3)="IR"),0,INDEX(AdjustL303,G$3)*VLOOKUP(INDEX(RR,G$3)&"-"&$B26,UnitCostXML,MATCH(CostYear,UnitCostXMLHeaders,0),FALSE))) -> 
A27: Spotted-to-Pulled Ratio | B27: =RailroadCostProgram!C134 -> E2L106C8 | H27: L304 | I27: =IF(ISBLANK(INDEX(RR,C$3)),"",VLOOKUP(INDEX(RR,C$3)&"-"&$B27,UnitCostXML,MATCH(CostYear,UnitCostXMLHeaders,0),FALSE)) -> 2 | J27: =IF(ISBLANK(INDEX(RR,D$3)),"",VLOOKUP(INDEX(RR,D$3)&"-"&$B27,UnitCostXML,MATCH(CostYear,UnitCostXMLHeaders,0),FALSE)) ->  | K27: =IF(ISBLANK(INDEX(RR,E$3)),"",VLOOKUP(INDEX(RR,E$3)&"-"&$B27,UnitCostXML,MATCH(CostYear,UnitCostXMLHeaders,0),FALSE)) ->  | L27: =IF(ISBLANK(INDEX(RR,F$3)),"",VLOOKUP(INDEX(RR,F$3)&"-"&$B27,UnitCostXML,MATCH(CostYear,UnitCostXMLHeaders,0),FALSE)) ->  | M27: =IF(ISBLANK(INDEX(RR,G$3)),"",VLOOKUP(INDEX(RR,G$3)&"-"&$B27,UnitCostXML,MATCH(CostYear,UnitCostXMLHeaders,0),FALSE)) -> 
A28: Cars Given Industry Switch | B28: =RailroadCostProgram!C135 -> L252*L304; TOFC:L251*L304 | H28: L305 | I28: =IF(ISBLANK(INDEX(RR,C$3)),"",IF(SZ<>"Intermodal",INDEX(Line252,C$3)*INDEX(Line304,C$3),INDEX(Line251,C$3)*INDEX(Line304,C$3))) -> 4 | J28: =IF(ISBLANK(INDEX(RR,D$3)),"",IF(SZ<>"Intermodal",INDEX(Line252,D$3)*INDEX(Line304,D$3),INDEX(Line251,D$3)*INDEX(Line304,D$3))) ->  | K28: =IF(ISBLANK(INDEX(RR,E$3)),"",IF(SZ<>"Intermodal",INDEX(Line252,E$3)*INDEX(Line304,E$3),INDEX(Line251,E$3)*INDEX(Line304,E$3))) ->  | L28: =IF(ISBLANK(INDEX(RR,F$3)),"",IF(SZ<>"Intermodal",INDEX(Line252,F$3)*INDEX(Line304,F$3),INDEX(Line251,F$3)*INDEX(Line304,F$3))) ->  | M28: =IF(ISBLANK(INDEX(RR,G$3)),"",IF(SZ<>"Intermodal",INDEX(Line252,G$3)*INDEX(Line304,G$3),INDEX(Line251,G$3)*INDEX(Line304,G$3))) -> 
A29: Cars Given Interchange Switch | B29: =RailroadCostProgram!C138 -> L105*L201*L307; TOFC:L105*L204*L307 | H29: L308 | I29: =IF(ISBLANK(INDEX(RR,C$3)),"",IF(SZ<>"Intermodal",INDEX(Line105,C$3)*INDEX(Line201,C$3)*INDEX(Line307,C$3),INDEX(Line105,C$3)*INDEX(Line204,C$3)*INDEX(Line307,C$3))) -> 0 | J29: =IF(ISBLANK(INDEX(RR,D$3)),"",IF(SZ<>"Intermodal",INDEX(Line105,D$3)*INDEX(Line201,D$3)*INDEX(Line307,D$3),INDEX(Line105,D$3)*INDEX(Line204,D$3)*INDEX(Line307,D$3))) ->  | K29: =IF(ISBLANK(INDEX(RR,E$3)),"",IF(SZ<>"Intermodal",INDEX(Line105,E$3)*INDEX(Line201,E$3)*INDEX(Line307,E$3),INDEX(Line105,E$3)*INDEX(Line204,E$3)*INDEX(Line307,E$3))) ->  | L29: =IF(ISBLANK(INDEX(RR,F$3)),"",IF(SZ<>"Intermodal",INDEX(Line105,F$3)*INDEX(Line201,F$3)*INDEX(Line307,F$3),INDEX(Line105,F$3)*INDEX(Line204,F$3)*INDEX(Line307,F$3))) ->  | M29: =IF(ISBLANK(INDEX(RR,G$3)),"",IF(SZ<>"Intermodal",INDEX(Line105,G$3)*INDEX(Line201,G$3)*INDEX(Line307,G$3),INDEX(Line105,G$3)*INDEX(Line204,G$3)*INDEX(Line307,G$3))) -> 
A30: Miles Between I&I Switches | B30: =RailroadCostProgram!C139 -> E2L106C23 | H30: L309 | I30: =IF(ISBLANK(INDEX(RR,C$3)),"",VLOOKUP(INDEX(RR,C$3)&"-"&$B30,UnitCostXML,MATCH(CostYear,UnitCostXMLHeaders,0),FALSE)) -> 200 | J30: =IF(ISBLANK(INDEX(RR,D$3)),"",VLOOKUP(INDEX(RR,D$3)&"-"&$B30,UnitCostXML,MATCH(CostYear,UnitCostXMLHeaders,0),FALSE)) ->  | K30: =IF(ISBLANK(INDEX(RR,E$3)),"",VLOOKUP(INDEX(RR,E$3)&"-"&$B30,UnitCostXML,MATCH(CostYear,UnitCostXMLHeaders,0),FALSE)) ->  | L30: =IF(ISBLANK(INDEX(RR,F$3)),"",VLOOKUP(INDEX(RR,F$3)&"-"&$B30,UnitCostXML,MATCH(CostYear,UnitCostXMLHeaders,0),FALSE)) ->  | M30: =IF(ISBLANK(INDEX(RR,G$3)),"",VLOOKUP(INDEX(RR,G$3)&"-"&$B30,UnitCostXML,MATCH(CostYear,UnitCostXMLHeaders,0),FALSE)) -> 
A31: Cars Given I&I Switch | B31: =RailroadCostProgram!C140 -> L205/L309 | H31: L310 | I31: =IF(ISBLANK(INDEX(RR,C$3)),"",INDEX(Line205,C$3)/INDEX(Line309,C$3)) -> 10.02024472 | J31: =IF(ISBLANK(INDEX(RR,D$3)),"",INDEX(Line205,D$3)/INDEX(Line309,D$3)) ->  | K31: =IF(ISBLANK(INDEX(RR,E$3)),"",INDEX(Line205,E$3)/INDEX(Line309,E$3)) ->  | L31: =IF(ISBLANK(INDEX(RR,F$3)),"",INDEX(Line205,F$3)/INDEX(Line309,F$3)) ->  | M31: =IF(ISBLANK(INDEX(RR,G$3)),"",INDEX(Line205,G$3)/INDEX(Line309,G$3)) -> 
A32: Cars Given Intraterminal Switch | B32: =RailroadCostProgram!C152 -> [User] | H32: L321 | I32: =IF(ISBLANK(INDEX(RR,C$3)),"",IF(INDEX(SG,C$3)<>"IA",0,NC)) -> 0 | J32: =IF(ISBLANK(INDEX(RR,D$3)),"",IF(INDEX(SG,D$3)<>"IA",0,NC)) ->  | K32: =IF(ISBLANK(INDEX(RR,E$3)),"",IF(INDEX(SG,E$3)<>"IA",0,NC)) ->  | L32: =IF(ISBLANK(INDEX(RR,F$3)),"",IF(INDEX(SG,F$3)<>"IA",0,NC)) ->  | M32: =IF(ISBLANK(INDEX(RR,G$3)),"",IF(INDEX(SG,G$3)<>"IA",0,NC)) -> 
A33: Cars Given Interterminal Switch | B33: =RailroadCostProgram!C153 -> [User] | H33: L322 | I33: =IF(ISBLANK(INDEX(RR,C$3)),"",IF(INDEX(SG,C$3)<>"IR",0,NC)) -> 0 | J33: =IF(ISBLANK(INDEX(RR,D$3)),"",IF(INDEX(SG,D$3)<>"IR",0,NC)) ->  | K33: =IF(ISBLANK(INDEX(RR,E$3)),"",IF(INDEX(SG,E$3)<>"IR",0,NC)) ->  | L33: =IF(ISBLANK(INDEX(RR,F$3)),"",IF(INDEX(SG,F$3)<>"IR",0,NC)) ->  | M33: =IF(ISBLANK(INDEX(RR,G$3)),"",IF(INDEX(SG,G$3)<>"IR",0,NC)) -> 
A34: SEMs per Intraterminal Switch | B34: =RailroadCostProgram!C156 -> E2L106C27 | H34: L325 | I34: =IF(ISBLANK(INDEX(RR,C$3)),"",IF(INDEX(SG,C$3)<>"IA",0,INDEX(AdjustL325,C$3)*VLOOKUP(INDEX(RR,C$3)&"-"&$B34,UnitCostXML,MATCH(CostYear,UnitCostXMLHeaders,0),FALSE))) -> 0 | J34: =IF(ISBLANK(INDEX(RR,D$3)),"",IF(INDEX(SG,D$3)<>"IA",0,INDEX(AdjustL325,D$3)*VLOOKUP(INDEX(RR,D$3)&"-"&$B34,UnitCostXML,MATCH(CostYear,UnitCostXMLHeaders,0),FALSE))) ->  | K34: =IF(ISBLANK(INDEX(RR,E$3)),"",IF(INDEX(SG,E$3)<>"IA",0,INDEX(AdjustL325,E$3)*VLOOKUP(INDEX(RR,E$3)&"-"&$B34,UnitCostXML,MATCH(CostYear,UnitCostXMLHeaders,0),FALSE))) ->  | L34: =IF(ISBLANK(INDEX(RR,F$3)),"",IF(INDEX(SG,F$3)<>"IA",0,INDEX(AdjustL325,F$3)*VLOOKUP(INDEX(RR,F$3)&"-"&$B34,UnitCostXML,MATCH(CostYear,UnitCostXMLHeaders,0),FALSE))) ->  | M34: =IF(ISBLANK(INDEX(RR,G$3)),"",IF(INDEX(SG,G$3)<>"IA",0,INDEX(AdjustL325,G$3)*VLOOKUP(INDEX(RR,G$3)&"-"&$B34,UnitCostXML,MATCH(CostYear,UnitCostXMLHeaders,0),FALSE))) -> 
A35: SEMs per Interterminal Switch | B35: =RailroadCostProgram!C157 -> E2L106C28 | H35: L326 | I35: =IF(ISBLANK(INDEX(RR,C$3)),"",IF(INDEX(SG,C$3)<>"IR",0,INDEX(AdjustL326,C$3)*VLOOKUP(INDEX(RR,C$3)&"-"&$B35,UnitCostXML,MATCH(CostYear,UnitCostXMLHeaders,0),FALSE))) -> 0 | J35: =IF(ISBLANK(INDEX(RR,D$3)),"",IF(INDEX(SG,D$3)<>"IR",0,INDEX(AdjustL326,D$3)*VLOOKUP(INDEX(RR,D$3)&"-"&$B35,UnitCostXML,MATCH(CostYear,UnitCostXMLHeaders,0),FALSE))) ->  | K35: =IF(ISBLANK(INDEX(RR,E$3)),"",IF(INDEX(SG,E$3)<>"IR",0,INDEX(AdjustL326,E$3)*VLOOKUP(INDEX(RR,E$3)&"-"&$B35,UnitCostXML,MATCH(CostYear,UnitCostXMLHeaders,0),FALSE))) ->  | L35: =IF(ISBLANK(INDEX(RR,F$3)),"",IF(INDEX(SG,F$3)<>"IR",0,INDEX(AdjustL326,F$3)*VLOOKUP(INDEX(RR,F$3)&"-"&$B35,UnitCostXML,MATCH(CostYear,UnitCostXMLHeaders,0),FALSE))) ->  | M35: =IF(ISBLANK(INDEX(RR,G$3)),"",IF(INDEX(SG,G$3)<>"IR",0,INDEX(AdjustL326,G$3)*VLOOKUP(INDEX(RR,G$3)&"-"&$B35,UnitCostXML,MATCH(CostYear,UnitCostXMLHeaders,0),FALSE))) -> 
A38: Train Statistics | B38: Source | C38: =C$4 -> WEST | D38: =D$4 ->  | H38: Line | I38: WEST
A39: Average Locomotives - Unit | B39: =RailroadCostProgram!C63 -> E2L208C1 | H39: L226 | I39: =IF(ISBLANK(INDEX(RR,C$3)),"",VLOOKUP(INDEX(RR,C$3)&"-"&$B39,UnitCostXML,MATCH(CostYear,UnitCostXMLHeaders,0),FALSE)) -> 3.309273883
A40: Average Locomotives - Way | B40: =RailroadCostProgram!C64 -> E2L209C1 | H40: L227 | I40: 2.064256012
A41: Average Locomotives - Thru | B41: =RailroadCostProgram!C65 -> E2L210C1 | H41: L228 | I41: 3.333558035
A42: Unit Train Weight | B42: =RailroadCostProgram!C69 -> E2L211C1*L105 | H42: L232 | I42: =IF(ISBLANK(INDEX(RR,C$3)),"",INDEX(Line105,C$3)*VLOOKUP(INDEX(RR,C$3)&"-"&LEFT($B42,8),UnitCostXML,MATCH(CostYear,UnitCostXMLHeaders,0),FALSE)) -> 20336.68172
A43: Way Train Weight | B43: =RailroadCostProgram!C70 -> E2L212C1*L105 | H43: L233 | I43: 5687.13142
A44: Thru Train Weight | B44: =RailroadCostProgram!C71 -> E2L213C1*L105 | H44: L234 | I44: 14825.54282
A45: Shipment Share - Unit Train Miles | B45: =RailroadCostProgram!C107 -> L108 | H45: L269 | I45: =IF(ISBLANK(INDEX(RR,C$3)),"",IF(SZ<>"Unit",0,INDEX(Line108,C$3))) -> 0 | J45: =IF(ISBLANK(INDEX(RR,D$3)),"",IF(SZ<>"Unit",0,INDEX(Line108,D$3))) ->  | K45: =IF(ISBLANK(INDEX(RR,E$3)),"",IF(SZ<>"Unit",0,INDEX(Line108,E$3))) ->  | L45: =IF(ISBLANK(INDEX(RR,F$3)),"",IF(SZ<>"Unit",0,INDEX(Line108,F$3))) ->  | M45: =IF(ISBLANK(INDEX(RR,G$3)),"",IF(SZ<>"Unit",0,INDEX(Line108,G$3))) -> 
A46: Shipment Share - Way Train Miles | B46: =RailroadCostProgram!C108 -> L109*L237 | H46: L270 | I46: =IF(ISBLANK(INDEX(RR,C$3)),"",IF(SZ="Unit",0,INDEX(Line109,C$3)*INDEX(Line237,C$3))) -> 0.787036264 | J46: =IF(ISBLANK(INDEX(RR,D$3)),"",IF(SZ="Unit",0,INDEX(Line109,D$3)*INDEX(Line237,D$3))) ->  | K46: =IF(ISBLANK(INDEX(RR,E$3)),"",IF(SZ="Unit",0,INDEX(Line109,E$3)*INDEX(Line237,E$3))) ->  | L46: =IF(ISBLANK(INDEX(RR,F$3)),"",IF(SZ="Unit",0,INDEX(Line109,F$3)*INDEX(Line237,F$3))) ->  | M46: =IF(ISBLANK(INDEX(RR,G$3)),"",IF(SZ="Unit",0,INDEX(Line109,G$3)*INDEX(Line237,G$3))) -> 
A47: Shipment Share - Thru Train Miles | B47: =RailroadCostProgram!C109 -> L110*L238 | H47: L271 | I47: =IF(ISBLANK(INDEX(RR,C$3)),"",IF(SZ="Unit",0,INDEX(Line110,C$3)*INDEX(Line238,C$3))) -> 18.90996622 | J47: =IF(ISBLANK(INDEX(RR,D$3)),"",IF(SZ="Unit",0,INDEX(Line110,D$3)*INDEX(Line238,D$3))) ->  | K47: =IF(ISBLANK(INDEX(RR,E$3)),"",IF(SZ="Unit",0,INDEX(Line110,E$3)*INDEX(Line238,E$3))) ->  | L47: =IF(ISBLANK(INDEX(RR,F$3)),"",IF(SZ="Unit",0,INDEX(Line110,F$3)*INDEX(Line238,F$3))) ->  | M47: =IF(ISBLANK(INDEX(RR,G$3)),"",IF(SZ="Unit",0,INDEX(Line110,G$3)*INDEX(Line238,G$3))) -> 
A48: Crew Wages - Unit | B48: =RailroadCostProgram!C111 -> [User] | H48: L273
A49: Crew Wages - Way | B49: =RailroadCostProgram!C112 -> [User] | H49: L274
A50: Crew Wages - Thru | B50: =RailroadCostProgram!C113 -> [User] | H50: L275
A53: Freight Car Miles | B53: Source | C53: =C$4 -> WEST | D53: =D$4 ->  | H53: Line | I53: WEST
A54: Car-Miles per Industry Switch | B54: =RailroadCostProgram!C186 -> E2L106C17 | H54: L419 | I54: =IF(ISBLANK(INDEX(RR,C$3)),"",IF(OR(INDEX(SG,C$3)="IA",INDEX(SG,C$3)="IR"),0,INDEX(AdjustL419,C$3)*VLOOKUP(INDEX(RR,C$3)&"-"&$B54,UnitCostXML,MATCH(CostYear,UnitCostXMLHeaders,0),FALSE))) -> 4 | J54: =IF(ISBLANK(INDEX(RR,D$3)),"",IF(OR(INDEX(SG,D$3)="IA",INDEX(SG,D$3)="IR"),0,INDEX(AdjustL419,D$3)*VLOOKUP(INDEX(RR,D$3)&"-"&$B54,UnitCostXML,MATCH(CostYear,UnitCostXMLHeaders,0),FALSE))) ->  | K54: =IF(ISBLANK(INDEX(RR,E$3)),"",IF(OR(INDEX(SG,E$3)="IA",INDEX(SG,E$3)="IR"),0,INDEX(AdjustL419,E$3)*VLOOKUP(INDEX(RR,E$3)&"-"&$B54,UnitCostXML,MATCH(CostYear,UnitCostXMLHeaders,0),FALSE))) ->  | L54: =IF(ISBLANK(INDEX(RR,F$3)),"",IF(OR(INDEX(SG,F$3)="IA",INDEX(SG,F$3)="IR"),0,INDEX(AdjustL419,F$3)*VLOOKUP(INDEX(RR,F$3)&"-"&$B54,UnitCostXML,MATCH(CostYear,UnitCostXMLHeaders,0),FALSE))) ->  | M54: =IF(ISBLANK(INDEX(RR,G$3)),"",IF(OR(INDEX(SG,G$3)="IA",INDEX(SG,G$3)="IR"),0,INDEX(AdjustL419,G$3)*VLOOKUP(INDEX(RR,G$3)&"-"&$B54,UnitCostXML,MATCH(CostYear,UnitCostXMLHeaders,0),FALSE))) -> 
A55: Car-Miles per Interchange Switch | B55: =RailroadCostProgram!C187 -> E2L106C18 | H55: L420 | I55: =IF(ISBLANK(INDEX(RR,C$3)),"",IF(OR(INDEX(SG,C$3)="IA",INDEX(SG,C$3)="IR"),0,INDEX(AdjustL420,C$3)*VLOOKUP(INDEX(RR,C$3)&"-"&$B55,UnitCostXML,MATCH(CostYear,UnitCostXMLHeaders,0),FALSE))) -> 2.75 | J55: =IF(ISBLANK(INDEX(RR,D$3)),"",IF(OR(INDEX(SG,D$3)="IA",INDEX(SG,D$3)="IR"),0,INDEX(AdjustL420,D$3)*VLOOKUP(INDEX(RR,D$3)&"-"&$B55,UnitCostXML,MATCH(CostYear,UnitCostXMLHeaders,0),FALSE))) ->  | K55: =IF(ISBLANK(INDEX(RR,E$3)),"",IF(OR(INDEX(SG,E$3)="IA",INDEX(SG,E$3)="IR"),0,INDEX(AdjustL420,E$3)*VLOOKUP(INDEX(RR,E$3)&"-"&$B55,UnitCostXML,MATCH(CostYear,UnitCostXMLHeaders,0),FALSE))) ->  | L55: =IF(ISBLANK(INDEX(RR,F$3)),"",IF(OR(INDEX(SG,F$3)="IA",INDEX(SG,F$3)="IR"),0,INDEX(AdjustL420,F$3)*VLOOKUP(INDEX(RR,F$3)&"-"&$B55,UnitCostXML,MATCH(CostYear,UnitCostXMLHeaders,0),FALSE))) ->  | M55: =IF(ISBLANK(INDEX(RR,G$3)),"",IF(OR(INDEX(SG,G$3)="IA",INDEX(SG,G$3)="IR"),0,INDEX(AdjustL420,G$3)*VLOOKUP(INDEX(RR,G$3)&"-"&$B55,UnitCostXML,MATCH(CostYear,UnitCostXMLHeaders,0),FALSE))) -> 
A56: Car-Miles per I&I Switch | B56: =RailroadCostProgram!C188 -> E2L106C21 | H56: L421 | I56: =IF(ISBLANK(INDEX(RR,C$3)),"",IF(OR(INDEX(SG,C$3)="IA",INDEX(SG,C$3)="IR"),0,INDEX(AdjustL421,C$3)*VLOOKUP(INDEX(RR,C$3)&"-"&$B56,UnitCostXML,MATCH(CostYear,UnitCostXMLHeaders,0),FALSE))) -> 1 | J56: =IF(ISBLANK(INDEX(RR,D$3)),"",IF(OR(INDEX(SG,D$3)="IA",INDEX(SG,D$3)="IR"),0,INDEX(AdjustL421,D$3)*VLOOKUP(INDEX(RR,D$3)&"-"&$B56,UnitCostXML,MATCH(CostYear,UnitCostXMLHeaders,0),FALSE))) ->  | K56: =IF(ISBLANK(INDEX(RR,E$3)),"",IF(OR(INDEX(SG,E$3)="IA",INDEX(SG,E$3)="IR"),0,INDEX(AdjustL421,E$3)*VLOOKUP(INDEX(RR,E$3)&"-"&$B56,UnitCostXML,MATCH(CostYear,UnitCostXMLHeaders,0),FALSE))) ->  | L56: =IF(ISBLANK(INDEX(RR,F$3)),"",IF(OR(INDEX(SG,F$3)="IA",INDEX(SG,F$3)="IR"),0,INDEX(AdjustL421,F$3)*VLOOKUP(INDEX(RR,F$3)&"-"&$B56,UnitCostXML,MATCH(CostYear,UnitCostXMLHeaders,0),FALSE))) ->  | M56: =IF(ISBLANK(INDEX(RR,G$3)),"",IF(OR(INDEX(SG,G$3)="IA",INDEX(SG,G$3)="IR"),0,INDEX(AdjustL421,G$3)*VLOOKUP(INDEX(RR,G$3)&"-"&$B56,UnitCostXML,MATCH(CostYear,UnitCostXMLHeaders,0),FALSE))) -> 
A57: Actual Miles per Car Day | B57: =RailroadCostProgram!C203 -> E2L106C22 | H57: L435 | I57: =IF(ISBLANK(INDEX(RR,C$3)),"",VLOOKUP(INDEX(RR,C$3)&"-"&$B57,UnitCostXML,MATCH(CostYear,UnitCostXMLHeaders,0),FALSE)) -> 477.4063856 | J57: =IF(ISBLANK(INDEX(RR,D$3)),"",VLOOKUP(INDEX(RR,D$3)&"-"&$B57,UnitCostXML,MATCH(CostYear,UnitCostXMLHeaders,0),FALSE)) ->  | K57: =IF(ISBLANK(INDEX(RR,E$3)),"",VLOOKUP(INDEX(RR,E$3)&"-"&$B57,UnitCostXML,MATCH(CostYear,UnitCostXMLHeaders,0),FALSE)) ->  | L57: =IF(ISBLANK(INDEX(RR,F$3)),"",VLOOKUP(INDEX(RR,F$3)&"-"&$B57,UnitCostXML,MATCH(CostYear,UnitCostXMLHeaders,0),FALSE)) ->  | M57: =IF(ISBLANK(INDEX(RR,G$3)),"",VLOOKUP(INDEX(RR,G$3)&"-"&$B57,UnitCostXML,MATCH(CostYear,UnitCostXMLHeaders,0),FALSE)) -> 
A58: Car-Miles per Intraterminal Switch | B58: =RailroadCostProgram!C252 -> E2L106C19 | H58: L482 | I58: =IF(ISBLANK(INDEX(RR,C$3)),"",IF(INDEX(SG,C$3)<>"IA",0,VLOOKUP(INDEX(RR,C$3)&"-"&$B58,UnitCostXML,MATCH(CostYear,UnitCostXMLHeaders,0),FALSE))) -> 0 | J58: =IF(ISBLANK(INDEX(RR,D$3)),"",IF(INDEX(SG,D$3)<>"IA",0,VLOOKUP(INDEX(RR,D$3)&"-"&$B58,UnitCostXML,MATCH(CostYear,UnitCostXMLHeaders,0),FALSE))) ->  | K58: =IF(ISBLANK(INDEX(RR,E$3)),"",IF(INDEX(SG,E$3)<>"IA",0,VLOOKUP(INDEX(RR,E$3)&"-"&$B58,UnitCostXML,MATCH(CostYear,UnitCostXMLHeaders,0),FALSE))) ->  | L58: =IF(ISBLANK(INDEX(RR,F$3)),"",IF(INDEX(SG,F$3)<>"IA",0,VLOOKUP(INDEX(RR,F$3)&"-"&$B58,UnitCostXML,MATCH(CostYear,UnitCostXMLHeaders,0),FALSE))) ->  | M58: =IF(ISBLANK(INDEX(RR,G$3)),"",IF(INDEX(SG,G$3)<>"IA",0,VLOOKUP(INDEX(RR,G$3)&"-"&$B58,UnitCostXML,MATCH(CostYear,UnitCostXMLHeaders,0),FALSE))) -> 
A59: Car-Miles per Interterminal Switch | B59: =RailroadCostProgram!C253 -> E2L106C20 | H59: L483 | I59: =IF(ISBLANK(INDEX(RR,C$3)),"",IF(INDEX(SG,C$3)<>"IR",0,VLOOKUP(INDEX(RR,C$3)&"-"&$B59,UnitCostXML,MATCH(CostYear,UnitCostXMLHeaders,0),FALSE))) -> 0 | J59: =IF(ISBLANK(INDEX(RR,D$3)),"",IF(INDEX(SG,D$3)<>"IR",0,VLOOKUP(INDEX(RR,D$3)&"-"&$B59,UnitCostXML,MATCH(CostYear,UnitCostXMLHeaders,0),FALSE))) ->  | K59: =IF(ISBLANK(INDEX(RR,E$3)),"",IF(INDEX(SG,E$3)<>"IR",0,VLOOKUP(INDEX(RR,E$3)&"-"&$B59,UnitCostXML,MATCH(CostYear,UnitCostXMLHeaders,0),FALSE))) ->  | L59: =IF(ISBLANK(INDEX(RR,F$3)),"",IF(INDEX(SG,F$3)<>"IR",0,VLOOKUP(INDEX(RR,F$3)&"-"&$B59,UnitCostXML,MATCH(CostYear,UnitCostXMLHeaders,0),FALSE))) ->  | M59: =IF(ISBLANK(INDEX(RR,G$3)),"",IF(INDEX(SG,G$3)<>"IR",0,VLOOKUP(INDEX(RR,G$3)&"-"&$B59,UnitCostXML,MATCH(CostYear,UnitCostXMLHeaders,0),FALSE))) -> 
A62: Freight Car Days | B62: Source | C62: =C$4 -> WEST | D62: =D$4 ->  | H62: Line | I62: WEST
A63: Car-Days Running | B63: =RailroadCostProgram!C204 -> L406/L435 | H63: L436 | I63: =IF(ISBLANK(INDEX(RR,C$3)),"",IF(OWN<>"Railroad",0,INDEX(Line406,C$3)/INDEX(Line435,C$3))) -> 4.197784118 | J63: =IF(ISBLANK(INDEX(RR,D$3)),"",IF(OWN<>"Railroad",0,INDEX(Line406,D$3)/INDEX(Line435,D$3))) ->  | K63: =IF(ISBLANK(INDEX(RR,E$3)),"",IF(OWN<>"Railroad",0,INDEX(Line406,E$3)/INDEX(Line435,E$3))) ->  | L63: =IF(ISBLANK(INDEX(RR,F$3)),"",IF(OWN<>"Railroad",0,INDEX(Line406,F$3)/INDEX(Line435,F$3))) ->  | M63: =IF(ISBLANK(INDEX(RR,G$3)),"",IF(OWN<>"Railroad",0,INDEX(Line406,G$3)/INDEX(Line435,G$3))) -> 
A64: Car-Days per Industry Switch | B64: =RailroadCostProgram!C211 -> E2L106C9 | H64: L443 | I64: =IF(ISBLANK(INDEX(RR,C$3)),"",IF(OWN<>"Railroad",0,IF(OR(INDEX(SG,C$3)="IA",INDEX(SG,C$3)="IR"),0,INDEX(AdjustL443,C$3)*VLOOKUP(INDEX(RR,C$3)&"-"&$B64,UnitCostXML,MATCH(CostYear,UnitCostXMLHeaders,0),FALSE)))) -> 1 | J64: =IF(ISBLANK(INDEX(RR,D$3)),"",IF(OWN<>"Railroad",0,IF(OR(INDEX(SG,D$3)="IA",INDEX(SG,D$3)="IR"),0,INDEX(AdjustL443,D$3)*VLOOKUP(INDEX(RR,D$3)&"-"&$B64,UnitCostXML,MATCH(CostYear,UnitCostXMLHeaders,0),FALSE)))) ->  | K64: =IF(ISBLANK(INDEX(RR,E$3)),"",IF(OWN<>"Railroad",0,IF(OR(INDEX(SG,E$3)="IA",INDEX(SG,E$3)="IR"),0,INDEX(AdjustL443,E$3)*VLOOKUP(INDEX(RR,E$3)&"-"&$B64,UnitCostXML,MATCH(CostYear,UnitCostXMLHeaders,0),FALSE)))) ->  | L64: =IF(ISBLANK(INDEX(RR,F$3)),"",IF(OWN<>"Railroad",0,IF(OR(INDEX(SG,F$3)="IA",INDEX(SG,F$3)="IR"),0,INDEX(AdjustL443,F$3)*VLOOKUP(INDEX(RR,F$3)&"-"&$B64,UnitCostXML,MATCH(CostYear,UnitCostXMLHeaders,0),FALSE)))) ->  | M64: =IF(ISBLANK(INDEX(RR,G$3)),"",IF(OWN<>"Railroad",0,IF(OR(INDEX(SG,G$3)="IA",INDEX(SG,G$3)="IR"),0,INDEX(AdjustL443,G$3)*VLOOKUP(INDEX(RR,G$3)&"-"&$B64,UnitCostXML,MATCH(CostYear,UnitCostXMLHeaders,0),FALSE)))) -> 
A65: Car-Days per Interchange Switch | B65: =RailroadCostProgram!C212 -> E2L106C10 | H65: L444 | I65: =IF(ISBLANK(INDEX(RR,C$3)),"",IF(OWN<>"Railroad",0,IF(OR(INDEX(SG,C$3)="IA",INDEX(SG,C$3)="IR"),0,INDEX(AdjustL444,C$3)*VLOOKUP(INDEX(RR,C$3)&"-"&$B65,UnitCostXML,MATCH(CostYear,UnitCostXMLHeaders,0),FALSE)))) -> 0.5 | J65: =IF(ISBLANK(INDEX(RR,D$3)),"",IF(OWN<>"Railroad",0,IF(OR(INDEX(SG,D$3)="IA",INDEX(SG,D$3)="IR"),0,INDEX(AdjustL444,D$3)*VLOOKUP(INDEX(RR,D$3)&"-"&$B65,UnitCostXML,MATCH(CostYear,UnitCostXMLHeaders,0),FALSE)))) ->  | K65: =IF(ISBLANK(INDEX(RR,E$3)),"",IF(OWN<>"Railroad",0,IF(OR(INDEX(SG,E$3)="IA",INDEX(SG,E$3)="IR"),0,INDEX(AdjustL444,E$3)*VLOOKUP(INDEX(RR,E$3)&"-"&$B65,UnitCostXML,MATCH(CostYear,UnitCostXMLHeaders,0),FALSE)))) ->  | L65: =IF(ISBLANK(INDEX(RR,F$3)),"",IF(OWN<>"Railroad",0,IF(OR(INDEX(SG,F$3)="IA",INDEX(SG,F$3)="IR"),0,INDEX(AdjustL444,F$3)*VLOOKUP(INDEX(RR,F$3)&"-"&$B65,UnitCostXML,MATCH(CostYear,UnitCostXMLHeaders,0),FALSE)))) ->  | M65: =IF(ISBLANK(INDEX(RR,G$3)),"",IF(OWN<>"Railroad",0,IF(OR(INDEX(SG,G$3)="IA",INDEX(SG,G$3)="IR"),0,INDEX(AdjustL444,G$3)*VLOOKUP(INDEX(RR,G$3)&"-"&$B65,UnitCostXML,MATCH(CostYear,UnitCostXMLHeaders,0),FALSE)))) -> 
A66: Car-Days per I&I Switch | B66: =RailroadCostProgram!C213 -> E2L106C13 | H66: L445 | I66: =IF(ISBLANK(INDEX(RR,C$3)),"",IF(OWN<>"Railroad",0,IF(OR(INDEX(SG,C$3)="IA",INDEX(SG,C$3)="IR"),0,INDEX(AdjustL445,C$3)*VLOOKUP(INDEX(RR,C$3)&"-"&$B66,UnitCostXML,MATCH(CostYear,UnitCostXMLHeaders,0),FALSE)))) -> 0.5 | J66: =IF(ISBLANK(INDEX(RR,D$3)),"",IF(OWN<>"Railroad",0,IF(OR(INDEX(SG,D$3)="IA",INDEX(SG,D$3)="IR"),0,INDEX(AdjustL445,D$3)*VLOOKUP(INDEX(RR,D$3)&"-"&$B66,UnitCostXML,MATCH(CostYear,UnitCostXMLHeaders,0),FALSE)))) ->  | K66: =IF(ISBLANK(INDEX(RR,E$3)),"",IF(OWN<>"Railroad",0,IF(OR(INDEX(SG,E$3)="IA",INDEX(SG,E$3)="IR"),0,INDEX(AdjustL445,E$3)*VLOOKUP(INDEX(RR,E$3)&"-"&$B66,UnitCostXML,MATCH(CostYear,UnitCostXMLHeaders,0),FALSE)))) ->  | L66: =IF(ISBLANK(INDEX(RR,F$3)),"",IF(OWN<>"Railroad",0,IF(OR(INDEX(SG,F$3)="IA",INDEX(SG,F$3)="IR"),0,INDEX(AdjustL445,F$3)*VLOOKUP(INDEX(RR,F$3)&"-"&$B66,UnitCostXML,MATCH(CostYear,UnitCostXMLHeaders,0),FALSE)))) ->  | M66: =IF(ISBLANK(INDEX(RR,G$3)),"",IF(OWN<>"Railroad",0,IF(OR(INDEX(SG,G$3)="IA",INDEX(SG,G$3)="IR"),0,INDEX(AdjustL445,G$3)*VLOOKUP(INDEX(RR,G$3)&"-"&$B66,UnitCostXML,MATCH(CostYear,UnitCostXMLHeaders,0),FALSE)))) -> 
A67: Car-Days per Load & Unload (L&UL) | B67: =RailroadCostProgram!C217 -> E2L106C14 | H67: L449 | I67: =IF(ISBLANK(INDEX(RR,C$3)),"",IF(OWN<>"Railroad",0,IF(OR(INDEX(SG,C$3)="IA",INDEX(SG,C$3)="IR"),0,INDEX(AdjustL449,C$3)*VLOOKUP(INDEX(RR,C$3)&"-"&$B67,UnitCostXML,MATCH(CostYear,UnitCostXMLHeaders,0),FALSE)))) -> 2 | J67: =IF(ISBLANK(INDEX(RR,D$3)),"",IF(OWN<>"Railroad",0,IF(OR(INDEX(SG,D$3)="IA",INDEX(SG,D$3)="IR"),0,INDEX(AdjustL449,D$3)*VLOOKUP(INDEX(RR,D$3)&"-"&$B67,UnitCostXML,MATCH(CostYear,UnitCostXMLHeaders,0),FALSE)))) ->  | K67: =IF(ISBLANK(INDEX(RR,E$3)),"",IF(OWN<>"Railroad",0,IF(OR(INDEX(SG,E$3)="IA",INDEX(SG,E$3)="IR"),0,INDEX(AdjustL449,E$3)*VLOOKUP(INDEX(RR,E$3)&"-"&$B67,UnitCostXML,MATCH(CostYear,UnitCostXMLHeaders,0),FALSE)))) ->  | L67: =IF(ISBLANK(INDEX(RR,F$3)),"",IF(OWN<>"Railroad",0,IF(OR(INDEX(SG,F$3)="IA",INDEX(SG,F$3)="IR"),0,INDEX(AdjustL449,F$3)*VLOOKUP(INDEX(RR,F$3)&"-"&$B67,UnitCostXML,MATCH(CostYear,UnitCostXMLHeaders,0),FALSE)))) ->  | M67: =IF(ISBLANK(INDEX(RR,G$3)),"",IF(OWN<>"Railroad",0,IF(OR(INDEX(SG,G$3)="IA",INDEX(SG,G$3)="IR"),0,INDEX(AdjustL449,G$3)*VLOOKUP(INDEX(RR,G$3)&"-"&$B67,UnitCostXML,MATCH(CostYear,UnitCostXMLHeaders,0),FALSE)))) -> 
A68: Car-Days in Yard | B68: =RailroadCostProgram!C219 -> L446+L447+L448+L450 | H68: L451 | I68: =IF(ISBLANK(INDEX(RR,C$3)),"",IF(AND(SZ="Intermodal",User_TOFCPlanCode=4),0,INDEX(Line446,C$3)+INDEX(Line447,C$3)+INDEX(Line448,C$3)+INDEX(Line450,C$3))) -> 13.01012236 | J68: =IF(ISBLANK(INDEX(RR,D$3)),"",IF(AND(SZ="Intermodal",User_TOFCPlanCode=4),0,INDEX(Line446,D$3)+INDEX(Line447,D$3)+INDEX(Line448,D$3)+INDEX(Line450,D$3))) ->  | K68: =IF(ISBLANK(INDEX(RR,E$3)),"",IF(AND(SZ="Intermodal",User_TOFCPlanCode=4),0,INDEX(Line446,E$3)+INDEX(Line447,E$3)+INDEX(Line448,E$3)+INDEX(Line450,E$3))) ->  | L68: =IF(ISBLANK(INDEX(RR,F$3)),"",IF(AND(SZ="Intermodal",User_TOFCPlanCode=4),0,INDEX(Line446,F$3)+INDEX(Line447,F$3)+INDEX(Line448,F$3)+INDEX(Line450,F$3))) ->  | M68: =IF(ISBLANK(INDEX(RR,G$3)),"",IF(AND(SZ="Intermodal",User_TOFCPlanCode=4),0,INDEX(Line446,G$3)+INDEX(Line447,G$3)+INDEX(Line448,G$3)+INDEX(Line450,G$3))) -> 
A69: Car-Days per Intraterminal Switch | B69: =RailroadCostProgram!C262 -> E2L106C11 | H69: L492 | I69: =IF(ISBLANK(INDEX(RR,C$3)),"",IF(OWN<>"Railroad",0,IF(INDEX(SG,C$3)<>"IA",0,VLOOKUP(INDEX(RR,C$3)&"-"&$B69,UnitCostXML,MATCH(CostYear,UnitCostXMLHeaders,0),FALSE)))) -> 0
A70: Car-Days per L&UL - Intraterminal | B70: =RailroadCostProgram!C263 -> E2L106C15 | H70: L493 | I70: 0
A71: Car-Days per Interterminal Switch | B71: =RailroadCostProgram!C264 -> E2L106C12 | H71: L494 | I71: =IF(ISBLANK(INDEX(RR,C$3)),"",IF(OWN<>"Railroad",0,IF(INDEX(SG,C$3)<>"IR",0,VLOOKUP(INDEX(RR,C$3)&"-"&$B71,UnitCostXML,MATCH(CostYear,UnitCostXMLHeaders,0),FALSE)))) -> 0
A72: Car-Days per L&UL - Interterminal | B72: =RailroadCostProgram!C265 -> E2L106C16 | H72: L495 | I72: 0
A75: Freight Car Rental | B75: Source | C75: =C$4 -> WEST | D75: =D$4 ->  | H75: Line
A76: Car Mile Rental - Private | B76: =RailroadCostProgram!$C$168 -> [User] | H76: L402
A77: Charge per Car Mile | B77: =RailroadCostProgram!$C$174 -> [User] | H77: L407
A78: Charge per Car Day | B78: =RailroadCostProgram!$C$200 -> [User] | H78: L432
A81: Accessorial Services | B81: Source | C81: =C$4 -> WEST | D81: =D$4 ->  | H81: Line
A82: Lake Transfer Ton Miles | B82: =RailroadCostProgram!$C$275 -> [User] | H82: L501
A83: Coal Terminal Tons | B83: =RailroadCostProgram!$C$283 -> [User] | H83: L508
A84: Ore Terminal Tons | B84: =RailroadCostProgram!$C$291 -> [User] | H84: L515
A85: Marine Terminal Tons | B85: =RailroadCostProgram!$C$299 -> [User] | H85: L522
A86: Railroad Provides Accessorial Services | B86: [User] | H86: L458+
A88: Include Jurisdictional Add-On Charges? | B88: [User] | C88: Y
A90: Include Efficiency Adjustments? | B90: [User] | C90: Y

Sheet BatchCostProgram
A1: Surface Transportation Board - Batch Cost Program - Input (Control Parameters File) | P1: =IF(ISBLANK($B1),"",$A1) ->  | Q1: =IF(ISBLANK($B1),"",IF(ISTEXT($B1),VLOOKUP($B1,RRAlphas,5,FALSE),VLOOKUP($B1,RRNumerics,8,FALSE))) ->  | R1: =IF(ISBLANK($B1),"",$C1) ->  | S1: =IF(ISBLANK($B1),"",VLOOKUP($D1,URCSSegments,1,FALSE)) ->  | T1: =IF(ISBLANK($B1),"",IF($E1<=17,VLOOKUP($E1,URCSCarTypes,3,FALSE),VLOOKUP($E1,STBCarTypes,2,FALSE))) ->  | U1: =IF(ISBLANK($B1),"",$F1) ->  | V1: =IF(ISBLANK($B1),"",VLOOKUP($G1,URCSOwnerships,2,FALSE)) ->  | W1: =IF(ISBLANK($B1),"",$H1) ->  | X1: =IF(ISBLANK($B1),"",VLOOKUP(LEFT($I1&"00000",5),STCCCodes,3,FALSE)) ->  | Y1: =IF(ISBLANK($B1),"",IF(ISNUMBER($J1),VLOOKUP($J1,URCSShipmentSizeCodes,2,FALSE),VLOOKUP($J1,URCSShipmentSizes,1,FALSE))) ->  | Z1: =IF(ISBLANK($B1),"",MAX(0,$M1-$C1)) ->  | AA1: =IF(ISBLANK($B1),"",IF(ISBLANK($K1),"",IF(ISNUMBER($K1),$K1,NA()))) ->  | AB1: =IF(ISBLANK($B1),"",IF(ISBLANK($L1),"",IF(ISNUMBER($L1),VLOOKUP($L1,URCSTOFCPlans,1,FALSE),VLOOKUP($L1,URCSTOFCServiceCodes,3,FALSE)))) ->  | AC1: =IF(ISBLANK($B1),"",IF(OR(ISBLANK($N1),$Y1<>"Intermodal"),"",IF(ISTEXT($N1),VLOOKUP($N1,RRAlphas,5,FALSE),VLOOKUP($N1,RRNumerics,8,FALSE)))) -> 
A3: ="Using "&TEXT(CostYear,"0000")&" Unit Costs" -> Using 2024 Unit Costs | P3: These columns convert the user entered codes in columns B thru N into the format needed by the RailroadCostProgram sheet. These formulas are stored in Row 1. Use AutoFilter to check for #N/A, which indicates an invalid value was entered.
A4: ID | B4: RR | C4: DIS | D4: SG | E4: FC | F4: NC | G4: OWN | H4: WT | I4: COM | J4: SZ | K4: L102 | L4: L569 | M4: TDIS | N4: ORR | P4: =A4 -> ID | Q4: RR | R4: DIS | S4: SG | T4: FC | U4: NC | V4: OWN | W4: WT | X4: COM | Y4: SZ | Z4: OtherRRDist | AA4: L102 | AB4: L569 | AC4: ORR
A5: Sample 1-Coal-OT | B5: WEST | C5: 1000 | D5: OT | E5: 42 | F5: 1 | G5: R | H5: 100 | I5: 11000 | J5: =IF(OR($E5=11,$E5=46),"Intermodal",IF($F5<MultiCarDef,"Single",IF($F5<UnitTrainDef,"Multi","Unit"))) -> Single | K5: 1
A6: Sample 2-Grain-OD | B6: WEST | C6: 800 | D6: OD | E6: 41 | F6: 25 | G6: R | H6: 80 | I6: 01130 | J6: Multi | K6: 1 | M6: 1200
A7: Sample 2-Grain-RT | B7: WEST | C7: 400 | D7: RT | E7: 41 | F7: 25 | G7: R | H7: 80 | I7: 01130 | J7: Multi | K7: 1 | M7: 1200
A8: Sample 3-Intermodal-OT | B8: WEST | C8: 1000 | D8: OT | E8: 11 | F8: 1 | G8: P | H8: 15 | I8: 46100 | J8: 4 | K8: 1 | M8: 1000 | N8: WEST
A9: Sample 4-Intermodal-OD | B9: WEST | C9: 1000 | D9: OD | E9: 46 | F9: 1 | G9: P | H9: 15 | I9: 46100 | J9: Intermodal | K9: 1 | L9: 3 | M9: 1800 | N9: WEST
A10: Sample 4-Intermodal-RT | B10: EAST | C10: 800 | D10: RT | E10: 46 | F10: 1 | G10: P | H10: 15 | I10: 46100 | J10: Intermodal | K10: 1 | L10: 3 | M10: 1800 | N10: WEST

Sheet BatchOutput
A1: Surface Transportation Board - Batch Cost Program - Output | K1: =INDEX(Line101,1) -> 1000 | L1: =INDEX(Line102,1) -> 1 | M1: =INDEX(Line103,1) -> 1000 | N1: =INDEX(Line104,1) -> 0 | O1: =INDEX(Line105,1) -> 2.004048943 | P1: =INDEX(Line106,1) -> 15.71475541 | Q1: =INDEX(Line107,1) -> 984.2852446 | R1: =INDEX(Line108,1) -> 0 | S1: =INDEX(Line109,1) -> 31.49313897 | T1: =INDEX(Line110,1) -> 1972.555804 | U1: =INDEX(Line111,1) -> 2004.048943 | V1: =INDEX(Line201,1) -> 1 | W1: =INDEX(Line202,1) -> 0 | X1: =INDEX(Line203,1) -> 0 | Y1: =INDEX(Line204,1) -> 0 | Z1: =INDEX(Line205,1) -> 2004.048943 | AA1: =INDEX(Line206,1) -> 0 | AB1: =INDEX(Line207,1) -> 0 | AC1: =INDEX(Line208,1) -> 0 | AD1: =INDEX(Line209,1) -> 0 | AE1: =INDEX(Line210,1) -> 0 | AF1: =INDEX(Line211,1) -> 0 | AG1: =INDEX(Line212,1) -> 31 | AH1: =INDEX(Line213,1) -> 62125.51724 | AI1: =INDEX(Line214,1) -> 0 | AJ1: =INDEX(Line215,1) -> 0 | AK1: =INDEX(Line216,1) -> 0 | AL1: =INDEX(Line217,1) -> 80 | AM1: =INDEX(Line218,1) -> 80000 | AN1: =INDEX(Line219,1) -> 142125.5172 | AO1: =INDEX(Line220,1) -> 0.002774376683 | AP1: =INDEX(Line221,1) -> 394.3097211 | AQ1: =INDEX(Line222,1) -> 0.001086434988 | AR1: =INDEX(Line223,1) -> 154.4101346 | AS1: =INDEX(Line224,1) -> 0.002499923771 | AT1: =INDEX(Line225,1) -> 355.3029591 | AU1: =INDEX(Line226,1) -> 3.309273883 | AV1: =INDEX(Line227,1) -> 2.064256012 | AW1: =INDEX(Line228,1) -> 3.333558035 | AX1: =INDEX(Line229,1) -> 0 | AY1: =INDEX(Line230,1) -> 65.00990147 | AZ1: =INDEX(Line231,1) -> 6575.629251 | BA1: =INDEX(Line232,1) -> 20336.68172 | BB1: =INDEX(Line233,1) -> 5687.13142 | BC1: =INDEX(Line234,1) -> 14825.54282 | BD1: =INDEX(Line235,1) -> 142.1255172 | BE1: =INDEX(Line236,1) -> 0 | BF1: =INDEX(Line237,1) -> 0.02499072146 | BG1: =INDEX(Line238,1) -> 0.009586530417 | BH1: =INDEX(Line239,1) -> 0 | BI1: =INDEX(Line240,1) -> 1.62464434 | BJ1: =INDEX(Line241,1) -> 63.03746983 | BK1: =INDEX(Line242,1) -> 64.66211417 | BL1: =INDEX(Line243,1) -> 5.630923327 | BM1: =INDEX(Line244,1) -> 364.107407 | BN1: =INDEX(Line245,1) -> 0.6657305401 | BO1: =INDEX(Line246,1) -> 43.04754419 | BP1: =INDEX(Line247,1) -> 0.8621249795 | BQ1: =INDEX(Line248,1) -> 55.74682385 | BR1: =INDEX(Line250,1) -> 2 | BS1: =INDEX(Line251,1) -> 0 | BT1: =INDEX(Line252,1) -> 2 | BU1: =INDEX(Line253,1) -> 0 | BV1: =INDEX(Line254,1) -> 1 | BW1: =INDEX(Line255,1) -> 0 | BX1: =INDEX(Line256,1) -> 0 | BY1: =INDEX(Line257,1) -> 9.940120751 | BZ1: =INDEX(Line258,1) -> 19.8802415 | CA1: =INDEX(Line259,1) -> 0 | CB1: =INDEX(Line260,1) -> 0 | CC1: =INDEX(Line261,1) -> 0 | CD1: =INDEX(Line262,1) -> 0 | CE1: =INDEX(Line263,1) -> 2.512007596 | CF1: =INDEX(Line264,1) -> 2.512007596 | CG1: =INDEX(Line265,1) -> 0 | CH1: =INDEX(Line266,1) -> 0 | CI1: =INDEX(Line267,1) -> 0 | CJ1: =INDEX(Line268,1) -> 0 | CK1: =INDEX(Line269,1) -> 0 | CL1: =INDEX(Line270,1) -> 0.787036264 | CM1: =INDEX(Line271,1) -> 18.90996622 | CN1: =INDEX(Line272,1) -> 19.69700248 | CO1: =INDEX(Line273,1) -> 0 | CP1: =INDEX(Line274,1) -> 0 | CQ1: =INDEX(Line275,1) -> 0 | CR1: =INDEX(Line276,1) -> 11.49971241 | CS1: =INDEX(Line277,1) -> 1 | CT1: =INDEX(Line278,1) -> 1 | CU1: =INDEX(Line279,1) -> 1 | CV1: =INDEX(Line280,1) -> 14.53301172 | CW1: =INDEX(Line281,1) -> 0 | CX1: =INDEX(Line282,1) -> 11.43800725 | CY1: =INDEX(Line283,1) -> 274.8187606 | CZ1: =INDEX(Line284,1) -> 286.2567679 | DA1: =INDEX(Line285,1) -> 0.8560288634 | DB1: =INDEX(Line286,1) -> 16.86120265 | DC1: =INDEX(Line287,1) -> -0.0002370620544 | DD1: =INDEX(Line288,1) -> -0.004669411873 | DE1: =INDEX(Line289,1) -> 1.952539315e-05 | DF1: =INDEX(Line290,1) -> 0.0003845917173 | DG1: =INDEX(Line301,1) -> 4.742663379 | DH1: =INDEX(Line302,1) -> 2.608464858 | DI1: =INDEX(Line303,1) -> 1.185665845 | DJ1: =INDEX(Line304,1) -> 2 | DK1: =INDEX(Line305,1) -> 4 | DL1: =INDEX(Line306,1) -> 1895.04297 | DM1: =INDEX(Line307,1) -> 0 | DN1: =INDEX(Line308,1) -> 0 | DO1: =INDEX(Line309,1) -> 200 | DP1: =INDEX(Line310,1) -> 10.02024472 | DQ1: =INDEX(Line311,1) -> 18.97065352 | DR1: =INDEX(Line312,1) -> 0 | DS1: =INDEX(Line313,1) -> 11.88066192 | DT1: =INDEX(Line314,1) -> 30.85131543 | DU1: =INDEX(Line315,1) -> 7.418555818 | DV1: =INDEX(Line316,1) -> 228.8722056 | DW1: =INDEX(Line317,1) -> 1.873242722 | DX1: =INDEX(Line318,1) -> 57.79200208 | DY1: =INDEX(Line319,1) -> 5.458760133 | DZ1: =INDEX(Line320,1) -> 168.4099307 | EA1: =INDEX(Line321,1) -> 0 | EB1: =INDEX(Line322,1) -> 0 | EC1: =INDEX(Line323,1) -> 0 | ED1: =INDEX(Line324,1) -> 0 | EE1: =INDEX(Line325,1) -> 0 | EF1: =INDEX(Line326,1) -> 0 | EG1: =INDEX(Line327,1) -> 0 | EH1: =INDEX(Line328,1) -> 0 | EI1: =INDEX(Line329,1) -> 0 | EJ1: =INDEX(Line330,1) -> 0 | EK1: =INDEX(Line331,1) -> 0 | EL1: =INDEX(Line332,1) -> 0 | EM1: =INDEX(Line333,1) -> 0 | EN1: =INDEX(Line334,1) -> 0 | EO1: =INDEX(Line401,1) -> 0 | EP1: =INDEX(Line402,1) -> 0 | EQ1: =INDEX(Line403,1) -> 1.073684793 | ER1: =INDEX(Line404,1) -> 0 | ES1: =INDEX(Line405,1) -> 0 | ET1: =INDEX(Line406,1) -> 2004.048943 | EU1: =INDEX(Line407,1) -> 0 | EV1: =INDEX(Line408,1) -> 1.073684793 | EW1: =INDEX(Line409,1) -> 0 | EX1: =INDEX(Line410,1) -> 0.04168113275 | EY1: =INDEX(Line411,1) -> 83.53103005 | EZ1: =INDEX(Line412,1) -> 0.001429859828 | FA1: =INDEX(Line413,1) -> 2.865509078 | FB1: =INDEX(Line414,1) -> 0.02502270183 | FC1: =INDEX(Line415,1) -> 50.14671916 | FD1: =INDEX(Line416,1) -> 4 | FE1: =INDEX(Line417,1) -> 0 | FF1: =INDEX(Line418,1) -> 10.02024472 | FG1: =INDEX(Line419,1) -> 4 | FH1: =INDEX(Line420,1) -> 2.75 | FI1: =INDEX(Line421,1) -> 1 | FJ1: =INDEX(Line422,1) -> 16 | FK1: =INDEX(Line423,1) -> 0 | FL1: =INDEX(Line424,1) -> 10.02024472 | FM1: =INDEX(Line425,1) -> 26.02024472 | FN1: =INDEX(Line426,1) -> 0.1083709452 | FO1: =INDEX(Line427,1) -> 2.819838513 | FP1: =INDEX(Line428,1) -> 0.003717635553 | FQ1: =INDEX(Line429,1) -> 0.09673378686 | FR1: =INDEX(Line430,1) -> 0.06505902476 | FS1: =INDEX(Line431,1) -> 1.692851745 | FT1: =INDEX(Line432,1) -> 0 | FU1: =INDEX(Line433,1) -> 0 | FV1: =INDEX(Line434,1) -> 0 | FW1: =INDEX(Line435,1) -> 477.4063856 | FX1: =INDEX(Line436,1) -> 4.197784118 | FY1: =INDEX(Line437,1) -> 5.33201566 | FZ1: =INDEX(Line438,1) -> 22.38265065 | GA1: =INDEX(Line439,1) -> 7.230275261 | GB1: =INDEX(Line440,1) -> 30.35113466 | GC1: =INDEX(Line441,1) -> 4.84637603 | GD1: =INDEX(Line442,1) -> 20.34404032 | GE1: =INDEX(Line443,1) -> 1 | GF1: =INDEX(Line444,1) -> 0.5 | GG1: =INDEX(Line445,1) -> 0.5 | GH1: =INDEX(Line446,1) -> 4 | GI1: =INDEX(Line447,1) -> 0 | GJ1: =INDEX(Line448,1) -> 5.010122358 | GK1: =INDEX(Line449,1) -> 2 | GL1: =INDEX(Line450,1) -> 4 | GM1: =INDEX(Line451,1) -> 13.01012236 | GN1: =INDEX(Line452,1) -> 5.33201566 | GO1: =INDEX(Line453,1) -> 69.37017616 | GP1: =INDEX(Line454,1) -> 7.230275261 | GQ1: =INDEX(Line455,1) -> 94.06676583 | GR1: =INDEX(Line456,1) -> 4.84637603 | GS1: =INDEX(Line457,1) -> 63.05194514 | GT1: =INDEX(Line458,1) -> 0 | GU1: =INDEX(Line459,1) -> 0 | GV1: =INDEX(Line460,1) -> 0.0008083558679 | GW1: =INDEX(Line461,1) -> 1.619984723 | GX1: =INDEX(Line462,1) -> 0.0009372118116 | GY1: =INDEX(Line463,1) -> 1.878218341 | GZ1: =INDEX(Line464,1) -> 0 | HA1: =INDEX(Line465,1) -> 0 | HB1: =INDEX(Line466,1) -> 0.002101725257 | HC1: =INDEX(Line467,1) -> 0.0546874055 | HD1: =INDEX(Line468,1) -> 0.00243675071 | HE1: =INDEX(Line469,1) -> 0.06340484979 | HF1: =INDEX(Line470,1) -> 0 | HG1: =INDEX(Line471,1) -> 0 | HH1: =INDEX(Line472,1) -> 0.137377544 | HI1: =INDEX(Line473,1) -> 0.5766812725 | HJ1: =INDEX(Line474,1) -> 0.1584357156 | HK1: =INDEX(Line475,1) -> 0.6650789307 | HL1: =INDEX(Line476,1) -> 0 | HM1: =INDEX(Line477,1) -> 0 | HN1: =INDEX(Line478,1) -> 0.137377544 | HO1: =INDEX(Line479,1) -> 1.787298657 | HP1: =INDEX(Line480,1) -> 0.1584357156 | HQ1: =INDEX(Line481,1) -> 2.061268046 | HR1: =INDEX(Line482,1) -> 0 | HS1: =INDEX(Line483,1) -> 0 | HT1: =INDEX(Line484,1) -> 0 | HU1: =INDEX(Line485,1) -> 0 | HV1: =INDEX(Line486,1) -> 0 | HW1: =INDEX(Line487,1) -> 0 | HX1: =INDEX(Line488,1) -> 0 | HY1: =INDEX(Line489,1) -> 0 | HZ1: =INDEX(Line490,1) -> 0 | IA1: =INDEX(Line491,1) -> 0 | IB1: =INDEX(Line492,1) -> 0 | IC1: =INDEX(Line493,1) -> 0 | ID1: =INDEX(Line494,1) -> 0 | IE1: =INDEX(Line495,1) -> 0 | IF1: =INDEX(Line496,1) -> 0 | IG1: =INDEX(Line497,1) -> 0 | IH1: =INDEX(Line498,1) -> 0 | II1: =INDEX(Line499,1) -> 0 | IJ1: =INDEX(Line499A,1) -> 0 | IK1: =INDEX(Line499B,1) -> 0 | IL1: =INDEX(Line499C,1) -> 0 | IM1: =INDEX(Line499D,1) -> 0 | IN1: =INDEX(Line501,1) -> 0 | IO1: =INDEX(Line502,1) -> 0 | IP1: =INDEX(Line503,1) -> 0 | IQ1: =INDEX(Line504,1) -> 0 | IR1: =INDEX(Line505,1) -> 0 | IS1: =INDEX(Line506,1) -> 0 | IT1: =INDEX(Line507,1) -> 0 | IU1: =INDEX(Line508,1) -> 0 | IV1: =INDEX(Line509,1) -> 0 | IW1: =INDEX(Line510,1) -> 0 | IX1: =INDEX(Line511,1) -> 0 | IY1: =INDEX(Line512,1) -> 0 | IZ1: =INDEX(Line513,1) -> 0 | JA1: =INDEX(Line514,1) -> 0 | JB1: =INDEX(Line515,1) -> 0 | JC1: =INDEX(Line516,1) -> 0 | JD1: =INDEX(Line517,1) -> 0 | JE1: =INDEX(Line518,1) -> 0 | JF1: =INDEX(Line519,1) -> 0 | JG1: =INDEX(Line520,1) -> 0 | JH1: =INDEX(Line521,1) -> 0 | JI1: =INDEX(Line522,1) -> 0 | JJ1: =INDEX(Line523,1) -> 0 | JK1: =INDEX(Line524,1) -> 0 | JL1: =INDEX(Line525,1) -> 0 | JM1: =INDEX(Line526,1) -> 0 | JN1: =INDEX(Line527,1) -> 0 | JO1: =INDEX(Line528,1) -> 0 | JP1: =INDEX(Line529,1) -> 0 | JQ1: =INDEX(Line530,1) -> 0 | JR1: =INDEX(Line531,1) -> 0 | JS1: =INDEX(Line532,1) -> 0 | JT1: =INDEX(Line533,1) -> 0 | JU1: =INDEX(Line534,1) -> 0 | JV1: =INDEX(Line535,1) -> 80 | JW1: =INDEX(Line536,1) -> 0.04585519699 | JX1: =INDEX(Line537,1) -> 3.668415759 | JY1: =INDEX(Line540,1) -> 0 | JZ1: =INDEX(Line541,1) -> 0 | KA1: =INDEX(Line542,1) -> 0 | KB1: =INDEX(Line543,1) -> 0 | KC1: =INDEX(Line544,1) -> 0 | KD1: =INDEX(Line545,1) -> 0 | KE1: =INDEX(Line546,1) -> 0 | KF1: =INDEX(Line547,1) -> 0 | KG1: =INDEX(Line548,1) -> 0 | KH1: =INDEX(Line549,1) -> 0 | KI1: =INDEX(Line550,1) -> 0 | KJ1: =INDEX(Line551,1) -> 0 | KK1: =INDEX(Line552,1) -> 0 | KL1: =INDEX(Line553,1) -> 0 | KM1: =INDEX(Line554,1) -> 0 | KN1: =INDEX(Line555,1) -> 0 | KO1: =INDEX(Line556,1) -> 0 | KP1: =INDEX(Line557,1) -> 0 | KQ1: =INDEX(Line558,1) -> 0 | KR1: =INDEX(Line559,1) -> 0 | KS1: =INDEX(Line560,1) -> 0 | KT1: =INDEX(Line561,1) -> 0 | KU1: =INDEX(Line562,1) -> 0 | KV1: =INDEX(Line563,1) -> 0 | KW1: =INDEX(Line564,1) -> 0 | KX1: =INDEX(Line565,1) -> 0 | KY1: =INDEX(Line566,1) -> 0 | KZ1: =INDEX(Line569,1) -> 0 | LA1: =INDEX(Line570,1) -> 0 | LB1: =INDEX(Line571,1) -> 0 | LC1: =INDEX(Line572,1) -> 0 | LD1: =INDEX(Line573,1) -> 4 | LE1: =INDEX(Line574,1) -> 64.88878222 | LF1: =INDEX(Line575,1) -> 259.5551289 | LG1: =INDEX(Line576,1) -> 2 | LH1: =INDEX(Line577,1) -> 32.43260786 | LI1: =INDEX(Line578,1) -> 64.86521573 | LJ1: =INDEX(Line579,1) -> 0 | LK1: =INDEX(Line580,1) -> 12.54044031 | LL1: =INDEX(Line581,1) -> 0 | LM1: =INDEX(Line582,1) -> 2004.048943 | LN1: =INDEX(Line583,1) -> 24.07859325 | LO1: =INDEX(Line584,1) -> 48.25467937 | LP1: =INDEX(Line585,1) -> 1.375347339 | LQ1: =INDEX(Line586,1) -> 2.756263381 | LR1: =INDEX(Line587,1) -> 375.4312873 | LS1: =INDEX(Line601,1) -> 0 | LT1: =INDEX(Line602,1) -> 0 | LU1: =INDEX(Line603,1) -> 0 | LV1: =INDEX(Line604,1) -> 394.3097211 | LW1: =INDEX(Line605,1) -> 154.4101346 | LX1: =INDEX(Line606,1) -> 355.3029591 | LY1: =INDEX(Line607,1) -> 364.107407 | LZ1: =INDEX(Line608,1) -> 43.04754419 | MA1: =INDEX(Line609,1) -> 55.74682385 | MB1: =INDEX(Line610,1) -> 0 | MC1: =INDEX(Line611,1) -> 19.8802415 | MD1: =INDEX(Line612,1) -> 0 | ME1: =INDEX(Line613,1) -> 0 | MF1: =INDEX(Line614,1) -> 2.512007596 | MG1: =INDEX(Line615,1) -> 0 | MH1: =INDEX(Line616,1) -> 0 | MI1: =INDEX(Line617,1) -> 0 | MJ1: =INDEX(Line618,1) -> 11.43800725 | MK1: =INDEX(Line619,1) -> 274.8187606 | ML1: =INDEX(Line620,1) -> 16.86120265 | MM1: =INDEX(Line621,1) -> -0.004669411873 | MN1: =INDEX(Line622,1) -> 0.0003845917173 | MO1: =INDEX(Line623,1) -> 228.8722056 | MP1: =INDEX(Line624,1) -> 57.79200208 | MQ1: =INDEX(Line625,1) -> 168.4099307 | MR1: =INDEX(Line626,1) -> 0 | MS1: =INDEX(Line627,1) -> 0 | MT1: =INDEX(Line628,1) -> 0 | MU1: =INDEX(Line629,1) -> 0 | MV1: =INDEX(Line630,1) -> 0 | MW1: =INDEX(Line631,1) -> 0 | MX1: =INDEX(Line632,1) -> 0 | MY1: =INDEX(Line633,1) -> 0 | MZ1: =INDEX(Line634,1) -> 83.53103005 | NA1: =INDEX(Line635,1) -> 2.865509078 | NB1: =INDEX(Line636,1) -> 50.14671916 | NC1: =INDEX(Line637,1) -> 2.819838513 | ND1: =INDEX(Line638,1) -> 0.09673378686 | NE1: =INDEX(Line639,1) -> 1.692851745 | NF1: =INDEX(Line640,1) -> 0 | NG1: =INDEX(Line641,1) -> 22.38265065 | NH1: =INDEX(Line642,1) -> 30.35113466 | NI1: =INDEX(Line643,1) -> 20.34404032 | NJ1: =INDEX(Line644,1) -> 69.37017616 | NK1: =INDEX(Line645,1) -> 94.06676583 | NL1: =INDEX(Line646,1) -> 63.05194514 | NM1: =INDEX(Line647,1) -> 0 | NN1: =INDEX(Line648,1) -> 1.619984723 | NO1: =INDEX(Line649,1) -> 1.878218341 | NP1: =INDEX(Line650,1) -> 0 | NQ1: =INDEX(Line651,1) -> 0.0546874055 | NR1: =INDEX(Line652,1) -> 0.06340484979 | NS1: =INDEX(Line653,1) -> 0 | NT1: =INDEX(Line654,1) -> 0.5766812725 | NU1: =INDEX(Line655,1) -> 0.6650789307 | NV1: =INDEX(Line656,1) -> 0 | NW1: =INDEX(Line657,1) -> 1.787298657 | NX1: =INDEX(Line658,1) -> 2.061268046 | NY1: =INDEX(Line659,1) -> 0 | NZ1: =INDEX(Line660,1) -> 0 | OA1: =INDEX(Line661,1) -> 0 | OB1: =INDEX(Line662,1) -> 0 | OC1: =INDEX(Line663,1) -> 0 | OD1: =INDEX(Line664,1) -> 0 | OE1: =INDEX(Line665,1) -> 0 | OF1: =INDEX(Line666,1) -> 0 | OG1: =INDEX(Line667,1) -> 0 | OH1: =INDEX(Line668,1) -> 0 | OI1: =INDEX(Line669,1) -> 0 | OJ1: =INDEX(Line670,1) -> 0 | OK1: =INDEX(Line671,1) -> 0 | OL1: =INDEX(Line672,1) -> 0 | OM1: =INDEX(Line673,1) -> 0 | ON1: =INDEX(Line674,1) -> 0 | OO1: =INDEX(Line675,1) -> 0 | OP1: =INDEX(Line676,1) -> 0 | OQ1: =INDEX(Line677,1) -> 0 | OR1: =INDEX(Line678,1) -> 0 | OS1: =INDEX(Line679,1) -> 0 | OT1: =INDEX(Line680,1) -> 0 | OU1: =INDEX(Line681,1) -> 0 | OV1: =INDEX(Line682,1) -> 0 | OW1: =INDEX(Line683,1) -> 0 | OX1: =INDEX(Line684,1) -> 0 | OY1: =INDEX(Line685,1) -> 0 | OZ1: =INDEX(Line686,1) -> 0 | PA1: =INDEX(Line687,1) -> 0 | PB1: =INDEX(Line688,1) -> 0 | PC1: =INDEX(Line689,1) -> 0 | PD1: =INDEX(Line690,1) -> 0 | PE1: =INDEX(Line691,1) -> 0 | PF1: =INDEX(Line692,1) -> 0 | PG1: =INDEX(Line693,1) -> 0 | PH1: =INDEX(Line694,1) -> 0 | PI1: =INDEX(Line695,1) -> 0 | PJ1: =INDEX(Line696,1) -> 2972.361968 | PK1: =INDEX(Line697,1) -> 1.451077404 | PL1: =INDEX(Line698,1) -> 4313.127288 | PM1: =INDEX(Line699,1) -> 3.668415759 | PN1: =INDEX(Line700,1) -> 2976.030383 | PO1: =INDEX(Line701,1) -> 4316.795704 | PP1: =INDEX(Line702,1) -> 1.86001899 | PQ1: =INDEX(Line703,1) -> 2.697997315
A3: ="Using "&TEXT(CostYear,"0000")&" Unit Costs" -> Using 2024 Unit Costs
A4: ID | B4: RR | C4: DIS | D4: SG | E4: FC | F4: NC | G4: OWN | H4: WT | I4: COM | J4: SZ | K4: L101 | L4: L102 | M4: L103 | N4: L104 | O4: L105 | P4: L106 | Q4: L107 | R4: L108 | S4: L109 | T4: L110 | U4: L111 | V4: L201 | W4: L202 | X4: L203 | Y4: L204 | Z4: L205 | AA4: L206 | AB4: L207 | AC4: L208 | AD4: L209 | AE4: L210 | AF4: L211 | AG4: L212 | AH4: L213 | AI4: L214 | AJ4: L215 | AK4: L216 | AL4: L217 | AM4: L218 | AN4: L219 | AO4: L220 | AP4: L221 | AQ4: L222 | AR4: L223 | AS4: L224 | AT4: L225 | AU4: L226 | AV4: L227 | AW4: L228 | AX4: L229 | AY4: L230 | AZ4: L231 | BA4: L232 | BB4: L233 | BC4: L234 | BD4: L235 | BE4: L236 | BF4: L237 | BG4: L238 | BH4: L239 | BI4: L240 | BJ4: L241 | BK4: L242 | BL4: L243 | BM4: L244 | BN4: L245 | BO4: L246 | BP4: L247 | BQ4: L248 | BR4: L250 | BS4: L251 | BT4: L252 | BU4: L253 | BV4: L254 | BW4: L255 | BX4: L256 | BY4: L257 | BZ4: L258 | CA4: L259 | CB4: L260 | CC4: L261 | CD4: L262 | CE4: L263 | CF4: L264 | CG4: L265 | CH4: L266 | CI4: L267 | CJ4: L268 | CK4: L269 | CL4: L270 | CM4: L271 | CN4: L272 | CO4: L273 | CP4: L274 | CQ4: L275 | CR4: L276 | CS4: L277 | CT4: L278 | CU4: L279 | CV4: L280 | CW4: L281 | CX4: L282 | CY4: L283 | CZ4: L284 | DA4: L285 | DB4: L286 | DC4: L287 | DD4: L288 | DE4: L289 | DF4: L290 | DG4: L301 | DH4: L302 | DI4: L303 | DJ4: L304 | DK4: L305 | DL4: L306 | DM4: L307 | DN4: L308 | DO4: L309 | DP4: L310 | DQ4: L311 | DR4: L312 | DS4: L313 | DT4: L314 | DU4: L315 | DV4: L316 | DW4: L317 | DX4: L318 | DY4: L319 | DZ4: L320 | EA4: L321 | EB4: L322 | EC4: L323 | ED4: L324 | EE4: L325 | EF4: L326 | EG4: L327 | EH4: L328 | EI4: L329 | EJ4: L330 | EK4: L331 | EL4: L332 | EM4: L333 | EN4: L334 | EO4: L401 | EP4: L402 | EQ4: L403 | ER4: L404 | ES4: L405 | ET4: L406 | EU4: L407 | EV4: L408 | EW4: L409 | EX4: L410 | EY4: L411 | EZ4: L412 | FA4: L413 | FB4: L414 | FC4: L415 | FD4: L416 | FE4: L417 | FF4: L418 | FG4: L419 | FH4: L420 | FI4: L421 | FJ4: L422 | FK4: L423 | FL4: L424 | FM4: L425 | FN4: L426 | FO4: L427 | FP4: L428 | FQ4: L429 | FR4: L430 | FS4: L431 | FT4: L432 | FU4: L433 | FV4: L434 | FW4: L435 | FX4: L436 | FY4: L437 | FZ4: L438 | GA4: L439 | GB4: L440 | GC4: L441 | GD4: L442 | GE4: L443 | GF4: L444 | GG4: L445 | GH4: L446 | GI4: L447 | GJ4: L448 | GK4: L449 | GL4: L450 | GM4: L451 | GN4: L452 | GO4: L453 | GP4: L454 | GQ4: L455 | GR4: L456 | GS4: L457 | GT4: L458 | GU4: L459 | GV4: L460 | GW4: L461 | GX4: L462 | GY4: L463 | GZ4: L464 | HA4: L465 | HB4: L466 | HC4: L467 | HD4: L468 | HE4: L469 | HF4: L470 | HG4: L471 | HH4: L472 | HI4: L473 | HJ4: L474 | HK4: L475 | HL4: L476 | HM4: L477 | HN4: L478 | HO4: L479 | HP4: L480 | HQ4: L481 | HR4: L482 | HS4: L483 | HT4: L484 | HU4: L485 | HV4: L486 | HW4: L487 | HX4: L488 | HY4: L489 | HZ4: L490 | IA4: L491 | IB4: L492 | IC4: L493 | ID4: L494 | IE4: L495 | IF4: L496 | IG4: L497 | IH4: L498 | II4: L499 | IJ4: L499A | IK4: L499B | IL4: L499C | IM4: L499D | IN4: L501 | IO4: L502 | IP4: L503 | IQ4: L504 | IR4: L505 | IS4: L506 | IT4: L507 | IU4: L508 | IV4: L509 | IW4: L510 | IX4: L511 | IY4: L512 | IZ4: L513 | JA4: L514 | JB4: L515 | JC4: L516 | JD4: L517 | JE4: L518 | JF4: L519 | JG4: L520 | JH4: L521 | JI4: L522 | JJ4: L523 | JK4: L524 | JL4: L525 | JM4: L526 | JN4: L527 | JO4: L528 | JP4: L529 | JQ4: L530 | JR4: L531 | JS4: L532 | JT4: L533 | JU4: L534 | JV4: L535 | JW4: L536 | JX4: L537 | JY4: L540 | JZ4: L541 | KA4: L542 | KB4: L543 | KC4: L544 | KD4: L545 | KE4: L546 | KF4: L547 | KG4: L548 | KH4: L549 | KI4: L550 | KJ4: L551 | KK4: L552 | KL4: L553 | KM4: L554 | KN4: L555 | KO4: L556 | KP4: L557 | KQ4: L558 | KR4: L559 | KS4: L560 | KT4: L561 | KU4: L562 | KV4: L563 | KW4: L564 | KX4: L565 | KY4: L566 | KZ4: L569 | LA4: L570 | LB4: L571 | LC4: L572 | LD4: L573 | LE4: L574 | LF4: L575 | LG4: L576 | LH4: L577 | LI4: L578 | LJ4: L579 | LK4: L580 | LL4: L581 | LM4: L582 | LN4: L583 | LO4: L584 | LP4: L585 | LQ4: L586 | LR4: L587 | LS4: L601 | LT4: L602 | LU4: L603 | LV4: L604 | LW4: L605 | LX4: L606 | LY4: L607 | LZ4: L608 | MA4: L609 | MB4: L610 | MC4: L611 | MD4: L612 | ME4: L613 | MF4: L614 | MG4: L615 | MH4: L616 | MI4: L617 | MJ4: L618 | MK4: L619 | ML4: L620 | MM4: L621 | MN4: L622 | MO4: L623 | MP4: L624 | MQ4: L625 | MR4: L626 | MS4: L627 | MT4: L628 | MU4: L629 | MV4: L630 | MW4: L631 | MX4: L632 | MY4: L633 | MZ4: L634 | NA4: L635 | NB4: L636 | NC4: L637 | ND4: L638 | NE4: L639 | NF4: L640 | NG4: L641 | NH4: L642 | NI4: L643 | NJ4: L644 | NK4: L645 | NL4: L646 | NM4: L647 | NN4: L648 | NO4: L649 | NP4: L650 | NQ4: L651 | NR4: L652 | NS4: L653 | NT4: L654 | NU4: L655 | NV4: L656 | NW4: L657 | NX4: L658 | NY4: L659 | NZ4: L660 | OA4: L661 | OB4: L662 | OC4: L663 | OD4: L664 | OE4: L665 | OF4: L666 | OG4: L667 | OH4: L668 | OI4: L669 | OJ4: L670 | OK4: L671 | OL4: L672 | OM4: L673 | ON4: L674 | OO4: L675 | OP4: L676 | OQ4: L677 | OR4: L678 | OS4: L679 | OT4: L680 | OU4: L681 | OV4: L682 | OW4: L683 | OX4: L684 | OY4: L685 | OZ4: L686 | PA4: L687 | PB4: L688 | PC4: L689 | PD4: L690 | PE4: L691 | PF4: L692 | PG4: L693 | PH4: L694 | PI4: L695 | PJ4: L696 | PK4: L697 | PL4: L698 | PM4: L699 | PN4: L700 | PO4: L701 | PP4: L702 | PQ4: L703

Sheet URCSInputs
A1: URCS Railroads | E1: URCS Segment Types | J1: URCS Car Types | O1: URCS STCC Types | T1: URCS Ownership Types | X1: URCS Shipment Sizes | AC1: Refrigerated Trailer | AF1: URCS TOFC Plans/Ownership & Protective Service Factors/Pickup & Delivery Factors (by Seg Type) | AQ1: URCS TOFC Service Codes | AU1: Make Whole Adjustment Factors (Reductions)
A2: Railroad Number | B2: Railroad | C2: Description | E2: Segment Type | F2: Description | G2: L250 | H2: L307 | J2: Car Index | K2: Sch 710 Line Number | L2: Description | M2: Car Index | O2: STCC | P2: Description | Q2: STCC-Description | R2: STCC Index | T2: Owner Code | U2: Description | V2: Owner Index | X2: Size Code | Y2: Shipment Size | Z2: Description | AA2: Starts At | AC2: Option | AD2: Description | AF2: Plan Code | AG2: Title | AH2: Description | AI2: O&PS | AJ2: OT | AK2: OD | AL2: RT | AM2: RD | AN2: IA | AO2: IR | AQ2: Service Code | AR2: Description | AS2: Plan Code | AU2: LINE | AV2: DESCRIPTION | AW2: Single | AX2: Multi | AY2: Unit | AZ2: Intermodal
A3: 777 | B3: BNSF | C3: BNSF | E3: OT | F3: Originate and Terminate | G3: 2 | H3: 0 | J3: 1 | K3: 36 | L3: Plain Box Cars 40' | M3: 1 | O3: 01000 | P3: Farm Products | Q3: 01 All Farm Products | R3: 1 | T3: P | U3: Private | V3: 1 | X3: 1 | Y3: Single | Z3: Single Car | AA3: 1 | AC3: N | AD3: No | AF3: 0 | AG3: Plan 0 | AH3: Not Intermodal | AI3: 0 | AJ3: 0 | AK3: 0 | AL3: 0 | AM3: 0 | AN3: 0 | AO3: 0 | AQ3: A | AR3: ="Plan "&AS3 -> Plan 1 | AS3: 1 | AU3: L257 | AV3: UC per CLOT Cler-OPR | AW3: 0 | AX3: 75%/25% | AY3: 75%/25% | AZ3: 75%/25%
A4: 103 | B4: CN | C4: CN | E4: OD | F4: Originate and Deliver | G4: 1 | H4: 1 | J4: 2 | K4: 37 | L4: Plain Box Cars 50' and Longer | M4: 2 | O4: 0113 | P4: Grains | Q4: 0113 Grains | R4: 2 | T4: R | U4: Railroad | V4: 2 | X4: 2 | Y4: Multi | Z4: Multi-Car | AA4: 6 | AC4: Y | AD4: Yes | AF4: 1 | AG4: Plan 1 | AH4: Shipper Trailers/No P or D | AI4: 0 | AJ4: 0 | AK4: 0 | AL4: 0 | AM4: 0 | AN4: 0 | AO4: 0 | AQ4: B | AR4: ="Plan "&AS4 -> Plan 2 | AS4: 2 | AU4: L301 | AV4: SEM per Industry switch event | AW4: 0 | AX4: 0.5 | AY4: 0.75 | AZ4: 0.75
A5: 105 | B5: CP | C5: CP | E5: RT | F5: Receive and Terminate | G5: 1 | H5: 1 | J5: 3 | K5: 38 | L5: Equipped Box Cars | M5: 3 | O5: 01195 | P5: Potatoes; Other than Sweet | Q5: 01195 Potatoes; Other than Sweet | R5: 3 | T5: T | U5: TrailerTrain | V5: 3 | X5: 3 | Y5: Unit | Z5: Unit Train | AA5: 50 | AF5: 2 | AG5: Plan 2 | AH5: Railroad trailers/P & D | AI5: 1 | AJ5: 1 | AK5: 1 | AL5: 1 | AM5: 0 | AN5: 0 | AO5: 0 | AQ5: C | AR5: Plan 2.25 | AS5: 2.25 | AU5: L302 | AV5: SEM per Interchange switch event | AW5: 0 | AX5: 0 | AY5: 0.5 | AZ5: 0.5
A6: 712 | B6: CSXT | C6: CSXT | E6: RD | F6: Receivd and Deliver | G6: 0 | H6: 2 | J6: 4 | K6: 39 | L6: Plain Gondola Cars | M6: 4 | O6: 012 | P6: Fresh Fruits/Tree Nuts | Q6: 012 Fresh Fruits/Tree Nuts | R6: 4 | X6: 4 | Y6: Intermodal | Z6: Intermodal | AA6: 1 | AF6: 2.25 | AG6: Plan 2.25 | AH6: Railroad trailers/P or D | AI6: 1 | AJ6: 0.5 | AK6: 1 | AL6: 0 | AM6: 0 | AN6: 0 | AO6: 0 | AQ6: D | AR6: Plan 5.1 | AS6: 5.1 | AU6: L303 | AV6: SEM per I&I train switch event | AW6: 0 | AX6: 0 | AY6: 1 | AZ6: 1
A7: 400 | B7: KCS | C7: KCS | E7: IA | F7: Intra-Terminal | G7: 2 | H7: 1 | J7: 5 | K7: 40 | L7: Equipped Gondola Cars | M7: 5 | O7: 013 | P7: Fresh Vegetables | Q7: 013 Fresh Vegetables | R7: 5 | AF7: 2.5 | AG7: Plan 2.5 | AH7: Railroad trailers/No P or D | AI7: 1 | AJ7: 0 | AK7: 0 | AL7: 0 | AM7: 0 | AN7: 0 | AO7: 0 | AQ7: E | AR7: Plan 5.2 | AS7: 5.2 | AU7: L325 | AV7: SEM per Intraterminal switch | AW7: 0 | AX7: 0.5 | AY7: 0.875 | AZ7: 0.875
A8: 555 | B8: NS | C8: NS | E8: IR | F8: Inter-Terminal | G8: 1 | H8: 1 | J8: 6 | K8: 41 | L8: Covered Hopper Cars | M8: 6 | O8: 01 | P8: Other Farm Products | Q8: 01 Other Farm Products | R8: 6 | Y8: Unit | Z8: New Unit Train | AA8: 75 | AF8: 3 | AG8: Plan 3 | AH8: Shipper trailers/No P or D | AI8: 0 | AJ8: 0 | AK8: 0 | AL8: 0 | AM8: 0 | AN8: 0 | AO8: 0 | AQ8: F | AR8: Plan 5.3 | AS8: 5.3 | AU8: L326 | AV8: SEM per Interterminal switch | AW8: 0 | AX8: 0.5 | AY8: 0.875 | AZ8: 0.875
A9: 802 | B9: UP | C9: UP | J9: 7 | K9: 42 | L9: Open Top Hopper Cars-General Service | M9: 7 | O9: 10 | P9: Metallic Ores | Q9: 10 Metallic Ores | R9: 7 | AF9: 4 | AG9: Plan 4-RoadRailer | AH9: RoadRailer/No P or D | AI9: 0 | AJ9: 0 | AK9: 0 | AL9: 0 | AM9: 0 | AN9: 0 | AO9: 0 | AQ9: G | AR9: Plan 5.4 | AS9: 5.4 | AU9: L419 | AV9: CM(Y)/Industry switch (L-E) | AW9: 0 | AX9: 0.5 | AY9: 0.5 | AZ9: 0.5
A10: 900004 | B10: EAST | C10: EAST | E10: RT | F10: Receive and Terminate | J10: 8 | K10: 43 | L10: Open Top Hopper Cars-Special Service | M10: 8 | O10: 11 | P10: Coal | Q10: 11 Coal | R10: 8 | AF10: 5.1 | AG10: Plan 5.1 | AH10: Railroad Trailers/No P or D | AI10: 1 | AJ10: 0 | AK10: 0 | AL10: 0 | AM10: 0 | AN10: 0 | AO10: 0 | AQ10: H | AR10: Plan 1 | AS10: 1 | AU10: L420 | AV10: CM(Y)/Interchange switch (L-E) | AW10: 0 | AX10: 0 | AY10: 0.5 | AZ10: 0.5
A11: 900007 | B11: WEST | C11: WEST | E11: IR | F11: Inter-Terminal | J11: 9 | K11: 44 | L11: Refrigerator Cars-Mechanical | M11: 9 | O11: 14 | P11: Non-Metallic Minerals | Q11: 14 Non-Metallic Minerals | R11: 9 | AF11: 5.2 | AG11: Plan 5.2 | AH11: Railroad Trailers/D but not P | AI11: 1 | AJ11: 0.5 | AK11: 0 | AL11: 1 | AM11: 0 | AN11: 0 | AO11: 0 | AQ11: I | AR11: Plan 5.5 | AS11: 5.5 | AU11: L421 | AV11: CM(Y)/I&I train switch (L-E) | AW11: 0 | AX11: 0 | AY11: 1 | AZ11: 1
J12: 10 | K12: 45 | L12: Refrigerator Cars-Non-Mechanical | M12: 10 | O12: 20000 | P12: Food & Kindred Products | Q12: 20 All Food & Kindred Products | R12: 10 | AF12: 5.3 | AG12: Plan 5.3 | AH12: Shipper Trailers/P & D | AI12: 0 | AJ12: 1 | AK12: 1 | AL12: 1 | AM12: 0 | AN12: 0 | AO12: 0 | AQ12: K | AR12: Plan 5.3 | AS12: 5.3 | AU12: L443 | AV12: CD(Y)/Industry switch (L or E) | AW12: 0 | AX12: 0.5 | AY12: 0.5 | AZ12: 0.5
J13: 11 | K13: 46 | L13: Flat Cars TOFC/COFC | M13: 11 | O13: 2011 | P13: Fresh Meats | Q13: 2011 Fresh Meats | R13: 11 | AF13: 5.4 | AG13: Plan 5.4 | AH13: Shipper Trailers/P but not D | AI13: 0 | AJ13: 0.5 | AK13: 1 | AL13: 0 | AM13: 0 | AN13: 0 | AO13: 0 | AQ13: L | AR13: Plan 5.4 | AS13: 5.4 | AU13: L444 | AV13: CD(Y)/Interchange swt (L or E) | AW13: 0 | AX13: 0 | AY13: 0.5 | AZ13: 0.5
J14: 12 | K14: 47 | L14: Flat Cars-Multi-Level | M14: 12 | O14: 202 | P14: Dairy Products | Q14: 202 Dairy Products | R14: 12 | AF14: 5.5 | AG14: Plan 5.5 | AH14: Shipper Trailers/D but not P | AI14: 0 | AJ14: 0.5 | AK14: 0 | AL14: 1 | AM14: 0 | AN14: 0 | AO14: 0 | AQ14: M | AR14: Plan 1 | AS14: 1 | AU14: L445 | AV14: CD(Y)/I&I train switch (L or E) | AW14: 0 | AX14: 0 | AY14: 1 | AZ14: 1
J15: 13 | K15: 48 | L15: Flat Cars-General Service | M15: 13 | O15: 203 | P15: Canned Fruits/Vegetables | Q15: 203 Canned Fruits/Vegetables | R15: 13 | AQ15: N | AR15: Plan 5.5 | AS15: 5.5 | AU15: L449 | AV15: CD(Y)-per Loading & Unloading for Industry switch | AW15: 0 | AX15: 0.5 | AY15: 0.5 | AZ15: 0.5
J16: 14 | K16: 49 | L16: Flat Cars-Other | M16: 14 | O16: 204 | P16: Grain Mill Products | Q16: 204 Grain Mill Products | R16: 14 | AQ16: O | AR16: Plan 5.3 | AS16: 5.3
J17: 15 | K17: 50 | L17: Tank Cars-Under 22000 Gallons | M17: 15 | O17: 2041 | P17: Flour | Q17: 2041 Flour | R17: 15 | AQ17: P | AR17: Plan 5.4 | AS17: 5.4
J18: 16 | K18: 51 | L18: Tank Cars-22000 Gallons and Over | M18: 16 | O18: 2042 | P18: Prepared Feeds | Q18: 2042 Prepared Feeds | R18: 16 | AQ18: Q | AR18: Plan 1 | AS18: 1
J19: 17 | K19: 52 | L19: All Other Freight Cars | M19: 17 | O19: 2043 | P19: Cereal Preparations | Q19: 2043 Cereal Preparations | R19: 17 | AQ19: R | AR19: Plan 5.5 | AS19: 5.5
K20: 54 | L20: All Other Freight Cars | M20: 17 | O20: 2044 | P20: Milled Rice/Flour/Meal | Q20: 2044 Milled Rice/Flour/Meal | R20: 18 | AQ20: TCS | AR20: RoadRailer | AS20: 4
O21: 2045 | P21: Prepared Flour | Q21: 2045 Prepared Flour | R21: 19 | AQ21: X | AR21: Plan 1 | AS21: 1
O22: 2046 | P22: Corn Milling Products | Q22: 2046 Corn Milling Products | R22: 20
O23: 2062 | P23: Refined Sugar | Q23: 2062 Refined Sugar | R23: 21
O24: 20821 | P24: Beer/Ale | Q24: 20821 Beer/Ale | R24: 22
O25: 2084 | P25: Wines/Brandy Spirits | Q25: 2084 Wines/Brandy Spirits | R25: 23
O26: 20851 | P26: Whiskey/Blended Liquors | Q26: 20851 Whiskey/Blended Liquors | R26: 24
O27: 209 | P27: Misc. Food Preparations | Q27: 209 Misc. Food Preparations | R27: 25
O28: 20 | P28: Other Food & Kindred Products | Q28: 20 Other Food & Kindred Products | R28: 26
O29: 21 | P29: Tobacco Products | Q29: 21 Tobacco Products | R29: 27
O30: 24000 | P30: Lumber & Wood Products | Q30: 24 All Lumber & Wood Products | R30: 28
O31: 2421 | P31: Lumber/Dimension Stock | Q31: 2421 Lumber/Dimension Stock | R31: 29
O32: 2432 | P32: Plywood or Veneer | Q32: 2432 Plywood or Veneer | R32: 30
O33: 24 | P33: Other Lumber & Wood Products | Q33: 24 Other Lumber & Wood Products | R33: 31
O34: 25 | P34: Furniture & Fixtures | Q34: 25 Furniture & Fixtures | R34: 32
O35: 26000 | P35: Pulp & Paper Products | Q35: 26 All Pulp & Paper Products | R35: 33
O36: 26211 | P36: Newsprint | Q36: 26211 Newsprint | R36: 34
O37: 26213 | P37: Printing Paper | Q37: 26213 Printing Paper | R37: 35
O38: 263 | P38: Paperboard/Fibreboard | Q38: 263 Paperboard/Fibreboard | R38: 36
O39: 264 | P39: Conv Paper/Paperboard | Q39: 264 Conv Paper/Paperboard | R39: 37
O40: 26471 | P40: Sanitary Tissues | Q40: 26471 Sanitary Tissues | R40: 38
O41: 26 | P41: Other Paper Products | Q41: 26 Other Paper Products | R41: 39
O42: 28000 | P42: Chemicals | Q42: 28 All Chemicals | R42: 40
O43: 281 | P43: Industrial Chemicals | Q43: 281 Industrial Chemicals | R43: 41
O44: 2812 | P44: Potassium or Sodium | Q44: 2812 Potassium or Sodium | R44: 42
O45: 282 | P45: Syn Fibers/Resins/Rubber | Q45: 282 Syn Fibers/Resins/Rubber | R45: 43
O46: 289 | P46: Misc Chemical Products | Q46: 289 Misc Chemical Products | R46: 44
O47: 28 | P47: Other Chemicals | Q47: 28 Other Chemicals | R47: 45
O48: 29 | P48: Petroleum or Coal Products | Q48: 29 Petroleum or Coal Products | R48: 46
O49: 30000 | P49: Rubber & Misc. Plastics | Q49: 30 All Rubber & Misc. Plastics | R49: 47
O50: 301 | P50: Rubber Tires/Innertubes | Q50: 301 Rubber Tires/Innertubes | R50: 48
O51: 30 | P51: Other Rubber Products | Q51: 30 Other Rubber Products | R51: 49
O52: 32000 | P52: Stone; Clay; Glass | Q52: 32 All Stone; Clay; Glass | R52: 50
O53: 321 | P53: Flat Glass | Q53: 321 Flat Glass | R53: 51
O54: 3295 | P54: Non-Metallic Minerals/Earth | Q54: 3295 Non-Metallic Minerals/Earth | R54: 52
O55: 32 | P55: Other Stone Products | Q55: 32 Other Stone Products | R55: 53
O56: 33000 | P56: Primary Metal Products | Q56: 33 All Primary Metal Products | R56: 54
O57: 3312 | P57: Iron/Steel Products | Q57: 3312 Iron/Steel Products | R57: 55
O58: 3352 | P58: Aluminum Shapes | Q58: 3352 Aluminum Shapes | R58: 56
O59: 33 | P59: Other Primary Metal Products | Q59: 33 Other Primary Metal Products | R59: 57
O60: 34000 | P60: Fabricated Metal Products | Q60: 34 All Fabricated Metal Products | R60: 58
O61: 344 | P61: Fabric. Structural Metal | Q61: 344 Fabric. Structural Metal | R61: 59
O62: 34 | P62: Other Fab. Metal Products | Q62: 34 Other Fab. Metal Products | R62: 60
O63: 35000 | P63: Non-Electrical Machinery | Q63: 35 All Non-Electrical Machinery | R63: 61
O64: 351 | P64: Engines/Turbines | Q64: 351 Engines/Turbines | R64: 62
O65: 352 | P65: Farm Machinery | Q65: 352 Farm Machinery | R65: 63
O66: 353 | P66: Constr./Mining/Hand Machinery | Q66: 353 Constr./Mining/Hand Machinery | R66: 64
O67: 35 | P67: Other Non-Elec. Machinery | Q67: 35 Other Non-Elec. Machinery | R67: 65
O68: 36000 | P68: Electrical Machinery | Q68: 36 All Electrical Machinery | R68: 66
O69: 361 | P69: Electrical Trans Equipment | Q69: 361 Electrical Trans Equipment | R69: 67
O70: 363 | P70: Household Appliances | Q70: 363 Household Appliances | R70: 68
O71: 365 | P71: Radio or TV Sets | Q71: 365 Radio or TV Sets | R71: 69
O72: 36 | P72: Other Electrical Machinery | Q72: 36 Other Electrical Machinery | R72: 70
O73: 37000 | P73: Transportation Equipment | Q73: 37 All Transportation Equipment | R73: 71
O74: 37111 | P74: Automobiles | Q74: 37111 Automobiles | R74: 72
O75: 37112 | P75: Trucks | Q75: 37112 Trucks | R75: 73
O76: 3714 | P76: Motor Vehicle Parts | Q76: 3714 Motor Vehicle Parts | R76: 74
O77: 37 | P77: Other Trans. Equipment | Q77: 37 Other Trans. Equipment | R77: 75
O78: 44 | P78: Freight Forwarder Traffic | Q78: 44 Freight Forwarder Traffic | R78: 76
O79: 45 | P79: Shipper Assocation Traffic | Q79: 45 Shipper Assocation Traffic | R79: 77
O80: 46000 | P80: Misc. Mixed Shipments | Q80: 46 All Misc. Mixed Shipments | R80: 78
O81: 461 | P81: Misc. Mixed Shipments not TOFC | Q81: 461 Misc. Mixed Shipments not TOFC | R81: 79
O82: 46 | P82: Other Misc. Mixed Shipments | Q82: 46 Other Misc. Mixed Shipments | R82: 80
O83: 48 | P83: Hazardous Materials | Q83: 48 Hazardous Materials | R83: 81
O84: Other | P84: Other Commodities | Q84: Other Commodities | R84: 82

Sheet RailroadUnitCostXML
A1: VLOOKUP | B1: Railroad | C1: RR_Id | D1: eCode | E1: eCode_id | F1: eTitle_and_Desc | G1: 2006 | H1: 2007 | I1: 2008 | J1: 2009 | K1: 2010 | L1: 2011 | M1: 2012 | N1: 2013 | O1: 2014 | P1: 2015 | Q1: 2016 | R1: 2017 | S1: 2018 | T1: 2019 | U1: 2020 | V1: 2021 | W1: 2022 | X1: 2023 | Y1: 2024
A2: =B2&"-"&D2 -> BNSF-E1L101C1 | B2: BNSF | C2: 4 | D2: E1L101C1 | E2: 1 | F2: Gross Ton Mile (GTM), OPR Expense | G2: 0.002008931478 | H2: 0.002304043854 | I2: 0.00293241092 | J2: 0.002116371645 | K2: 0.002393655479 | L2: 0.002980413381 | M2: 0.003015887458 | N2: 0.002960892394 | O2: 0.002880283166 | P2: 0.002193874841 | Q2: 0.002061965378 | R2: 0.002287518566 | S2: 0.002618240084 | T2: 0.002503535077 | U2: 0.00206974483 | V2: 0.002388206661 | W2: 0.003358033576 | X2: 0.003276764444 | Y2: 0.002972144386
A3: BNSF-E1L101C2 | B3: BNSF | C3: 4 | D3: E1L101C2 | E3: 2 | F3: Gross Ton Mile (GTM), DRL Expense | G3: 0.0005372051382 | H3: 0.0005906392471 | I3: 0.0006129103713 | J3: 0.0007277895347 | K3: 0.0006927249487 | L3: 0.0006915615522 | M3: 0.0006980284816 | N3: 0.0006924059708 | O3: 0.0007166416617 | P3: 0.0007120333617 | Q3: 0.0008252460425 | R3: 0.0008730790384 | S3: 0.0007882102222 | T3: 0.0008500938635 | U3: 0.0009540918918 | V3: 0.0008994871822 | W3: 0.0009628700278 | X3: 0.00100794796 | Y3: 0.001002830101
A4: BNSF-E1L101C3 | B4: BNSF | C4: 4 | D4: E1L101C3 | E4: 3 | F4: Gross Ton Mile (GTM), ROI Expense | G4: 0.0009500038577 | H4: 0.001160603715 | I4: 0.001245996566 | J4: 0.001253667404 | K4: 0.001297565643 | L4: 0.001389293699 | M4: 0.001392194419 | N4: 0.001526818844 | O4: 0.001555924304 | P4: 0.001604861732 | Q4: 0.001726264366 | R4: 0.001864996713 | S4: 0.002161718625 | T4: 0.001712538275 | U4: 0.001607822589 | V4: 0.002007963663 | W4: 0.00211546447 | X4: 0.002145325407 | Y4: 0.002337520224
A5: BNSF-E1L102C1 | B5: BNSF | C5: 4 | D5: E1L102C1 | E5: 4 | F5: Car Mile (CM) - Other Than Clerical, OPR Expense | G5: 0 | H5: 0 | I5: 0 | J5: 0 | K5: 0 | L5: 0 | M5: 0 | N5: 0 | O5: 0 | P5: 0 | Q5: 0 | R5: 0 | S5: 0 | T5: 0 | U5: 0 | V5: 0 | W5: 0 | X5: 0 | Y5: 0
A6: BNSF-E1L102C2 | B6: BNSF | C6: 4 | D6: E1L102C2 | E6: 5 | F6: Car Mile (CM) - Other Than Clerical, DRL Expense | G6: 0 | H6: 0 | I6: 0 | J6: 0 | K6: 0 | L6: 0 | M6: 0 | N6: 0 | O6: 0 | P6: 0 | Q6: 0 | R6: 0 | S6: 0 | T6: 0 | U6: 0 | V6: 0 | W6: 0 | X6: 0 | Y6: 0
A7: BNSF-E1L102C3 | B7: BNSF | C7: 4 | D7: E1L102C3 | E7: 6 | F7: Car Mile (CM) - Other Than Clerical, ROI Expense | G7: 0 | H7: 0 | I7: 0 | J7: 0 | K7: 0 | L7: 0 | M7: 0 | N7: 0 | O7: 0 | P7: 0 | Q7: 0 | R7: 0 | S7: 0 | T7: 0 | U7: 0 | V7: 0 | W7: 0 | X7: 0 | Y7: 0
A8: BNSF-E1L103C1 | B8: BNSF | C8: 4 | D8: E1L103C1 | E8: 7 | F8: Train Mile (TM) - Other Than Crew, OPR Expense | G8: 0.2541861832 | H8: 0.2754617333 | I8: 0.2736356258 | J8: 0.3097560108 | K8: 0.3071149588 | L8: 0.3255933225 | M8: 0.3027908802 | N8: 0.2832877636 | O8: 0.3517549038 | P8: 0.8386244632 | Q8: 0.702567087 | R8: 0.6269695577 | S8: 0.7682080486 | T8: 0.7807220319 | U8: 0.7855456652 | V8: 0.6149232062 | W8: 0.7043436064 | X8: 0.9657156356 | Y8: 0.8537836418
A9: BNSF-E1L103C2 | B9: BNSF | C9: 4 | D9: E1L103C2 | E9: 8 | F9: Train Mile (TM) - Other Than Crew, DRL Expense | G9: 0.000818874687 | H9: 0.0007162921829 | I9: 0.001678689034 | J9: 0.003649628488 | K9: 0.003777101636 | L9: 0.004167799372 | M9: 0.003718533786 | N9: 0.002117532538 | O9: 1.217765657e-05 | P9: -0.001882060487 | Q9: -0.001677403546 | R9: -0.00128681151 | S9: -0.001314689277 | T9: -0.001294053962 | U9: -0.0007640288998 | V9: -0.0009168993562 | W9: -0.0008033016669 | X9: 3.08151464e-05 | Y9: -0.0002167883247
A10: BNSF-E1L103C3 | B10: BNSF | C10: 4 | D10: E1L103C3 | E10: 9 | F10: Train Mile (TM) - Other Than Crew, ROI Expense | G10: 0.0006696376367 | H10: 0.01289670821 | I10: 0.007951234467 | J10: 0.005812573712 | K10: 0.003138583386 | L10: 0.002272308804 | M10: 0.001138788415 | N10: 0.001793119241 | O10: 0.002081311308 | P10: 0.002430112826 | Q10: 0.002867789952 | R10: 0.002939163027 | S10: 0.003362163327 | T10: 0.002730352587 | U10: 0.002616730905 | V10: 0.003163186624 | W10: 0.003159997602 | X10: 0.003100509424 | Y10: 9.908755193e-05
A11: BNSF-E1L104C1 | B11: BNSF | C11: 4 | D11: E1L104C1 | E11: 10 | F11: Train Mile (TM) - Crew, OPR Expense | G11: 8.310571671 | H11: 8.620588303 | I11: 8.748178482 | J11: 8.745932579 | K11: 9.247765541 | L11: 9.458506584 | M11: 9.978579521 | N11: 10.88921547 | O11: 12.06982803 | P11: 12.79280074 | Q11: 12.47901057 | R11: 12.14211152 | S11: 12.49966193 | T11: 12.95070696 | U11: 12.32345075 | V11: 11.12117519 | W11: 12.09864535 | X11: 13.34465725 | Y11: 14.78943651
A12: BNSF-E1L104C2 | B12: BNSF | C12: 4 | D12: E1L104C2 | E12: 11 | F12: Train Mile (TM) - Crew, DRL Expense | G12: 0 | H12: 0 | I12: 0 | J12: 0 | K12: 0 | L12: 0 | M12: 0 | N12: 0 | O12: 0 | P12: 0 | Q12: 0 | R12: 0 | S12: 0 | T12: 0 | U12: 0 | V12: 0 | W12: 0 | X12: 0 | Y12: 0
A13: BNSF-E1L104C3 | B13: BNSF | C13: 4 | D13: E1L104C3 | E13: 12 | F13: Train Mile (TM) - Crew, ROI Expense | G13: 0 | H13: 0 | I13: 0 | J13: 0 | K13: 0 | L13: 0 | M13: 0 | N13: 0 | O13: 0 | P13: 0 | Q13: 0 | R13: 0 | S13: 0 | T13: 0 | U13: 0 | V13: 0 | W13: 0 | X13: 0 | Y13: 0
A14: BNSF-E1L105C1 | B14: BNSF | C14: 4 | D14: E1L105C1 | E14: 13 | F14: Locomotive Unit Mile (LUM), OPR Expense | G14: 3.939208269 | H14: 4.881741047 | I14: 6.450509071 | J14: 4.291265488 | K14: 5.108024597 | L14: 6.548741341 | M14: 6.54618597 | N14: 6.394211769 | O14: 6.403166771 | P14: 4.217326218 | Q14: 3.61113003 | R14: 4.160898319 | S14: 5.002400449 | T14: 4.773503879 | U14: 3.708421459 | V14: 4.743788894 | W14: 7.27149769 | X14: 6.486967785 | Y14: 5.697609201
A15: BNSF-E1L105C2 | B15: BNSF | C15: 4 | D15: E1L105C2 | E15: 14 | F15: Locomotive Unit Mile (LUM), DRL Expense | G15: 0.4384206533 | H15: 0.5756881237 | I15: 0.6175526977 | J15: 0.7475246191 | K15: 0.7236196399 | L15: 0.7660567164 | M15: 0.7733725905 | N15: 0.7936793566 | O15: 0.8887572289 | P15: 0.8248299103 | Q15: 0.8989835117 | R15: 0.879065661 | S15: 0.6998331121 | T15: 0.7614173372 | U15: 0.8070690695 | V15: 0.7546867337 | W15: 0.8148210758 | X15: 0.7816189241 | Y15: 0.6981294621
A16: BNSF-E1L105C3 | B16: BNSF | C16: 4 | D16: E1L105C3 | E16: 15 | F16: Locomotive Unit Mile (LUM), ROI Expense | G16: 0.2463010401 | H16: 0.3429615498 | I16: 0.3837166727 | J16: 0.4245075583 | K16: 0.5085935593 | L16: 0.5734788775 | M16: 0.6004080772 | N16: 0.6128844619 | O16: 0.6590403914 | P16: 0.6232107726 | Q16: 0.5883653708 | R16: 0.6352870769 | S16: 0.7435547747 | T16: 0.5814587418 | U16: 0.5353999212 | V16: 0.671989659 | W16: 0.6802343546 | X16: 0.6522442448 | Y16: 0.7081060759
A17: BNSF-E1L106C1 | B17: BNSF | C17: 4 | D17: E1L106C1 | E17: 16 | F17: CLOR (Carloads Handled) - Other, OPR Expense | G17: 1.150018215 | H17: 1.140371561 | I17: 1.211578131 | J17: 1.577883959 | K17: 1.97719276 | L17: 0.9425858855 | M17: 1.118560195 | N17: 1.061506867 | O17: 1.297632933 | P17: 1.086136301 | Q17: 1.000619379 | R17: 0.9438155945 | S17: 1.004601778 | T17: 1.176904956 | U17: 1.281528159 | V17: 1.074407772 | W17: 1.488628509 | X17: 1.671407844 | Y17: 1.682368231
A18: BNSF-E1L106C2 | B18: BNSF | C18: 4 | D18: E1L106C2 | E18: 17 | F18: CLOR (Carloads Handled) - Other, DRL Expense | G18: 0 | H18: 0 | I18: 0 | J18: 0 | K18: 0 | L18: 0 | M18: 0 | N18: 0 | O18: 0 | P18: 0 | Q18: 0 | R18: 0 | S18: 0 | T18: 0 | U18: 0 | V18: 0 | W18: 0 | X18: 0 | Y18: 0
A19: BNSF-E1L106C3 | B19: BNSF | C19: 4 | D19: E1L106C3 | E19: 18 | F19: CLOR (Carloads Handled) - Other, ROI Expense | G19: 0 | H19: 0 | I19: 0 | J19: 0 | K19: 0 | L19: 0 | M19: 0 | N19: 0 | O19: 0 | P19: 0 | Q19: 0 | R19: 0 | S19: 0 | T19: 0 | U19: 0 | V19: 0 | W19: 0 | X19: 0 | Y19: 0
A20: BNSF-E1L107C1 | B20: BNSF | C20: 4 | D20: E1L107C1 | E20: 19 | F20: CLOR (Carloads Handled) - Clerical, OPR Expense | G20: 0 | H20: 0 | I20: 0 | J20: 0 | K20: 0 | L20: 0 | M20: 0 | N20: 0 | O20: 0 | P20: 0 | Q20: 0 | R20: 0 | S20: 0 | T20: 0 | U20: 0 | V20: 0 | W20: 0 | X20: 0 | Y20: 0
A21: BNSF-E1L107C2 | B21: BNSF | C21: 4 | D21: E1L107C2 | E21: 20 | F21: CLOR (Carloads Handled) - Clerical, DRL Expense | G21: 0 | H21: 0 | I21: 0 | J21: 0 | K21: 0 | L21: 0 | M21: 0 | N21: 0 | O21: 0 | P21: 0 | Q21: 0 | R21: 0 | S21: 0 | T21: 0 | U21: 0 | V21: 0 | W21: 0 | X21: 0 | Y21: 0
A22: BNSF-E1L107C3 | B22: BNSF | C22: 4 | D22: E1L107C3 | E22: 21 | F22: CLOR (Carloads Handled) - Clerical, ROI Expense | G22: 0 | H22: 0 | I22: 0 | J22: 0 | K22: 0 | L22: 0 | M22: 0 | N22: 0 | O22: 0 | P22: 0 | Q22: 0 | R22: 0 | S22: 0 | T22: 0 | U22: 0 | V22: 0 | W22: 0 | X22: 0 | Y22: 0
A23: BNSF-E1L108C1 | B23: BNSF | C23: 4 | D23: E1L108C1 | E23: 22 | F23: CLOT (Carloads Orig Or Term) - Other, OPR Expense | G23: 0 | H23: 0 | I23: 0 | J23: 0 | K23: 0 | L23: 0 | M23: 0 | N23: 0 | O23: 0 | P23: 0 | Q23: 0 | R23: 0 | S23: 0 | T23: 0 | U23: 0 | V23: 0 | W23: 0 | X23: 0 | Y23: 0
A24: BNSF-E1L108C2 | B24: BNSF | C24: 4 | D24: E1L108C2 | E24: 23 | F24: CLOT (Carloads Orig Or Term) - Other, DRL Expense | G24: 0 | H24: 0 | I24: 0 | J24: 0 | K24: 0 | L24: 0 | M24: 0 | N24: 0 | O24: 0 | P24: 0 | Q24: 0 | R24: 0 | S24: 0 | T24: 0 | U24: 0 | V24: 0 | W24: 0 | X24: 0 | Y24: 0
A25: BNSF-E1L108C3 | B25: BNSF | C25: 4 | D25: E1L108C3 | E25: 24 | F25: CLOT (Carloads Orig Or Term) - Other, ROI Expense | G25: 0 | H25: 0 | I25: 0 | J25: 0 | K25: 0 | L25: 0 | M25: 0 | N25: 0 | O25: 0 | P25: 0 | Q25: 0 | R25: 0 | S25: 0 | T25: 0 | U25: 0 | V25: 0 | W25: 0 | X25: 0 | Y25: 0
A26: BNSF-E1L109C1 | B26: BNSF | C26: 4 | D26: E1L109C1 | E26: 25 | F26: CLOT (Carloads Orig Or Term) - Clerical, OPR Expense | G26: 7.490344048 | H26: 7.370987892 | I26: 8.223939896 | J26: 8.050951958 | K26: 8.444256783 | L26: 7.29440403 | M26: 6.616746426 | N26: 5.964375973 | O26: 6.861283779 | P26: 6.511730618 | Q26: 6.406262964 | R26: 5.613459483 | S26: 4.539272644 | T26: 5.089185871 | U26: 4.91559088 | V26: 3.77619073 | W26: 5.428352305 | X26: 6.363787605 | Y26: 6.58964892
A27: BNSF-E1L109C2 | B27: BNSF | C27: 4 | D27: E1L109C2 | E27: 26 | F27: CLOT (Carloads Orig Or Term) - Clerical, DRL Expense | G27: 0 | H27: 0 | I27: 0 | J27: 0 | K27: 0 | L27: 0 | M27: 0 | N27: 0 | O27: 0 | P27: 0 | Q27: 0 | R27: 0 | S27: 0 | T27: 0 | U27: 0 | V27: 0 | W27: 0 | X27: 0 | Y27: 0
A28: BNSF-E1L109C3 | B28: BNSF | C28: 4 | D28: E1L109C3 | E28: 27 | F28: CLOT (Carloads Orig Or Term) - Clerical, ROI Expense | G28: 0 | H28: 0 | I28: 0 | J28: 0 | K28: 0 | L28: 0 | M28: 0 | N28: 0 | O28: 0 | P28: 0 | Q28: 0 | R28: 0 | S28: 0 | T28: 0 | U28: 0 | V28: 0 | W28: 0 | X28: 0 | Y28: 0
A29: BNSF-E1L110C1 | B29: BNSF | C29: 4 | D29: E1L110C1 | E29: 28 | F29: Car Mile (CM) - Clerical, OPR Expense | G29: 0 | H29: 0 | I29: 0 | J29: 0 | K29: 0 | L29: 0 | M29: 0 | N29: 0 | O29: 0 | P29: 0 | Q29: 0 | R29: 0 | S29: 0 | T29: 0 | U29: 0 | V29: 0 | W29: 0 | X29: 0 | Y29: 0
A30: BNSF-E1L110C2 | B30: BNSF | C30: 4 | D30: E1L110C2 | E30: 29 | F30: Car Mile (CM) - Clerical, DRL Expense | G30: 0 | H30: 0 | I30: 0 | J30: 0 | K30: 0 | L30: 0 | M30: 0 | N30: 0 | O30: 0 | P30: 0 | Q30: 0 | R30: 0 | S30: 0 | T30: 0 | U30: 0 | V30: 0 | W30: 0 | X30: 0 | Y30: 0
A31: BNSF-E1L110C3 | B31: BNSF | C31: 4 | D31: E1L110C3 | E31: 30 | F31: Car Mile (CM) - Clerical, ROI Expense | G31: 0 | H31: 0 | I31: 0 | J31: 0 | K31: 0 | L31: 0 | M31: 0 | N31: 0 | O31: 0 | P31: 0 | Q31: 0 | R31: 0 | S31: 0 | T31: 0 | U31: 0 | V31: 0 | W31: 0 | X31: 0 | Y31: 0
A32: BNSF-E1L111C1 | B32: BNSF | C32: 4 | D32: E1L111C1 | E32: 31 | F32: Switch Engine Minutes (SEM), OPR Expense | G32: 4.723186016 | H32: 4.632577896 | I32: 5.474524975 | J32: 5.21346283 | K32: 5.509307861 | L32: 5.768482208 | M32: 6.254780293 | N32: 6.159746647 | O32: 6.32904911 | P32: 5.962458169 | Q32: 6.070425487 | R32: 5.958372898 | S32: 6.31404629 | T32: 6.338034605 | U32: 6.100878881 | V32: 6.189461819 | W32: 7.249195792 | X32: 7.633812009 | Y32: 8.014559396
A33: BNSF-E1L111C2 | B33: BNSF | C33: 4 | D33: E1L111C2 | E33: 32 | F33: Switch Engine Minutes (SEM), DRL Expense | G33: 0.4934609234 | H33: 0.5889404416 | I33: 0.7460315824 | J33: 1.06906116 | K33: 1.12371242 | L33: 0.771587193 | M33: 0.7940924764 | N33: 0.7732420564 | O33: 0.7996914387 | P33: 0.8222642525 | Q33: 0.9452471463 | R33: 1.132394337 | S33: 1.138522603 | T33: 1.228939804 | U33: 1.525920024 | V33: 1.581561156 | W33: 1.605015478 | X33: 1.647598567 | Y33: 1.667606434
A34: BNSF-E1L111C3 | B34: BNSF | C34: 4 | D34: E1L111C3 | E34: 33 | F34: Switch Engine Minutes (SEM), ROI Expense | G34: 1.586444616 | H34: 1.945800185 | I34: 2.245034695 | J34: 2.626105309 | K34: 2.84949851 | L34: 2.72689724 | M34: 2.768100262 | N34: 3.280428886 | O34: 3.553776503 | P34: 3.953106292 | Q34: 4.406525613 | R34: 5.002600866 | S34: 5.618821662 | T34: 4.39583229 | U34: 4.441019679 | V34: 5.98571351 | W34: 6.029886076 | X34: 5.934491264 | Y34: 6.316255832
A35: BNSF-E1L112C1 | B35: BNSF | C35: 4 | D35: E1L112C1 | E35: 34 | F35: Ton Miles In Lake Transfer Service, OPR Expense | G35: 0 | H35: 0 | I35: 0 | J35: 0 | K35: 0 | L35: 0 | M35: 0 | N35: 0 | O35: 0 | P35: 0 | Q35: 0 | R35: 0 | S35: 0 | T35: 0 | U35: 0 | V35: 0 | W35: 0 | X35: 0 | Y35: 0
A36: BNSF-E1L112C2 | B36: BNSF | C36: 4 | D36: E1L112C2 | E36: 35 | F36: Ton Miles In Lake Transfer Service, DRL Expense | G36: 0 | H36: 0 | I36: 0 | J36: 0 | K36: 0 | L36: 0 | M36: 0 | N36: 0 | O36: 0 | P36: 0 | Q36: 0 | R36: 0 | S36: 0 | T36: 0 | U36: 0 | V36: 0 | W36: 0 | X36: 0 | Y36: 0
A37: BNSF-E1L112C3 | B37: BNSF | C37: 4 | D37: E1L112C3 | E37: 36 | F37: Ton Miles In Lake Transfer Service, ROI Expense | G37: 0 | H37: 0 | I37: 0 | J37: 0 | K37: 0 | L37: 0 | M37: 0 | N37: 0 | O37: 0 | P37: 0 | Q37: 0 | R37: 0 | S37: 0 | T37: 0 | U37: 0 | V37: 0 | W37: 0 | X37: 0 | Y37: 0
A38: BNSF-E1L113C1 | B38: BNSF | C38: 4 | D38: E1L113C1 | E38: 37 | F38: Tons Handled at Coal Terminals, OPR Expense | G38: 0 | H38: 0 | I38: 0 | J38: 0 | K38: 0 | L38: 0 | M38: 0 | N38: 0 | O38: 0 | P38: 0 | Q38: 0 | R38: 0 | S38: 0 | T38: 0 | U38: 0 | V38: 0 | W38: 0 | X38: 0 | Y38: 0
A39: BNSF-E1L113C2 | B39: BNSF | C39: 4 | D39: E1L113C2 | E39: 38 | F39: Tons Handled at Coal Terminals, DRL Expense | G39: 0 | H39: 0 | I39: 0 | J39: 0 | K39: 0 | L39: 0 | M39: 0 | N39: 0 | O39: 0 | P39: 0 | Q39: 0 | R39: 0 | S39: 0 | T39: 0 | U39: 0 | V39: 0 | W39: 0 | X39: 0 | Y39: 0
A40: BNSF-E1L113C3 | B40: BNSF | C40: 4 | D40: E1L113C3 | E40: 39 | F40: Tons Handled at Coal Terminals, ROI Expense | G40: 0 | H40: 0 | I40: 0 | J40: 0 | K40: 0 | L40: 0 | M40: 0 | N40: 0 | O40: 0 | P40: 0 | Q40: 0 | R40: 0 | S40: 0 | T40: 0 | U40: 0 | V40: 0 | W40: 0 | X40: 0 | Y40: 0
A41: BNSF-E1L114C1 | B41: BNSF | C41: 4 | D41: E1L114C1 | E41: 40 | F41: Tons Handled at Ore Terminals, OPR Expense | G41: 0.7095872164 | H41: 0.7898263931 | I41: 0.8703616858 | J41: 1.607811213 | K41: 0.4909835458 | L41: 0.5815063119 | M41: 0.4658192098 | N41: 0.5451596379 | O41: 0.3501704037 | P41: 0.3262248361 | Q41: 0.3255836144 | R41: 0.2147262079 | S41: 0.320206298 | T41: 0.3278899759 | U41: 0.3966428552 | V41: 0.2465953848 | W41: 0.2599679322 | X41: 0.3024205173 | Y41: 0.2649747751
A42: BNSF-E1L114C2 | B42: BNSF | C42: 4 | D42: E1L114C2 | E42: 41 | F42: Tons Handled at Ore Terminals, DRL Expense | G42: 0.008447023109 | H42: 0.008830308914 | I42: 0.01014422625 | J42: 0.06387965381 | K42: 0.01706908084 | L42: 0.01408262365 | M42: 0.02214143239 | N42: 0.03808807209 | O42: 0.06059360132 | P42: 0.0729189408 | Q42: 0.09759480684 | R42: 0.07015216949 | S42: 0.08432790779 | T42: 0.09985436637 | U42: 0.1635452291 | V42: 0.09248811296 | W42: 0.1038682971 | X42: 0.1064108025 | Y42: 0.1120876561
A43: BNSF-E1L114C3 | B43: BNSF | C43: 4 | D43: E1L114C3 | E43: 42 | F43: Tons Handled at Ore Terminals, ROI Expense | G43: 0.0637819618 | H43: 0.07311916351 | I43: 0.04272224382 | J43: 0.1894898266 | K43: 0.05286430195 | L43: 0.04312003031 | M43: 0.09912505001 | N43: 0.1757542491 | O43: 0.2914248407 | P43: 0.2606407543 | Q43: 0.3198687377 | R43: 0.2437394385 | S43: 0.3779757847 | T43: 0.326236573 | U43: 0.4530385109 | V43: 0.3352697414 | W43: 0.3867858348 | X43: 0.3586565077 | Y43: 0.4016878093
A44: BNSF-E1L115C1 | B44: BNSF | C44: 4 | D44: E1L115C1 | E44: 43 | F44: Tons Handled at Other Marine Terminals, OPR Expense | G44: 0 | H44: 0 | I44: 0 | J44: 0 | K44: 0 | L44: 0 | M44: 0 | N44: 0 | O44: 0 | P44: 0 | Q44: 0 | R44: 0 | S44: 0 | T44: 0 | U44: 0 | V44: 0 | W44: 0 | X44: 0 | Y44: 0
A45: BNSF-E1L115C2 | B45: BNSF | C45: 4 | D45: E1L115C2 | E45: 44 | F45: Tons Handled at Other Marine Terminals, DRL Expense | G45: 0 | H45: 0 | I45: 0 | J45: 0 | K45: 0 | L45: 0 | M45: 0 | N45: 0 | O45: 0 | P45: 0 | Q45: 0 | R45: 0 | S45: 0 | T45: 0 | U45: 0 | V45: 0 | W45: 0 | X45: 0 | Y45: 0
A46: BNSF-E1L115C3 | B46: BNSF | C46: 4 | D46: E1L115C3 | E46: 45 | F46: Tons Handled at Other Marine Terminals, ROI Expense | G46: 0 | H46: 0 | I46: 0 | J46: 0 | K46: 0 | L46: 0 | M46: 0 | N46: 0 | O46: 0 | P46: 0 | Q46: 0 | R46: 0 | S46: 0 | T46: 0 | U46: 0 | V46: 0 | W46: 0 | X46: 0 | Y46: 0
A47: BNSF-E1L116C1 | B47: BNSF | C47: 4 | D47: E1L116C1 | E47: 46 | F47: Refrigerated Car Miles, OPR Expense | G47: 0.2764847279 | H47: 0.2708843648 | I47: 0.3780779243 | J47: 0.1840794235 | K47: 0.2261172235 | L47: 0.3082629144 | M47: 0.3047213256 | N47: 0.2699812353 | O47: 0.3485122025 | P47: 0.2406451514 | Q47: 0.189559111 | R47: 0.222339193 | S47: 0.2601838863 | T47: 0.2489812233 | U47: 0.2083440285 | V47: 0.2301732778 | W47: 0.305295353 | X47: 0.2654090386 | Y47: 0.2341180054
A48: BNSF-E1L116C2 | B48: BNSF | C48: 4 | D48: E1L116C2 | E48: 47 | F48: Refrigerated Car Miles, DRL Expense | G48: 0 | H48: 0 | I48: 0 | J48: 0 | K48: 0 | L48: 0 | M48: 0 | N48: 0 | O48: 0 | P48: 0 | Q48: 0 | R48: 0 | S48: 0 | T48: 0 | U48: 0 | V48: 0 | W48: 0 | X48: 0 | Y48: 0
A49: BNSF-E1L116C3 | B49: BNSF | C49: 4 | D49: E1L116C3 | E49: 48 | F49: Refrigerated Car Miles, ROI Expense | G49: 0 | H49: 0 | I49: 0 | J49: 0 | K49: 0 | L49: 0 | M49: 0 | N49: 0 | O49: 0 | P49: 0 | Q49: 0 | R49: 0 | S49: 0 | T49: 0 | U49: 0 | V49: 0 | W49: 0 | X49: 0 | Y49: 0
A50: BNSF-E1L117C1 | B50: BNSF | C50: 4 | D50: E1L117C1 | E50: 49 | F50: Protective Service Reefer TCU Days, OPR Expense | G50: 0.06946057081 | H50: 0 | I50: 0.1492789388 | J50: 0.1438645124 | K50: 0.08486939967 | L50: 0.0005168794887 | M50: 0.004513877444 | N50: 0.0016021349 | O50: 0.01842956431 | P50: 0.01626470277 | Q50: 0.009509250357 | R50: 0.01246936081 | S50: 0.0141356142 | T50: 0.0109881612 | U50: 0.0143779338 | V50: 0.06227564767 | W50: 0.03839493371 | X50: 0.1284667644 | Y50: 0.2392423093
A51: BNSF-E1L117C2 | B51: BNSF | C51: 4 | D51: E1L117C2 | E51: 50 | F51: Protective Service Reefer TCU Days, DRL Expense | G51: 0 | H51: 0 | I51: 0 | J51: 0 | K51: 0 | L51: 0 | M51: 0 | N51: 0 | O51: 0 | P51: 0 | Q51: 0 | R51: 0 | S51: 0 | T51: 0 | U51: 0 | V51: 0 | W51: 0 | X51: 0 | Y51: 0
A52: BNSF-E1L117C3 | B52: BNSF | C52: 4 | D52: E1L117C3 | E52: 51 | F52: Protective Service Reefer TCU Days, ROI Expense | G52: 0 | H52: 0 | I52: 0 | J52: 0 | K52: 0 | L52: 0 | M52: 0 | N52: 0 | O52: 0 | P52: 0 | Q52: 0 | R52: 0 | S52: 0 | T52: 0 | U52: 0 | V52: 0 | W52: 0 | X52: 0 | Y52: 0
A53: BNSF-E1L118C1 | B53: BNSF | C53: 4 | D53: E1L118C1 | E53: 52 | F53: Refrigerated TCU Days, OPR Expense | G53: 4.283051968 | H53: 4.228994846 | I53: 3.620135307 | J53: 2.679702282 | K53: 2.108772278 | L53: 0.9908137321 | M53: 0.4849298298 | N53: 0.04538271949 | O53: 0.01388804615 | P53: 0 | Q53: 0 | R53: 0 | S53: 0 | T53: 0 | U53: 0 | V53: 0 | W53: 0 | X53: 0 | Y53: 0
A54: BNSF-E1L118C2 | B54: BNSF | C54: 4 | D54: E1L118C2 | E54: 53 | F54: Refrigerated TCU Days, DRL Expense | G54: 2.118589401 | H54: 1.773337603 | I54: 1.465908766 | J54: 1.309941292 | K54: 0.822340548 | L54: 0.2610990703 | M54: 0.1642878354 | N54: 0.006925550289 | O54: 0.002242419869 | P54: 0 | Q54: 0 | R54: 0 | S54: 0 | T54: 0 | U54: 0 | V54: 0 | W54: 0 | X54: 0 | Y54: 0
A55: BNSF-E1L118C3 | B55: BNSF | C55: 4 | D55: E1L118C3 | E55: 54 | F55: Refrigerated TCU Days, ROI Expense | G55: 0.07680786401 | H55: 0.103843607 | I55: 0.09588415921 | J55: 0.05720986426 | K55: 0.04222116247 | L55: 0.01821085997 | M55: 0.008819079027 | N55: 0.0008201198652 | O55: 0.2435690016 | P55: 0.2007310478 | Q55: 0.1675631591 | R55: 0.1619255429 | S55: 0.171966104 | T55: 0.1229044602 | U55: 0.08476279975 | V55: 0.08700455646 | W55: 0.07368622553 | X55: 0.06059281466 | Y55: 0.04424156118
A56: BNSF-E1L119C1 | B56: BNSF | C56: 4 | D56: E1L119C1 | E56: 55 | F56: Other (Non-Refrigerated) TCU Days, OPR Expense | G56: 1.590965629 | H56: 1.659994602 | I56: 1.494488001 | J56: 1.258878827 | K56: 1.348777056 | L56: 1.718782544 | M56: 1.224209428 | N56: 0.8522637486 | O56: 0.832634449 | P56: 0.7343093416 | Q56: 0.706496624 | R56: 0.6164365874 | S56: 0.6753596535 | T56: 0.6492562807 | U56: 0.5978846123 | V56: 0.6842559577 | W56: 0.9289447711 | X56: 1.050895118 | Y56: 0.8435825826
A57: BNSF-E1L119C2 | B57: BNSF | C57: 4 | D57: E1L119C2 | E57: 56 | F57: Other (Non-Refrigerated) TCU Days, DRL Expense | G57: 0.485107094 | H57: 1.442127347 | I57: 0.9731173515 | J57: 0.8136193156 | K57: 0.5843054056 | L57: 0.461204052 | M57: 0.4342107475 | N57: 0.1454573125 | O57: 0.1386530846 | P57: 0.119237923 | Q57: 0.09718415496 | R57: 0.1468224279 | S57: 0.1264673849 | T57: 0.1677752742 | U57: 0.1449284042 | V57: 0.1322199368 | W57: 0.1967097986 | X57: 0.1219858142 | Y57: 0.07563619872
A58: BNSF-E1L119C3 | B58: BNSF | C58: 4 | D58: E1L119C3 | E58: 57 | F58: Other (Non-Refrigerated) TCU Days, ROI Expense | G58: 0.04416116327 | H58: 0.05027474836 | I58: 0.0603784509 | J58: 0.05659667775 | K58: 0.06458304822 | L58: 0.07035215199 | M58: 0.06156065315 | N58: 0.05391811952 | O58: 0.01349928323 | P58: 0.01071369957 | Q58: 0.009145527571 | R58: 0.009546331428 | S58: 0.01217195691 | T58: 0.008815125858 | U58: 0.007175755976 | V58: 0.009711349557 | W58: 0.01352194714 | X58: 0.01473677899 | Y58: 0.01202956364
A59: BNSF-E1L120C1 | B59: BNSF | C59: 4 | D59: E1L120C1 | E59: 58 | F59: TCUs Loaded And Unloaded (L&UL), OPR Expense | G59: 46.68812561 | H59: 51.16360474 | I59: 52.69999695 | J59: 46.86380005 | K59: 48.04691696 | L59: 44.69587708 | M59: 42.80116272 | N59: 41.79478073 | O59: 43.49960709 | P59: 42.14062749 | Q59: 42.48944688 | R59: 48.12458503 | S59: 50.56581175 | T59: 52.8068616 | U59: 51.50478371 | V59: 57.00500531 | W59: 66.69749509 | X59: 71.48793095 | Y59: 70.87811394
A60: BNSF-E1L120C2 | B60: BNSF | C60: 4 | D60: E1L120C2 | E60: 59 | F60: TCUs Loaded And Unloaded (L&UL), DRL Expense | G60: 1.217429757 | H60: 1.633720517 | I60: 1.881103396 | J60: 2.819202662 | K60: 3.19519186 | L60: 3.128938675 | M60: 3.2386024 | N60: 3.279356718 | O60: 3.369253159 | P60: 3.265240591 | Q60: 3.511095786 | R60: 3.585687614 | S60: 3.611482531 | T60: 4.044413893 | U60: 4.016364922 | V60: 4.177397714 | W60: 4.801605321 | X60: 5.599745642 | Y60: 5.367504289
A61: BNSF-E1L120C3 | B61: BNSF | C61: 4 | D61: E1L120C3 | E61: 60 | F61: TCUs Loaded And Unloaded (L&UL), ROI Expense | G61: 3.148435593 | H61: 5.28302145 | I61: 6.484524727 | J61: 8.856034279 | K61: 8.674282074 | L61: 9.036592484 | M61: 8.058950424 | N61: 8.638087273 | O61: 8.147031784 | P61: 7.62859205 | Q61: 7.175221799 | R61: 8.084032271 | S61: 10.0713553 | T61: 8.454371708 | U61: 7.131039236 | V61: 9.972446411 | W61: 12.1388979 | X61: 13.33632938 | Y61: 13.81814834
A62: BNSF-E1L121C1 | B62: BNSF | C62: 4 | D62: E1L121C1 | E62: 61 | F62: MVUs Loaded And Unloaded (L&UL), OPR Expense | G62: 7.890044212 | H62: 9.935487747 | I62: 16.21939659 | J62: 25.3519268 | K62: 22.11470413 | L62: 19.31392288 | M62: 17.05837059 | N62: 17.31286812 | O62: 15.00913906 | P62: 16.79372746 | Q62: 16.20100192 | R62: 15.99673867 | S62: 18.30641458 | T62: 20.19570639 | U62: 19.91230154 | V62: 20.46436505 | W62: 24.33676395 | X62: 26.89803942 | Y62: 28.01647715
A63: BNSF-E1L121C2 | B63: BNSF | C63: 4 | D63: E1L121C2 | E63: 62 | F63: MVUs Loaded And Unloaded (L&UL), DRL Expense | G63: 0 | H63: 0 | I63: 0 | J63: 0 | K63: 0 | L63: 0 | M63: 0 | N63: 0 | O63: 0 | P63: 0 | Q63: 0 | R63: 0 | S63: 0 | T63: 0 | U63: 0 | V63: 0 | W63: 0 | X63: 0 | Y63: 0
A64: BNSF-E1L121C3 | B64: BNSF | C64: 4 | D64: E1L121C3 | E64: 63 | F64: MVUs Loaded And Unloaded (L&UL), ROI Expense | G64: 0 | H64: 0 | I64: 0 | J64: 0 | K64: 0 | L64: 0 | M64: 0 | N64: 0 | O64: 0 | P64: 0 | Q64: 0 | R64: 0 | S64: 0 | T64: 0 | U64: 0 | V64: 0 | W64: 0 | X64: 0 | Y64: 0
A65: BNSF-E1L122C1 | B65: BNSF | C65: 4 | D65: E1L122C1 | E65: 64 | F65: TCUs Picked Up and Delivered (PU&D), OPR Expense | G65: 169.7172394 | H65: 266.7109375 | I65: 208.6629791 | J65: 125.599411 | K65: 119.1667023 | L65: 187.5929108 | M65: 142.8159332 | N65: 225.7482452 | O65: 285.3138428 | P65: 272.5643372 | Q65: 271.9089577 | R65: 353.7413723 | S65: 362.7721757 | T65: 274.3456572 | U65: 279.6420456 | V65: 366.3930632 | W65: 862.0861462 | X65: 916.0671335 | Y65: 926.1525548
A66: =B66&"-"&D66 -> BNSF-E1L122C2 | B66: BNSF | C66: 4 | D66: E1L122C2 | E66: 65 | F66: TCUs Picked Up and Delivered (PU&D), DRL Expense | G66: 0 | H66: 0 | I66: 0 | J66: 0 | K66: 0 | L66: 0 | M66: 0 | N66: 0 | O66: 0 | P66: 0 | Q66: 0 | R66: 0 | S66: 0 | T66: 0 | U66: 0 | V66: 0 | W66: 0 | X66: 0 | Y66: 0
A67: BNSF-E1L122C3 | B67: BNSF | C67: 4 | D67: E1L122C3 | E67: 66 | F67: TCUs Picked Up and Delivered (PU&D), ROI Expense | G67: 0 | H67: 0 | I67: 0 | J67: 0 | K67: 0 | L67: 0 | M67: 0 | N67: 0 | O67: 0 | P67: 0 | Q67: 0 | R67: 0 | S67: 0 | T67: 0 | U67: 0 | V67: 0 | W67: 0 | X67: 0 | Y67: 0
A68: BNSF-E1L201C1 | B68: BNSF | C68: 4 | D68: E1L201C1 | E68: 67 | F68: CM(R), OPR Expense, Railroad-Owned, BOX - 40 FT | G68: 0.1049181074 | H68: 0.09636228532 | I68: 0.04539779201 | J68: 0.04519185424 | K68: 0.04230519384 | L68: 0.04655314982 | M68: 0.05067988858 | N68: 0.05456263945 | O68: 0.05882501975 | P68: 0.06559765234 | Q68: 0.04476335659 | R68: 0.04058203145 | S68: 0.04326815632 | T68: 0.0576970651 | U68: 0.06212416291 | V68: 0.05208766114 | W68: 0.04607507961 | X68: 0.0389166477 | Y68: 0.03222420911
A69: BNSF-E1L201C2 | B69: BNSF | C69: 4 | D69: E1L201C2 | E69: 68 | F69: CM(R), DRL Expense, Railroad-Owned, BOX - 40 FT | G69: 0.06277691573 | H69: 0.06379905343 | I69: 0.0677158013 | J69: 0.05893599987 | K69: 0.05051594973 | L69: 0.0419691503 | M69: 0.03888342157 | N69: 0.06218118593 | O69: 0.04406766593 | P69: 0.05494328035 | Q69: 0.03586822496 | R69: 0.01965239026 | S69: 0.03075220632 | T69: 0.03607821487 | U69: 0.04204977319 | V69: 0.02954691063 | W69: 0.03344516802 | X69: 0.04070188811 | Y69: 0.04425457337
A70: BNSF-E1L201C3 | B70: BNSF | C70: 4 | D70: E1L201C3 | E70: 69 | F70: CM(R), ROI Expense, Railroad-Owned, BOX - 40 FT | G70: 0.01291880105 | H70: 0.01845540851 | I70: 0.01943307556 | J70: 0.001483321423 | K70: 0.001321491669 | L70: 0.001214982942 | M70: 0.001323181554 | N70: 0.00185609085 | O70: 0.00145406567 | P70: 0.001687699372 | Q70: 0.0009985584399 | R70: 0.0001267009648 | S70: 0.001096683862 | T70: 0.0009543290855 | U70: 0.001068875385 | V70: 0.00114693349 | W70: 0.0009203694275 | X70: 0.0008051194689 | Y70: 0.000997299731
A71: BNSF-E1L201C4 | B71: BNSF | C71: 4 | D71: E1L201C4 | E71: 70 | F71: CM(Y), OPR Expense, Railroad-Owned, BOX - 40 FT | G71: 0.2727873027 | H71: 0.2505420446 | I71: 0.118034333 | J71: 0.1174987257 | K71: 0.1099934801 | L71: 0.1210382879 | M71: 0.1317676157 | N71: 0.1418629736 | O71: 0.1529452503 | P71: 0.1705538961 | Q71: 0.1163847271 | R71: 0.1055132818 | S71: 0.1124972064 | T71: 0.1500123693 | U71: 0.1615228236 | V71: 0.135427919 | W71: 0.119795207 | X71: 0.101183284 | Y71: 0.08378294369
A72: BNSF-E1L201C5 | B72: BNSF | C72: 4 | D72: E1L201C5 | E72: 71 | F72: CM(Y), DRL Expense, Railroad-Owned, BOX - 40 FT | G72: 0.1632202417 | H72: 0.165877372 | I72: 0.1760611832 | J72: 0.1532337666 | K72: 0.1313413531 | L72: 0.1091195866 | M72: 0.101096876 | N72: 0.1616712064 | O72: 0.114575766 | P72: 0.1428525289 | Q72: 0.09325738491 | R72: 0.05109621468 | S72: 0.07995573644 | T72: 0.09380335867 | U72: 0.1093294103 | V72: 0.07682196765 | W72: 0.08695743686 | X72: 0.1058249091 | Y72: 0.1150618908
A73: BNSF-E1L201C6 | B73: BNSF | C73: 4 | D73: E1L201C6 | E73: 72 | F73: CM(Y), ROI Expense, Railroad-Owned, BOX - 40 FT | G73: 0.03358891979 | H73: 0.04798398167 | I73: 0.05052606016 | J73: 0.003856641939 | K73: 0.00343587622 | L73: 0.003158947686 | M73: 0.003440272529 | N73: 0.004825843498 | O73: 0.003780570347 | P73: 0.004388018367 | Q73: 0.002596251944 | R73: 0.0003294225084 | S73: 0.002851378041 | T73: 0.002481255622 | U73: 0.002779076001 | V73: 0.002982027074 | W73: 0.002392960511 | X73: 0.002093310619 | Y73: 0.0025929793
A74: BNSF-E1L201C7 | B74: BNSF | C74: 4 | D74: E1L201C7 | E74: 73 | F74: CD(R), OPR Expense, Railroad-Owned, BOX - 40 FT | G74: 13.78468895 | H74: 12.45369244 | I74: 5.811598778 | J74: 5.868088722 | K74: 5.519076347 | L74: 6.035566807 | M74: 6.463885784 | N74: 6.881786346 | O74: 7.343050003 | P74: 8.280257987 | Q74: 5.854758247 | R74: 5.441734203 | S74: 5.732658815 | T74: 7.442348747 | U74: 7.811746702 | V74: 6.405588085 | W74: 5.443384516 | X74: 4.457339 | Y74: 3.505859465
A75: BNSF-E1L201C8 | B75: BNSF | C75: 4 | D75: E1L201C8 | E75: 74 | F75: CD(R), DRL Expense, Railroad-Owned, BOX - 40 FT | G75: 17.67196465 | H75: 18.27475548 | I75: 18.34009171 | J75: 9.901443481 | K75: 15.27764988 | L75: 13.2780714 | M75: 13.53951073 | N75: 16.84253693 | O75: 19.65459824 | P75: 20.74256156 | Q75: 17.61243719 | R75: 10.16325646 | S75: 11.77306791 | T75: 11.26281409 | U75: 8.2927891 | V75: 11.28068914 | W75: 18.29468727 | X75: 16.02573719 | Y75: 13.94833961
A76: BNSF-E1L201C9 | B76: BNSF | C76: 4 | D76: E1L201C9 | E76: 75 | F76: CD(R), ROI Expense, Railroad-Owned, BOX - 40 FT | G76: 2.345055342 | H76: 3.35996151 | I76: 3.586624861 | J76: 0.1973602772 | K76: 0.1737422347 | L76: 0.1516620666 | M76: 0.1708108187 | N76: 0.2360922843 | O76: 0.1772542298 | P76: 0.2261446027 | Q76: 0.1402027879 | R76: 0.01647951996 | S76: 0.1405971786 | T76: 0.1223016435 | U76: 0.1296272975 | V76: 0.137714616 | W76: 0.1046718519 | X76: 0.08957312854 | Y76: 0.1014542824
A77: BNSF-E1L201C10 | B77: BNSF | C77: 4 | D77: E1L201C10 | E77: 76 | F77: CD(Y), OPR Expense, Railroad-Owned, BOX - 40 FT | G77: 13.78468895 | H77: 12.45369339 | I77: 5.811598778 | J77: 5.868088722 | K77: 5.519075871 | L77: 6.035567284 | M77: 6.463885784 | N77: 6.881786346 | O77: 7.34305048 | P77: 8.280257987 | Q77: 5.854758247 | R77: 5.441734203 | S77: 5.732658815 | T77: 7.442348747 | U77: 7.811746702 | V77: 6.405588085 | W77: 5.443384516 | X77: 4.457339 | Y77: 3.505859465
A78: BNSF-E1L201C11 | B78: BNSF | C78: 4 | D78: E1L201C11 | E78: 77 | F78: CD(Y), DRL Expense, Railroad-Owned, BOX - 40 FT | G78: 17.67196465 | H78: 18.27475357 | I78: 18.3400898 | J78: 9.901443481 | K78: 15.27764988 | L78: 13.2780714 | M78: 13.53951073 | N78: 16.84253502 | O78: 19.65460014 | P78: 20.74256156 | Q78: 17.61243719 | R78: 10.16325646 | S78: 11.77306791 | T78: 11.26281409 | U78: 8.2927891 | V78: 11.28068914 | W78: 18.29468727 | X78: 16.02573719 | Y78: 13.94833961
A79: BNSF-E1L201C12 | B79: BNSF | C79: 4 | D79: E1L201C12 | E79: 78 | F79: CD(Y), ROI Expense, Railroad-Owned, BOX - 40 FT | G79: 2.345055342 | H79: 3.359961271 | I79: 3.586625099 | J79: 0.1973602623 | K79: 0.1737422496 | L79: 0.1516620666 | M79: 0.1708108187 | N79: 0.2360922396 | O79: 0.1772542149 | P79: 0.2261446027 | Q79: 0.1402027879 | R79: 0.01647951996 | S79: 0.1405971786 | T79: 0.1223016435 | U79: 0.1296272975 | V79: 0.137714616 | W79: 0.1046718519 | X79: 0.08957312854 | Y79: 0.1014542824
A80: BNSF-E1L201C13 | B80: BNSF | C80: 4 | D80: E1L201C13 | E80: 79 | F80: CM(R), DRL Expense, Privately-Owned, BOX - 40 FT | G80: 0.3203511238 | H80: 0.3449330926 | I80: 0.3117831647 | J80: 0.3430604935 | K80: 0.208725661 | L80: 0.2497020364 | M80: 0.2414479107 | N80: 0.2136636376 | O80: 0.2517135739 | P80: 0.2350677778 | Q80: 0.2561730488 | R80: 0.2530692911 | S80: 0.2837686359 | T80: 0.2652863539 | U80: 0.2463300876 | V80: 0.2367700245 | W80: 0.246859783 | X80: 0.2373875548 | Y80: 0.1622102479
A81: BNSF-E1L202C1 | B81: BNSF | C81: 4 | D81: E1L202C1 | E81: 80 | F81: CM(R), OPR Expense, Railroad-Owned, BOX - 50 FT | G81: 0.1049181074 | H81: 0.09636228532 | I81: 0.04539779201 | J81: 0.04519185424 | K81: 0.04230519384 | L81: 0.04655314982 | M81: 0.05067988858 | N81: 0.05456263945 | O81: 0.05882501975 | P81: 0.06559765234 | Q81: 0.04476335659 | R81: 0.04058203145 | S81: 0.04326815632 | T81: 0.0576970651 | U81: 0.06212416291 | V81: 0.05208766114 | W81: 0.04607507961 | X81: 0.0389166477 | Y81: 0.03222420911
A82: BNSF-E1L202C2 | B82: BNSF | C82: 4 | D82: E1L202C2 | E82: 81 | F82: CM(R), DRL Expense, Railroad-Owned, BOX - 50 FT | G82: 0.06277691573 | H82: 0.06379905343 | I82: 0.0677158013 | J82: 0.05893599987 | K82: 0.05051594973 | L82: 0.0419691503 | M82: 0.03888342157 | N82: 0.06218118593 | O82: 0.04406766593 | P82: 0.05494328035 | Q82: 0.03586822496 | R82: 0.01965239026 | S82: 0.03075220632 | T82: 0.03607821487 | U82: 0.04204977319 | V82: 0.02954691063 | W82: 0.03344516802 | X82: 0.04070188811 | Y82: 0.04425457337
A83: BNSF-E1L202C3 | B83: BNSF | C83: 4 | D83: E1L202C3 | E83: 82 | F83: CM(R), ROI Expense, Railroad-Owned, BOX - 50 FT | G83: 0.01291880105 | H83: 0.01845540851 | I83: 0.01943307556 | J83: 0.001483321423 | K83: 0.001321491669 | L83: 0.001214982942 | M83: 0.001323181554 | N83: 0.00185609085 | O83: 0.00145406567 | P83: 0.001687699372 | Q83: 0.0009985584399 | R83: 0.0001267009648 | S83: 0.001096683862 | T83: 0.0009543290855 | U83: 0.001068875385 | V83: 0.00114693349 | W83: 0.0009203694275 | X83: 0.0008051194689 | Y83: 0.000997299731
A84: BNSF-E1L202C4 | B84: BNSF | C84: 4 | D84: E1L202C4 | E84: 83 | F84: CM(Y), OPR Expense, Railroad-Owned, BOX - 50 FT | G84: 0.2727873027 | H84: 0.2505420446 | I84: 0.118034333 | J84: 0.1174987257 | K84: 0.1099934801 | L84: 0.1210382879 | M84: 0.1317676157 | N84: 0.1418629736 | O84: 0.1529452503 | P84: 0.1705538961 | Q84: 0.1163847271 | R84: 0.1055132818 | S84: 0.1124972064 | T84: 0.1500123693 | U84: 0.1615228236 | V84: 0.135427919 | W84: 0.119795207 | X84: 0.101183284 | Y84: 0.08378294369
A85: BNSF-E1L202C5 | B85: BNSF | C85: 4 | D85: E1L202C5 | E85: 84 | F85: CM(Y), DRL Expense, Railroad-Owned, BOX - 50 FT | G85: 0.1632202417 | H85: 0.165877372 | I85: 0.1760611832 | J85: 0.1532337666 | K85: 0.1313413531 | L85: 0.1091195866 | M85: 0.101096876 | N85: 0.1616712064 | O85: 0.114575766 | P85: 0.1428525289 | Q85: 0.09325738491 | R85: 0.05109621468 | S85: 0.07995573644 | T85: 0.09380335867 | U85: 0.1093294103 | V85: 0.07682196765 | W85: 0.08695743686 | X85: 0.1058249091 | Y85: 0.1150618908
A86: BNSF-E1L202C6 | B86: BNSF | C86: 4 | D86: E1L202C6 | E86: 85 | F86: CM(Y), ROI Expense, Railroad-Owned, BOX - 50 FT | G86: 0.03358891979 | H86: 0.04798398167 | I86: 0.05052606016 | J86: 0.003856641939 | K86: 0.00343587622 | L86: 0.003158947686 | M86: 0.003440272529 | N86: 0.004825843498 | O86: 0.003780570347 | P86: 0.004388018367 | Q86: 0.002596251944 | R86: 0.0003294225084 | S86: 0.002851378041 | T86: 0.002481255622 | U86: 0.002779076001 | V86: 0.002982027074 | W86: 0.002392960511 | X86: 0.002093310619 | Y86: 0.0025929793
A87: BNSF-E1L202C7 | B87: BNSF | C87: 4 | D87: E1L202C7 | E87: 86 | F87: CD(R), OPR Expense, Railroad-Owned, BOX - 50 FT | G87: 13.78468895 | H87: 12.45369244 | I87: 5.811598778 | J87: 5.868088722 | K87: 5.519076347 | L87: 6.035566807 | M87: 6.463885784 | N87: 6.881786346 | O87: 7.343050003 | P87: 8.280257987 | Q87: 5.854758247 | R87: 5.441734203 | S87: 5.732658815 | T87: 7.442348747 | U87: 7.811746702 | V87: 6.405588085 | W87: 5.443384516 | X87: 4.457339 | Y87: 3.505859465
A88: BNSF-E1L202C8 | B88: BNSF | C88: 4 | D88: E1L202C8 | E88: 87 | F88: CD(R), DRL Expense, Railroad-Owned, BOX - 50 FT | G88: 17.67196465 | H88: 18.27475548 | I88: 18.34009171 | J88: 9.901443481 | K88: 15.27764988 | L88: 13.2780714 | M88: 13.53951073 | N88: 16.84253693 | O88: 19.65459824 | P88: 20.74256156 | Q88: 17.61243719 | R88: 10.16325646 | S88: 11.77306791 | T88: 11.26281409 | U88: 8.2927891 | V88: 11.28068914 | W88: 18.29468727 | X88: 16.02573719 | Y88: 13.94833961
A89: BNSF-E1L202C9 | B89: BNSF | C89: 4 | D89: E1L202C9 | E89: 88 | F89: CD(R), ROI Expense, Railroad-Owned, BOX - 50 FT | G89: 2.345055342 | H89: 3.35996151 | I89: 3.586624861 | J89: 0.1973602772 | K89: 0.1737422347 | L89: 0.1516620666 | M89: 0.1708108187 | N89: 0.2360922843 | O89: 0.1772542298 | P89: 0.2261446027 | Q89: 0.1402027879 | R89: 0.01647951996 | S89: 0.1405971786 | T89: 0.1223016435 | U89: 0.1296272975 | V89: 0.137714616 | W89: 0.1046718519 | X89: 0.08957312854 | Y89: 0.1014542824
A90: BNSF-E1L202C10 | B90: BNSF | C90: 4 | D90: E1L202C10 | E90: 89 | F90: CD(Y), OPR Expense, Railroad-Owned, BOX - 50 FT | G90: 13.78468895 | H90: 12.45369339 | I90: 5.811598778 | J90: 5.868088722 | K90: 5.519075871 | L90: 6.035567284 | M90: 6.463885784 | N90: 6.881786346 | O90: 7.34305048 | P90: 8.280257987 | Q90: 5.854758247 | R90: 5.441734203 | S90: 5.732658815 | T90: 7.442348747 | U90: 7.811746702 | V90: 6.405588085 | W90: 5.443384516 | X90: 4.457339 | Y90: 3.505859465
A91: BNSF-E1L202C11 | B91: BNSF | C91: 4 | D91: E1L202C11 | E91: 90 | F91: CD(Y), DRL Expense, Railroad-Owned, BOX - 50 FT | G91: 17.67196465 | H91: 18.27475357 | I91: 18.3400898 | J91: 9.901443481 | K91: 15.27764988 | L91: 13.2780714 | M91: 13.53951073 | N91: 16.84253502 | O91: 19.65460014 | P91: 20.74256156 | Q91: 17.61243719 | R91: 10.16325646 | S91: 11.77306791 | T91: 11.26281409 | U91: 8.2927891 | V91: 11.28068914 | W91: 18.29468727 | X91: 16.02573719 | Y91: 13.94833961
A92: BNSF-E1L202C12 | B92: BNSF | C92: 4 | D92: E1L202C12 | E92: 91 | F92: CD(Y), ROI Expense, Railroad-Owned, BOX - 50 FT | G92: 2.345055342 | H92: 3.359961271 | I92: 3.586625099 | J92: 0.1973602623 | K92: 0.1737422496 | L92: 0.1516620666 | M92: 0.1708108187 | N92: 0.2360922396 | O92: 0.1772542149 | P92: 0.2261446027 | Q92: 0.1402027879 | R92: 0.01647951996 | S92: 0.1405971786 | T92: 0.1223016435 | U92: 0.1296272975 | V92: 0.137714616 | W92: 0.1046718519 | X92: 0.08957312854 | Y92: 0.1014542824
A93: BNSF-E1L202C13 | B93: BNSF | C93: 4 | D93: E1L202C13 | E93: 92 | F93: CM(R), DRL Expense, Privately-Owned, BOX - 50 FT | G93: 0.3203511238 | H93: 0.3449330926 | I93: 0.3117831647 | J93: 0.3430604935 | K93: 0.208725661 | L93: 0.2497020364 | M93: 0.2414479107 | N93: 0.2136636376 | O93: 0.2517135739 | P93: 0.2350677778 | Q93: 0.2561730488 | R93: 0.2530692911 | S93: 0.2837686359 | T93: 0.2652863539 | U93: 0.2463300876 | V93: 0.2367700245 | W93: 0.246859783 | X93: 0.2373875548 | Y93: 0.1622102479
A94: BNSF-E1L203C1 | B94: BNSF | C94: 4 | D94: E1L203C1 | E94: 93 | F94: CM(R), OPR Expense, Railroad-Owned, BOX - EQUIPPED | G94: 0.03205767646 | H94: 0.03372004628 | I94: 0.03801887855 | J94: 0.04132400081 | K94: 0.04124318808 | L94: 0.04121959582 | M94: 0.04352386668 | N94: 0.04461487755 | O94: 0.04861255735 | P94: 0.04882123519 | Q94: 0.04983476337 | R94: 0.04786972423 | S94: 0.05660022776 | T94: 0.06229651464 | U94: 0.06882721298 | V94: 0.06897582588 | W94: 0.07241322468 | X94: 0.07734188476 | Y94: 0.07717329781
A95: BNSF-E1L203C2 | B95: BNSF | C95: 4 | D95: E1L203C2 | E95: 94 | F95: CM(R), DRL Expense, Railroad-Owned, BOX - EQUIPPED | G95: 0.03185941279 | H95: 0.02864310145 | I95: 0.03459897637 | J95: 0.03460256755 | K95: 0.03349062055 | L95: 0.03387884796 | M95: 0.0304339081 | N95: 0.03938844055 | O95: 0.03481460363 | P95: 0.03957961892 | Q95: 0.03065085969 | R95: 0.03189744661 | S95: 0.02654634012 | T95: 0.0286092757 | U95: 0.03111822065 | V95: 0.0238015529 | W95: 0.0279673181 | X95: 0.03115250191 | Y95: 0.02931883377
A96: BNSF-E1L203C3 | B96: BNSF | C96: 4 | D96: E1L203C3 | E96: 95 | F96: CM(R), ROI Expense, Railroad-Owned, BOX - EQUIPPED | G96: 0.01186812203 | H96: 0.009250954725 | I96: 0.01015953347 | J96: 0.01203527488 | K96: 0.0187231116 | L96: 0.01610553265 | M96: 0.02511891723 | N96: 0.02198804542 | O96: 0.01986496523 | P96: 0.0162720616 | Q96: 0.01408472934 | R96: 0.01714402236 | S96: 0.02101632958 | T96: 0.02003972743 | U96: 0.01962514629 | V96: 0.02499630739 | W96: 0.02588198242 | X96: 0.02710080305 | Y96: 0.03028747539
A97: BNSF-E1L203C4 | B97: BNSF | C97: 4 | D97: E1L203C4 | E97: 96 | F97: CM(Y), OPR Expense, Railroad-Owned, BOX - EQUIPPED | G97: 0.08335001022 | H97: 0.08767215163 | I97: 0.09884902835 | J97: 0.1074423939 | K97: 0.1072323322 | L97: 0.1071707234 | M97: 0.1131620631 | N97: 0.1159986779 | O97: 0.1263924688 | P97: 0.1269352115 | Q97: 0.1295703848 | R97: 0.124461283 | S97: 0.1471605922 | T97: 0.1619709381 | U97: 0.1789507537 | V97: 0.1793371473 | W97: 0.1882743842 | X97: 0.2010889004 | Y97: 0.2006505743
A98: BNSF-E1L203C5 | B98: BNSF | C98: 4 | D98: E1L203C5 | E98: 97 | F98: CM(Y), DRL Expense, Railroad-Owned, BOX - EQUIPPED | G98: 0.08283448964 | H98: 0.07447206229 | I98: 0.08995719254 | J98: 0.08996653557 | K98: 0.0870757401 | L98: 0.08808480948 | M98: 0.07912832499 | N98: 0.1024099514 | O98: 0.09051783383 | P98: 0.1029070092 | Q98: 0.07969223519 | R98: 0.08293336119 | S98: 0.06902048432 | T98: 0.07438411682 | U98: 0.0809073737 | V98: 0.06188403754 | W98: 0.07271502706 | X98: 0.08099650496 | Y98: 0.07622896781
A99: BNSF-E1L203C6 | B99: BNSF | C99: 4 | D99: E1L203C6 | E99: 98 | F99: CM(Y), ROI Expense, Railroad-Owned, BOX - EQUIPPED | G99: 0.03085710108 | H99: 0.02405244485 | I99: 0.02641479298 | J99: 0.03129163384 | K99: 0.04868013039 | L99: 0.04187429324 | M99: 0.06530934572 | N99: 0.0571689643 | O99: 0.05164880306 | P99: 0.04230736015 | Q99: 0.03662029629 | R99: 0.04457445813 | S99: 0.0546424569 | T99: 0.05210329131 | U99: 0.05102538037 | V99: 0.06499039921 | W99: 0.06729315428 | X99: 0.07046208793 | Y99: 0.07874743602
A100: BNSF-E1L203C7 | B100: BNSF | C100: 4 | D100: E1L203C7 | E100: 99 | F100: CD(R), OPR Expense, Railroad-Owned, BOX - EQUIPPED | G100: 3.821530342 | H100: 4.029946804 | I100: 4.595180035 | J100: 5.188118935 | K100: 5.275675297 | L100: 5.147433281 | M100: 5.208911419 | N100: 5.039674759 | O100: 5.249611855 | P100: 5.18314205 | Q100: 5.343002415 | R100: 5.187947857 | S100: 6.123516362 | T100: 7.402858648 | U100: 9.389172156 | V100: 10.84946907 | W100: 11.32643839 | X100: 11.92367696 | Y100: 11.93511658
A101: BNSF-E1L203C8 | B101: BNSF | C101: 4 | D101: E1L203C8 | E101: 100 | F101: CD(R), DRL Expense, Railroad-Owned, BOX - EQUIPPED | G101: 12.8889761 | H101: 12.88207245 | I101: 12.95880604 | J101: 10.86043262 | K101: 11.99455738 | L101: 10.84926891 | M101: 11.38444901 | N101: 11.78342438 | O101: 13.9206419 | P101: 11.9635208 | Q101: 11.40471558 | R101: 10.60142851 | S101: 10.81539576 | T101: 15.43111897 | U101: 14.45390948 | V101: 17.07515763 | W101: 22.25252518 | X101: 26.98500838 | Y101: 21.28503092
A102: BNSF-E1L203C9 | B102: BNSF | C102: 4 | D102: E1L203C9 | E102: 101 | F102: CD(R), ROI Expense, Railroad-Owned, BOX - EQUIPPED | G102: 2.027212381 | H102: 1.621132851 | I102: 1.785770893 | J102: 2.281464577 | K102: 3.540608168 | L102: 2.707005978 | M102: 4.268298149 | N102: 3.494618654 | O102: 2.922468185 | P102: 2.578809487 | Q102: 2.288369262 | R102: 2.580365997 | S102: 3.313320619 | T102: 4.485430376 | U102: 4.702809173 | V102: 5.577881376 | W102: 5.646599604 | X102: 6.180464565 | Y102: 6.809695406
A103: BNSF-E1L203C10 | B103: BNSF | C103: 4 | D103: E1L203C10 | E103: 102 | F103: CD(Y), OPR Expense, Railroad-Owned, BOX - EQUIPPED | G103: 3.821530819 | H103: 4.029946804 | I103: 4.595180035 | J103: 5.188119411 | K103: 5.275675297 | L103: 5.147433281 | M103: 5.208911419 | N103: 5.039674759 | O103: 5.249611855 | P103: 5.18314205 | Q103: 5.343002415 | R103: 5.187947857 | S103: 6.123516362 | T103: 7.402858648 | U103: 9.389172156 | V103: 10.84946907 | W103: 11.32643839 | X103: 11.92367696 | Y103: 11.93511658
A104: BNSF-E1L203C11 | B104: BNSF | C104: 4 | D104: E1L203C11 | E104: 103 | F104: CD(Y), DRL Expense, Railroad-Owned, BOX - EQUIPPED | G104: 12.88897705 | H104: 12.88207245 | I104: 12.95880604 | J104: 10.86043167 | K104: 11.99455738 | L104: 10.84926701 | M104: 11.38444901 | N104: 11.78342438 | O104: 13.9206419 | P104: 11.9635208 | Q104: 11.40471558 | R104: 10.60142851 | S104: 10.81539576 | T104: 15.43111897 | U104: 14.45390948 | V104: 17.07515763 | W104: 22.25252518 | X104: 26.98500838 | Y104: 21.28503092
A105: BNSF-E1L203C12 | B105: BNSF | C105: 4 | D105: E1L203C12 | E105: 104 | F105: CD(Y), ROI Expense, Railroad-Owned, BOX - EQUIPPED | G105: 2.027212381 | H105: 1.62113297 | I105: 1.785770774 | J105: 2.281464338 | K105: 3.540608168 | L105: 2.707005978 | M105: 4.268298149 | N105: 3.494618416 | O105: 2.922468424 | P105: 2.578809487 | Q105: 2.288369262 | R105: 2.580365997 | S105: 3.313320619 | T105: 4.485430376 | U105: 4.702809173 | V105: 5.577881376 | W105: 5.646599604 | X105: 6.180464565 | Y105: 6.809695406
A106: BNSF-E1L203C13 | B106: BNSF | C106: 4 | D106: E1L203C13 | E106: 105 | F106: CM(R), DRL Expense, Privately-Owned, BOX - EQUIPPED | G106: 0.30829826 | H106: 0.3124853075 | I106: 0.3085790277 | J106: 0.2982073128 | K106: 0.3092193902 | L106: 0.3141132593 | M106: 0.3008689582 | N106: 0.3227314949 | O106: 0.3670358658 | P106: 0.2875528595 | Q106: 0.2874794277 | R106: 0.3204895943 | S106: 0.2837097358 | T106: 0.2876236137 | U106: 0.2796667479 | V106: 0.2910611443 | W106: 0.3304897877 | X106: 0.311369944 | Y106: 0.2347459424
A107: BNSF-E1L204C1 | B107: BNSF | C107: 4 | D107: E1L204C1 | E107: 106 | F107: CM(R), OPR Expense, Railroad-Owned, GONDOLA - PLAIN | G107: 0.04079368711 | H107: 0.04102564976 | I107: 0.04825603962 | J107: 0.0481525436 | K107: 0.04695666954 | L107: 0.04957818612 | M107: 0.05559254438 | N107: 0.05689900741 | O107: 0.0557042025 | P107: 0.05766337416 | Q107: 0.05535870782 | R107: 0.04642077856 | S107: 0.04066067871 | T107: 0.04558829876 | U107: 0.0523352015 | V107: 0.05164479809 | W107: 0.04955928213 | X107: 0.05443003504 | Y107: 0.05472597072
A108: BNSF-E1L204C2 | B108: BNSF | C108: 4 | D108: E1L204C2 | E108: 107 | F108: CM(R), DRL Expense, Railroad-Owned, GONDOLA - PLAIN | G108: 0.00154845533 | H108: 0.004035328981 | I108: 0.003328042803 | J108: 0.002367289038 | K108: 0.002633337863 | L108: 0.001914080232 | M108: -0.0009348235908 | N108: 0.0002263579081 | O108: 0.002805652563 | P108: 0.003553342322 | Q108: 0.004386669713 | R108: 0.001478416879 | S108: -0.006178108447 | T108: 0.001583994951 | U108: -0.004018176277 | V108: -0.005843650751 | W108: 0.0004939870465 | X108: 0.007771901988 | Y108: 0.004710343647
A109: BNSF-E1L204C3 | B109: BNSF | C109: 4 | D109: E1L204C3 | E109: 108 | F109: CM(R), ROI Expense, Railroad-Owned, GONDOLA - PLAIN | G109: 0.005641933065 | H109: 0.005627917591 | I109: 0.005906420294 | J109: 0.004297834821 | K109: 0.004013023805 | L109: 0.004423391074 | M109: 0.005044284742 | N109: 0.007221345324 | O109: 0.00884786807 | P109: 0.007169095998 | Q109: 0.007429725987 | R109: 0.007705035227 | S109: 0.008384834929 | T109: 0.007382900087 | U109: 0.007108636217 | V109: 0.008965397452 | W109: 0.008867218153 | X109: 0.009589494798 | Y109: 0.009197759713
A110: BNSF-E1L204C4 | B110: BNSF | C110: 4 | D110: E1L204C4 | E110: 109 | F110: CM(Y), OPR Expense, Railroad-Owned, GONDOLA - PLAIN | G110: 0.1060634553 | H110: 0.1066666991 | I110: 0.1254656166 | J110: 0.1251963526 | K110: 0.1220872104 | L110: 0.1289031059 | M110: 0.1445406377 | N110: 0.1479373276 | O110: 0.1448307633 | P110: 0.1499247728 | Q110: 0.1439326403 | R110: 0.1206940243 | S110: 0.1057177646 | T110: 0.1185295768 | U110: 0.1360715239 | V110: 0.134276475 | W110: 0.1288541335 | X110: 0.1415180911 | Y110: 0.1422875239
A111: BNSF-E1L204C5 | B111: BNSF | C111: 4 | D111: E1L204C5 | E111: 110 | F111: CM(Y), DRL Expense, Railroad-Owned, GONDOLA - PLAIN | G111: 0.004025986418 | H111: 0.0104918424 | I111: 0.008652912453 | J111: 0.006154956762 | K111: 0.0068466831 | L111: 0.004976612981 | M111: -0.002430537716 | N111: 0.0005885327118 | O111: 0.007294693962 | P111: 0.009238690037 | Q111: 0.01140534125 | R111: 0.003843883884 | S111: -0.01606308196 | T111: 0.004118386874 | U111: -0.01044725832 | V111: -0.01519349195 | W111: 0.001284366321 | X111: 0.02020694517 | Y111: 0.01224689348
A112: BNSF-E1L204C6 | B112: BNSF | C112: 4 | D112: E1L204C6 | E112: 111 | F112: CM(Y), ROI Expense, Railroad-Owned, GONDOLA - PLAIN | G112: 0.01466905419 | H112: 0.01463257894 | I112: 0.0153566869 | J112: 0.01117437705 | K112: 0.01043386851 | L112: 0.01150084008 | M112: 0.01311512105 | N112: 0.01877553761 | O112: 0.02300445177 | P112: 0.01863964959 | Q112: 0.01931728757 | R112: 0.02003309159 | S112: 0.02180057082 | T112: 0.01919554023 | U112: 0.01848245417 | V112: 0.02331003338 | W112: 0.0230547672 | X112: 0.02493268647 | Y112: 0.02391417525
A113: BNSF-E1L204C7 | B113: BNSF | C113: 4 | D113: E1L204C7 | E113: 112 | F113: CD(R), OPR Expense, Railroad-Owned, GONDOLA - PLAIN | G113: 4.327224731 | H113: 4.288381577 | I113: 5.069654465 | J113: 5.215679646 | K113: 5.309014797 | L113: 5.679880142 | M113: 6.336540222 | N113: 6.281685829 | O113: 5.989602089 | P113: 6.26434978 | Q113: 6.136062208 | R113: 5.261175777 | S113: 4.62611595 | T113: 5.128880659 | U113: 6.008646537 | V113: 5.884159906 | W113: 5.692893116 | X113: 6.121636695 | Y113: 6.349545565
A114: BNSF-E1L204C8 | B114: BNSF | C114: 4 | D114: E1L204C8 | E114: 113 | F114: CD(R), DRL Expense, Railroad-Owned, GONDOLA - PLAIN | G114: 0.3304407895 | H114: 0.768769145 | I114: 0.7008343935 | J114: 0.4330443442 | K114: 0.4643430114 | L114: 0.4435095191 | M114: 0.4879425168 | N114: 0.6996125579 | O114: 0.9250228405 | P114: 0.6759944718 | Q114: 0.5499496874 | R114: 0.2198938143 | S114: -0.4153540864 | T114: 0.2294195612 | U114: 0.05563111401 | V114: 0.0386340701 | W114: 0.7040646857 | X114: 1.398705747 | Y114: 1.067899755
A115: BNSF-E1L204C9 | B115: BNSF | C115: 4 | D115: E1L204C9 | E115: 114 | F115: CD(R), ROI Expense, Railroad-Owned, GONDOLA - PLAIN | G115: 0.8260455132 | H115: 0.8124137521 | I115: 0.873059392 | J115: 0.658796072 | K115: 0.6345732212 | L115: 0.6609275341 | M115: 0.747315824 | N115: 1.077309251 | O115: 1.299596429 | P115: 1.15270005 | Q115: 1.210864746 | R115: 1.221688277 | S115: 1.383071932 | T115: 1.175735521 | U115: 1.195715134 | V115: 1.432578095 | W115: 1.437337194 | X115: 1.513094002 | Y115: 1.597821519
A116: BNSF-E1L204C10 | B116: BNSF | C116: 4 | D116: E1L204C10 | E116: 115 | F116: CD(Y), OPR Expense, Railroad-Owned, GONDOLA - PLAIN | G116: 4.327224731 | H116: 4.288382053 | I116: 5.069653988 | J116: 5.215679646 | K116: 5.309015274 | L116: 5.679879665 | M116: 6.336540222 | N116: 6.281685829 | O116: 5.989602566 | P116: 6.26434978 | Q116: 6.136062208 | R116: 5.261175777 | S116: 4.62611595 | T116: 5.128880659 | U116: 6.008646537 | V116: 5.884159906 | W116: 5.692893116 | X116: 6.121636695 | Y116: 6.349545565
A117: BNSF-E1L204C11 | B117: BNSF | C117: 4 | D117: E1L204C11 | E117: 116 | F117: CD(Y), DRL Expense, Railroad-Owned, GONDOLA - PLAIN | G117: 0.3304407597 | H117: 0.768769145 | I117: 0.7008343935 | J117: 0.433044374 | K117: 0.4643430412 | L117: 0.4435095191 | M117: 0.4879425168 | N117: 0.6996126175 | O117: 0.9250227809 | P117: 0.6759944718 | Q117: 0.5499496874 | R117: 0.2198938143 | S117: -0.4153540864 | T117: 0.2294195612 | U117: 0.05563111401 | V117: 0.0386340701 | W117: 0.7040646857 | X117: 1.398705747 | Y117: 1.067899755
A118: BNSF-E1L204C12 | B118: BNSF | C118: 4 | D118: E1L204C12 | E118: 117 | F118: CD(Y), ROI Expense, Railroad-Owned, GONDOLA - PLAIN | G118: 0.8260454535 | H118: 0.8124137521 | I118: 0.873059392 | J118: 0.658796072 | K118: 0.6345732212 | L118: 0.6609275341 | M118: 0.7473158836 | N118: 1.077309251 | O118: 1.29959631 | P118: 1.15270005 | Q118: 1.210864746 | R118: 1.221688277 | S118: 1.383071932 | T118: 1.175735521 | U118: 1.195715134 | V118: 1.432578095 | W118: 1.437337194 | X118: 1.513094002 | Y118: 1.597821519
A119: BNSF-E1L204C13 | B119: BNSF | C119: 4 | D119: E1L204C13 | E119: 118 | F119: CM(R), DRL Expense, Privately-Owned, GONDOLA - PLAIN | G119: 0.0007735146792 | H119: 0.0007941464428 | I119: 0.0007161546382 | J119: 0.00111124909 | K119: 0.0021618295 | L119: 0.003913152963 | M119: 0.002195682842 | N119: 0.003655255772 | O119: 0.004414345138 | P119: 0.003987624727 | Q119: 0.0008726861223 | R119: 0.001399859979 | S119: 0.001412388466 | T119: 0.00172401386 | U119: 0.001349963886 | V119: 0.002053803237 | W119: 0.002539319758 | X119: 0.00239213853 | Y119: 0.002472474634
A120: BNSF-E1L205C1 | B120: BNSF | C120: 4 | D120: E1L205C1 | E120: 119 | F120: CM(R), OPR Expense, Railroad-Owned, GONDOLA - EQUIPPED | G120: 0.0460848622 | H120: 0.0509172231 | I120: 0.05213022977 | J120: 0.0587817505 | K120: 0.05844584852 | L120: 0.05512339994 | M120: 0.05818485469 | N120: 0.05819166452 | O120: 0.06504376978 | P120: 0.07734605532 | Q120: 0.08742050799 | R120: 0.07997872977 | S120: 0.06814925015 | T120: 0.06020958932 | U120: 0.06175032577 | V120: 0.05870698542 | W120: 0.06458160945 | X120: 0.07079294066 | Y120: 0.07324307309
A121: BNSF-E1L205C2 | B121: BNSF | C121: 4 | D121: E1L205C2 | E121: 120 | F121: CM(R), DRL Expense, Railroad-Owned, GONDOLA - EQUIPPED | G121: 0.02346496098 | H121: 0.02802971937 | I121: 0.03358761221 | J121: 0.03316504881 | K121: 0.02205157466 | L121: 0.03047599643 | M121: 0.03250535205 | N121: 0.03896510229 | O121: 0.03821087629 | P121: 0.03699853348 | Q121: 0.02612536944 | R121: 0.02572216773 | S121: 0.02176034922 | T121: 0.02622802907 | U121: 0.02186187489 | V121: 0.01579737591 | W121: 0.02142642438 | X121: 0.02529280444 | Y121: 0.02469914759
A122: BNSF-E1L205C3 | B122: BNSF | C122: 4 | D122: E1L205C3 | E122: 121 | F122: CM(R), ROI Expense, Railroad-Owned, GONDOLA - EQUIPPED | G122: 0.0150576327 | H122: 0.02044809796 | I122: 0.02205427364 | J122: 0.0344763808 | K122: 0.02382132225 | L122: 0.01905756816 | M122: 0.01907134615 | N122: 0.01972266659 | O122: 0.02109421976 | P122: 0.03158570967 | Q122: 0.02703110643 | R122: 0.02365090295 | S122: 0.02903942005 | T122: 0.02474920017 | U122: 0.02169857247 | V122: 0.02489034963 | W122: 0.02713678305 | X122: 0.02448500294 | Y122: 0.02618083501
A123: BNSF-E1L205C4 | B123: BNSF | C123: 4 | D123: E1L205C4 | E123: 122 | F123: CM(Y), OPR Expense, Railroad-Owned, GONDOLA - EQUIPPED | G123: 0.1198206171 | H123: 0.1323848367 | I123: 0.1355384588 | J123: 0.1528327465 | K123: 0.1519593 | L123: 0.1433209926 | M123: 0.1512806267 | N123: 0.1512984335 | O123: 0.1691137552 | P123: 0.2010997438 | Q123: 0.2272933208 | R123: 0.2079446974 | S123: 0.1771880504 | T123: 0.1565449322 | U123: 0.160550847 | V123: 0.1526381621 | W123: 0.1679121846 | X123: 0.1840616457 | Y123: 0.19043199
A124: BNSF-E1L205C5 | B124: BNSF | C124: 4 | D124: E1L205C5 | E124: 123 | F124: CM(Y), DRL Expense, Railroad-Owned, GONDOLA - EQUIPPED | G124: 0.06100883335 | H124: 0.07287734002 | I124: 0.08732771873 | J124: 0.08622897416 | K124: 0.05733411014 | L124: 0.07923763245 | M124: 0.08451401442 | N124: 0.1013094112 | O124: 0.09934832901 | P124: 0.09619618705 | Q124: 0.06792596055 | R124: 0.06687763609 | S124: 0.05657690797 | T124: 0.06819287558 | U124: 0.05684087473 | V124: 0.04107317737 | W124: 0.05570870338 | X124: 0.06576129154 | Y124: 0.06421778374
A125: BNSF-E1L205C6 | B125: BNSF | C125: 4 | D125: E1L205C6 | E125: 124 | F125: CM(Y), ROI Expense, Railroad-Owned, GONDOLA - EQUIPPED | G125: 0.03914978355 | H125: 0.05316507816 | I125: 0.05734109879 | J125: 0.0896384269 | K125: 0.06193541735 | L125: 0.04954971746 | M125: 0.0495855175 | N125: 0.05127901584 | O125: 0.0548449941 | P125: 0.08212284514 | Q125: 0.07028087672 | R125: 0.06149234766 | S125: 0.07550249212 | T125: 0.06434792043 | U125: 0.05641628841 | V125: 0.06471490903 | W125: 0.07055563593 | X125: 0.06366100764 | Y125: 0.06807017104
A126: BNSF-E1L205C7 | B126: BNSF | C126: 4 | D126: E1L205C7 | E126: 125 | F126: CD(R), OPR Expense, Railroad-Owned, GONDOLA - EQUIPPED | G126: 4.480887413 | H126: 5.063317776 | I126: 5.34395504 | J126: 6.339125156 | K126: 6.262855053 | L126: 5.920703888 | M126: 6.203827858 | N126: 6.120881557 | O126: 6.619021893 | P126: 7.763214498 | Q126: 8.951401699 | R126: 8.623400483 | S126: 7.659180484 | T126: 6.950811774 | U126: 7.416811402 | V126: 7.007551859 | W126: 7.566641829 | X126: 8.044769869 | Y126: 8.137375757
A127: BNSF-E1L205C8 | B127: BNSF | C127: 4 | D127: E1L205C8 | E127: 126 | F127: CD(R), DRL Expense, Railroad-Owned, GONDOLA - EQUIPPED | G127: 24.33875847 | H127: 29.67422867 | I127: 28.43837166 | J127: 37.2506218 | K127: 26.25616074 | L127: 24.89457893 | M127: 30.41137314 | N127: 34.21390915 | O127: 39.63475037 | P127: 52.7152059 | Q127: 43.1856549 | R127: 30.05747139 | S127: 31.3058158 | T127: 35.37584075 | U127: 30.08700094 | V127: 27.24958406 | W127: 41.02454782 | X127: 61.20762681 | Y127: 58.89220618
A128: BNSF-E1L205C9 | B128: BNSF | C128: 4 | D128: E1L205C9 | E128: 127 | F128: CD(R), ROI Expense, Railroad-Owned, GONDOLA - EQUIPPED | G128: 2.067366123 | H128: 3.204968691 | I128: 3.393490791 | J128: 5.562057018 | K128: 3.687607765 | L128: 2.940257311 | M128: 2.97340107 | N128: 2.904536247 | O128: 2.919183969 | P128: 4.762834581 | Q128: 4.304868774 | R128: 3.807151974 | S128: 4.952969855 | T128: 4.33872614 | U128: 3.965404687 | V128: 4.187649975 | W128: 4.452106756 | X128: 4.022194323 | Y128: 4.083148477
A129: BNSF-E1L205C10 | B129: BNSF | C129: 4 | D129: E1L205C10 | E129: 128 | F129: CD(Y), OPR Expense, Railroad-Owned, GONDOLA - EQUIPPED | G129: 4.480887413 | H129: 5.063317776 | I129: 5.34395504 | J129: 6.339125156 | K129: 6.262855053 | L129: 5.920703888 | M129: 6.203827858 | N129: 6.120880604 | O129: 6.619021893 | P129: 7.763214498 | Q129: 8.951401699 | R129: 8.623400483 | S129: 7.659180484 | T129: 6.950811774 | U129: 7.416811402 | V129: 7.007551859 | W129: 7.566641829 | X129: 8.044769869 | Y129: 8.137375757
A130: =B130&"-"&D130 -> BNSF-E1L205C11 | B130: BNSF | C130: 4 | D130: E1L205C11 | E130: 129 | F130: CD(Y), DRL Expense, Railroad-Owned, GONDOLA - EQUIPPED | G130: 24.33875847 | H130: 29.67422867 | I130: 28.43836975 | J130: 37.25061798 | K130: 26.25615883 | L130: 24.89457893 | M130: 30.41137314 | N130: 34.21390533 | O130: 39.63475037 | P130: 52.7152059 | Q130: 43.1856549 | R130: 30.05747139 | S130: 31.3058158 | T130: 35.37584075 | U130: 30.08700094 | V130: 27.24958406 | W130: 41.02454782 | X130: 61.20762681 | Y130: 58.89220618
A131: BNSF-E1L205C12 | B131: BNSF | C131: 4 | D131: E1L205C12 | E131: 130 | F131: CD(Y), ROI Expense, Railroad-Owned, GONDOLA - EQUIPPED | G131: 2.067366123 | H131: 3.204968929 | I131: 3.39349103 | J131: 5.562056065 | K131: 3.687607527 | L131: 2.940257311 | M131: 2.973400831 | N131: 2.904536009 | O131: 2.919184208 | P131: 4.762834581 | Q131: 4.304868774 | R131: 3.807151974 | S131: 4.952969855 | T131: 4.33872614 | U131: 3.965404687 | V131: 4.187649975 | W131: 4.452106756 | X131: 4.022194323 | Y131: 4.083148477
A132: BNSF-E1L205C13 | B132: BNSF | C132: 4 | D132: E1L205C13 | E132: 131 | F132: CM(R), DRL Expense, Privately-Owned, GONDOLA - EQUIPPED | G132: 2.492866588e-05 | H132: 2.325744026e-05 | I132: 0.0001854808652 | J132: 9.386671445e-05 | K132: 3.561066114e-05 | L132: 2.667174704e-05 | M132: 2.221332943e-05 | N132: 2.631579264e-05 | O132: 3.361119525e-05 | P132: 0.03037611362 | Q132: 0.02015435134 | R132: 0.01236570134 | S132: 0.003748995582 | T132: 0.0004474039622 | U132: 0.001330765545 | V132: 0.0001367481612 | W132: 0.0003793218231 | X132: 0.0001412308099 | Y132: 0.000155873853
A133: BNSF-E1L206C1 | B133: BNSF | C133: 4 | D133: E1L206C1 | E133: 132 | F133: CM(R), OPR Expense, Railroad-Owned, HOPPER - COVERED | G133: 0.02543388866 | H133: 0.02803338505 | I133: 0.03235071152 | J133: 0.03516945988 | K133: 0.03177187592 | L133: 0.0306032598 | M133: 0.03010427207 | N133: 0.031701684 | O133: 0.03278813139 | P133: 0.03591131908 | Q133: 0.03377987671 | R133: 0.03061685327 | S133: 0.02854964497 | T133: 0.02997600708 | U133: 0.0310803696 | V133: 0.02970514109 | W133: 0.02945899156 | X133: 0.0331706981 | Y133: 0.03182351095
A134: BNSF-E1L206C2 | B134: BNSF | C134: 4 | D134: E1L206C2 | E134: 133 | F134: CM(R), DRL Expense, Railroad-Owned, HOPPER - COVERED | G134: -0.001216592267 | H134: -0.00211735256 | I134: -0.00119416893 | J134: -0.001589067164 | K134: -0.004389765207 | L134: 0.0002657477744 | M134: 8.161681035e-05 | N134: 0.003512821393 | O134: 0.006618515588 | P134: 0.004549167769 | Q134: 0.005998554164 | R134: 0.005963512252 | S134: 0.002086157558 | T134: 0.0006059486642 | U134: -0.0001901312429 | V134: 0.001933246267 | W134: 0.0003198968722 | X134: -0.0008689051232 | Y134: 0.0014388215
A135: BNSF-E1L206C3 | B135: BNSF | C135: 4 | D135: E1L206C3 | E135: 134 | F135: CM(R), ROI Expense, Railroad-Owned, HOPPER - COVERED | G135: 0.009335215203 | H135: 0.01528595015 | I135: 0.01573367976 | J135: 0.01623640023 | K135: 0.01490681153 | L135: 0.01725388505 | M135: 0.0192694813 | N135: 0.02078828588 | O135: 0.01830284856 | P135: 0.01584099225 | Q135: 0.01293463512 | R135: 0.01520620914 | S135: 0.01845185429 | T135: 0.01812248278 | U135: 0.01450141902 | V135: 0.0184522157 | W135: 0.01889660404 | X135: 0.01965277211 | Y135: 0.01745431596
A136: BNSF-E1L206C4 | B136: BNSF | C136: 4 | D136: E1L206C4 | E136: 135 | F136: CM(Y), OPR Expense, Railroad-Owned, HOPPER - COVERED | G136: 0.06612821668 | H136: 0.07288677245 | I136: 0.08411181718 | J136: 0.09144059569 | K136: 0.0826067999 | L136: 0.07956849784 | M136: 0.0782712549 | N136: 0.08242427558 | O136: 0.08524914831 | P136: 0.09336942961 | Q136: 0.08782767945 | R136: 0.0796038185 | S136: 0.07422907693 | T136: 0.07793761841 | U136: 0.08080896095 | V136: 0.07723336684 | W136: 0.07659337805 | X136: 0.08624381507 | Y136: 0.08274112847
A137: BNSF-E1L206C5 | B137: BNSF | C137: 4 | D137: E1L206C5 | E137: 136 | F137: CM(Y), DRL Expense, Railroad-Owned, HOPPER - COVERED | G137: -0.003163147951 | H137: -0.005505124573 | I137: -0.003104854142 | J137: -0.004131579306 | K137: -0.01141333673 | L137: 0.0006909251097 | M137: 0.0002121841244 | N137: 0.009133337066 | O137: 0.01720812544 | P137: 0.0118278362 | Q137: 0.01559624083 | R137: 0.01550513185 | S137: 0.005424009651 | T137: 0.001575466527 | U137: -0.0004943412314 | V137: 0.005026440294 | W137: 0.0008317318676 | X137: -0.00225915332 | Y137: 0.0037409359
A138: BNSF-E1L206C6 | B138: BNSF | C138: 4 | D138: E1L206C6 | E138: 137 | F138: CM(Y), ROI Expense, Railroad-Owned, HOPPER - COVERED | G138: 0.02427155524 | H138: 0.03974352777 | I138: 0.04090758041 | J138: 0.0422145687 | K138: 0.03875768185 | L138: 0.04486005008 | M138: 0.05010066926 | N138: 0.05404946208 | O138: 0.04758737981 | P138: 0.04118657984 | Q138: 0.03363005132 | R138: 0.03953614376 | S138: 0.04797482116 | T138: 0.04711845523 | U138: 0.03770368946 | V138: 0.04797576081 | W138: 0.0491311705 | X138: 0.05109720748 | Y138: 0.0453812215
A139: BNSF-E1L206C7 | B139: BNSF | C139: 4 | D139: E1L206C7 | E139: 138 | F139: CD(R), OPR Expense, Railroad-Owned, HOPPER - COVERED | G139: 2.793126106 | H139: 3.078336477 | I139: 3.561464787 | J139: 3.974333763 | K139: 3.618262529 | L139: 3.496973038 | M139: 3.417209625 | N139: 3.543750048 | O139: 3.638569593 | P139: 4.041857896 | Q139: 3.899318973 | R139: 3.625453424 | S139: 3.481212052 | T139: 3.689776083 | U139: 3.958699055 | V139: 3.783272089 | W139: 3.774094273 | X139: 4.226796351 | Y139: 4.088432151
A140: BNSF-E1L206C8 | B140: BNSF | C140: 4 | D140: E1L206C8 | E140: 139 | F140: CD(R), DRL Expense, Railroad-Owned, HOPPER - COVERED | G140: 7.087164879 | H140: 8.174272537 | I140: 7.35236454 | J140: 8.50474453 | K140: 5.863167763 | L140: 6.538374424 | M140: 8.550673485 | N140: 8.298947334 | O140: 7.587757111 | P140: 6.118677523 | Q140: 4.254161425 | R140: 3.996652584 | S140: 4.118670103 | T140: 3.767515533 | U140: 3.884558929 | V140: 4.69297661 | W140: 4.942951428 | X140: 6.829555914 | Y140: 6.77665588
A141: BNSF-E1L206C9 | B141: BNSF | C141: 4 | D141: E1L206C9 | E141: 140 | F141: CD(R), ROI Expense, Railroad-Owned, HOPPER - COVERED | G141: 1.452702761 | H141: 2.514533997 | I141: 2.563129425 | J141: 2.760694504 | K141: 2.501066208 | L141: 2.850656033 | M141: 3.219531536 | N141: 3.350480556 | O141: 2.960941792 | P141: 2.738418614 | Q141: 2.265492367 | R141: 2.649735641 | S141: 3.462821315 | T141: 3.294923056 | U141: 2.809657743 | V141: 3.462583658 | W141: 3.481089154 | X141: 3.734612703 | Y141: 3.333553422
A142: BNSF-E1L206C10 | B142: BNSF | C142: 4 | D142: E1L206C10 | E142: 141 | F142: CD(Y), OPR Expense, Railroad-Owned, HOPPER - COVERED | G142: 2.793126583 | H142: 3.078336716 | I142: 3.561465025 | J142: 3.974333525 | K142: 3.618262053 | L142: 3.496972561 | M142: 3.417209625 | N142: 3.543750048 | O142: 3.638569593 | P142: 4.041857896 | Q142: 3.899318973 | R142: 3.625453424 | S142: 3.481212052 | T142: 3.689776083 | U142: 3.958699055 | V142: 3.783272089 | W142: 3.774094273 | X142: 4.226796351 | Y142: 4.088432151
A143: BNSF-E1L206C11 | B143: BNSF | C143: 4 | D143: E1L206C11 | E143: 142 | F143: CD(Y), DRL Expense, Railroad-Owned, HOPPER - COVERED | G143: 7.087165356 | H143: 8.174272537 | I143: 7.352365017 | J143: 8.50474453 | K143: 5.863168716 | L143: 6.538374424 | M143: 8.550671577 | N143: 8.298947334 | O143: 7.587757111 | P143: 6.118677523 | Q143: 4.254161425 | R143: 3.996652584 | S143: 4.118670103 | T143: 3.767515533 | U143: 3.884558929 | V143: 4.69297661 | W143: 4.942951428 | X143: 6.829555914 | Y143: 6.77665588
A144: BNSF-E1L206C12 | B144: BNSF | C144: 4 | D144: E1L206C12 | E144: 143 | F144: CD(Y), ROI Expense, Railroad-Owned, HOPPER - COVERED | G144: 1.45270288 | H144: 2.514533997 | I144: 2.563129425 | J144: 2.760694027 | K144: 2.501066208 | L144: 2.850655794 | M144: 3.219531536 | N144: 3.350480318 | O144: 2.960942268 | P144: 2.738418614 | Q144: 2.265492367 | R144: 2.649735641 | S144: 3.462821315 | T144: 3.294923056 | U144: 2.809657743 | V144: 3.462583658 | W144: 3.481089154 | X144: 3.734612703 | Y144: 3.333553422
A145: BNSF-E1L206C13 | B145: BNSF | C145: 4 | D145: E1L206C13 | E145: 144 | F145: CM(R), DRL Expense, Privately-Owned, HOPPER - COVERED | G145: 0.01599102467 | H145: 0.0159361586 | I145: 0.01389494445 | J145: 0.01822919585 | K145: 0.005968162324 | L145: 0.002715683309 | M145: 0.003419756889 | N145: 0.003557602642 | O145: 0.004346888047 | P145: 0.003957555619 | Q145: 0.02699983751 | R145: 0.02258420878 | S145: 0.02188097734 | T145: 0.02454087606 | U145: 0.02306512469 | V145: 0.02332605279 | W145: 0.02276965758 | X145: 0.0233687364 | Y145: 9.113901519e-07
A146: BNSF-E1L207C1 | B146: BNSF | C146: 4 | D146: E1L207C1 | E146: 145 | F146: CM(R), OPR Expense, Railroad-Owned, HOPPER - OPEN TOP - GENERAL | G146: 0.03924950957 | H146: 0.04356622323 | I146: 0.0502628535 | J146: 0.04826291651 | K146: 0.04176273569 | L146: 0.03530963883 | M146: 0.03419655561 | N146: 0.03189379349 | O146: 0.03289360926 | P146: 0.03874581671 | Q146: 0.04350497963 | R146: 0.04094053468 | S146: 0.03859099987 | T146: 0.04812784665 | U146: 0.06955234903 | V146: 0.08154128618 | W146: 0.08992247689 | X146: 0.09693110347 | Y146: 0.1064191707
A147: BNSF-E1L207C2 | B147: BNSF | C147: 4 | D147: E1L207C2 | E147: 146 | F147: CM(R), DRL Expense, Railroad-Owned, HOPPER - OPEN TOP - GENERAL | G147: 0.01079252269 | H147: 0.01122737769 | I147: 0.009723519906 | J147: 0.01140420977 | K147: 0.01018987503 | L147: 0.01238203514 | M147: 0.01082710829 | N147: 0.01021033898 | O147: 0.01234154683 | P147: 0.01533410228 | Q147: 0.01716277222 | R147: 0.007092367378 | S147: 0.003308810282 | T147: 0.002995947044 | U147: 0.01104046895 | V147: 0.003965679755 | W147: 0.01030535726 | X147: 0.008200030893 | Y147: 0.004423585614
A148: BNSF-E1L207C3 | B148: BNSF | C148: 4 | D148: E1L207C3 | E148: 147 | F148: CM(R), ROI Expense, Railroad-Owned, HOPPER - OPEN TOP - GENERAL | G148: 0.02518530563 | H148: 0.03155555949 | I148: 0.0305543486 | J148: 0.03304211423 | K148: 0.03045734018 | L148: 0.02654409222 | M148: 0.02327979356 | N148: 0.02310821787 | O148: 0.02355244011 | P148: 0.04365874906 | Q148: 0.04418890629 | R148: 0.04851330514 | S148: 0.04714135891 | T148: 0.05595886489 | U148: 0.06197183145 | V148: 0.05290980771 | W148: 0.07723162479 | X148: 0.05983288798 | Y148: 0.07065582217
A149: BNSF-E1L207C4 | B149: BNSF | C149: 4 | D149: E1L207C4 | E149: 148 | F149: CM(Y), OPR Expense, Railroad-Owned, HOPPER - OPEN TOP - GENERAL | G149: 0.1020486131 | H149: 0.1132720783 | I149: 0.1306833476 | J149: 0.1254835278 | K149: 0.1085831001 | L149: 0.09180512279 | M149: 0.08891104907 | N149: 0.08292388916 | O149: 0.08552337438 | P149: 0.1007391235 | Q149: 0.113112947 | R149: 0.1064453902 | S149: 0.1003365997 | T149: 0.1251324013 | U149: 0.1808361075 | V149: 0.2120073441 | W149: 0.2337984399 | X149: 0.252020869 | Y149: 0.2766898439
A150: BNSF-E1L207C5 | B150: BNSF | C150: 4 | D150: E1L207C5 | E150: 149 | F150: CM(Y), DRL Expense, Railroad-Owned, HOPPER - OPEN TOP - GENERAL | G150: 0.0280605536 | H150: 0.02919114195 | I150: 0.02528116852 | J150: 0.02965090983 | K150: 0.02649363317 | L150: 0.03219328448 | M150: 0.02815051004 | N150: 0.0265468955 | O150: 0.03208799288 | P150: 0.03986866594 | Q150: 0.04462320778 | R150: 0.01844015518 | S150: 0.008602906732 | T150: 0.007789462313 | U150: 0.02870521927 | V150: 0.01031076736 | W150: 0.02679392888 | X150: 0.02132008032 | Y150: 0.0115013226
A151: BNSF-E1L207C6 | B151: BNSF | C151: 4 | D151: E1L207C6 | E151: 150 | F151: CM(Y), ROI Expense, Railroad-Owned, HOPPER - OPEN TOP - GENERAL | G151: 0.06548180431 | H151: 0.08204434067 | I151: 0.07944130152 | J151: 0.08590945601 | K151: 0.07918904722 | L151: 0.06901463121 | M151: 0.06052742898 | N151: 0.06008143723 | O151: 0.06123626605 | P151: 0.1135127476 | Q151: 0.1148911564 | R151: 0.1261345934 | S151: 0.1225675332 | T151: 0.1454930487 | U151: 0.1611267618 | V151: 0.1375655 | W151: 0.2008022244 | X151: 0.1555655087 | Y151: 0.1837051376
A152: BNSF-E1L207C7 | B152: BNSF | C152: 4 | D152: E1L207C7 | E152: 151 | F152: CD(R), OPR Expense, Railroad-Owned, HOPPER - OPEN TOP - GENERAL | G152: 3.464195251 | H152: 3.735491276 | I152: 4.360420704 | J152: 4.246806622 | K152: 3.897575378 | L152: 3.400249004 | M152: 3.420206785 | N152: 3.177731991 | O152: 3.225498199 | P152: 3.586922991 | Q152: 3.700619142 | R152: 3.097176908 | S152: 3.200615885 | T152: 4.193630627 | U152: 6.221376131 | V152: 6.802892513 | W152: 7.231823504 | X152: 8.567072254 | Y152: 9.877351319
A153: BNSF-E1L207C8 | B153: BNSF | C153: 4 | D153: E1L207C8 | E153: 152 | F153: CD(R), DRL Expense, Railroad-Owned, HOPPER - OPEN TOP - GENERAL | G153: 0.4440098107 | H153: 1.041614294 | I153: 0.3161284029 | J153: 0.9963170886 | K153: 0.5214457512 | L153: 0.548391223 | M153: 1.122779489 | N153: 0.9347791076 | O153: 0.9768804312 | P153: 0.7890666943 | Q153: -0.8569419263 | R153: -2.277103434 | S153: -3.478671806 | T153: -1.581646104 | U153: 0.1214187038 | V153: -0.7427501411 | W153: 0.2261283405 | X153: -0.9006177781 | Y153: -1.296502966
A154: BNSF-E1L207C9 | B154: BNSF | C154: 4 | D154: E1L207C9 | E154: 153 | F154: CD(R), ROI Expense, Railroad-Owned, HOPPER - OPEN TOP - GENERAL | G154: 3.175761938 | H154: 3.889849424 | I154: 4.014546871 | J154: 4.367993832 | K154: 4.474581242 | L154: 3.833571672 | M154: 3.49713397 | N154: 3.349081278 | O154: 3.241888285 | P154: 5.192056551 | Q154: 4.739457588 | R154: 5.258002546 | S154: 7.318186798 | T154: 7.184540591 | U154: 6.584391882 | V154: 7.01987602 | W154: 8.867876183 | X154: 8.838720705 | Y154: 11.31068218
A155: BNSF-E1L207C10 | B155: BNSF | C155: 4 | D155: E1L207C10 | E155: 154 | F155: CD(Y), OPR Expense, Railroad-Owned, HOPPER - OPEN TOP - GENERAL | G155: 3.464195251 | H155: 3.735491514 | I155: 4.360421181 | J155: 4.246806145 | K155: 3.89757514 | L155: 3.400249004 | M155: 3.420207024 | N155: 3.177731991 | O155: 3.225498199 | P155: 3.586922991 | Q155: 3.700619142 | R155: 3.097176908 | S155: 3.200615885 | T155: 4.193630627 | U155: 6.221376131 | V155: 6.802892513 | W155: 7.231823504 | X155: 8.567072254 | Y155: 9.877351319
A156: BNSF-E1L207C11 | B156: BNSF | C156: 4 | D156: E1L207C11 | E156: 155 | F156: CD(Y), DRL Expense, Railroad-Owned, HOPPER - OPEN TOP - GENERAL | G156: 0.4440097511 | H156: 1.041614413 | I156: 0.3161285222 | J156: 0.9963172078 | K156: 0.5214458704 | L156: 0.5483913422 | M156: 1.122779489 | N156: 0.9347791672 | O156: 0.9768805504 | P156: 0.7890666943 | Q156: -0.8569419263 | R156: -2.277103434 | S156: -3.478671806 | T156: -1.581646104 | U156: 0.1214187038 | V156: -0.7427501411 | W156: 0.2261283405 | X156: -0.9006177781 | Y156: -1.296502966
A157: BNSF-E1L207C12 | B157: BNSF | C157: 4 | D157: E1L207C12 | E157: 156 | F157: CD(Y), ROI Expense, Railroad-Owned, HOPPER - OPEN TOP - GENERAL | G157: 3.175761938 | H157: 3.889849901 | I157: 4.014546871 | J157: 4.367993832 | K157: 4.474581242 | L157: 3.833571672 | M157: 3.49713397 | N157: 3.349081278 | O157: 3.241888285 | P157: 5.192056551 | Q157: 4.739457588 | R157: 5.258002546 | S157: 7.318186798 | T157: 7.184540591 | U157: 6.584391882 | V157: 7.01987602 | W157: 8.867876183 | X157: 8.838720705 | Y157: 11.31068218
A158: BNSF-E1L207C13 | B158: BNSF | C158: 4 | D158: E1L207C13 | E158: 157 | F158: CM(R), DRL Expense, Privately-Owned, HOPPER - OPEN TOP - GENERAL | G158: 7.334105612e-05 | H158: 2.004274575e-05 | I158: 2.968927765e-05 | J158: 6.903844678e-06 | K158: 0.0009467242635 | L158: 0.0003478560247 | M158: 0.001236348529 | N158: 0.001584254787 | O158: 0.001418699627 | P158: 0.001249679142 | Q158: 0.004313957146 | R158: 0.001640655378 | S158: 0.000933278931 | T158: 0.0001381577962 | U158: 1.464090905e-05 | V158: 6.136099698e-06 | W158: 5.77130567e-06 | X158: 5.002399261e-06 | Y158: 5.002816179e-06
A159: BNSF-E1L208C1 | B159: BNSF | C159: 4 | D159: E1L208C1 | E159: 158 | F159: CM(R), OPR Expense, Railroad-Owned, HOPPER - OPEN TOP - SPECIAL | G159: 0.0352040641 | H159: 0.03599024564 | I159: 0.0348841399 | J159: 0.04296126962 | K159: 0.04125737399 | L159: 0.0428009741 | M159: 0.03981679305 | N159: 0.04365700856 | O159: 0.047838144 | P159: 0.05128548608 | Q159: 0.04741728658 | R159: 0.04039893397 | S159: 0.03451419723 | T159: 0.03484800997 | U159: 0.03680976026 | V159: 0.04019021177 | W159: 0.04061936425 | X159: 0.04733955973 | Y159: 0.04621511244
A160: BNSF-E1L208C2 | B160: BNSF | C160: 4 | D160: E1L208C2 | E160: 159 | F160: CM(R), DRL Expense, Railroad-Owned, HOPPER - OPEN TOP - SPECIAL | G160: -8.492569032e-05 | H160: 0.002005268121 | I160: -0.002915462246 | J160: -0.01460858248 | K160: -0.01326134894 | L160: -0.008699912578 | M160: 7.433560677e-05 | N160: 0.003794103861 | O160: 0.003553540679 | P160: 0.003521033556 | Q160: 0.005775775693 | R160: 0.002708240661 | S160: -0.001159359138 | T160: -0.001809182202 | U160: -7.900625241e-05 | V160: 0.001718226223 | W160: 0.001084862871 | X160: 0.004254107383 | Y160: 0.005604793479
A161: BNSF-E1L208C3 | B161: BNSF | C161: 4 | D161: E1L208C3 | E161: 160 | F161: CM(R), ROI Expense, Railroad-Owned, HOPPER - OPEN TOP - SPECIAL | G161: 0.006589679047 | H161: 0.009285950102 | I161: 0.009139761329 | J161: 0.009567933157 | K161: 0.009693369269 | L161: 0.01087368559 | M161: 0.01698772982 | N161: 0.01618725434 | O161: 0.01443737 | P161: 0.01553135859 | Q161: 0.01676210997 | R161: 0.01504715865 | S161: 0.01442031662 | T161: 0.01195020436 | U161: 0.01557488697 | V161: 0.01722921664 | W161: 0.01493705724 | X161: 0.01630511401 | Y161: 0.02242313657
A162: BNSF-E1L208C4 | B162: BNSF | C162: 4 | D162: E1L208C4 | E162: 161 | F162: CM(Y), OPR Expense, Railroad-Owned, HOPPER - OPEN TOP - SPECIAL | G162: 0.0915305987 | H162: 0.09357459098 | I162: 0.09069881588 | J162: 0.1116993502 | K162: 0.1072693318 | L162: 0.1112827063 | M162: 0.1035237312 | N162: 0.1135081947 | O162: 0.1243791357 | P162: 0.1333422638 | Q162: 0.1232849451 | R162: 0.1050372283 | S162: 0.0897369128 | T162: 0.09060482592 | U162: 0.09570537669 | V162: 0.1044945506 | W162: 0.1056103471 | X162: 0.1230828553 | Y162: 0.1201592923
A163: BNSF-E1L208C5 | B163: BNSF | C163: 4 | D163: E1L208C5 | E163: 162 | F163: CM(Y), DRL Expense, Railroad-Owned, HOPPER - OPEN TOP - SPECIAL | G163: -0.0002208072401 | H163: 0.005213692319 | I163: -0.007580188569 | J163: -0.037982326 | K163: -0.03447951376 | L163: -0.02261977084 | M163: 0.0001932610321 | N163: 0.009864654392 | O163: 0.009239219129 | P163: 0.009154687245 | Q163: 0.0150170168 | R163: 0.007041425719 | S163: -0.003014333758 | T163: -0.004703873725 | U163: -0.0002054162563 | V163: 0.00446738818 | W163: 0.002820643465 | X163: 0.0110606792 | Y163: 0.01457246305
A164: BNSF-E1L208C6 | B164: BNSF | C164: 4 | D164: E1L208C6 | E164: 163 | F164: CM(Y), ROI Expense, Railroad-Owned, HOPPER - OPEN TOP - SPECIAL | G164: 0.01713318191 | H164: 0.02414345928 | I164: 0.02376334369 | J164: 0.0248766169 | K164: 0.02520276606 | L164: 0.02827158384 | M164: 0.04416803643 | N164: 0.04208676144 | O164: 0.03753721341 | P164: 0.04038153234 | Q164: 0.04358148593 | R164: 0.03912261249 | S164: 0.03749282321 | T164: 0.03107053133 | U164: 0.04049470611 | V164: 0.04479596327 | W164: 0.03883634884 | X164: 0.04239329642 | Y164: 0.05830015508
A165: BNSF-E1L208C7 | B165: BNSF | C165: 4 | D165: E1L208C7 | E165: 164 | F165: CD(R), OPR Expense, Railroad-Owned, HOPPER - OPEN TOP - SPECIAL | G165: 2.253253937 | H165: 2.451958895 | I165: 2.50535059 | J165: 3.341607332 | K165: 3.639690638 | L165: 4.262078285 | M165: 4.203510284 | N165: 4.607525826 | O165: 5.088027954 | P165: 5.491617091 | Q165: 5.106361198 | R165: 4.357725554 | S165: 3.804574611 | T165: 3.414552362 | U165: 3.387912248 | V165: 3.20852359 | W165: 3.251625278 | X165: 3.743422557 | Y165: 3.637368328
A166: BNSF-E1L208C8 | B166: BNSF | C166: 4 | D166: E1L208C8 | E166: 165 | F166: CD(R), DRL Expense, Railroad-Owned, HOPPER - OPEN TOP - SPECIAL | G166: 5.638989449 | H166: 7.820158005 | I166: 7.956224918 | J166: 8.109427452 | K166: 8.171147346 | L166: 10.49877548 | M166: 13.69447422 | N166: 12.63803101 | O166: 10.27740097 | P166: 11.95065997 | Q166: 11.49337856 | R166: 7.863577792 | S166: 5.70728509 | T166: 3.603605612 | U166: 5.360860668 | V166: 4.122461325 | W166: 3.79939489 | X166: 5.17181343 | Y166: 6.527517982
A167: BNSF-E1L208C9 | B167: BNSF | C167: 4 | D167: E1L208C9 | E167: 166 | F167: CD(R), ROI Expense, Railroad-Owned, HOPPER - OPEN TOP - SPECIAL | G167: 0.6536272168 | H167: 0.9667176008 | I167: 0.9812930226 | J167: 1.226573586 | K167: 1.465780377 | L167: 1.622846007 | M167: 2.693816423 | N167: 2.481217861 | O167: 2.217391729 | P167: 2.497981798 | Q167: 2.6126409 | R167: 2.338452434 | S167: 2.43684325 | T167: 1.416800517 | U167: 1.875251835 | V167: 1.912947595 | W167: 1.78003886 | X167: 1.885243671 | Y167: 2.421932676
A168: BNSF-E1L208C10 | B168: BNSF | C168: 4 | D168: E1L208C10 | E168: 167 | F168: CD(Y), OPR Expense, Railroad-Owned, HOPPER - OPEN TOP - SPECIAL | G168: 2.253253937 | H168: 2.451958895 | I168: 2.50535059 | J168: 3.341607571 | K168: 3.639690638 | L168: 4.262078285 | M168: 4.203510761 | N168: 4.607525826 | O168: 5.088027954 | P168: 5.491617091 | Q168: 5.106361198 | R168: 4.357725554 | S168: 3.804574611 | T168: 3.414552362 | U168: 3.387912248 | V168: 3.20852359 | W168: 3.251625278 | X168: 3.743422557 | Y168: 3.637368328
A169: BNSF-E1L208C11 | B169: BNSF | C169: 4 | D169: E1L208C11 | E169: 168 | F169: CD(Y), DRL Expense, Railroad-Owned, HOPPER - OPEN TOP - SPECIAL | G169: 5.638989449 | H169: 7.820158482 | I169: 7.956223965 | J169: 8.109427452 | K169: 8.171149254 | L169: 10.49877548 | M169: 13.69447422 | N169: 12.63803005 | O169: 10.27740002 | P169: 11.95065997 | Q169: 11.49337856 | R169: 7.863577792 | S169: 5.70728509 | T169: 3.603605612 | U169: 5.360860668 | V169: 4.122461325 | W169: 3.79939489 | X169: 5.17181343 | Y169: 6.527517982
A170: BNSF-E1L208C12 | B170: BNSF | C170: 4 | D170: E1L208C12 | E170: 169 | F170: CD(Y), ROI Expense, Railroad-Owned, HOPPER - OPEN TOP - SPECIAL | G170: 0.6536272168 | H170: 0.9667176008 | I170: 0.9812928438 | J170: 1.226573706 | K170: 1.465780377 | L170: 1.622846007 | M170: 2.693816662 | N170: 2.4812181 | O170: 2.217391491 | P170: 2.497981798 | Q170: 2.6126409 | R170: 2.338452434 | S170: 2.43684325 | T170: 1.416800517 | U170: 1.875251835 | V170: 1.912947595 | W170: 1.78003886 | X170: 1.885243671 | Y170: 2.421932676
A171: BNSF-E1L208C13 | B171: BNSF | C171: 4 | D171: E1L208C13 | E171: 170 | F171: CM(R), DRL Expense, Privately-Owned, HOPPER - OPEN TOP - SPECIAL | G171: 6.373564247e-06 | H171: 9.536674952e-06 | I171: 8.018550034e-06 | J171: 1.210211576e-05 | K171: 0.0004194161156 | L171: 0.001315446687 | M171: 0.0003587870451 | N171: 9.999829672e-06 | O171: 0.001228990965 | P171: 0.0007907578653 | Q171: 3.915266895e-06 | R171: 1.8120022e-06 | S171: 1.900867956e-06 | T171: 6.178287719e-06 | U171: 9.960584271e-06 | V171: 5.320289359e-06 | W171: 7.645780159e-06 | X171: 2.623444003e-06 | Y171: 2.8670325e-06
A172: BNSF-E1L209C1 | B172: BNSF | C172: 4 | D172: E1L209C1 | E172: 171 | F172: CM(R), OPR Expense, Railroad-Owned, REFRIGERATED - MECH | G172: 0.03565915674 | H172: 0.03924684972 | I172: 0.05149677396 | J172: 0.0542120412 | K172: 0.0624595359 | L172: 0.06240111589 | M172: 0.06298317015 | N172: 0.05767532811 | O172: 0.05392549932 | P172: 0.05771785359 | Q172: 0.05870585233 | R172: 0.05624470806 | S172: 0.0590464547 | T172: 0.06066884858 | U172: 0.06300241169 | V172: 0.05824591933 | W172: 0.0578737909 | X172: 0.06061388939 | Y172: 0.05572146529
A173: BNSF-E1L209C2 | B173: BNSF | C173: 4 | D173: E1L209C2 | E173: 172 | F173: CM(R), DRL Expense, Railroad-Owned, REFRIGERATED - MECH | G173: -0.02330885455 | H173: -0.02861772664 | I173: -0.02285628766 | J173: -0.02515565604 | K173: -0.02863401175 | L173: -0.01777134836 | M173: -0.02564092167 | N173: -0.03291648254 | O173: -0.01593488082 | P173: -0.02604019469 | Q173: -0.009139703054 | R173: -0.01778358756 | S173: -0.04138662734 | T173: -0.03755214232 | U173: -0.02187574891 | V173: -0.01804353598 | W173: -0.02020602049 | X173: -0.001169585789 | Y173: 0.01353369119
A174: BNSF-E1L209C3 | B174: BNSF | C174: 4 | D174: E1L209C3 | E174: 173 | F174: CM(R), ROI Expense, Railroad-Owned, REFRIGERATED - MECH | G174: 0.01905758679 | H174: 0.009215220809 | I174: 0.009481058456 | J174: 0.008440995589 | K174: 0.002874404425 | L174: 0.002412686124 | M174: 0.00253205956 | N174: 0.002515779575 | O174: 0.001333872089 | P174: 0.001278415906 | Q174: 0.001439806419 | R174: 0.001469463959 | S174: 0.001356192129 | T174: 0.0009870149286 | U174: 0.03720905303 | V174: 0.04309201654 | W174: 0.04269734163 | X174: 0.04422351253 | Y174: 0.07252588796
A175: BNSF-E1L209C4 | B175: BNSF | C175: 4 | D175: E1L209C4 | E175: 174 | F175: CM(Y), OPR Expense, Railroad-Owned, REFRIGERATED - MECH | G175: 0.09271378815 | H175: 0.1020419374 | I175: 0.1338913143 | J175: 0.1409512162 | K175: 0.1623948365 | L175: 0.162242949 | M175: 0.1637564749 | N175: 0.1499559432 | O175: 0.1402064115 | P175: 0.1500664193 | Q175: 0.1526352161 | R175: 0.146236241 | S175: 0.1535207822 | T175: 0.1577390063 | U175: 0.1638062704 | V175: 0.1514393903 | W175: 0.1504718564 | X175: 0.1575961124 | Y175: 0.1448758097
A176: BNSF-E1L209C5 | B176: BNSF | C176: 4 | D176: E1L209C5 | E176: 175 | F176: CM(Y), DRL Expense, Railroad-Owned, REFRIGERATED - MECH | G176: -0.06060300395 | H176: -0.07440625876 | I176: -0.05942639336 | J176: -0.06540486962 | K176: -0.07444835454 | L176: -0.04620546848 | M176: -0.06666662544 | N176: -0.08558291942 | O176: -0.04143063352 | P176: -0.06770450619 | Q176: -0.02376322794 | R176: -0.04623732766 | S176: -0.1076052311 | T176: -0.09763557003 | U176: -0.05687694717 | V176: -0.04691319354 | W176: -0.05253565329 | X176: -0.00304092305 | Y176: 0.0351875971
A177: BNSF-E1L209C6 | B177: BNSF | C177: 4 | D177: E1L209C6 | E177: 176 | F177: CM(Y), ROI Expense, Railroad-Owned, REFRIGERATED - MECH | G177: 0.04954971746 | H177: 0.0239596162 | I177: 0.02465072833 | J177: 0.02194662765 | K177: 0.007473445963 | L177: 0.006272992119 | M177: 0.006583375391 | N177: 0.006541026756 | O177: 0.003468062729 | P177: 0.003323881357 | Q177: 0.00374349669 | R177: 0.003820606294 | S177: 0.003526099535 | T177: 0.002566238814 | U177: 0.09674353787 | V177: 0.112039243 | W177: 0.1110130882 | X177: 0.1149811326 | Y177: 0.1885673087
A178: BNSF-E1L209C7 | B178: BNSF | C178: 4 | D178: E1L209C7 | E178: 177 | F178: CD(R), OPR Expense, Railroad-Owned, REFRIGERATED - MECH | G178: 4.607161045 | H178: 5.0216856 | I178: 6.572267532 | J178: 7.054888248 | K178: 8.12133503 | L178: 7.982527733 | M178: 7.96232748 | N178: 7.151662827 | O178: 6.589273453 | P178: 7.045344576 | Q178: 7.272983702 | R178: 7.07385749 | S178: 7.74586203 | T178: 8.282410119 | U178: 9.139698571 | V178: 8.570957401 | W178: 8.62656389 | X178: 9.000969054 | Y178: 8.280880229
A179: BNSF-E1L209C8 | B179: BNSF | C179: 4 | D179: E1L209C8 | E179: 178 | F179: CD(R), DRL Expense, Railroad-Owned, REFRIGERATED - MECH | G179: -10.17920589 | H179: -11.3839922 | I179: -10.75271893 | J179: -5.80173111 | K179: -9.923757553 | L179: -7.200344086 | M179: -6.157610416 | N179: -7.286967278 | O179: -5.96906805 | P179: -13.92648747 | Q179: -23.88167929 | R179: -23.02511912 | S179: -35.98046105 | T179: -31.19993582 | U179: -22.74868127 | V179: -29.51520203 | W179: -28.39978531 | X179: -20.98062872 | Y179: -10.45999935
A180: BNSF-E1L209C9 | B180: BNSF | C180: 4 | D180: E1L209C9 | E180: 179 | F180: CD(R), ROI Expense, Railroad-Owned, REFRIGERATED - MECH | G180: 3.506124258 | H180: 1.700640798 | I180: 1.713890195 | J180: 1.548800349 | K180: 0.4290051162 | L180: 0.3463294208 | M180: 0.3830119073 | N180: 0.3557035327 | O180: 0.1570243388 | P180: 0.1613944147 | Q180: 0.1842291231 | R180: 0.1802537494 | S180: 0.1922591079 | T180: 0.1402082652 | U180: 8.329729505 | V180: 9.41608024 | W180: 9.245238706 | X180: 9.663184878 | Y180: 15.81892877
A181: BNSF-E1L209C10 | B181: BNSF | C181: 4 | D181: E1L209C10 | E181: 180 | F181: CD(Y), OPR Expense, Railroad-Owned, REFRIGERATED - MECH | G181: 4.607161045 | H181: 5.021686077 | I181: 6.572267532 | J181: 7.054888725 | K181: 8.12133503 | L181: 7.982528687 | M181: 7.96232748 | N181: 7.151663303 | O181: 6.589274406 | P181: 7.045344576 | Q181: 7.272983702 | R181: 7.07385749 | S181: 7.74586203 | T181: 8.282410119 | U181: 9.139698571 | V181: 8.570957401 | W181: 8.62656389 | X181: 9.000969054 | Y181: 8.280880229
A182: BNSF-E1L209C11 | B182: BNSF | C182: 4 | D182: E1L209C11 | E182: 181 | F182: CD(Y), DRL Expense, Railroad-Owned, REFRIGERATED - MECH | G182: -10.17920589 | H182: -11.3839922 | I182: -10.75271893 | J182: -5.80173111 | K182: -9.92375946 | L182: -7.200344563 | M182: -6.157610416 | N182: -7.286967278 | O182: -5.969068527 | P182: -13.92648747 | Q182: -23.88167929 | R182: -23.02511912 | S182: -35.98046105 | T182: -31.19993582 | U182: -22.74868127 | V182: -29.51520203 | W182: -28.39978531 | X182: -20.98062872 | Y182: -10.45999935
A183: BNSF-E1L209C12 | B183: BNSF | C183: 4 | D183: E1L209C12 | E183: 182 | F183: CD(Y), ROI Expense, Railroad-Owned, REFRIGERATED - MECH | G183: 3.50612402 | H183: 1.700640798 | I183: 1.713890195 | J183: 1.548800349 | K183: 0.4290051758 | L183: 0.3463294208 | M183: 0.3830119073 | N183: 0.3557035327 | O183: 0.1570243537 | P183: 0.1613944147 | Q183: 0.1842291231 | R183: 0.1802537494 | S183: 0.1922591079 | T183: 0.1402082652 | U183: 8.329729505 | V183: 9.41608024 | W183: 9.245238706 | X183: 9.663184878 | Y183: 15.81892877
A184: BNSF-E1L209C13 | B184: BNSF | C184: 4 | D184: E1L209C13 | E184: 183 | F184: CM(R), DRL Expense, Privately-Owned, REFRIGERATED - MECH | G184: 0.0003924448683 | H184: 0.000187235084 | I184: 0.0001619000395 | J184: 0.000215365988 | K184: 0.0001658272522 | L184: 0.0007118989597 | M184: 0.0008863921394 | N184: 0.0001076337139 | O184: 0.0001044809687 | P184: 0.0003913441171 | Q184: 0.0004681547354 | R184: 0.0006564884328 | S184: 0.0007022769945 | T184: 0.0006793814577 | U184: 0.0007690735263 | V184: 0.0006024559596 | W184: 0.0004784700187 | X184: 0.0004982539062 | Y184: 0.0004758860852
A185: BNSF-E1L210C1 | B185: BNSF | C185: 4 | D185: E1L210C1 | E185: 184 | F185: CM(R), OPR Expense, Railroad-Owned, REFRIGERATED - NON-MECH | G185: 0.01397402957 | H185: 0.01429337263 | I185: 0.01527645905 | J185: 0.01519599464 | K185: 0.01405791938 | L185: 0.01349189691 | M185: 0.0141925402 | N185: 0.01548502035 | O185: 0.01725496538 | P185: 0.01878607313 | Q185: 0.01953764391 | R185: 0.01900638764 | S185: 0.02210197357 | T185: 0.02654639089 | U185: 0.03098562562 | V185: 0.03001292488 | W185: 0.02900972842 | X185: 0.03113068459 | Y185: 0.03245846707
A186: BNSF-E1L210C2 | B186: BNSF | C186: 4 | D186: E1L210C2 | E186: 185 | F186: CM(R), DRL Expense, Railroad-Owned, REFRIGERATED - NON-MECH | G186: 0.003884772072 | H186: -0.001832365175 | I186: 0.00203987374 | J186: 0.008147222921 | K186: 0.01062481292 | L186: 0.00999730546 | M186: 0.006211279426 | N186: 0.006172592752 | O186: 0.01392507553 | P186: 0.02518995609 | Q186: 0.02712925075 | R186: 0.02651168068 | S186: 0.03075272018 | T186: 0.03302074379 | U186: 0.02783529369 | V186: 0.02240460755 | W186: 0.02274926908 | X186: 0.02575982476 | Y186: 0.07963992697
A187: BNSF-E1L210C3 | B187: BNSF | C187: 4 | D187: E1L210C3 | E187: 186 | F187: CM(R), ROI Expense, Railroad-Owned, REFRIGERATED - NON-MECH | G187: 0.03682439774 | H187: 0.03761208057 | I187: 0.04552454501 | J187: 0.04144439846 | K187: 0.06618928164 | L187: 0.05817132071 | M187: 0.0525360629 | N187: 0.04626742378 | O187: 0.04063114524 | P187: 0.03219735534 | Q187: 0.03209202241 | R187: 0.03783826759 | S187: 0.05199309836 | T187: 0.04213133004 | U187: 0.03324088484 | V187: 0.03314371998 | W187: 0.03328463569 | X187: 0.04516328426 | Y187: 0.1430361614
A188: BNSF-E1L210C4 | B188: BNSF | C188: 4 | D188: E1L210C4 | E188: 187 | F188: CM(Y), OPR Expense, Railroad-Owned, REFRIGERATED - NON-MECH | G188: 0.03633247688 | H188: 0.03716279566 | I188: 0.03971872479 | J188: 0.03950963914 | K188: 0.03655064479 | L188: 0.0350789167 | M188: 0.03690063208 | N188: 0.04026101902 | O188: 0.0448628515 | P188: 0.04884379014 | Q188: 0.05079787417 | R188: 0.04941660786 | S188: 0.05746513127 | T188: 0.06902061631 | U188: 0.0805626266 | V188: 0.07803360468 | W188: 0.07542529388 | X188: 0.08093977994 | Y188: 0.08439201437
A189: BNSF-E1L210C5 | B189: BNSF | C189: 4 | D189: E1L210C5 | E189: 188 | F189: CM(Y), DRL Expense, Railroad-Owned, REFRIGERATED - NON-MECH | G189: 0.01010041218 | H189: -0.004764145706 | I189: 0.005303652957 | J189: 0.02118273452 | K189: 0.02762445249 | L189: 0.02599304728 | M189: 0.01614937 | N189: 0.0160488598 | O189: 0.0362052694 | P189: 0.06549388584 | Q189: 0.07053605195 | R189: 0.06893036976 | S189: 0.07995707248 | T189: 0.08585393386 | U189: 0.0723717636 | V189: 0.05825197964 | W189: 0.05914809961 | X189: 0.06697554439 | Y189: 0.2070638101
A190: BNSF-E1L210C6 | B190: BNSF | C190: 4 | D190: E1L210C6 | E190: 189 | F190: CM(Y), ROI Expense, Railroad-Owned, REFRIGERATED - NON-MECH | G190: 0.09574335814 | H190: 0.09779136628 | I190: 0.1183640212 | J190: 0.1077552214 | K190: 0.1720921695 | L190: 0.1512454897 | M190: 0.136594072 | N190: 0.1202951148 | O190: 0.1056411117 | P190: 0.08371312389 | Q190: 0.08343925828 | R190: 0.09837949572 | S190: 0.1351820557 | T190: 0.1095414581 | U190: 0.08642630057 | V190: 0.08617367194 | W190: 0.08654005281 | X190: 0.1174245391 | Y190: 0.3718940195
A191: BNSF-E1L210C7 | B191: BNSF | C191: 4 | D191: E1L210C7 | E191: 190 | F191: CD(R), OPR Expense, Railroad-Owned, REFRIGERATED - NON-MECH | G191: 1.573575974 | H191: 1.621020913 | I191: 1.759270549 | J191: 1.805274487 | K191: 1.709885359 | L191: 1.691962123 | M191: 1.841191649 | N191: 2.019206285 | O191: 2.203442097 | P191: 2.393033292 | Q191: 2.524112026 | R191: 2.53695168 | S191: 3.020776008 | T191: 3.697542361 | U191: 4.54886315 | V191: 4.466474677 | W191: 4.38308845 | X191: 4.74885268 | Y191: 5.021514074
A192: BNSF-E1L210C8 | B192: BNSF | C192: 4 | D192: E1L210C8 | E192: 191 | F192: CD(R), DRL Expense, Railroad-Owned, REFRIGERATED - NON-MECH | G192: 11.72866631 | H192: 12.23120117 | I192: 15.20175743 | J192: 21.41425705 | K192: 24.10426712 | L192: 22.94138908 | M192: 25.43793869 | N192: 25.36058235 | O192: 21.26347542 | P192: 21.61639833 | Q192: 29.71996458 | R192: 29.37205285 | S192: 45.5609671 | T192: 50.16828777 | U192: 26.30048806 | V192: 22.39189085 | W192: 23.23712572 | X192: 35.61676113 | Y192: 100.7494945
A193: BNSF-E1L210C9 | B193: BNSF | C193: 4 | D193: E1L210C9 | E193: 192 | F193: CD(R), ROI Expense, Railroad-Owned, REFRIGERATED - NON-MECH | G193: 6.105591297 | H193: 6.544289589 | I193: 7.903482914 | J193: 7.539547443 | K193: 12.45480728 | L193: 11.03461838 | M193: 10.54190063 | N193: 8.854432106 | O193: 7.241418362 | P193: 6.310255387 | Q193: 6.385995296 | R193: 7.391430751 | S193: 11.04584088 | T193: 8.875979835 | U193: 7.507775736 | V193: 7.302685905 | W193: 7.297412376 | X193: 10.66660975 | Y193: 33.0900761
A194: =B194&"-"&D194 -> BNSF-E1L210C10 | B194: BNSF | C194: 4 | D194: E1L210C10 | E194: 193 | F194: CD(Y), OPR Expense, Railroad-Owned, REFRIGERATED - NON-MECH | G194: 1.573575854 | H194: 1.621021271 | I194: 1.759270668 | J194: 1.805274606 | K194: 1.709885597 | L194: 1.691962123 | M194: 1.841191649 | N194: 2.019206285 | O194: 2.203442097 | P194: 2.393033292 | Q194: 2.524112026 | R194: 2.53695168 | S194: 3.020776008 | T194: 3.697542361 | U194: 4.54886315 | V194: 4.466474677 | W194: 4.38308845 | X194: 4.74885268 | Y194: 5.021514074
A195: BNSF-E1L210C11 | B195: BNSF | C195: 4 | D195: E1L210C11 | E195: 194 | F195: CD(Y), DRL Expense, Railroad-Owned, REFRIGERATED - NON-MECH | G195: 11.72866631 | H195: 12.23120117 | I195: 15.20175743 | J195: 21.41425514 | K195: 24.10427094 | L195: 22.94138908 | M195: 25.4379406 | N195: 25.36058235 | O195: 21.26347351 | P195: 21.61639833 | Q195: 29.71996458 | R195: 29.37205285 | S195: 45.5609671 | T195: 50.16828777 | U195: 26.30048806 | V195: 22.39189085 | W195: 23.23712572 | X195: 35.61676113 | Y195: 100.7494945
A196: BNSF-E1L210C12 | B196: BNSF | C196: 4 | D196: E1L210C12 | E196: 195 | F196: CD(Y), ROI Expense, Railroad-Owned, REFRIGERATED - NON-MECH | G196: 6.105591297 | H196: 6.544289589 | I196: 7.903483391 | J196: 7.53954649 | K196: 12.45480728 | L196: 11.03461838 | M196: 10.54189968 | N196: 8.85443306 | O196: 7.241418362 | P196: 6.310255387 | Q196: 6.385995296 | R196: 7.391430751 | S196: 11.04584088 | T196: 8.875979835 | U196: 7.507775736 | V196: 7.302685905 | W196: 7.297412376 | X196: 10.66660975 | Y196: 33.0900761
A197: BNSF-E1L210C13 | B197: BNSF | C197: 4 | D197: E1L210C13 | E197: 196 | F197: CM(R), DRL Expense, Privately-Owned, REFRIGERATED - NON-MECH | G197: 0.002970512491 | H197: 0.002310120268 | I197: 0.002860381035 | J197: 0.001365697128 | K197: 0.006165865809 | L197: 0.004134462681 | M197: 0.004690426402 | N197: 0.005398840643 | O197: 0.002350509167 | P197: 0.002775248238 | Q197: 0.0004502484341 | R197: 0.0002881430151 | S197: 0.0004220685691 | T197: 0.0002740592984 | U197: 0.0002612150691 | V197: 0.0001499261405 | W197: 0.0009131787502 | X197: 0.001053712555 | Y197: 0
A198: BNSF-E1L211C1 | B198: BNSF | C198: 4 | D198: E1L211C1 | E198: 197 | F198: CM(R), OPR Expense, Railroad-Owned, FLAT - TOFC | G198: 0.02855425514 | H198: 0.02279686183 | I198: 0.02107963152 | J198: 0.02131857537 | K198: 0.02047242038 | L198: 0.01902839728 | M198: 0.0173049327 | N198: 0.01443955582 | O198: 0.01420275774 | P198: 0.01581450797 | Q198: 0.01770843614 | R198: 0.01947562318 | S198: 0.02423811877 | T198: 0.02859444666 | U198: 0.03216671302 | V198: 0.03431887634 | W198: 0.03841789895 | X198: 0.04275346256 | Y198: 0.03791183764
A199: BNSF-E1L211C2 | B199: BNSF | C199: 4 | D199: E1L211C2 | E199: 198 | F199: CM(R), DRL Expense, Railroad-Owned, FLAT - TOFC | G199: 0.002949257614 | H199: 0.0009940426098 | I199: 0.0004445841769 | J199: 0.003325151978 | K199: 0.001062766882 | L199: -0.001900352421 | M199: -0.003337065689 | N199: -0.002445592545 | O199: -0.002677871613 | P199: 0.003624865006 | Q199: 0.005987257199 | R199: 0.002057009204 | S199: -0.01699404697 | T199: -0.007764056776 | U199: -0.009098831952 | V199: -0.0133544556 | W199: -0.01620595142 | X199: -0.02255471691 | Y199: -0.02479101223
A200: BNSF-E1L211C3 | B200: BNSF | C200: 4 | D200: E1L211C3 | E200: 199 | F200: CM(R), ROI Expense, Railroad-Owned, FLAT - TOFC | G200: 0.001094669104 | H200: 0.001348837162 | I200: 0.003783172462 | J200: 0.008947346359 | K200: 0.009515053593 | L200: 0.01724516973 | M200: 0.01893717609 | N200: 0.01712528802 | O200: 0.01715753786 | P200: 0.01388801189 | Q200: 0.0112637631 | R200: 0.01601240264 | S200: 0.0235826185 | T200: 0.01822724186 | U200: 0.01545578774 | V200: 0.02389608358 | W200: 0.02542764978 | X200: 0.02334844838 | Y200: 0.02427506188
... 2050 more rows

Sheet Railroads
A1: Class I Railroads
A2: RR_Num | B2: URCS_RR | C2: RR_Alpha | D2: Region
A3: 103 | B3: 114900 | C3: CN | D3: EAST
A4: 105 | B4: 137700 | C4: CP | D4: WEST
A5: 400 | B5: 134500 | C5: KCS | D5: WEST
A6: 555 | B6: 117000 | C6: NS | D6: EAST
A7: 712 | B7: 125600 | C7: CSXT | D7: EAST
A8: 777 | B8: 130500 | C8: BNSF | D8: WEST
A9: 802 | B9: 139300 | C9: UP | D9: WEST
A10: 900004 | B10: 900004 | C10: EAST | D10: EAST
A11: 900007 | B11: 900007 | C11: WEST | D11: WEST
A13: Railroad to URCS Railroad
A14: RR_Num | B14: RRICC | C14: RR_Region | D14: RR_Alpha | E14: RR_Name | F14: Year | G14: URCS_RR | H14: URCS_Alpha
A15: 5 | B15: 0 | C15: 7 | D15: ARR | E15: Alaska Railroad | F15: 2009 | G15: =IF($B15<>0,VLOOKUP($A15,ClassIRailroads,2,FALSE),900000+$C15) -> 900007 | H15: =VLOOKUP($G15,URCSClassIRailroads,2,FALSE) -> WEST
A16: 6 | B16: 0 | C16: 4 | D16: AA | E16: Ann Arbor Railroad Co. | F16: 2003 | G16: 900004 | H16: EAST
A17: 8 | B17: 0 | C17: 7 | D17: AC | E17: Algoma Central Ry | F17: 2003 | G17: 900007 | H17: WEST
A18: 9 | B18: 0 | C18: 4 | D18: AR | E18: Aberdeen & Rockfish Railroad | F18: 2003 | G18: 900004 | H18: EAST
A19: 10 | B19: 0 | C19: 4 | D19: PR | E19: South Carolina Division of Public Railways dba Palmetto Railway | F19: 2018 | G19: 900004 | H19: EAST
A20: 11 | B20: 0 | C20: 7 | D20: APA | E20: Apache Railway | F20: 2003 | G20: 900007 | H20: WEST
A21: 12 | B21: 0 | C21: 4 | D21: AN | E21: Apalachicola Northern Railroad | F21: 2003 | G21: 900004 | H21: EAST
A22: 16 | B22: 0 | C22: 7 | D22: ALM | E22: Arkansas, Louisiana & Mississippi RR | F22: 2003 | G22: 900007 | H22: WEST
A23: 25 | B23: 0 | C23: 4 | D23: ATW | E23: Atlantic & Western Railway, L.P. | F23: 2003 | G23: 900004 | H23: EAST
A24: 28 | B24: 0 | C24: 4 | D24: AVR | E24: Allegheny Valley Railroad Company | F24: 2007 | G24: 900004 | H24: EAST
A25: 32 | B25: 0 | C25: 7 | D25: ALS | E25: Alton & Southern Railway | F25: 2006 | G25: 900007 | H25: WEST
A26: 35 | B26: 0 | C26: 7 | D26: ANR | E26: Angelina & Neches River Railroad | F26: 2003 | G26: 900007 | H26: WEST
A27: 53 | B27: 0 | C27: 4 | D27: CALA | E27: Carolina Southern Railroad | F27: 2010 | G27: 900004 | H27: EAST
A28: 56 | B28: 0 | C28: 4 | D28: BAR | E28: Bangor & Aroostook Railroad | F28: 2003 | G28: 900004 | H28: EAST
A29: 57 | B29: 0 | C29: 7 | D29: TXPF | E29: Texas Pacifico Transportation Ltd | F29: 2022 | G29: 900007 | H29: WEST
A30: 61 | B30: 0 | C30: 4 | D30: BLE | E30: Bessemer & Lake Erie Railroad | F30: 2003 | G30: 900004 | H30: EAST
A31: 62 | B31: 0 | C31: 4 | D31: DREI | E31: Decatur and Eastern Illinois Railroad LLC | F31: 2018 | G31: 900004 | H31: EAST
A32: 65 | B32: 0 | C32: 4 | D32: BS | E32: Birmingham Southern Railroad | F32: 2003 | G32: 900004 | H32: EAST
A33: 67 | B33: 0 | C33: 4 | D33: BVRY | E33: Brandywine Valley Railroad Company | F33: 2008 | G33: 900004 | H33: EAST
A34: 72 | B34: 0 | C34: 7 | D34: ALAB | E34: Alabama Railroad Co. | F34: 2003 | G34: 900007 | H34: WEST
A35: 80 | B35: 0 | C35: 4 | D35: WNYP | E35: Western New York & Pennsylvania Railroad, L.L.C. | F35: 2007 | G35: 900004 | H35: EAST
A36: 83 | B36: 0 | C36: 7 | D36: BRC | E36: Belt Railway Company of Chicago | F36: 2003 | G36: 900007 | H36: WEST
A37: 84 | B37: 0 | C37: 4 | D37: BXN | E37: Bauxite & Northern Railway | F37: 2003 | G37: 900004 | H37: EAST
A38: 88 | B38: 0 | C38: 4 | D38: BAYL | E38: Bay Line Railroad L.L.C. | F38: 2003 | G38: 900004 | H38: EAST
A39: 93 | B39: 0 | C39: 4 | D39: FRVT | E39: Fore River Transportation Corporation | F39: 2008 | G39: 900004 | H39: EAST
A40: 94 | B40: 0 | C40: 4 | D40: CSO | E40: Connecticut Southern Railroad | F40: 2009 | G40: 900004 | H40: EAST
A41: 95 | B41: 0 | C41: 4 | D41: CCRR | E41: Claremont Concord Railroad Corp. | F41: 2003 | G41: 900004 | H41: EAST
A42: 96 | B42: 0 | C42: 4 | D42: CDAC | E42: Canadian American Railroad Co. | F42: 2003 | G42: 900004 | H42: EAST
A43: 99 | B43: 0 | C43: 4 | D43: CF | E43: Cape Fear Railways | F43: 2017 | G43: 900004 | H43: EAST
A44: 103 | B44: 1 | C44: 4 | D44: CN | E44: Canadian National RY | F44: 2003 | G44: 114900 | H44: CN
A45: 105 | B45: 6 | C45: 7 | D45: CP | E45: Canadian Pacific, LTD | F45: 2003 | G45: 137700 | H45: CP
A46: 108 | B46: 0 | C46: 4 | D46: BB | E46: Buckingham Branch Railroad Company | F46: 2003 | G46: 900004 | H46: EAST
A47: 111 | B47: 0 | C47: 7 | D47: CIC | E47: Cedar Rapids & Iowa City Railway | F47: 2003 | G47: 900007 | H47: WEST
A48: 124 | B48: 0 | C48: 7 | D48: CSCD | E48: Cascade & Columbia River Railroad | F48: 2004 | G48: 900007 | H48: WEST
A49: 127 | B49: 0 | C49: 4 | D49: AGR | E49: Alabama & Gulf Coast Railway LLC | F49: 2006 | G49: 900004 | H49: EAST
A50: 130 | B50: 0 | C50: 4 | D50: VVRR | E50: Vermilion Valley Railroad Company | F50: 2023 | G50: 900004 | H50: EAST
A51: 131 | B51: 0 | C51: 7 | D51: SSS | E51: Stewart Southern Railway | F51: 2017 | G51: 900007 | H51: WEST
A52: 132 | B52: 0 | C52: 7 | D52: CZRY | E52: Carrizo Gorge Railway | F52: 2010 | G52: 900007 | H52: WEST
A53: 134 | B53: 0 | C53: 4 | D53: GOGR | E53: Geaux Geaux Railroad | F53: 2017 | G53: 900004 | H53: EAST
A54: 142 | B54: 0 | C54: 4 | D54: CPDR | E54: Carolina Piedmont Railroad | F54: 2011 | G54: 900004 | H54: EAST
A55: 144 | B55: 0 | C55: 4 | D55: CMPA | E55: Madison Railroad | F55: 2012 | G55: 900004 | H55: EAST
A56: 149 | B56: 0 | C56: 4 | D56: KTR | E56: Kendallville Terminal Railway Co. | F56: 2003 | G56: 900004 | H56: EAST
A57: 151 | B57: 0 | C57: 4 | D57: CHAT | E57: Chattahoochee Bay Railroad, Inc. | F57: 2007 | G57: 900004 | H57: EAST
A58: 154 | B58: 0 | C58: 4 | D58: BPRR | E58: Buffalo & Pittsburgh Railroad, Inc. | F58: 2003 | G58: 900004 | H58: EAST
A59: 155 | B59: 0 | C59: 4 | D59: EVWR | E59: Evansville Western Railway | F59: 2007 | G59: 900004 | H59: EAST
A60: 156 | B60: 0 | C60: 4 | D60: CUOH | E60: Columbus & Ohio Railroad Co. | F60: 2003 | G60: 900004 | H60: EAST
A61: 160 | B61: 0 | C61: 7 | D61: LBWR | E61: Lubbock and Western Railway | F61: 2015 | G61: 900007 | H61: WEST
A62: 162 | B62: 0 | C62: 4 | D62: MERR | E62: Maine Eastern Railroad | F62: 2006 | G62: 900004 | H62: EAST
A63: 163 | B63: 0 | C63: 7 | D63: CLC | E63: Columbia & Cowlitz Railway | F63: 2003 | G63: 900007 | H63: WEST
A64: 168 | B64: 0 | C64: 4 | D64: CSS | E64: Chicago, SouthShore, & South Bend RR | F64: 2003 | G64: 900004 | H64: EAST
A65: 169 | B65: 0 | C65: 4 | D65: CLP | E65: Clarendon & Pittsford Railroad | F65: 2003 | G65: 900004 | H65: EAST
A66: 171 | B66: 0 | C66: 4 | D66: PDRR | E66: Pee Dee River Railroad Corp | F66: 2007 | G66: 900004 | H66: EAST
A67: 173 | B67: 0 | C67: 7 | D67: CGR | E67: C G Railway Inc. | F67: 2003 | G67: 900007 | H67: WEST
A68: 177 | B68: 0 | C68: 4 | D68: CAGY | E68: Columbus & Greenville Railway | F68: 2003 | G68: 900004 | H68: EAST
A69: 182 | B69: 0 | C69: 4 | D69: DLWR | E69: Depew, Lancaster & Western Railroad | F69: 2014 | G69: 900004 | H69: EAST
A70: 185 | B70: 0 | C70: 4 | D70: FGA | E70: Florida, Gulf & Atlantic Railroad | F70: 2019 | G70: 900004 | H70: EAST
A71: 188 | B71: 0 | C71: 4 | D71: CIND | E71: Central Railroad Co. of Indiana | F71: 2003 | G71: 900004 | H71: EAST
A72: 197 | B72: 0 | C72: 7 | D72: MCVR | E72: Merced County Central Valley Railroad | F72: 2023 | G72: 900007 | H72: WEST
A73: 200 | B73: 0 | C73: 7 | D73: DQE | E73: De Queen & Eastern Railroad | F73: 2003 | G73: 900007 | H73: WEST
A74: 204 | B74: 0 | C74: 4 | D74: GET | E74: Gettysburg & Northern Railroad Co. | F74: 2003 | G74: 900004 | H74: EAST
A75: 205 | B75: 0 | C75: 7 | D75: WTLC | E75: West Texas and Lubbock Railway | F75: 2009 | G75: 900007 | H75: WEST
A76: 210 | B76: 0 | C76: 7 | D76: DKS | E76: Doniphan, Kennsett & Searcy Railway | F76: 2003 | G76: 900007 | H76: WEST
A77: 211 | B77: 0 | C77: 7 | D77: DAIR | E77: D&I Railroad | F77: 2003 | G77: 900007 | H77: WEST
A78: 213 | B78: 0 | C78: 7 | D78: DMIR | E78: Duluth, Missabe & Iron Range Railway | F78: 2003 | G78: 900007 | H78: WEST
A79: 218 | B79: 0 | C79: 4 | D79: CBNS | E79: Cape Breton & Central Nova Scotia Railway | F79: 2011 | G79: 900004 | H79: EAST
A80: 222 | B80: 0 | C80: 4 | D80: CIRR | E80: Chattahoochee Industrial Railroad | F80: 2003 | G80: 900004 | H80: EAST
A81: 229 | B81: 0 | C81: 4 | D81: ECBR | E81: East Cooper & Berkeley Railroad Co. | F81: 2003 | G81: 900004 | H81: EAST
A82: 238 | B82: 0 | C82: 4 | D82: EJE | E82: Elgin, Joliet & Eastern Railway | F82: 2003 | G82: 900004 | H82: EAST
A83: 241 | B83: 0 | C83: 4 | D83: ELS | E83: Escanaba & Lake Superior Railroad | F83: 2003 | G83: 900004 | H83: EAST
A84: 245 | B84: 0 | C84: 4 | D84: EJR | E84: East Jersey Railroad And Terminal Company | F84: 2008 | G84: 900004 | H84: EAST
A85: 246 | B85: 0 | C85: 4 | D85: GLC | E85: Great Lakes Central Railroad | F85: 2008 | G85: 900004 | H85: EAST
A86: 247 | B86: 0 | C86: 7 | D86: EDW | E86: El Dorado and Wesson Railway Co. | F86: 2003 | G86: 900007 | H86: WEST
A87: 249 | B87: 0 | C87: 4 | D87: NBER | E87: Nittany & Bald Eagle Railroad Co. | F87: 2003 | G87: 900004 | H87: EAST
A88: 250 | B88: 0 | C88: 7 | D88: WC | E88: Historical Wisconsin Central Ltd. | F88: 2003 | G88: 900007 | H88: WEST
A89: 252 | B89: 0 | C89: 4 | D89: EIRC | E89: Eastern Illinois Railroad Company | F89: 2010 | G89: 900004 | H89: EAST
A90: 258 | B90: 0 | C90: 4 | D90: WTNN | E90: West Tennessee Railroad | F90: 2003 | G90: 900004 | H90: EAST
A91: 260 | B91: 0 | C91: 4 | D91: CKIN | E91: Chesapeake and Indiana Railroad | F91: 2013 | G91: 900004 | H91: EAST
A92: 263 | B92: 0 | C92: 4 | D92: FEC | E92: Florida East Coast Railway | F92: 2003 | G92: 900004 | H92: EAST
A93: 264 | B93: 0 | C93: 7 | D93: FVW | E93: Fox Valley & Western | F93: 2003 | G93: 900007 | H93: WEST
A94: 268 | B94: 0 | C94: 4 | D94: FGLK | E94: Finger Lakes Railway Corp | F94: 2008 | G94: 900004 | H94: EAST
A95: 283 | B95: 0 | C95: 4 | D95: GEXR | E95: Goderich-Exeter Railway Company | F95: 2019 | G95: 900004 | H95: EAST
A96: 284 | B96: 0 | C96: 7 | D96: DGNO | E96: Dallas Garland & Northeastern Railroad Inc | F96: 2008 | G96: 900007 | H96: WEST
A97: 287 | B97: 0 | C97: 4 | D97: GCW | E97: Garden City Western Railway, Inc | F97: 2009 | G97: 900004 | H97: EAST
A98: 288 | B98: 0 | C98: 7 | D98: EFRR | E98: Effingham Railroad Co. | F98: 2003 | G98: 900007 | H98: WEST
A99: 289 | B99: 0 | C99: 4 | D99: COEH | E99: Conecuh Valley Railroad | F99: 2010 | G99: 900004 | H99: EAST
A100: 291 | B100: 0 | C100: 7 | D100: FXE | E100: Ferrocarril Mexicano SA DE CV | F100: 2005 | G100: 900007 | H100: WEST
A101: 292 | B101: 0 | C101: 4 | D101: GR | E101: Grand Rapids Eastern Railroad Inc | F101: 2022 | G101: 900004 | H101: EAST
A102: 295 | B102: 0 | C102: 4 | D102: GTRA | E102: Golden Triangle Railroad | F102: 2003 | G102: 900004 | H102: EAST
A103: 296 | B103: 0 | C103: 4 | D103: GMRY | E103: Great Miami & Scioto Railway Co. | F103: 2003 | G103: 900004 | H103: EAST
A104: 300 | B104: 0 | C104: 4 | D104: GFRR | E104: Georgia and Florida Railroad | F104: 2009 | G104: 900004 | H104: EAST
A105: 302 | B105: 0 | C105: 7 | D105: GRR | E105: Georgetown Railroad | F105: 2003 | G105: 900007 | H105: WEST
A106: 303 | B106: 0 | C106: 4 | D106: ISRR | E106: Indiana Southern Railroad Co., Inc. | F106: 2003 | G106: 900004 | H106: EAST
A107: 306 | B107: 0 | C107: 4 | D107: GRW | E107: Gary Railway | F107: 2009 | G107: 900004 | H107: EAST
A108: 307 | B108: 0 | C108: 4 | D108: FRR | E108: Falls Road Railroad | F108: 2010 | G108: 900004 | H108: EAST
A109: 308 | B109: 0 | C109: 4 | D109: GTW | E109: Historical Grand Trunk Western, Inc. | F109: 2003 | G109: 900004 | H109: EAST
A110: 311 | B110: 0 | C110: 7 | D110: GWR | E110: Great Western Railroad of Colorado | F110: 2016 | G110: 900007 | H110: WEST
A111: 314 | B111: 0 | C111: 4 | D111: GMRC | E111: Green Mountain Railroad Corp. | F111: 2003 | G111: 900004 | H111: EAST
A112: 315 | B112: 0 | C112: 7 | D112: SDIY | E112: San Diego And Imperial Valley Railroad | F112: 2011 | G112: 900007 | H112: WEST
A113: 316 | B113: 0 | C113: 7 | D113: IAIS | E113: Iowa Interstate Railroad, Ltd. | F113: 2003 | G113: 900007 | H113: WEST
A114: 319 | B114: 0 | C114: 4 | D114: FNOR | E114: Florida Northern Railroad Company Inc | F114: 2008 | G114: 900004 | H114: EAST
A115: 321 | B115: 0 | C115: 7 | D115: RRVW | E115: Rad River Valley & Western RR Co. | F115: 2003 | G115: 900007 | H115: WEST
A116: 323 | B116: 0 | C116: 4 | D116: GU | E116: Grafton and Upton Railroad | F116: 2012 | G116: 900004 | H116: EAST
A117: 328 | B117: 0 | C117: 7 | D117: HE | E117: Hollis & Eastern RR, Co. | F117: 2007 | G117: 900007 | H117: WEST
A118: 333 | B118: 0 | C118: 7 | D118: FSRR | E118: Ferrosur S A DE C V | F118: 2006 | G118: 900007 | H118: WEST
A119: 335 | B119: 0 | C119: 4 | D119: GDLK | E119: Grand Elk Railroad | F119: 2009 | G119: 900004 | H119: EAST
A120: 337 | B120: 0 | C120: 4 | D120: GSWR | E120: Georgia Southwestern Railroad, Inc. | F120: 2003 | G120: 900004 | H120: EAST
A121: 341 | B121: 0 | C121: 7 | D121: IANR | E121: Iowa Northern Railway Co. | F121: 2003 | G121: 900007 | H121: WEST
A122: 342 | B122: 0 | C122: 4 | D122: ICE | E122: Iowa, Chicago and Eastern Railroad | F122: 2009 | G122: 900004 | H122: EAST
A123: 343 | B123: 0 | C123: 4 | D123: EARY | E123: Eastern Alabama Railway | F123: 2003 | G123: 900004 | H123: EAST
A124: 344 | B124: 0 | C124: 4 | D124: MMA | E124: Montreal, Maine & Atlantic | F124: 2009 | G124: 900004 | H124: EAST
A125: 345 | B125: 0 | C125: 7 | D125: HCRY | E125: Huron Central Railway Inc. | F125: 2006 | G125: 900007 | H125: WEST
A126: 351 | B126: 0 | C126: 4 | D126: BH | E126: B&H Rail Corp. | F126: 2003 | G126: 900004 | H126: EAST
A127: 357 | B127: 0 | C127: 4 | D127: IHB | E127: Indiana Harbor Belt Railroad | F127: 2003 | G127: 900004 | H127: EAST
A128: 358 | B128: 0 | C128: 7 | D128: IBT | E128: International Bridge & Terminal | F128: 2003 | G128: 900007 | H128: WEST
A129: 361 | B129: 0 | C129: 7 | D129: IMRR | E129: Illinois & Midland Railroad, Inc. | F129: 2003 | G129: 900007 | H129: WEST
A130: 362 | B130: 0 | C130: 7 | D130: GWWR | E130: Gateway Western Railroad | F130: 2003 | G130: 900007 | H130: WEST
A131: 365 | B131: 0 | C131: 7 | D131: KJRY | E131: Keokuk Junction Railway | F131: 2003 | G131: 900007 | H131: WEST
A132: 367 | B132: 0 | C132: 4 | D132: IR | E132: Indiana Railroad | F132: 2010 | G132: 900004 | H132: EAST
A133: 377 | B133: 0 | C133: 7 | D133: KYLE | E133: Kyle Railroad | F133: 2003 | G133: 900007 | H133: WEST
A134: 378 | B134: 0 | C134: 7 | D134: FCCM | E134: Compania De Ferrocarriles SA DE CV | F134: 2006 | G134: 900007 | H134: WEST
A135: 379 | B135: 0 | C135: 7 | D135: IMRL | E135: I&M Rail Link, LLC | F135: 2003 | G135: 900007 | H135: WEST
A136: 380 | B136: 0 | C136: 7 | D136: KO | E136: Kansas & Oklahoma Railroad Inc. | F136: 2003 | G136: 900007 | H136: WEST
A137: 386 | B137: 0 | C137: 7 | D137: CMR | E137: Central Midland Railway Company | F137: 2003 | G137: 900007 | H137: WEST
A138: 388 | B138: 0 | C138: 4 | D138: MGRI | E138: MG Rail Inc | F138: 2008 | G138: 900004 | H138: EAST
A139: 393 | B139: 0 | C139: 7 | D139: BRR | E139: Battle River Railway NGC Inc. | F139: 2021 | G139: 900007 | H139: WEST
A140: 395 | B140: 0 | C140: 4 | D140: GC | E140: Georgia Central Railway, L.P. | F140: 2003 | G140: 900004 | H140: EAST
A141: 398 | B141: 0 | C141: 4 | D141: LAL | E141: Livonia, Avon & Lakeville Railroad Corp. | F141: 2003 | G141: 900004 | H141: EAST
A142: 399 | B142: 0 | C142: 4 | D142: KBSR | E142: Kankakee, Beaverville & Southern Railroad | F142: 2014 | G142: 900004 | H142: EAST
A143: 400 | B143: 5 | C143: 7 | D143: KCS | E143: Kansas City Southern Railway Co. | F143: 2003 | G143: 134500 | H143: KCS
A144: 403 | B144: 0 | C144: 7 | D144: STPP | E144: St. Paul & Pacific Northwest Railroad Company, LLC | F144: 2022 | G144: 900007 | H144: WEST
A145: 404 | B145: 0 | C145: 4 | D145: LT | E145: Lake Terminal Railroad Company | F145: 2003 | G145: 900004 | H145: EAST
A146: 408 | B146: 0 | C146: 4 | D146: LSRC | E146: Lake State Railway Co. | F146: 2003 | G146: 900004 | H146: EAST
A147: 410 | B147: 0 | C147: 4 | D147: ACWR | E147: Aberdeen Carolina & Western Railway Co. | F147: 2003 | G147: 900004 | H147: EAST
A148: 411 | B148: 0 | C148: 4 | D148: LMIC | E148: Lake Michigan And Indiana Railroad Company | F148: 2008 | G148: 900004 | H148: EAST
A149: 420 | B149: 0 | C149: 7 | D149: CRL | E149: Chicago Rail Link | F149: 2003 | G149: 900007 | H149: WEST
A150: 424 | B150: 0 | C150: 7 | D150: KRR | E150: Kiamichi Railroad Company | F150: 2003 | G150: 900007 | H150: WEST
A151: 425 | B151: 0 | C151: 4 | D151: LSI | E151: Lake Superior & Ishpeming Railroad | F151: 2003 | G151: 900004 | H151: EAST
A152: 426 | B152: 0 | C152: 4 | D152: LC | E152: Lancaster And Chester Railway Company | F152: 2008 | G152: 900004 | H152: EAST
A153: 427 | B153: 0 | C153: 4 | D153: LRS | E153: Laurinburg and Southern Railroad Co. | F153: 2003 | G153: 900004 | H153: EAST
A154: 433 | B154: 0 | C154: 4 | D154: LXVR | E154: Luxapalila Valley Railroad, Inc. | F154: 2003 | G154: 900004 | H154: EAST
A155: 434 | B155: 0 | C155: 4 | D155: LIRC | E155: Louisville & Indiana Railroad Co. | F155: 2003 | G155: 900004 | H155: EAST
A156: 442 | B156: 0 | C156: 7 | D156: LNW | E156: Louisiana & North West Railroad Co. | F156: 2003 | G156: 900007 | H156: WEST
A157: 443 | B157: 0 | C157: 7 | D157: GNBC | E157: Grainbelt Corporation | F157: 2008 | G157: 900007 | H157: WEST
A158: 448 | B158: 0 | C158: 7 | D158: GSR | E158: Great Sandhills Railway | F158: 2015 | G158: 900007 | H158: WEST
A159: 452 | B159: 0 | C159: 4 | D159: LVRC | E159: Lamoille Valley Railroad Company | F159: 2003 | G159: 900004 | H159: EAST
A160: 455 | B160: 0 | C160: 4 | D160: MHWA | E160: Mohawk, Adirondack and Northern Railroad | F160: 2015 | G160: 900004 | H160: EAST
A161: 460 | B161: 0 | C161: 4 | D161: UCT | E161: Indiana Business Railroad dba Union City Terminal Railroad | F161: 2018 | G161: 900004 | H161: EAST
A162: 461 | B162: 0 | C162: 4 | D162: MCER | E162: Massachusetts Central Railroad Corp. | F162: 2003 | G162: 900004 | H162: EAST
A163: 462 | B163: 0 | C163: 4 | D163: NTZR | E163: Natchez Railway | F163: 2010 | G163: 900004 | H163: EAST
A164: 464 | B164: 0 | C164: 4 | D164: MC | E164: Michigan Central Railroad | F164: 2013 | G164: 900004 | H164: EAST
A165: 466 | B165: 0 | C165: 7 | D165: MCR | E165: McCloud Railway Co. | F165: 2003 | G165: 900007 | H165: WEST
A166: 469 | B166: 0 | C166: 4 | D166: HOG | E166: Heart of Georgia Railroad | F166: 2010 | G166: 900004 | H166: EAST
A167: 472 | B167: 0 | C167: 4 | D167: CMGN | E167: Central Michigan Railway Co. | F167: 2003 | G167: 900004 | H167: EAST
A168: 478 | B168: 0 | C168: 7 | D168: LMR | E168: Last Mountain Railway | F168: 2013 | G168: 900007 | H168: WEST
A169: 480 | B169: 0 | C169: 4 | D169: MNBR | E169: M & B Railroad, L.L.C. | F169: 2003 | G169: 900004 | H169: EAST
A170: 485 | B170: 0 | C170: 7 | D170: LRWN | E170: Little Rock & Western Railway, L.P. | F170: 2003 | G170: 900007 | H170: WEST
A171: 490 | B171: 0 | C171: 4 | D171: PAS | E171: Pan Am Southern, LLC | F171: 2009 | G171: 900004 | H171: EAST
A172: 495 | B172: 0 | C172: 4 | D172: MMID | E172: Maryland Midland Railway | F172: 2003 | G172: 900004 | H172: EAST
A173: 496 | B173: 0 | C173: 4 | D173: NECR | E173: New England Central Railroad, Inc. | F173: 2003 | G173: 900004 | H173: EAST
A174: 501 | B174: 0 | C174: 4 | D174: NYA | E174: New York & Atlantic Railway | F174: 2003 | G174: 900004 | H174: EAST
A175: 502 | B175: 0 | C175: 4 | D175: CWRO | E175: Cleveland Works Railway Company | F175: 2007 | G175: 900004 | H175: EAST
A176: 503 | B176: 0 | C176: 4 | D176: MSV | E176: Mississippi & Skuna Valley Railway | F176: 2003 | G176: 900004 | H176: EAST
A177: 506 | B177: 0 | C177: 4 | D177: MSE | E177: Mississippi Export Railroad | F177: 2003 | G177: 900004 | H177: EAST
A178: 507 | B178: 0 | C178: 4 | D178: FMID | E178: Florida Midland Railroad Co. Inc. | F178: 2007 | G178: 900004 | H178: EAST
A179: 508 | B179: 0 | C179: 7 | D179: MNA | E179: Missouri & Northern Arkansas RR Co. | F179: 2003 | G179: 900007 | H179: WEST
A180: 509 | B180: 0 | C180: 7 | D180: MSO | E180: Michigan Southern Railroad Co., Inc. | F180: 2003 | G180: 900007 | H180: WEST
A181: 510 | B181: 0 | C181: 7 | D181: MDW | E181: Minnesota, Dakota & Western Railway | F181: 2003 | G181: 900007 | H181: WEST
A182: 514 | B182: 0 | C182: 7 | D182: ATLT | E182: AT&L Railroad | F182: 2003 | G182: 900007 | H182: WEST
A183: 518 | B183: 0 | C183: 7 | D183: RARW | E183: Rarus Railway Company | F183: 2018 | G183: 900007 | H183: WEST
A184: 531 | B184: 0 | C184: 4 | D184: NCVA | E184: North Carolina & Virginia Railroad Co. Inc. | F184: 2007 | G184: 900004 | H184: EAST
A185: 541 | B185: 0 | C185: 4 | D185: NAUG | E185: Naugatuck Railroad Company LLC | F185: 2018 | G185: 900004 | H185: EAST
A186: 546 | B186: 0 | C186: 4 | D186: NYSW | E186: New York, Susquehanna & Western Rwy. | F186: 2003 | G186: 900004 | H186: EAST
A187: 547 | B187: 0 | C187: 4 | D187: MS | E187: Michigan Shore Railroad Incorporated | F187: 2010 | G187: 900004 | H187: EAST
A188: 555 | B188: 2 | C188: 4 | D188: NS | E188: Norfolk Southern Corp. | F188: 2003 | G188: 117000 | H188: NS
A189: 556 | B189: 0 | C189: 4 | D189: CFS | E189: Sartigan Railway/Chemin De Fer Sartigan | F189: 2018 | G189: 900004 | H189: EAST
A190: 557 | B190: 0 | C190: 4 | D190: SCIH | E190: South Chicago & Indiana Harbor Railway Company | F190: 2008 | G190: 900004 | H190: EAST
A191: 559 | B191: 0 | C191: 4 | D191: GRRY | E191: The Great Lake Port Corporation d/b/a The Grand River Railway | F191: 2023 | G191: 900004 | H191: EAST
A192: 564 | B192: 0 | C192: 7 | D192: MSCI | E192: Mississippi Central Railroad Co. | F192: 2003 | G192: 900007 | H192: WEST
A193: 570 | B193: 0 | C193: 4 | D193: NWR | E193: Nashville & Western Railroad Corp. | F193: 2007 | G193: 900004 | H193: EAST
A194: 572 | B194: 0 | C194: 4 | D194: NHRR | E194: New Hope and Ivyland Railroad | F194: 2020 | G194: 900004 | H194: EAST
A195: 576 | B195: 0 | C195: 4 | D195: ASRY | E195: Ashland Railway Co. | F195: 2007 | G195: 900004 | H195: EAST
A196: 577 | B196: 0 | C196: 4 | D196: KRL | E196: Kasgro Railway | F196: 2003 | G196: 900004 | H196: EAST
A197: 578 | B197: 0 | C197: 7 | D197: OAR | E197: Old Augusta Railroad | F197: 2003 | G197: 900007 | H197: WEST
A198: 582 | B198: 0 | C198: 4 | D198: SCRF | E198: South Carolina Central Railroad | F198: 2003 | G198: 900004 | H198: EAST
A199: 585 | B199: 0 | C199: 4 | D199: NYOG | E199: New York & Ogdensburg Railway Co. | F199: 2003 | G199: 900004 | H199: EAST
A200: 588 | B200: 0 | C200: 4 | D200: OMID | E200: Ontario Midland Railroad Corporation | F200: 2021 | G200: 900004 | H200: EAST
A201: 594 | B201: 0 | C201: 7 | D201: OUCH | E201: Ouachita Railroad | F201: 2009 | G201: 900007 | H201: WEST
... 129 more rows

Sheet STCCs
A1: STCC5 to URCS STCC Types
A2: STCC5 | B2: URCS STCC | C2: STCC-Description
A3: 01000 | B3: =IF(NOT(ISNA(VLOOKUP(LEFT($A3,5),URCSSTCCCodes,1,FALSE))),VLOOKUP(LEFT($A3,5),URCSSTCCCodes,1,FALSE),IF(NOT(ISNA(VLOOKUP(LEFT($A3,4),URCSSTCCCodes,1,FALSE))),VLOOKUP(LEFT($A3,4),URCSSTCCCodes,1,FALSE),IF(NOT(ISNA(VLOOKUP(LEFT($A3,3),URCSSTCCCodes,1,FALSE))),VLOOKUP(LEFT($A3,3),URCSSTCCCodes,1,FALSE),IF(NOT(ISNA(VLOOKUP(LEFT($A3,2),URCSSTCCCodes,1,FALSE))),VLOOKUP(LEFT($A3,2),URCSSTCCCodes,1,FALSE),URCSInputs!$O$84)))) -> 01000 | C3: =VLOOKUP($B3,URCSSTCCCodes,3,FALSE) -> 01 All Farm Products
A4: 01001 | B4: 01 | C4: 01 Other Farm Products
A5: 01002 | B5: 01 | C5: 01 Other Farm Products
A6: 01003 | B6: 01 | C6: 01 Other Farm Products
A7: 01004 | B7: 01 | C7: 01 Other Farm Products
A8: 01005 | B8: 01 | C8: 01 Other Farm Products
A9: 01006 | B9: 01 | C9: 01 Other Farm Products
A10: 01007 | B10: 01 | C10: 01 Other Farm Products
A11: 01008 | B11: 01 | C11: 01 Other Farm Products
A12: 01009 | B12: 01 | C12: 01 Other Farm Products
A13: 01010 | B13: 01 | C13: 01 Other Farm Products
A14: 01011 | B14: 01 | C14: 01 Other Farm Products
A15: 01012 | B15: 01 | C15: 01 Other Farm Products
A16: 01013 | B16: 01 | C16: 01 Other Farm Products
